Workbook

Sheet index
B4: 2017 Monitoring Report Tables & Charts
C8: Section 1: Coverage | I8: Section 3 Treatment: Early detection of DCIS or invasive breast cancer
C10: 1.a.1 | D10: =HYPERLINK("#" & C10 & "!A1", C10) -> 1.a.1 | E10: =SUBSTITUTE(INDEX(reference!$B$2:$B$99, MATCH(D10, reference!$A$2:$A$99, 0)), ", 4 years to June 2015", "") -> Overall coverage of eligible women | I10: 3.a.2.t | J10: =HYPERLINK("#" & I10 & "!A1", I10) -> 3.a.2.t | K10: =SUBSTITUTE(INDEX(reference!$B$2:$B$99, MATCH(J10, reference!$A$2:$A$99, 0)), ", 4 years to June 2015", "") -> Detection of invasive breast cancer, women screened during the 4 years to June 2015
C11: 1.a.2 | D11: =HYPERLINK("#" & C11 & "!A1", C11) -> 1.a.2 | E11: =SUBSTITUTE(INDEX(reference!$B$2:$B$99, MATCH(D11, reference!$A$2:$A$99, 0)), ", 4 years to June 2015", "") -> Coverage by initial and subsequent screens | I11: 3.a.3.t | J11: 3.a.3.t | K11: =SUBSTITUTE(INDEX(reference!$B$2:$B$99, MATCH(J11, reference!$A$2:$A$99, 0)), ", 4 years to June 2015", "") -> Treatment Data Completeness, women screened during the 4 years to June 2015
C12: 1.a.3 | D12: =HYPERLINK("#" & C12 & "!A1", C12) -> 1.a.3 | E12: =SUBSTITUTE(INDEX(reference!$B$2:$B$99, MATCH(D12, reference!$A$2:$A$99, 0)), ", 4 years to June 2015", "") -> Coverage by screening unit type | I12: 3.c.p.t | J12: 3.c.p.t | K12: =SUBSTITUTE(INDEX(reference!$B$2:$B$99, MATCH(J12, reference!$A$2:$A$99, 0)), ", 4 years to June 2015", "") -> Detection of invasive breast cancer less than or equal to 15mm (percentage), women screened during the 4 years to June 2015
C13: 1.a.4 | D13: =HYPERLINK("#" & C13 & "!A1", C13) -> 1.a.4 | E13: =SUBSTITUTE(INDEX(reference!$B$2:$B$99, MATCH(D13, reference!$A$2:$A$99, 0)), ", 4 years to June 2015", "") -> Age specific coverage | I13: 3.c.r.t | J13: 3.c.r.t | K13: =SUBSTITUTE(INDEX(reference!$B$2:$B$99, MATCH(J13, reference!$A$2:$A$99, 0)), ", 4 years to June 2015", "") -> Detection of invasive breast cancer less than or equal to 15mm (rate), women screened during the 4 years to June 2015
C14: 1.b.3 | D14: =HYPERLINK("#" & C14 & "!A1", C14) -> 1.b.3 | E14: =SUBSTITUTE(INDEX(reference!$B$2:$B$99, MATCH(D14, reference!$A$2:$A$99, 0)), ", 4 years to June 2015", "") -> Routine rescreening | I14: 3.d.t | J14: 3.d.t | K14: =SUBSTITUTE(INDEX(reference!$B$2:$B$99, MATCH(J14, reference!$A$2:$A$99, 0)), ", 4 years to June 2015", "") -> Nodal involvement, women screened during the 4 years to June 2015
I15: 3.e.t | J15: 3.e.t | K15: =SUBSTITUTE(INDEX(reference!$B$2:$B$99, MATCH(J15, reference!$A$2:$A$99, 0)), ", 4 years to June 2015", "") -> Ductal carcinoma in situ diagnosis, women screened during the 4 years to June 2015
C19: Section 2: Provision of high quality screening and assesment | I19: Section 4: Treatment
C21: 2.a | D21: =HYPERLINK("#" & C21 & "!A1", C21) -> 2.a | E21: =SUBSTITUTE(INDEX(reference!$B$2:$B$99, MATCH(D21, reference!$A$2:$A$99, 0)), ", 4 years to June 2015", "") -> Screening image usage | I21: 4.a.1.t | J21: =HYPERLINK("#" & I21 & "!A1", I21) -> 4.a.1.t | K21: =SUBSTITUTE(INDEX(reference!$B$2:$B$99, MATCH(J21, reference!$A$2:$A$99, 0)), ", 4 years to June 2015", "") -> Women with invasive breast cancers ≤30mm who have sentinel node biopsy as their first axillary procedure, women screened during the 4 years to June 2015
C22: 2.b | D22: 2.b | E22: =SUBSTITUTE(INDEX(reference!$B$2:$B$99, MATCH(D22, reference!$A$2:$A$99, 0)), ", 4 years to June 2015", "") -> Technical recall rate
C23: 2.c | D23: 2.c | E23: =SUBSTITUTE(INDEX(reference!$B$2:$B$99, MATCH(D23, reference!$A$2:$A$99, 0)), ", 4 years to June 2015", "") -> Technical reject rate | I23: 4.b.t | J23: =HYPERLINK("#" & I23 & "!A1", I23) -> 4.b.t | K23: =SUBSTITUTE(INDEX(reference!$B$2:$B$99, MATCH(J23, reference!$A$2:$A$99, 0)), ", 4 years to June 2015", "") -> Invasive cancers having a single excisional procedure, women screened during the 4 years to June 2015
C24: 2.d | D24: 2.d | E24: =SUBSTITUTE(INDEX(reference!$B$2:$B$99, MATCH(D24, reference!$A$2:$A$99, 0)), ", 4 years to June 2015", "") -> Assessment rate | I24: 4.e.t | J24: 4.e.t | K24: =SUBSTITUTE(INDEX(reference!$B$2:$B$99, MATCH(J24, reference!$A$2:$A$99, 0)), ", 4 years to June 2015", "") -> DCIS having breast conserving surgery, women screened during the 4 years to June 2015
C25: 2.e | D25: 2.e | E25: =SUBSTITUTE(INDEX(reference!$B$2:$B$99, MATCH(D25, reference!$A$2:$A$99, 0)), ", 4 years to June 2015", "") -> False positive rate | I25: 4.f.t | J25: 4.f.t | K25: =SUBSTITUTE(INDEX(reference!$B$2:$B$99, MATCH(J25, reference!$A$2:$A$99, 0)), ", 4 years to June 2015", "") -> Invasive cancers having breast conserving surgery, women screened during the 4 years to June 2015
C26: 2.f | D26: 2.f | E26: =SUBSTITUTE(INDEX(reference!$B$2:$B$99, MATCH(D26, reference!$A$2:$A$99, 0)), ", 4 years to June 2015", "") -> Positive predictive value | I26: 4.g.t | J26: 4.g.t | K26: =SUBSTITUTE(INDEX(reference!$B$2:$B$99, MATCH(J26, reference!$A$2:$A$99, 0)), ", 4 years to June 2015", "") -> Invasive cancer having radiotherapy, women screened during the 4 years to June 2015
C27: 2.g | D27: 2.g | E27: =SUBSTITUTE(INDEX(reference!$B$2:$B$99, MATCH(D27, reference!$A$2:$A$99, 0)), ", 4 years to June 2015", "") -> Benign open biopsy weight | I27: 4.h.t | J27: 4.h.t | K27: =SUBSTITUTE(INDEX(reference!$B$2:$B$99, MATCH(J27, reference!$A$2:$A$99, 0)), ", 4 years to June 2015", "") -> DCIS having radiotherapy, women screened during the 4 years to June 2015
C28: 2.h | D28: =HYPERLINK("#" & C28 & "!A1", C28) -> 2.h | E28: =SUBSTITUTE(INDEX(reference!$B$2:$B$99, MATCH(D28, reference!$A$2:$A$99, 0)), ", 4 years to June 2015", "") -> Preoperative diagnosis rate | I28: 4.i.t | J28: 4.i.t | K28: =SUBSTITUTE(INDEX(reference!$B$2:$B$99, MATCH(J28, reference!$A$2:$A$99, 0)), ", 4 years to June 2015", "") -> Invasive cancer having chemotherapy, women screened during the 4 years to June 2015
C29: 2.i | D29: 2.i | E29: =SUBSTITUTE(INDEX(reference!$B$2:$B$99, MATCH(D29, reference!$A$2:$A$99, 0)), ", 4 years to June 2015", "") -> Specificity | I29: 4.j.t | J29: 4.j.t | K29: =SUBSTITUTE(INDEX(reference!$B$2:$B$99, MATCH(J29, reference!$A$2:$A$99, 0)), ", 4 years to June 2015", "") -> Invasive cancer having endocrine therapy, women screened during the 4 years to June 2015
C30: 2.m | D30: 2.m | E30: =SUBSTITUTE(INDEX(reference!$B$2:$B$99, MATCH(D30, reference!$A$2:$A$99, 0)), ", 4 years to June 2015", "") -> Benign open biopsy rate
C34: Section 3: Early detection of DCIS or invasive breast cancer | I34: Section 5: Provision of an appropriate and acceptable service
C36: 3.a.1 | D36: =HYPERLINK("#" & C36 & "!A1", C36) -> 3.a.1 | E36: =SUBSTITUTE(INDEX(reference!$B$2:$B$99, MATCH(D36, reference!$A$2:$A$99, 0)), ", 4 years to June 2015", "") -> DCIS and invasive cancer detection | I36: 5.a | J36: =HYPERLINK("#" & I36 & "!A1", I36) -> 5.a | K36: =SUBSTITUTE(INDEX(reference!$B$2:$B$99, MATCH(J36, reference!$A$2:$A$99, 0)), ", 4 years to June 2015", "") -> Time taken for provision of screening results
C37: 3.a.2 | D37: 3.a.2 | E37: =SUBSTITUTE(INDEX(reference!$B$2:$B$99, MATCH(D37, reference!$A$2:$A$99, 0)), ", 4 years to June 2015", "") -> Invasive breast cancer detection | I37: 5.b | J37: =HYPERLINK("#" & I37 & "!A1", I37) -> 5.b | K37: =SUBSTITUTE(INDEX(reference!$B$2:$B$99, MATCH(J37, reference!$A$2:$A$99, 0)), ", 4 years to June 2015", "") -> Time taken from screening visit to first offer of an assessment
C38: 3.a.3 | D38: 3.a.3 | E38: =SUBSTITUTE(INDEX(reference!$B$2:$B$99, MATCH(D38, reference!$A$2:$A$99, 0)), ", 4 years to June 2015", "") -> Summary of assessment outcomes | I38: 5.c.1 | J38: 5.c.1 | K38: =SUBSTITUTE(INDEX(reference!$B$2:$B$99, MATCH(J38, reference!$A$2:$A$99, 0)), ", 4 years to June 2015", "") -> Women receiving a needle biopsy within 5 working days of assessment
C39: 3.c.p | D39: 3.c.p | E39: =SUBSTITUTE(INDEX(reference!$B$2:$B$99, MATCH(D39, reference!$A$2:$A$99, 0)), ", 4 years to June 2015", "") -> Detection of invasive breast cancer less than or equal to 15mm (percentage) | I39: 5.c.2 | J39: 5.c.2 | K39: =SUBSTITUTE(INDEX(reference!$B$2:$B$99, MATCH(J39, reference!$A$2:$A$99, 0)), ", 4 years to June 2015", "") -> Women having an open biopsy procedure within 20 working days
C40: 3.c.r | D40: 3.c.r | E40: =SUBSTITUTE(INDEX(reference!$B$2:$B$99, MATCH(D40, reference!$A$2:$A$99, 0)), ", 4 years to June 2015", "") -> Detection of invasive breast cancer less than or equal to 15mm (rate) | I40: 5.d | J40: 5.d | K40: =SUBSTITUTE(INDEX(reference!$B$2:$B$99, MATCH(J40, reference!$A$2:$A$99, 0)), ", 4 years to June 2015", "") -> Time taken from final diagnostic biopsy to reporting assessment results
C41: 3.d | D41: 3.d | E41: =SUBSTITUTE(INDEX(reference!$B$2:$B$99, MATCH(D41, reference!$A$2:$A$99, 0)), ", 4 years to June 2015", "") -> Nodal involvement | I41: 5.e.t | J41: 5.e.t | K41: =SUBSTITUTE(INDEX(reference!$B$2:$B$99, MATCH(J41, reference!$A$2:$A$99, 0)), ", 4 years to June 2015", "") -> First surgical treatment, women screened during the 4 years to June 2015
C42: 3.e | D42: 3.e | E42: =SUBSTITUTE(INDEX(reference!$B$2:$B$99, MATCH(D42, reference!$A$2:$A$99, 0)), ", 4 years to June 2015", "") -> Ductal carcinoma in situ diagnosis
C47: Section i: Other
C49: Overview | D49: =HYPERLINK("#" & C49 & "!A1", C49) -> Overview | E49: Overview Chart
C50: Population | D50: =HYPERLINK("#" & C50 & "!A1", C50) -> Population | E50: Population Projections
D51: Reference | E51: Technical References and Notes
C52: 5.b
D54: *Indicator codes ending with ‘t’ are treatment indicators which cover different time periods compare to the screening & assessment indicators.
C206: 9 | D206: 2 | E206: 1

Sheet overview
A2: Overview | V2: Return to Index
O5: Select Ethnicity | S5: Select Lead Provider
G105: BSWN | H105: Māori
G106: BSCM | H106: Pacific
G107: BSAL | H107: Total
G108: BSM
G109: BSCC
G110: BSC
G111: BSSL
G112: BSOS
G113: Total
G114: 9 | H114: 3
G115: =INDEX(G105:G113, G114) -> Total | H115: =IF(H114 = 1, "M", IF(H114 = 2, "P", "A")) -> A | I115: =INDEX(H105:H113, H114) -> Total
B117: Rank | C117: Lookup Row | D117: Lookup ID | E117: Indicator | F117: Split | G117: Lead Provider | H117: Ethnicity | I117: Estimate | J117: Lower CI | K117: Upper CI | L117: Target Lookup Row | M117: Target Low | N117: Target High | P117: Label | Q117: Flipped | R117: Absolute | S117: Lower CI | T117: Upper CI | U117: Lower CI Relative | V117: Upper CI Relative
B118: =RANK(R118, $R$118:$R$157) + COUNTIF($R$117:R117, R118) -> 29 | C118: =MATCH(D118, 'overview - data'!A:A, 0) -> 10 | D118: =E118 & " - " & F118 & " - " & G118 & " - " & H118 -> 1.a.1 - none - Total - A | E118: 1.a.1 | F118: none | G118: =G$115 -> Total | H118: A | I118: =INDEX('overview - data'!F:F, $C118) -> 71.4049 | J118: =INDEX('overview - data'!G:G, $C118) -> 71.2861 | K118: =INDEX('overview - data'!H:H, $C118) -> 71.5234 | L118: =MATCH(E118 & " - " & F118, 'reference - splits'!$D$2:$D$71, 0) -> 1 | M118: =INDEX('reference - splits'!E$2:E$71, $L118) -> 70 | N118: =INDEX('reference - splits'!F$2:F$71, $L118) -> 100 | O118: . | P118: =E118 & IF(F118 <> "none", " (" & F118 & ") -", " - ") & INDEX(reference!$B$2:$B$48,MATCH(E118,reference!$A$2:$A$48)) -> 1.a.1 - Overall coverage of eligible women | R118: =IF(I118 = "NA", -10, IF(Q118, (N118 - I118) / N118, (I118 - M118) / M118)) -> 0.02007 | S118: =IF(Q118, (N118 - J118) / N118, (J118 - M118) / M118) -> 0.01837285714 | T118: =IF(Q118, (N118 - K118) / N118, (K118 - M118) / M118) -> 0.02176285714 | U118: =R118-S118 -> 0.001697142857 | V118: =T118-R118 -> 0.001692857143
B119: =RANK(R119, $R$118:$R$157) + COUNTIF($R$117:R118, R119) -> 38 | C119: =MATCH(D119, 'overview - data'!A:A, 0) -> 45 | D119: =E119 & " - " & F119 & " - " & G119 & " - " & H119 -> 1.b.3 - Initial - Total - A | E119: 1.b.3 | F119: Initial | G119: Total | H119: A | I119: =INDEX('overview - data'!F:F, $C119) -> 65.1259 | J119: =INDEX('overview - data'!G:G, $C119) -> 64.4807 | K119: =INDEX('overview - data'!H:H, $C119) -> 65.767 | L119: =MATCH(E119 & " - " & F119, 'reference - splits'!$D$2:$D$71, 0) -> 7 | M119: =INDEX('reference - splits'!E$2:E$71, $L119) -> 75 | N119: =INDEX('reference - splits'!F$2:F$71, $L119) -> 100 | O119: . | P119: =E119 & IF(F119 <> "none", " (" & F119 & ") -", " - ") & INDEX(reference!$B$2:$B$48,MATCH(E119,reference!$A$2:$A$48)) -> 1.b.3 (Initial) -Routine rescreening | R119: =IF(I119 = "NA", -10, IF(Q119, (N119 - I119) / N119, (I119 - M119) / M119)) -> -0.1316546667 | S119: =IF(Q119, (N119 - J119) / N119, (J119 - M119) / M119) -> -0.1402573333 | T119: =IF(Q119, (N119 - K119) / N119, (K119 - M119) / M119) -> -0.1231066667 | U119: =R119-S119 -> 0.008602666667 | V119: =T119-R119 -> 0.008548
B120: =RANK(R120, $R$118:$R$157) + COUNTIF($R$117:R119, R120) -> 30 | C120: =MATCH(D120, 'overview - data'!A:A, 0) -> 46 | D120: 1.b.3 - Subsequent - Total - A | E120: 1.b.3 | F120: Subsequent | G120: Total | H120: A | I120: =INDEX('overview - data'!F:F, $C120) -> 86.4039 | J120: =INDEX('overview - data'!G:G, $C120) -> 86.2856 | K120: =INDEX('overview - data'!H:H, $C120) -> 86.5216 | L120: =MATCH(E120 & " - " & F120, 'reference - splits'!$D$2:$D$71, 0) -> 8 | M120: =INDEX('reference - splits'!E$2:E$71, $L120) -> 85 | N120: =INDEX('reference - splits'!F$2:F$71, $L120) -> 100 | O120: . | P120: =E120 & IF(F120 <> "none", " (" & F120 & ") -", " - ") & INDEX(reference!$B$2:$B$48,MATCH(E120,reference!$A$2:$A$48)) -> 1.b.3 (Subsequent) -Routine rescreening | R120: 0.01651647059 | S120: 0.01512470588 | T120: 0.01790117647 | U120: 0.001391764706 | V120: 0.001384705882
B121: =RANK(R121, $R$118:$R$157) + COUNTIF($R$117:R120, R121) -> 18 | C121: =MATCH(D121, 'overview - data'!A:A, 0) -> 99 | D121: 2.a - Fixed - Total - A | E121: 2.a | F121: Fixed | G121: Total | H121: A | I121: =INDEX('overview - data'!F:F, $C121) -> 85.4189 | J121: =INDEX('overview - data'!G:G, $C121) -> 85.2942 | K121: =INDEX('overview - data'!H:H, $C121) -> 85.5429 | L121: =MATCH(E121 & " - " & F121, 'reference - splits'!$D$2:$D$71, 0) -> 10 | M121: =INDEX('reference - splits'!E$2:E$71, $L121) -> 80 | N121: =INDEX('reference - splits'!F$2:F$71, $L121) -> 100 | O121: . | P121: =E121 & IF(F121 <> "none", " (" & F121 & ") -", " - ") & INDEX(reference!$B$2:$B$48,MATCH(E121,reference!$A$2:$A$48)) -> 2.a (Fixed) -Screening image usage | R121: 0.06773625 | S121: 0.0661775 | T121: 0.06928625 | U121: 0.00155875 | V121: 0.00155
B122: =RANK(R122, $R$118:$R$157) + COUNTIF($R$117:R121, R122) -> 25 | C122: =MATCH(D122, 'overview - data'!A:A, 0) -> 100 | D122: 2.a - Mobile - Total - A | E122: 2.a | F122: Mobile | G122: Total | H122: A | I122: =INDEX('overview - data'!F:F, $C122) -> 83.1712 | J122: =INDEX('overview - data'!G:G, $C122) -> 82.9315 | K122: =INDEX('overview - data'!H:H, $C122) -> 83.4089 | L122: =MATCH(E122 & " - " & F122, 'reference - splits'!$D$2:$D$71, 0) -> 11 | M122: =INDEX('reference - splits'!E$2:E$71, $L122) -> 80 | N122: =INDEX('reference - splits'!F$2:F$71, $L122) -> 100 | O122: . | P122: =E122 & IF(F122 <> "none", " (" & F122 & ") -", " - ") & INDEX(reference!$B$2:$B$48,MATCH(E122,reference!$A$2:$A$48)) -> 2.a (Mobile) -Screening image usage | R122: 0.03964 | S122: 0.03664375 | T122: 0.04261125 | U122: 0.00299625 | V122: 0.00297125
B123: =RANK(R123, $R$118:$R$157) + COUNTIF($R$117:R122, R123) -> 4 | C123: =MATCH(D123, 'overview - data'!A:A, 0) -> 207 | D123: 2.c - Fixed - Total - A | E123: 2.c | F123: Fixed | G123: Total | H123: A | I123: =INDEX('overview - data'!F:F, $C123) -> 0.8828 | J123: =INDEX('overview - data'!G:G, $C123) -> 0.867 | K123: =INDEX('overview - data'!H:H, $C123) -> 0.8989 | L123: =MATCH(E123 & " - " & F123, 'reference - splits'!$D$2:$D$71, 0) -> 14 | M123: =INDEX('reference - splits'!E$2:E$71, $L123) -> 0 | N123: =INDEX('reference - splits'!F$2:F$71, $L123) -> 3 | O123: . | P123: =E123 & IF(F123 <> "none", " (" & F123 & ") -", " - ") & INDEX(reference!$B$2:$B$48,MATCH(E123,reference!$A$2:$A$48)) -> 2.c (Fixed) -Technical reject rate | Q123: TRUE | R123: 0.7057333333 | S123: 0.711 | T123: 0.7003666667 | U123: -0.005266666667 | V123: -0.005366666667
B124: =RANK(R124, $R$118:$R$157) + COUNTIF($R$117:R123, R124) -> 5 | C124: =MATCH(D124, 'overview - data'!A:A, 0) -> 208 | D124: 2.c - Mobile - Total - A | E124: 2.c | F124: Mobile | G124: Total | H124: A | I124: =INDEX('overview - data'!F:F, $C124) -> 0.9758 | J124: =INDEX('overview - data'!G:G, $C124) -> 0.9457 | K124: =INDEX('overview - data'!H:H, $C124) -> 1.0065 | L124: =MATCH(E124 & " - " & F124, 'reference - splits'!$D$2:$D$71, 0) -> 15 | M124: =INDEX('reference - splits'!E$2:E$71, $L124) -> 0 | N124: =INDEX('reference - splits'!F$2:F$71, $L124) -> 3 | O124: . | P124: =E124 & IF(F124 <> "none", " (" & F124 & ") -", " - ") & INDEX(reference!$B$2:$B$48,MATCH(E124,reference!$A$2:$A$48)) -> 2.c (Mobile) -Technical reject rate | Q124: TRUE | R124: 0.6747333333 | S124: 0.6847666667 | T124: 0.6645 | U124: -0.01003333333 | V124: -0.01023333333
B125: =RANK(R125, $R$118:$R$157) + COUNTIF($R$117:R124, R125) -> 33 | C125: =MATCH(D125, 'overview - data'!A:A, 0) -> 261 | D125: 2.d - Initial - Total - A | E125: 2.d | F125: Initial | G125: Total | H125: A | I125: =INDEX('overview - data'!F:F, $C125) -> 10.3159 | J125: =INDEX('overview - data'!G:G, $C125) -> 9.8738 | K125: =INDEX('overview - data'!H:H, $C125) -> 10.7709 | L125: =MATCH(E125 & " - " & F125, 'reference - splits'!$D$2:$D$71, 0) -> 16 | M125: =INDEX('reference - splits'!E$2:E$71, $L125) -> 0 | N125: =INDEX('reference - splits'!F$2:F$71, $L125) -> 10 | O125: . | P125: =E125 & IF(F125 <> "none", " (" & F125 & ") -", " - ") & INDEX(reference!$B$2:$B$48,MATCH(E125,reference!$A$2:$A$48)) -> 2.d (Initial) -Assessment rate | Q125: TRUE | R125: -0.03159 | S125: 0.01262 | T125: -0.07709 | U125: -0.04421 | V125: -0.0455
B126: =RANK(R126, $R$118:$R$157) + COUNTIF($R$117:R125, R126) -> 16 | C126: =MATCH(D126, 'overview - data'!A:A, 0) -> 262 | D126: 2.d - Subsequent - Total - A | E126: 2.d | F126: Subsequent | G126: Total | H126: A | I126: =INDEX('overview - data'!F:F, $C126) -> 3.6255 | J126: =INDEX('overview - data'!G:G, $C126) -> 3.5667 | K126: =INDEX('overview - data'!H:H, $C126) -> 3.6849 | L126: =MATCH(E126 & " - " & F126, 'reference - splits'!$D$2:$D$71, 0) -> 17 | M126: =INDEX('reference - splits'!E$2:E$71, $L126) -> 0 | N126: =INDEX('reference - splits'!F$2:F$71, $L126) -> 5 | O126: . | P126: =E126 & IF(F126 <> "none", " (" & F126 & ") -", " - ") & INDEX(reference!$B$2:$B$48,MATCH(E126,reference!$A$2:$A$48)) -> 2.d (Subsequent) -Assessment rate | Q126: TRUE | R126: 0.2749 | S126: 0.28666 | T126: 0.26302 | U126: -0.01176 | V126: -0.01188
B127: =RANK(R127, $R$118:$R$157) + COUNTIF($R$117:R126, R127) -> 23 | C127: =MATCH(D127, 'overview - data'!A:A, 0) -> 315 | D127: 2.e - Initial - Total - A | E127: 2.e | F127: Initial | G127: Total | H127: A | I127: =INDEX('overview - data'!F:F, $C127) -> 8.6106 | J127: =INDEX('overview - data'!G:G, $C127) -> 8.2034 | K127: =INDEX('overview - data'!H:H, $C127) -> 9.0312 | L127: =MATCH(E127 & " - " & F127, 'reference - splits'!$D$2:$D$71, 0) -> 18 | M127: =INDEX('reference - splits'!E$2:E$71, $L127) -> 0 | N127: =INDEX('reference - splits'!F$2:F$71, $L127) -> 9 | O127: . | P127: =E127 & IF(F127 <> "none", " (" & F127 & ") -", " - ") & INDEX(reference!$B$2:$B$48,MATCH(E127,reference!$A$2:$A$48)) -> 2.e (Initial) -False positive rate | Q127: TRUE | R127: 0.04326666667 | S127: 0.08851111111 | T127: -0.003466666667 | U127: -0.04524444444 | V127: -0.04673333333
B128: =RANK(R128, $R$118:$R$157) + COUNTIF($R$117:R127, R128) -> 17 | C128: =MATCH(D128, 'overview - data'!A:A, 0) -> 316 | D128: 2.e - Subsequent - Total - A | E128: 2.e | F128: Subsequent | G128: =G$115 -> Total | H128: A | I128: =INDEX('overview - data'!F:F, $C128) -> 2.9227 | J128: =INDEX('overview - data'!G:G, $C128) -> 2.8698 | K128: =INDEX('overview - data'!H:H, $C128) -> 2.9763 | L128: =MATCH(E128 & " - " & F128, 'reference - splits'!$D$2:$D$71, 0) -> 19 | M128: =INDEX('reference - splits'!E$2:E$71, $L128) -> 0 | N128: =INDEX('reference - splits'!F$2:F$71, $L128) -> 4 | O128: . | P128: =E128 & IF(F128 <> "none", " (" & F128 & ") -", " - ") & INDEX(reference!$B$2:$B$48,MATCH(E128,reference!$A$2:$A$48)) -> 2.e (Subsequent) -False positive rate | Q128: TRUE | R128: 0.269325 | S128: 0.28255 | T128: 0.255925 | U128: -0.013225 | V128: -0.0134
B129: =RANK(R129, $R$118:$R$157) + COUNTIF($R$117:R128, R129) -> 14 | C129: =MATCH(D129, 'overview - data'!A:A, 0) -> 369 | D129: 2.f - Initial - Total - A | E129: 2.f | F129: Initial | G129: Total | H129: A | I129: =INDEX('overview - data'!F:F, $C129) -> 12.6287 | J129: =INDEX('overview - data'!G:G, $C129) -> 11.1462 | K129: =INDEX('overview - data'!H:H, $C129) -> 14.2311 | L129: =MATCH(E129 & " - " & F129, 'reference - splits'!$D$2:$D$71, 0) -> 20 | M129: =INDEX('reference - splits'!E$2:E$71, $L129) -> 9 | N129: =INDEX('reference - splits'!F$2:F$71, $L129) -> 100 | O129: . | P129: =E129 & IF(F129 <> "none", " (" & F129 & ") -", " - ") & INDEX(reference!$B$2:$B$48,MATCH(E129,reference!$A$2:$A$48)) -> 2.f (Initial) -Positive predictive value | R129: 0.4031888889 | S129: 0.2384666667 | T129: 0.5812333333 | U129: 0.1647222222 | V129: 0.1780444444
B130: =RANK(R130, $R$118:$R$157) + COUNTIF($R$117:R129, R130) -> 1 | C130: =MATCH(D130, 'overview - data'!A:A, 0) -> 370 | D130: 2.f - Subsequent - Total - A | E130: 2.f | F130: Subsequent | G130: Total | H130: A | I130: =INDEX('overview - data'!F:F, $C130) -> 17.8314 | J130: =INDEX('overview - data'!G:G, $C130) -> 17.2007 | K130: =INDEX('overview - data'!H:H, $C130) -> 18.4755 | L130: =MATCH(E130 & " - " & F130, 'reference - splits'!$D$2:$D$71, 0) -> 21 | M130: =INDEX('reference - splits'!E$2:E$71, $L130) -> 9 | N130: =INDEX('reference - splits'!F$2:F$71, $L130) -> 100 | O130: . | P130: =E130 & IF(F130 <> "none", " (" & F130 & ") -", " - ") & INDEX(reference!$B$2:$B$48,MATCH(E130,reference!$A$2:$A$48)) -> 2.f (Subsequent) -Positive predictive value | R130: 0.9812666667 | S130: 0.9111888889 | T130: 1.052833333 | U130: 0.07007777778 | V130: 0.07156666667
B131: =RANK(R131, $R$118:$R$157) + COUNTIF($R$117:R130, R131) -> 36 | C131: =MATCH(D131, 'overview - data'!A:A, 0) -> 415 | D131: 2.g - none - Total - A | E131: 2.g | F131: none | G131: Total | H131: A | I131: =INDEX('overview - data'!F:F, $C131) -> 82.5737 | J131: =INDEX('overview - data'!G:G, $C131) -> 78.3355 | K131: =INDEX('overview - data'!H:H, $C131) -> 86.2856 | L131: =MATCH(E131 & " - " & F131, 'reference - splits'!$D$2:$D$71, 0) -> 22 | M131: =INDEX('reference - splits'!E$2:E$71, $L131) -> 90 | N131: =INDEX('reference - splits'!F$2:F$71, $L131) -> 100 | O131: . | P131: =E131 & IF(F131 <> "none", " (" & F131 & ") -", " - ") & INDEX(reference!$B$2:$B$48,MATCH(E131,reference!$A$2:$A$48)) -> 2.g - Benign open biopsy weight | R131: -0.08251444444 | S131: -0.1296055556 | T131: -0.04127111111 | U131: 0.04709111111 | V131: 0.04124333333
B132: =RANK(R132, $R$118:$R$157) + COUNTIF($R$117:R131, R132) -> 19 | C132: =MATCH(D132, 'overview - data'!A:A, 0) -> 442 | D132: 2.h - none - Total - A | E132: 2.h | F132: none | G132: Total | H132: A | I132: =INDEX('overview - data'!F:F, $C132) -> 95.7891 | J132: =INDEX('overview - data'!G:G, $C132) -> 94.9669 | K132: =INDEX('overview - data'!H:H, $C132) -> 96.5112 | L132: =MATCH(E132 & " - " & F132, 'reference - splits'!$D$2:$D$71, 0) -> 23 | M132: =INDEX('reference - splits'!E$2:E$71, $L132) -> 90 | N132: =INDEX('reference - splits'!F$2:F$71, $L132) -> 100 | O132: . | P132: =E132 & IF(F132 <> "none", " (" & F132 & ") -", " - ") & INDEX(reference!$B$2:$B$48,MATCH(E132,reference!$A$2:$A$48)) -> 2.h - Preoperative diagnosis rate | R132: 0.06432333333 | S132: 0.05518777778 | T132: 0.07234666667 | U132: 0.009135555556 | V132: 0.008023333333
B133: =RANK(R133, $R$118:$R$157) + COUNTIF($R$117:R132, R133) -> 34 | C133: =MATCH(D133, 'overview - data'!A:A, 0) -> 477 | D133: 2.i - Initial - Total - A | E133: 2.i | F133: Initial | G133: Total | H133: A | I133: =INDEX('overview - data'!F:F, $C133) -> 89.6841 | J133: =INDEX('overview - data'!G:G, $C133) -> 89.2291 | K133: =INDEX('overview - data'!H:H, $C133) -> 90.1262 | L133: =MATCH(E133 & " - " & F133, 'reference - splits'!$D$2:$D$71, 0) -> 24 | M133: =INDEX('reference - splits'!E$2:E$71, $L133) -> 93 | N133: =INDEX('reference - splits'!F$2:F$71, $L133) -> 100 | O133: . | P133: =E133 & IF(F133 <> "none", " (" & F133 & ") -", " - ") & INDEX(reference!$B$2:$B$48,MATCH(E133,reference!$A$2:$A$48)) -> 2.i (Initial) -Specificity | R133: -0.03565483871 | S133: -0.04054731183 | T133: -0.03090107527 | U133: 0.004892473118 | V133: 0.004753763441
B134: =RANK(R134, $R$118:$R$157) + COUNTIF($R$117:R133, R134) -> 28 | C134: =MATCH(D134, 'overview - data'!A:A, 0) -> 478 | D134: 2.i - Subsequent - Total - A | E134: 2.i | F134: Subsequent | G134: Total | H134: A | I134: =INDEX('overview - data'!F:F, $C134) -> 96.3745 | J134: =INDEX('overview - data'!G:G, $C134) -> 96.3151 | K134: =INDEX('overview - data'!H:H, $C134) -> 96.4333 | L134: =MATCH(E134 & " - " & F134, 'reference - splits'!$D$2:$D$71, 0) -> 25 | M134: =INDEX('reference - splits'!E$2:E$71, $L134) -> 93 | N134: =INDEX('reference - splits'!F$2:F$71, $L134) -> 100 | O134: . | P134: =E134 & IF(F134 <> "none", " (" & F134 & ") -", " - ") & INDEX(reference!$B$2:$B$48,MATCH(E134,reference!$A$2:$A$48)) -> 2.i (Subsequent) -Specificity | R134: 0.03628494624 | S134: 0.03564623656 | T134: 0.0369172043 | U134: 0.0006387096774 | V134: 0.0006322580645
B135: =RANK(R135, $R$118:$R$157) + COUNTIF($R$117:R134, R135) -> 31 | C135: =MATCH(D135, 'overview - data'!A:A, 0) -> 531 | D135: 2.m - Initial - Total - A | E135: 2.m | F135: Initial | G135: Total | H135: A | I135: =INDEX('overview - data'!F:F, $C135) -> 3.4666 | J135: =INDEX('overview - data'!G:G, $C135) -> 2.6588 | K135: =INDEX('overview - data'!H:H, $C135) -> 4.4418 | L135: =MATCH(E135 & " - " & F135, 'reference - splits'!$D$2:$D$71, 0) -> 26 | M135: =INDEX('reference - splits'!E$2:E$71, $L135) -> 0 | N135: =INDEX('reference - splits'!F$2:F$71, $L135) -> 3.5 | O135: . | P135: =E135 & IF(F135 <> "none", " (" & F135 & ") -", " - ") & INDEX(reference!$B$2:$B$48,MATCH(E135,reference!$A$2:$A$48)) -> 2.m (Initial) -Benign open biopsy rate | Q135: TRUE | R135: 0.009542857143 | S135: 0.2403428571 | T135: -0.2690857143 | U135: -0.2308 | V135: -0.2786285714
B136: =RANK(R136, $R$118:$R$157) + COUNTIF($R$117:R135, R136) -> 11 | C136: =MATCH(D136, 'overview - data'!A:A, 0) -> 532 | D136: 2.m - Subsequent - Total - A | E136: 2.m | F136: Subsequent | G136: Total | H136: A | I136: =INDEX('overview - data'!F:F, $C136) -> 0.7745 | J136: =INDEX('overview - data'!G:G, $C136) -> 0.6892 | K136: =INDEX('overview - data'!H:H, $C136) -> 0.8674 | L136: =MATCH(E136 & " - " & F136, 'reference - splits'!$D$2:$D$71, 0) -> 27 | M136: =INDEX('reference - splits'!E$2:E$71, $L136) -> 0 | N136: =INDEX('reference - splits'!F$2:F$71, $L136) -> 1.6 | O136: . | P136: =E136 & IF(F136 <> "none", " (" & F136 & ") -", " - ") & INDEX(reference!$B$2:$B$48,MATCH(E136,reference!$A$2:$A$48)) -> 2.m (Subsequent) -Benign open biopsy rate | Q136: TRUE | R136: 0.5159375 | S136: 0.56925 | T136: 0.457875 | U136: -0.0533125 | V136: -0.0580625
B137: =RANK(R137, $R$118:$R$157) + COUNTIF($R$117:R136, R137) -> 7 | C137: =MATCH(D137, 'overview - data'!A:A, 0) -> 585 | D137: 3.a.2 - Initial - Total - A | E137: 3.a.2 | F137: Initial | G137: Total | H137: A | I137: =INDEX('overview - data'!F:F, $C137) -> 9.8406 | J137: =INDEX('overview - data'!G:G, $C137) -> 8.4462 | K137: =INDEX('overview - data'!H:H, $C137) -> 11.3978 | L137: =MATCH(E137 & " - " & F137, 'reference - splits'!$D$2:$D$71, 0) -> 31 | M137: =INDEX('reference - splits'!E$2:E$71, $L137) -> 6.1 | N137: =INDEX('reference - splits'!F$2:F$71, $L137) -> 100 | O137: . | P137: =E137 & IF(F137 <> "none", " (" & F137 & ") -", " - ") & INDEX(reference!$B$2:$B$48,MATCH(E137,reference!$A$2:$A$48)) -> 3.a.2 (Initial) -Invasive breast cancer detection | R137: 0.6132131148 | S137: 0.3846229508 | T137: 0.8684918033 | U137: 0.2285901639 | V137: 0.2552786885
B138: =RANK(R138, $R$118:$R$157) + COUNTIF($R$117:R137, R138) -> 13 | C138: =MATCH(D138, 'overview - data'!A:A, 0) -> 586 | D138: 3.a.2 - Subsequent - Total - A | E138: 3.a.2 | F138: Subsequent | G138: Total | H138: A | I138: =INDEX('overview - data'!F:F, $C138) -> 4.9367 | J138: =INDEX('overview - data'!G:G, $C138) -> 4.718 | K138: =INDEX('overview - data'!H:H, $C138) -> 5.1628 | L138: =MATCH(E138 & " - " & F138, 'reference - splits'!$D$2:$D$71, 0) -> 32 | M138: =INDEX('reference - splits'!E$2:E$71, $L138) -> 3.45 | N138: =INDEX('reference - splits'!F$2:F$71, $L138) -> 100 | O138: . | P138: =E138 & IF(F138 <> "none", " (" & F138 & ") -", " - ") & INDEX(reference!$B$2:$B$48,MATCH(E138,reference!$A$2:$A$48)) -> 3.a.2 (Subsequent) -Invasive breast cancer detection | R138: 0.4309275362 | S138: 0.3675362319 | T138: 0.4964637681 | U138: 0.06339130435 | V138: 0.06553623188
B139: =RANK(R139, $R$118:$R$157) + COUNTIF($R$117:R138, R139) -> 12 | C139: =MATCH(D139, 'overview - data'!A:A, 0) -> 639 | D139: 3.a.2.t - Initial - Total - A | E139: 3.a.2.t | F139: Initial | G139: Total | H139: A | I139: =INDEX('overview - data'!F:F, $C139) -> 9.1509 | J139: =INDEX('overview - data'!G:G, $C139) -> 7.8779 | K139: =INDEX('overview - data'!H:H, $C139) -> 10.5695 | L139: =MATCH(E139 & " - " & F139, 'reference - splits'!$D$2:$D$71, 0) -> 41 | M139: =INDEX('reference - splits'!E$2:E$71, $L139) -> 6.1 | N139: =INDEX('reference - splits'!F$2:F$71, $L139) -> 100 | O139: . | P139: =E139 & IF(F139 <> "none", " (" & F139 & ") -", " - ") & INDEX(reference!$B$2:$B$48,MATCH(E139,reference!$A$2:$A$48)) -> 3.a.2.t (Initial) -Invasive breast cancer detection | R139: 0.500147541 | S139: 0.2914590164 | T139: 0.732704918 | U139: 0.2086885246 | V139: 0.232557377
B140: =RANK(R140, $R$118:$R$157) + COUNTIF($R$117:R139, R140) -> 15 | C140: =MATCH(D140, 'overview - data'!A:A, 0) -> 640 | D140: 3.a.2.t - Subsequent - Total - A | E140: 3.a.2.t | F140: Subsequent | G140: Total | H140: A | I140: =INDEX('overview - data'!F:F, $C140) -> 4.6947 | J140: =INDEX('overview - data'!G:G, $C140) -> 4.4779 | K140: =INDEX('overview - data'!H:H, $C140) -> 4.9193 | L140: =MATCH(E140 & " - " & F140, 'reference - splits'!$D$2:$D$71, 0) -> 42 | M140: =INDEX('reference - splits'!E$2:E$71, $L140) -> 3.45 | N140: =INDEX('reference - splits'!F$2:F$71, $L140) -> 100 | O140: . | P140: =E140 & IF(F140 <> "none", " (" & F140 & ") -", " - ") & INDEX(reference!$B$2:$B$48,MATCH(E140,reference!$A$2:$A$48)) -> 3.a.2.t (Subsequent) -Invasive breast cancer detection | R140: 0.3607826087 | S140: 0.297942029 | T140: 0.425884058 | U140: 0.06284057971 | V140: 0.06510144928
B141: =RANK(R141, $R$118:$R$157) + COUNTIF($R$117:R140, R141) -> 8 | C141: =MATCH(D141, 'overview - data'!A:A, 0) -> 747 | D141: 3.c.r - Initial - Total - A | E141: 3.c.r | F141: Initial | G141: Total | H141: A | I141: =INDEX('overview - data'!F:F, $C141) -> 48.602 | J141: =INDEX('overview - data'!G:G, $C141) -> 38.8394 | K141: =INDEX('overview - data'!H:H, $C141) -> 60.0625 | L141: =MATCH(E141 & " - " & F141, 'reference - splits'!$D$2:$D$71, 0) -> 35 | M141: =INDEX('reference - splits'!E$2:E$71, $L141) -> 30.5 | N141: =INDEX('reference - splits'!F$2:F$71, $L141) -> 100 | O141: . | P141: =E141 & IF(F141 <> "none", " (" & F141 & ") -", " - ") & INDEX(reference!$B$2:$B$48,MATCH(E141,reference!$A$2:$A$48)) -> 3.c.r (Initial) -Detection of invasive breast cancer less than or equal to 15mm (rate) | R141: 0.5935081967 | S141: 0.2734229508 | T141: 0.9692622951 | U141: 0.3200852459 | V141: 0.3757540984
B142: =RANK(R142, $R$118:$R$157) + COUNTIF($R$117:R141, R142) -> 2 | C142: =MATCH(D142, 'overview - data'!A:A, 0) -> 748 | D142: 3.c.r - Subsequent - Total - A | E142: 3.c.r | F142: Subsequent | G142: Total | H142: A | I142: =INDEX('overview - data'!F:F, $C142) -> 32.0528 | J142: =INDEX('overview - data'!G:G, $C142) -> 30.2826 | K142: =INDEX('overview - data'!H:H, $C142) -> 33.8992 | L142: =MATCH(E142 & " - " & F142, 'reference - splits'!$D$2:$D$71, 0) -> 36 | M142: =INDEX('reference - splits'!E$2:E$71, $L142) -> 17.3 | N142: =INDEX('reference - splits'!F$2:F$71, $L142) -> 100 | O142: . | P142: =E142 & IF(F142 <> "none", " (" & F142 & ") -", " - ") & INDEX(reference!$B$2:$B$48,MATCH(E142,reference!$A$2:$A$48)) -> 3.c.r (Subsequent) -Detection of invasive breast cancer less than or equal to 15mm (rate) | R142: 0.8527630058 | S142: 0.7504393064 | T142: 0.9594913295 | U142: 0.1023236994 | V142: 0.1067283237
B143: =RANK(R143, $R$118:$R$157) + COUNTIF($R$117:R142, R143) -> 9 | C143: =MATCH(D143, 'overview - data'!A:A, 0) -> 801 | D143: 3.c.r.t - Initial - Total - A | E143: 3.c.r.t | F143: Initial | G143: Total | H143: A | I143: =INDEX('overview - data'!F:F, $C143) -> 47.5801 | J143: =INDEX('overview - data'!G:G, $C143) -> 38.4199 | K143: =INDEX('overview - data'!H:H, $C143) -> 58.2576 | L143: =MATCH(E143 & " - " & F143, 'reference - splits'!$D$2:$D$71, 0) -> 45 | M143: =INDEX('reference - splits'!E$2:E$71, $L143) -> 30.5 | N143: =INDEX('reference - splits'!F$2:F$71, $L143) -> 100 | O143: . | P143: =E143 & IF(F143 <> "none", " (" & F143 & ") -", " - ") & INDEX(reference!$B$2:$B$48,MATCH(E143,reference!$A$2:$A$48)) -> 3.c.r.t (Initial) -Detection of invasive breast cancer less than or equal to 15mm (rate) | R143: 0.5600032787 | S143: 0.2596688525 | T143: 0.9100852459 | U143: 0.3003344262 | V143: 0.3500819672
B144: =RANK(R144, $R$118:$R$157) + COUNTIF($R$117:R143, R144) -> 3 | C144: =MATCH(D144, 'overview - data'!A:A, 0) -> 802 | D144: 3.c.r.t - Subsequent - Total - A | E144: 3.c.r.t | F144: Subsequent | G144: Total | H144: A | I144: =INDEX('overview - data'!F:F, $C144) -> 30.3572 | J144: =INDEX('overview - data'!G:G, $C144) -> 28.6084 | K144: =INDEX('overview - data'!H:H, $C144) -> 32.1847 | L144: =MATCH(E144 & " - " & F144, 'reference - splits'!$D$2:$D$71, 0) -> 46 | M144: =INDEX('reference - splits'!E$2:E$71, $L144) -> 17.3 | N144: =INDEX('reference - splits'!F$2:F$71, $L144) -> 100 | O144: . | P144: =E144 & IF(F144 <> "none", " (" & F144 & ") -", " - ") & INDEX(reference!$B$2:$B$48,MATCH(E144,reference!$A$2:$A$48)) -> 3.c.r.t (Subsequent) -Detection of invasive breast cancer less than or equal to 15mm (rate) | R144: 0.7547514451 | S144: 0.6536647399 | T144: 0.8603872832 | U144: 0.1010867052 | V144: 0.1056358382
B145: =RANK(R145, $R$118:$R$157) + COUNTIF($R$117:R144, R145) -> 26 | C145: =MATCH(D145, 'overview - data'!A:A, 0) -> 855 | D145: 3.d - Initial - Total - A | E145: 3.d | F145: Initial | G145: Total | H145: A | I145: =INDEX('overview - data'!F:F, $C145) -> 72.7273 | J145: =INDEX('overview - data'!G:G, $C145) -> 65.5156 | K145: =INDEX('overview - data'!H:H, $C145) -> 79.1563 | L145: =MATCH(E145 & " - " & F145, 'reference - splits'!$D$2:$D$71, 0) -> 37 | M145: =INDEX('reference - splits'!E$2:E$71, $L145) -> 70 | N145: =INDEX('reference - splits'!F$2:F$71, $L145) -> 100 | O145: . | P145: =E145 & IF(F145 <> "none", " (" & F145 & ") -", " - ") & INDEX(reference!$B$2:$B$48,MATCH(E145,reference!$A$2:$A$48)) -> 3.d (Initial) -Nodal involvement | R145: 0.03896142857 | S145: -0.06406285714 | T145: 0.1308042857 | U145: 0.1030242857 | V145: 0.09184285714
B146: =RANK(R146, $R$118:$R$157) + COUNTIF($R$117:R145, R146) -> 21 | C146: =MATCH(D146, 'overview - data'!A:A, 0) -> 856 | D146: 3.d - Subsequent - Total - A | E146: 3.d | F146: Subsequent | G146: Total | H146: A | I146: =INDEX('overview - data'!F:F, $C146) -> 79.0661 | J146: =INDEX('overview - data'!G:G, $C146) -> 77.1694 | K146: =INDEX('overview - data'!H:H, $C146) -> 80.873 | L146: =MATCH(E146 & " - " & F146, 'reference - splits'!$D$2:$D$71, 0) -> 38 | M146: =INDEX('reference - splits'!E$2:E$71, $L146) -> 75 | N146: =INDEX('reference - splits'!F$2:F$71, $L146) -> 100 | O146: . | P146: =E146 & IF(F146 <> "none", " (" & F146 & ") -", " - ") & INDEX(reference!$B$2:$B$48,MATCH(E146,reference!$A$2:$A$48)) -> 3.d (Subsequent) -Nodal involvement | R146: 0.05421466667 | S146: 0.02892533333 | T146: 0.07830666667 | U146: 0.02528933333 | V146: 0.024092
B147: =RANK(R147, $R$118:$R$157) + COUNTIF($R$117:R146, R147) -> 27 | C147: =MATCH(D147, 'overview - data'!A:A, 0) -> 909 | D147: 3.d.t - Initial - Total - A | E147: 3.d.t | F147: Initial | G147: Total | H147: A | I147: =INDEX('overview - data'!F:F, $C147) -> 72.6776 | J147: =INDEX('overview - data'!G:G, $C147) -> 65.6138 | K147: =INDEX('overview - data'!H:H, $C147) -> 78.9909 | L147: =MATCH(E147 & " - " & F147, 'reference - splits'!$D$2:$D$71, 0) -> 47 | M147: =INDEX('reference - splits'!E$2:E$71, $L147) -> 70 | N147: =INDEX('reference - splits'!F$2:F$71, $L147) -> 100 | O147: . | P147: =E147 & IF(F147 <> "none", " (" & F147 & ") -", " - ") & INDEX(reference!$B$2:$B$48,MATCH(E147,reference!$A$2:$A$48)) -> 3.d.t (Initial) -Nodal involvement | R147: 0.03825142857 | S147: -0.06266 | T147: 0.1284414286 | U147: 0.1009114286 | V147: 0.09019
B148: =RANK(R148, $R$118:$R$157) + COUNTIF($R$117:R147, R148) -> 24 | C148: =MATCH(D148, 'overview - data'!A:A, 0) -> 910 | D148: 3.d.t - Subsequent - Total - A | E148: 3.d.t | F148: Subsequent | G148: Total | H148: A | I148: =INDEX('overview - data'!F:F, $C148) -> 78.1963 | J148: =INDEX('overview - data'!G:G, $C148) -> 76.1879 | K148: =INDEX('overview - data'!H:H, $C148) -> 80.1099 | L148: =MATCH(E148 & " - " & F148, 'reference - splits'!$D$2:$D$71, 0) -> 48 | M148: =INDEX('reference - splits'!E$2:E$71, $L148) -> 75 | N148: =INDEX('reference - splits'!F$2:F$71, $L148) -> 100 | O148: . | P148: =E148 & IF(F148 <> "none", " (" & F148 & ") -", " - ") & INDEX(reference!$B$2:$B$48,MATCH(E148,reference!$A$2:$A$48)) -> 3.d.t (Subsequent) -Nodal involvement | R148: 0.04261733333 | S148: 0.01583866667 | T148: 0.068132 | U148: 0.02677866667 | V148: 0.02551466667
B149: =RANK(R149, $R$118:$R$157) + COUNTIF($R$117:R148, R149) -> 6 | C149: =MATCH(D149, 'overview - data'!A:A, 0) -> 1036 | D149: =E149 & " - " & F149 & " - " & G149 & " - " & H149 -> 4.e.t - none - Total - A | E149: 4.e.t | F149: none | G149: =G$115 -> Total | H149: A | I149: =INDEX('overview - data'!F:F, $C149) -> 82.5279 | J149: =INDEX('overview - data'!G:G, $C149) -> 77.4521 | K149: =INDEX('overview - data'!H:H, $C149) -> 86.8706 | L149: =MATCH(E149 & " - " & F149, 'reference - splits'!$D$2:$D$71, 0) -> 53 | M149: =INDEX('reference - splits'!E$2:E$71, $L149) -> 50 | N149: =INDEX('reference - splits'!F$2:F$71, $L149) -> 100 | O149: . | P149: =E149 & IF(F149 <> "none", " (" & F149 & ") -", " - ") & INDEX(reference!$B$2:$B$48,MATCH(E149,reference!$A$2:$A$48)) -> 4.e.t - DCIS having breast conserving surgery, women screened during the 4 years to June 2015 | R149: 0.650558 | S149: 0.549042 | T149: 0.737412 | U149: 0.101516 | V149: 0.086854
B150: =RANK(R150, $R$118:$R$157) + COUNTIF($R$117:R149, R150) -> 10 | C150: =MATCH(D150, 'overview - data'!A:A, 0) -> 1063 | D150: 4.f.t - none - Total - A | E150: 4.f.t | F150: none | G150: Total | H150: A | I150: =INDEX('overview - data'!F:F, $C150) -> 77.5811 | J150: =INDEX('overview - data'!G:G, $C150) -> 72.7629 | K150: =INDEX('overview - data'!H:H, $C150) -> 81.9101 | L150: =MATCH(E150 & " - " & F150, 'reference - splits'!$D$2:$D$71, 0) -> 54 | M150: =INDEX('reference - splits'!E$2:E$71, $L150) -> 50 | N150: =INDEX('reference - splits'!F$2:F$71, $L150) -> 100 | O150: . | P150: =E150 & IF(F150 <> "none", " (" & F150 & ") -", " - ") & INDEX(reference!$B$2:$B$48,MATCH(E150,reference!$A$2:$A$48)) -> 4.f.t - Invasive cancers having breast conserving surgery, women screened during the 4 years to June 2015 | R150: 0.551622 | S150: 0.455258 | T150: 0.638202 | U150: 0.096364 | V150: 0.08658
B151: =RANK(R151, $R$118:$R$157) + COUNTIF($R$117:R150, R151) -> 32 | C151: =MATCH(D151, 'overview - data'!A:A, 0) -> 1090 | D151: 4.g.t - none - Total - A | E151: 4.g.t | F151: none | G151: Total | H151: A | I151: =INDEX('overview - data'!F:F, $C151) -> 92.7288 | J151: =INDEX('overview - data'!G:G, $C151) -> 91.1281 | K151: =INDEX('overview - data'!H:H, $C151) -> 94.1202 | L151: =MATCH(E151 & " - " & F151, 'reference - splits'!$D$2:$D$71, 0) -> 55 | M151: =INDEX('reference - splits'!E$2:E$71, $L151) -> 95 | N151: =INDEX('reference - splits'!F$2:F$71, $L151) -> 100 | O151: . | P151: =E151 & IF(F151 <> "none", " (" & F151 & ") -", " - ") & INDEX(reference!$B$2:$B$48,MATCH(E151,reference!$A$2:$A$48)) -> 4.g.t - Invasive cancer having radiotherapy, women screened during the 4 years to June 2015 | R151: -0.02390736842 | S151: -0.04075684211 | T151: -0.009261052632 | U151: 0.01684947368 | V151: 0.01464631579
B152: =RANK(R152, $R$118:$R$157) + COUNTIF($R$117:R151, R152) -> 22 | C152: =MATCH(D152, 'overview - data'!A:A, 0) -> 1117 | D152: =E152 & " - " & F152 & " - " & G152 & " - " & H152 -> 5.a - none - Total - A | E152: 5.a | F152: none | G152: Total | H152: A | I152: =INDEX('overview - data'!F:F, $C152) -> 94.0753 | J152: =INDEX('overview - data'!G:G, $C152) -> 94.0015 | K152: =INDEX('overview - data'!H:H, $C152) -> 94.1484 | L152: =MATCH(E152 & " - " & F152, 'reference - splits'!$D$2:$D$71, 0) -> 65 | M152: =INDEX('reference - splits'!E$2:E$71, $L152) -> 90 | N152: =INDEX('reference - splits'!F$2:F$71, $L152) -> 100 | O152: . | P152: =E152 & IF(F152 <> "none", " (" & F152 & ") -", " - ") & INDEX(reference!$B$2:$B$48,MATCH(E152,reference!$A$2:$A$48)) -> 5.a - Time taken for provision of screening results | R152: 0.04528111111 | S152: 0.04446111111 | T152: 0.04609333333 | U152: 0.00082 | V152: 0.0008122222222
B153: =RANK(R153, $R$118:$R$157) + COUNTIF($R$117:R151, R153) -> 37 | C153: =MATCH(D153, 'overview - data'!A:A, 0) -> 1171 | D153: =E153 & " - " & F153 & " - " & G153 & " - " & H153 -> 5.b - none - Total - A | E153: 5.b | F153: none | G153: Total | H153: A | I153: =INDEX('overview - data'!F:F, $C153) -> 78.4104 | J153: =INDEX('overview - data'!G:G, $C153) -> 77.7547 | K153: =INDEX('overview - data'!H:H, $C153) -> 79.0554 | L153: =MATCH(E153 & " - " & F153, 'reference - splits'!$D$2:$D$71, 0) -> 66 | M153: =INDEX('reference - splits'!E$2:E$71, $L153) -> 90 | N153: =INDEX('reference - splits'!F$2:F$71, $L153) -> 100 | O153: . | P153: =E153 & IF(F153 <> "none", " (" & F153 & ") -", " - ") & INDEX(reference!$B$2:$B$48,MATCH(E153,reference!$A$2:$A$48)) -> 5.b - Time taken from screening visit to first offer of an assessment | R153: -0.1287733333 | S153: -0.1360588889 | T153: -0.1216066667 | U153: 0.007285555556 | V153: 0.007166666667
B154: =RANK(R154, $R$118:$R$157) + COUNTIF($R$117:R153, R154) -> 20 | C154: =MATCH(D154, 'overview - data'!A:A, 0) -> 1198 | D154: 5.c.1 - none - Total - A | E154: 5.c.1 | F154: none | G154: Total | H154: A | I154: =INDEX('overview - data'!F:F, $C154) -> 94.938 | J154: =INDEX('overview - data'!G:G, $C154) -> 94.3383 | K154: =INDEX('overview - data'!H:H, $C154) -> 95.4914 | L154: =MATCH(E154 & " - " & F154, 'reference - splits'!$D$2:$D$71, 0) -> 67 | M154: =INDEX('reference - splits'!E$2:E$71, $L154) -> 90 | N154: =INDEX('reference - splits'!F$2:F$71, $L154) -> 100 | O154: . | P154: =E154 & IF(F154 <> "none", " (" & F154 & ") -", " - ") & INDEX(reference!$B$2:$B$48,MATCH(E154,reference!$A$2:$A$48)) -> 5.c.1 - Women receiving a needle biopsy within 5 working days of assessment | R154: 0.05486666667 | S154: 0.04820333333 | T154: 0.06101555556 | U154: 0.006663333333 | V154: 0.006148888889
B155: =RANK(R155, $R$118:$R$157) + COUNTIF($R$117:R154, R155) -> 39 | C155: =MATCH(D155, 'overview - data'!A:A, 0) -> 1225 | D155: 5.c.2 - none - Total - A | E155: 5.c.2 | F155: none | G155: Total | H155: A | I155: =INDEX('overview - data'!F:F, $C155) -> 56.8571 | J155: =INDEX('overview - data'!G:G, $C155) -> 51.486 | K155: =INDEX('overview - data'!H:H, $C155) -> 62.1113 | L155: =MATCH(E155 & " - " & F155, 'reference - splits'!$D$2:$D$71, 0) -> 68 | M155: =INDEX('reference - splits'!E$2:E$71, $L155) -> 90 | N155: =INDEX('reference - splits'!F$2:F$71, $L155) -> 100 | O155: . | P155: =E155 & IF(F155 <> "none", " (" & F155 & ") -", " - ") & INDEX(reference!$B$2:$B$48,MATCH(E155,reference!$A$2:$A$48)) -> 5.c.2 - Women having an open biopsy procedure within 20 working days | R155: -0.3682544444 | S155: -0.4279333333 | T155: -0.3098744444 | U155: 0.05967888889 | V155: 0.05838
B156: =RANK(R156, $R$118:$R$157) + COUNTIF($R$117:R155, R156) -> 35 | C156: =MATCH(D156, 'overview - data'!A:A, 0) -> 1252 | D156: 5.d - none - Total - A | E156: 5.d | F156: none | G156: Total | H156: A | I156: =INDEX('overview - data'!F:F, $C156) -> 84.2151 | J156: =INDEX('overview - data'!G:G, $C156) -> 83.2447 | K156: =INDEX('overview - data'!H:H, $C156) -> 85.1505 | L156: =MATCH(E156 & " - " & F156, 'reference - splits'!$D$2:$D$71, 0) -> 69 | M156: =INDEX('reference - splits'!E$2:E$71, $L156) -> 90 | N156: =INDEX('reference - splits'!F$2:F$71, $L156) -> 100 | O156: . | P156: =E156 & IF(F156 <> "none", " (" & F156 & ") -", " - ") & INDEX(reference!$B$2:$B$48,MATCH(E156,reference!$A$2:$A$48)) -> 5.d - Time taken from final diagnostic biopsy to reporting assessment results | R156: -0.06427666667 | S156: -0.07505888889 | T156: -0.05388333333 | U156: 0.01078222222 | V156: 0.01039333333
B157: =RANK(R157, $R$118:$R$157) + COUNTIF($R$117:R156, R157) -> 40 | C157: =MATCH(D157, 'overview - data'!A:A, 0) -> 1279 | D157: 5.e.t - none - Total - A | E157: 5.e.t | F157: none | G157: Total | H157: A | I157: =INDEX('overview - data'!F:F, $C157) -> 52.9793 | J157: =INDEX('overview - data'!G:G, $C157) -> 50.987 | K157: =INDEX('overview - data'!H:H, $C157) -> 54.9646 | L157: =MATCH(E157 & " - " & F157, 'reference - splits'!$D$2:$D$71, 0) -> 70 | M157: =INDEX('reference - splits'!E$2:E$71, $L157) -> 90 | N157: =INDEX('reference - splits'!F$2:F$71, $L157) -> 100 | O157: . | P157: =E157 & IF(F157 <> "none", " (" & F157 & ") -", " - ") & INDEX(reference!$B$2:$B$48,MATCH(E157,reference!$A$2:$A$48)) -> 5.e.t - First surgical treatment, women screened during the 4 years to June 2015 | R157: -0.4113411111 | S157: -0.4334777778 | T157: -0.3892822222 | U157: 0.02213666667 | V157: 0.02205888889
B165: Rank | C165: Label | D165: Absolute | E165: Lower CI | F165: Upper CI | G165: Target
B166: 40 | C166: =INDEX(P$118:P$157, MATCH($B166, $B$118:$B$157, 0)) -> 5.e.t - First surgical treatment, women screened during the 4 years to June 2015 | D166: =INDEX(R$118:R$157, MATCH($B166, $B$118:$B$157, 0)) -> -0.4113411111 | E166: =INDEX(U$118:U$157, MATCH($B166, $B$118:$B$157, 0)) -> 0.02213666667 | F166: =INDEX(V$118:V$157, MATCH($B166, $B$118:$B$157, 0)) -> 0.02205888889 | G166: 0
B167: 39 | C167: 5.c.2 - Women having an open biopsy procedure within 20 working days | D167: -0.3682544444 | E167: 0.05967888889 | F167: 0.05838 | G167: 0
B168: 38 | C168: 1.b.3 (Initial) -Routine rescreening | D168: -0.1316546667 | E168: 0.008602666667 | F168: 0.008548 | G168: 0
B169: 37 | C169: 5.b - Time taken from screening visit to first offer of an assessment | D169: -0.1287733333 | E169: 0.007285555556 | F169: 0.007166666667 | G169: 0
B170: 36 | C170: 2.g - Benign open biopsy weight | D170: -0.08251444444 | E170: 0.04709111111 | F170: 0.04124333333 | G170: 0
B171: 35 | C171: 5.d - Time taken from final diagnostic biopsy to reporting assessment results | D171: -0.06427666667 | E171: 0.01078222222 | F171: 0.01039333333 | G171: 0
B172: 34 | C172: 2.i (Initial) -Specificity | D172: -0.03565483871 | E172: 0.004892473118 | F172: 0.004753763441 | G172: 0
B173: 33 | C173: 2.d (Initial) -Assessment rate | D173: -0.03159 | E173: -0.04421 | F173: -0.0455 | G173: 0
B174: 32 | C174: 4.g.t - Invasive cancer having radiotherapy, women screened during the 4 years to June 2015 | D174: -0.02390736842 | E174: 0.01684947368 | F174: 0.01464631579 | G174: 0
B175: 31 | C175: 2.m (Initial) -Benign open biopsy rate | D175: 0.009542857143 | E175: -0.2308 | F175: -0.2786285714 | G175: 0
B176: 30 | C176: 1.b.3 (Subsequent) -Routine rescreening | D176: 0.01651647059 | E176: 0.001391764706 | F176: 0.001384705882 | G176: 0
B177: 29 | C177: 1.a.1 - Overall coverage of eligible women | D177: 0.02007 | E177: 0.001697142857 | F177: 0.001692857143 | G177: 0
B178: 28 | C178: 2.i (Subsequent) -Specificity | D178: 0.03628494624 | E178: 0.0006387096774 | F178: 0.0006322580645 | G178: 0
B179: 27 | C179: 3.d.t (Initial) -Nodal involvement | D179: 0.03825142857 | E179: 0.1009114286 | F179: 0.09019 | G179: 0
B180: 26 | C180: 3.d (Initial) -Nodal involvement | D180: 0.03896142857 | E180: 0.1030242857 | F180: 0.09184285714 | G180: 0
B181: 25 | C181: 2.a (Mobile) -Screening image usage | D181: 0.03964 | E181: 0.00299625 | F181: 0.00297125 | G181: 0
B182: 24 | C182: 3.d.t (Subsequent) -Nodal involvement | D182: 0.04261733333 | E182: 0.02677866667 | F182: 0.02551466667 | G182: 0
B183: 23 | C183: 2.e (Initial) -False positive rate | D183: 0.04326666667 | E183: -0.04524444444 | F183: -0.04673333333 | G183: 0
B184: 22 | C184: 5.a - Time taken for provision of screening results | D184: 0.04528111111 | E184: 0.00082 | F184: 0.0008122222222 | G184: 0
B185: 21 | C185: 3.d (Subsequent) -Nodal involvement | D185: 0.05421466667 | E185: 0.02528933333 | F185: 0.024092 | G185: 0
B186: 20 | C186: 5.c.1 - Women receiving a needle biopsy within 5 working days of assessment | D186: 0.05486666667 | E186: 0.006663333333 | F186: 0.006148888889 | G186: 0
B187: 19 | C187: 2.h - Preoperative diagnosis rate | D187: 0.06432333333 | E187: 0.009135555556 | F187: 0.008023333333 | G187: 0
B188: 18 | C188: 2.a (Fixed) -Screening image usage | D188: 0.06773625 | E188: 0.00155875 | F188: 0.00155 | G188: 0
B189: 17 | C189: 2.e (Subsequent) -False positive rate | D189: 0.269325 | E189: -0.013225 | F189: -0.0134 | G189: 0
B190: 16 | C190: 2.d (Subsequent) -Assessment rate | D190: 0.2749 | E190: -0.01176 | F190: -0.01188 | G190: 0
B191: 15 | C191: 3.a.2.t (Subsequent) -Invasive breast cancer detection | D191: 0.3607826087 | E191: 0.06284057971 | F191: 0.06510144928 | G191: 0
B192: 14 | C192: 2.f (Initial) -Positive predictive value | D192: 0.4031888889 | E192: 0.1647222222 | F192: 0.1780444444 | G192: 0
B193: 13 | C193: 3.a.2 (Subsequent) -Invasive breast cancer detection | D193: 0.4309275362 | E193: 0.06339130435 | F193: 0.06553623188 | G193: 0
B194: 12 | C194: 3.a.2.t (Initial) -Invasive breast cancer detection | D194: 0.500147541 | E194: 0.2086885246 | F194: 0.232557377 | G194: 0
B195: 11 | C195: 2.m (Subsequent) -Benign open biopsy rate | D195: 0.5159375 | E195: -0.0533125 | F195: -0.0580625 | G195: 0
B196: 10 | C196: 4.f.t - Invasive cancers having breast conserving surgery, women screened during the 4 years to June 2015 | D196: 0.551622 | E196: 0.096364 | F196: 0.08658 | G196: 0
B197: 9 | C197: 3.c.r.t (Initial) -Detection of invasive breast cancer less than or equal to 15mm (rate) | D197: 0.5600032787 | E197: 0.3003344262 | F197: 0.3500819672 | G197: 0
B198: 8 | C198: 3.c.r (Initial) -Detection of invasive breast cancer less than or equal to 15mm (rate) | D198: 0.5935081967 | E198: 0.3200852459 | F198: 0.3757540984 | G198: 0
B199: 7 | C199: 3.a.2 (Initial) -Invasive breast cancer detection | D199: 0.6132131148 | E199: 0.2285901639 | F199: 0.2552786885 | G199: 0
B200: 6 | C200: 4.e.t - DCIS having breast conserving surgery, women screened during the 4 years to June 2015 | D200: 0.650558 | E200: 0.101516 | F200: 0.086854 | G200: 0
B201: 5 | C201: 2.c (Mobile) -Technical reject rate | D201: 0.6747333333 | E201: -0.01003333333 | F201: -0.01023333333 | G201: 0
B202: 4 | C202: 2.c (Fixed) -Technical reject rate | D202: 0.7057333333 | E202: -0.005266666667 | F202: -0.005366666667 | G202: 0
B203: 3 | C203: 3.c.r.t (Subsequent) -Detection of invasive breast cancer less than or equal to 15mm (rate) | D203: 0.7547514451 | E203: 0.1010867052 | F203: 0.1056358382 | G203: 0
B204: 2 | C204: 3.c.r (Subsequent) -Detection of invasive breast cancer less than or equal to 15mm (rate) | D204: 0.8527630058 | E204: 0.1023236994 | F204: 0.1067283237 | G204: 0
B205: 1 | C205: 2.f (Subsequent) -Positive predictive value | D205: 0.9812666667 | E205: 0.07007777778 | F205: 0.07156666667 | G205: 0

Sheet population
B2: Population Projections | W2: Return to Index
C5: Description: | D5: Mid-year population projections 2015 by ethnicity, Lead Provider, and 5-year age group
E12: BSWN | F12: BSCM | G12: BSAL | H12: BSM | I12: BSCC | J12: BSC | K12: BSSL | L12: BSOS | M12: Total
C13: Māori | D13: 45-49 | E13: 3420 | F13: 2580 | G13: 1240 | H13: 5270 | I13: 4000 | J13: 2060 | K13: 2070 | L13: 910 | M13: 21550
D14: 50-54 | E14: 3480 | F14: 2230 | G14: 1210 | H14: 5270 | I14: 3890 | J14: 1840 | K14: 1940 | L14: 820 | M14: 20680
D15: 55-59 | E15: 2920 | F15: 1740 | G15: 970 | H15: 4450 | I15: 3200 | J15: 1530 | K15: 1450 | L15: 600 | M15: 16860
D16: 60-64 | E16: 2070 | F16: 1380 | G16: 740 | H16: 3420 | I16: 2470 | J16: 1040 | K16: 1080 | L16: 450 | M16: 12650
D17: 65-69 | E17: 1540 | F17: 920 | G17: 510 | H17: 2420 | I17: 1850 | J17: 760 | K17: 800 | L17: 320 | M17: 9120
C18: Pacific | D18: 45-49 | E18: 1410 | F18: 3500 | G18: 1810 | H18: 500 | I18: 370 | J18: 1125 | K18: 420 | L18: 140 | M18: 9275
D19: 50-54 | E19: 1270 | F19: 2950 | G19: 1540 | H19: 420 | I19: 385 | J19: 930 | K19: 375 | L19: 120 | M19: 7990
D20: 55-59 | E20: 970 | F20: 2230 | G20: 1250 | H20: 350 | I20: 265 | J20: 765 | K20: 280 | L20: 80 | M20: 6190
D21: 60-64 | E21: 770 | F21: 1720 | G21: 1030 | H21: 250 | I21: 210 | J21: 625 | K21: 200 | L21: 60 | M21: 4865
D22: 65-69 | E22: 550 | F22: 1380 | G22: 700 | H22: 200 | I22: 160 | J22: 520 | K22: 150 | L22: 50 | M22: 3710
C23: Non-Māori | D23: 45-49 | E23: 24480 | F23: 16130 | G23: 15670 | H23: 19580 | I23: 14890 | J23: 15950 | K23: 25760 | L23: 9820 | M23: 142280
D24: 50-54 | E24: 23940 | F24: 15450 | G24: 14970 | H24: 20210 | I24: 16490 | J24: 15800 | K24: 26810 | L24: 10660 | M24: 144330
D25: 55-59 | E25: 21320 | F25: 13200 | G25: 12850 | H25: 19260 | I25: 16000 | J25: 13920 | K25: 24750 | L25: 10030 | M25: 131330
D26: 60-64 | E26: 18820 | F26: 11230 | G26: 10990 | H26: 18010 | I26: 14710 | J26: 11850 | K26: 22090 | L26: 8570 | M26: 116270
D27: 65-69 | E27: 17360 | F27: 9670 | G27: 9000 | H27: 17260 | I27: 13920 | J27: 10860 | K27: 20640 | L27: 8050 | M27: 106760
C28: Non-Māori Non-Pacific | D28: 45-49 | E28: 23070 | F28: 12630 | G28: 13860 | H28: 19080 | I28: 14520 | J28: 14825 | K28: 25340 | L28: 9680 | M28: 133005
D29: 50-54 | E29: 22670 | F29: 12500 | G29: 13430 | H29: 19790 | I29: 16105 | J29: 14870 | K29: 26435 | L29: 10540 | M29: 136340
D30: 55-59 | E30: 20350 | F30: 10970 | G30: 11600 | H30: 18910 | I30: 15735 | J30: 13155 | K30: 24470 | L30: 9950 | M30: 125140
D31: 60-64 | E31: 18050 | F31: 9510 | G31: 9960 | H31: 17760 | I31: 14500 | J31: 11225 | K31: 21890 | L31: 8510 | M31: 111405
D32: 65-69 | E32: 16810 | F32: 8290 | G32: 8300 | H32: 17060 | I32: 13760 | J32: 10340 | K32: 20490 | L32: 8000 | M32: 103050
C33: All | D33: 45-49 | E33: 27900 | F33: 18710 | G33: 16910 | H33: 24850 | I33: 18890 | J33: 18010 | K33: 27830 | L33: 10730 | M33: 163830
D34: 50-54 | E34: 27420 | F34: 17680 | G34: 16180 | H34: 25480 | I34: 20380 | J34: 17640 | K34: 28750 | L34: 11480 | M34: 165010
D35: 55-59 | E35: 24240 | F35: 14940 | G35: 13820 | H35: 23710 | I35: 19200 | J35: 15450 | K35: 26200 | L35: 10630 | M35: 148190
D36: 60-64 | E36: 20890 | F36: 12610 | G36: 11730 | H36: 21430 | I36: 17180 | J36: 12890 | K36: 23170 | L36: 9020 | M36: 128920
D37: 65-69 | E37: 18900 | F37: 10590 | G37: 9510 | H37: 19680 | I37: 15770 | J37: 11620 | K37: 21440 | L37: 8370 | M37: 115880
C1587: Initial | D1587: 45 to 49 | E1587: BSWN | F1587: 30/06/2012 | G1587: 114.4 | H1587: 112.7 | I1587: 111.9 | J1587: 111.8 | K1587: 112.2
C1588: Initial | D1588: 45 to 49 | E1588: BSWN | F1588: 30/06/2012 | G1588: 114.4 | H1588: 112.7 | I1588: 111.9 | J1588: 111.8 | K1588: 112.2
C1589: Initial | D1589: 45 to 49 | E1589: BSWN | F1589: 30/06/2012 | G1589: 114.4 | H1589: 112.7 | I1589: 111.9 | J1589: 111.8 | K1589: 112.2
C1590: Initial | D1590: 45 to 49 | E1590: BSWN | F1590: 30/06/2012 | G1590: 114.4 | H1590: 112.7 | I1590: 111.9 | J1590: 111.8 | K1590: 112.2
C1591: Initial | D1591: 45 to 49 | E1591: BSWN | F1591: 30/06/2012 | G1591: 114.4 | H1591: 112.7 | I1591: 111.9 | J1591: 111.8 | K1591: 112.2
C1592: Initial | D1592: 45 to 49 | E1592: BSWN | F1592: 30/06/2013 | G1592: 113.1 | H1592: 110 | I1592: 111.6 | J1592: 111.7 | K1592: 111.8
C1593: Initial | D1593: 45 to 49 | E1593: BSWN | F1593: 30/06/2013 | G1593: 113.1 | H1593: 110 | I1593: 111.6 | J1593: 111.7 | K1593: 111.8
C1594: Initial | D1594: 45 to 49 | E1594: BSWN | F1594: 30/06/2013 | G1594: 113.1 | H1594: 110 | I1594: 111.6 | J1594: 111.7 | K1594: 111.8
C1595: Initial | D1595: 45 to 49 | E1595: BSWN | F1595: 30/06/2013 | G1595: 113.1 | H1595: 110 | I1595: 111.6 | J1595: 111.7 | K1595: 111.8
C1596: Initial | D1596: 45 to 49 | E1596: BSWN | F1596: 30/06/2013 | G1596: 113.1 | H1596: 110 | I1596: 111.6 | J1596: 111.7 | K1596: 111.8
C1597: Initial | D1597: 45 to 49 | E1597: BSWN | F1597: 30/06/2013 | G1597: 113.1 | H1597: 110 | I1597: 111.6 | J1597: 111.7 | K1597: 111.8
C1598: Initial | D1598: 45 to 49 | E1598: BSWN | F1598: 30/06/2013 | G1598: 113.1 | H1598: 110 | I1598: 111.6 | J1598: 111.7 | K1598: 111.8
C1599: Initial | D1599: 45 to 49 | E1599: BSWN | F1599: 30/06/2013 | G1599: 113.1 | H1599: 110 | I1599: 111.6 | J1599: 111.7 | K1599: 111.8
C1600: Initial | D1600: 45 to 49 | E1600: BSWN | F1600: 30/06/2013 | G1600: 113.1 | H1600: 110 | I1600: 111.6 | J1600: 111.7 | K1600: 111.8
C1601: Initial | D1601: 45 to 49 | E1601: BSWN | F1601: 30/06/2013 | G1601: 113.1 | H1601: 110 | I1601: 111.6 | J1601: 111.7 | K1601: 111.8
C1602: Initial | D1602: 45 to 49 | E1602: BSWN | F1602: 30/06/2013 | G1602: 113.1 | H1602: 110 | I1602: 111.6 | J1602: 111.7 | K1602: 111.8
C1603: Initial | D1603: 45 to 49 | E1603: BSWN | F1603: 30/06/2013 | G1603: 113.1 | H1603: 110 | I1603: 111.6 | J1603: 111.7 | K1603: 111.8
C1604: Initial | D1604: 45 to 49 | E1604: BSWN | F1604: 30/06/2013 | G1604: 113.1 | H1604: 110 | I1604: 111.6 | J1604: 111.7 | K1604: 111.8
C1605: Initial | D1605: 45 to 49 | E1605: BSWN | F1605: 30/06/2013 | G1605: 113.1 | H1605: 110 | I1605: 111.6 | J1605: 111.7 | K1605: 111.8
C1606: Initial | D1606: 45 to 49 | E1606: BSWN | F1606: 30/06/2013 | G1606: 113.1 | H1606: 110 | I1606: 111.6 | J1606: 111.7 | K1606: 111.8
C1607: Initial | D1607: 45 to 49 | E1607: BSWN | F1607: 30/06/2013 | G1607: 113.1 | H1607: 110 | I1607: 111.6 | J1607: 111.7 | K1607: 111.8
C1608: Initial | D1608: 45 to 49 | E1608: BSWN | F1608: 30/06/2013 | G1608: 113.1 | H1608: 110 | I1608: 111.6 | J1608: 111.7 | K1608: 111.8
C1609: Initial | D1609: 45 to 49 | E1609: BSWN | F1609: 30/06/2013 | G1609: 113.1 | H1609: 110 | I1609: 111.6 | J1609: 111.7 | K1609: 111.8
C1610: Initial | D1610: 45 to 49 | E1610: BSWN | F1610: 30/06/2013 | G1610: 113.1 | H1610: 110 | I1610: 111.6 | J1610: 111.7 | K1610: 111.8
C1611: Initial | D1611: 45 to 49 | E1611: BSWN | F1611: 30/06/2013 | G1611: 113.1 | H1611: 110 | I1611: 111.6 | J1611: 111.7 | K1611: 111.8
C1612: Initial | D1612: 45 to 49 | E1612: BSWN | F1612: 30/06/2013 | G1612: 113.1 | H1612: 110 | I1612: 111.6 | J1612: 111.7 | K1612: 111.8
C1613: Initial | D1613: 45 to 49 | E1613: BSWN | F1613: 30/06/2013 | G1613: 113.1 | H1613: 110 | I1613: 111.6 | J1613: 111.7 | K1613: 111.8
C1614: Initial | D1614: 45 to 49 | E1614: BSWN | F1614: 30/06/2013 | G1614: 113.1 | H1614: 110 | I1614: 111.6 | J1614: 111.7 | K1614: 111.8
C1615: Initial | D1615: 45 to 49 | E1615: BSWN | F1615: 30/06/2013 | G1615: 113.1 | H1615: 110 | I1615: 111.6 | J1615: 111.7 | K1615: 111.8
C1616: Initial | D1616: 45 to 49 | E1616: BSWN | F1616: 30/06/2013 | G1616: 113.1 | H1616: 110 | I1616: 111.6 | J1616: 111.7 | K1616: 111.8
C1617: Initial | D1617: 45 to 49 | E1617: BSWN | F1617: 30/06/2014 | G1617: 113.5 | H1617: 110.3 | I1617: 110.8 | J1617: 110.8 | K1617: 111.1
C1618: Initial | D1618: 45 to 49 | E1618: BSWN | F1618: 30/06/2014 | G1618: 113.5 | H1618: 110.3 | I1618: 110.8 | J1618: 110.8 | K1618: 111.1
C1619: Initial | D1619: 45 to 49 | E1619: BSWN | F1619: 30/06/2014 | G1619: 113.5 | H1619: 110.3 | I1619: 110.8 | J1619: 110.8 | K1619: 111.1
C1620: Initial | D1620: 45 to 49 | E1620: BSWN | F1620: 30/06/2014 | G1620: 113.5 | H1620: 110.3 | I1620: 110.8 | J1620: 110.8 | K1620: 111.1
C1621: Initial | D1621: 45 to 49 | E1621: BSWN | F1621: 30/06/2014 | G1621: 113.5 | H1621: 110.3 | I1621: 110.8 | J1621: 110.8 | K1621: 111.1
C1622: Initial | D1622: 45 to 49 | E1622: BSWN | F1622: 30/06/2014 | G1622: 113.5 | H1622: 110.3 | I1622: 110.8 | J1622: 110.8 | K1622: 111.1
C1623: Initial | D1623: 45 to 49 | E1623: BSWN | F1623: 30/06/2014 | G1623: 113.5 | H1623: 110.3 | I1623: 110.8 | J1623: 110.8 | K1623: 111.1
C1624: Initial | D1624: 45 to 49 | E1624: BSWN | F1624: 30/06/2014 | G1624: 113.5 | H1624: 110.3 | I1624: 110.8 | J1624: 110.8 | K1624: 111.1
C1625: Initial | D1625: 45 to 49 | E1625: BSWN | F1625: 30/06/2014 | G1625: 113.5 | H1625: 110.3 | I1625: 110.8 | J1625: 110.8 | K1625: 111.1
C1626: Initial | D1626: 45 to 49 | E1626: BSWN | F1626: 30/06/2014 | G1626: 113.5 | H1626: 110.3 | I1626: 110.8 | J1626: 110.8 | K1626: 111.1
C1627: Initial | D1627: 45 to 49 | E1627: BSWN | F1627: 30/06/2014 | G1627: 113.5 | H1627: 110.3 | I1627: 110.8 | J1627: 110.8 | K1627: 111.1
C1628: Initial | D1628: 45 to 49 | E1628: BSWN | F1628: 30/06/2014 | G1628: 113.5 | H1628: 110.3 | I1628: 110.8 | J1628: 110.8 | K1628: 111.1
C1629: Initial | D1629: 45 to 49 | E1629: BSWN | F1629: 30/06/2014 | G1629: 113.5 | H1629: 110.3 | I1629: 110.8 | J1629: 110.8 | K1629: 111.1
C1630: Initial | D1630: 45 to 49 | E1630: BSWN | F1630: 30/06/2014 | G1630: 113.5 | H1630: 110.3 | I1630: 110.8 | J1630: 110.8 | K1630: 111.1
C1631: Initial | D1631: 45 to 49 | E1631: BSWN | F1631: 30/06/2014 | G1631: 113.5 | H1631: 110.3 | I1631: 110.8 | J1631: 110.8 | K1631: 111.1
C1632: Initial | D1632: 45 to 49 | E1632: BSWN | F1632: 30/06/2014 | G1632: 113.5 | H1632: 110.3 | I1632: 110.8 | J1632: 110.8 | K1632: 111.1
C1633: Initial | D1633: 45 to 49 | E1633: BSWN | F1633: 30/06/2014 | G1633: 113.5 | H1633: 110.3 | I1633: 110.8 | J1633: 110.8 | K1633: 111.1
C1634: Initial | D1634: 45 to 49 | E1634: BSWN | F1634: 30/06/2014 | G1634: 113.5 | H1634: 110.3 | I1634: 110.8 | J1634: 110.8 | K1634: 111.1
C1635: Initial | D1635: 45 to 49 | E1635: BSWN | F1635: 30/06/2014 | G1635: 113.5 | H1635: 110.3 | I1635: 110.8 | J1635: 110.8 | K1635: 111.1
C1636: Initial | D1636: 45 to 49 | E1636: BSWN | F1636: 30/06/2014 | G1636: 113.5 | H1636: 110.3 | I1636: 110.8 | J1636: 110.8 | K1636: 111.1
C1637: Initial | D1637: 45 to 49 | E1637: BSWN | F1637: 30/06/2014 | G1637: 113.5 | H1637: 110.3 | I1637: 110.8 | J1637: 110.8 | K1637: 111.1
C1638: Initial | D1638: 45 to 49 | E1638: BSWN | F1638: 30/06/2014 | G1638: 113.5 | H1638: 110.3 | I1638: 110.8 | J1638: 110.8 | K1638: 111.1
C1639: Initial | D1639: 45 to 49 | E1639: BSWN | F1639: 30/06/2014 | G1639: 113.5 | H1639: 110.3 | I1639: 110.8 | J1639: 110.8 | K1639: 111.1
C1640: Initial | D1640: 45 to 49 | E1640: BSWN | F1640: 30/06/2014 | G1640: 113.5 | H1640: 110.3 | I1640: 110.8 | J1640: 110.8 | K1640: 111.1
C1641: Initial | D1641: 45 to 49 | E1641: BSWN | F1641: 30/06/2014 | G1641: 113.5 | H1641: 110.3 | I1641: 110.8 | J1641: 110.8 | K1641: 111.1
C1642: Initial | D1642: 45 to 49 | E1642: BSWN | F1642: 30/06/2015 | G1642: 113.2 | H1642: 110.9 | I1642: 111 | J1642: 111 | K1642: 111.2
C1643: Initial | D1643: 45 to 49 | E1643: BSWN | F1643: 30/06/2015 | G1643: 113.2 | H1643: 110.9 | I1643: 111 | J1643: 111 | K1643: 111.2
C1644: Initial | D1644: 45 to 49 | E1644: BSWN | F1644: 30/06/2015 | G1644: 113.2 | H1644: 110.9 | I1644: 111 | J1644: 111 | K1644: 111.2
C1645: Initial | D1645: 45 to 49 | E1645: BSWN | F1645: 30/06/2015 | G1645: 113.2 | H1645: 110.9 | I1645: 111 | J1645: 111 | K1645: 111.2
C1646: Initial | D1646: 45 to 49 | E1646: BSWN | F1646: 30/06/2015 | G1646: 113.2 | H1646: 110.9 | I1646: 111 | J1646: 111 | K1646: 111.2
C1647: Initial | D1647: 45 to 49 | E1647: BSWN | F1647: 30/06/2015 | G1647: 113.2 | H1647: 110.9 | I1647: 111 | J1647: 111 | K1647: 111.2
C1648: Initial | D1648: 45 to 49 | E1648: BSWN | F1648: 30/06/2015 | G1648: 113.2 | H1648: 110.9 | I1648: 111 | J1648: 111 | K1648: 111.2
C1649: Initial | D1649: 45 to 49 | E1649: BSWN | F1649: 30/06/2015 | G1649: 113.2 | H1649: 110.9 | I1649: 111 | J1649: 111 | K1649: 111.2
C1650: Initial | D1650: 45 to 49 | E1650: BSWN | F1650: 30/06/2015 | G1650: 113.2 | H1650: 110.9 | I1650: 111 | J1650: 111 | K1650: 111.2
C1651: Initial | D1651: 45 to 49 | E1651: BSWN | F1651: 30/06/2015 | G1651: 113.2 | H1651: 110.9 | I1651: 111 | J1651: 111 | K1651: 111.2
C1652: Initial | D1652: 45 to 49 | E1652: BSWN | F1652: 30/06/2015 | G1652: 113.2 | H1652: 110.9 | I1652: 111 | J1652: 111 | K1652: 111.2
C1653: Initial | D1653: 45 to 49 | E1653: BSWN | F1653: 30/06/2015 | G1653: 113.2 | H1653: 110.9 | I1653: 111 | J1653: 111 | K1653: 111.2
C1654: Initial | D1654: 45 to 49 | E1654: BSWN | F1654: 30/06/2015 | G1654: 113.2 | H1654: 110.9 | I1654: 111 | J1654: 111 | K1654: 111.2
C1655: Initial | D1655: 45 to 49 | E1655: BSWN | F1655: 30/06/2015 | G1655: 113.2 | H1655: 110.9 | I1655: 111 | J1655: 111 | K1655: 111.2
C1656: Initial | D1656: 45 to 49 | E1656: BSWN | F1656: 30/06/2015 | G1656: 113.2 | H1656: 110.9 | I1656: 111 | J1656: 111 | K1656: 111.2
C1657: Initial | D1657: 45 to 49 | E1657: BSWN | F1657: 30/06/2015 | G1657: 113.2 | H1657: 110.9 | I1657: 111 | J1657: 111 | K1657: 111.2
C1658: Initial | D1658: 45 to 49 | E1658: BSWN | F1658: 30/06/2015 | G1658: 113.2 | H1658: 110.9 | I1658: 111 | J1658: 111 | K1658: 111.2
C1659: Initial | D1659: 45 to 49 | E1659: BSWN | F1659: 30/06/2015 | G1659: 113.2 | H1659: 110.9 | I1659: 111 | J1659: 111 | K1659: 111.2
C1660: Initial | D1660: 45 to 49 | E1660: BSWN | F1660: 30/06/2015 | G1660: 113.2 | H1660: 110.9 | I1660: 111 | J1660: 111 | K1660: 111.2
C1661: Initial | D1661: 45 to 49 | E1661: BSWN | F1661: 30/06/2015 | G1661: 113.2 | H1661: 110.9 | I1661: 111 | J1661: 111 | K1661: 111.2
C1662: Initial | D1662: 45 to 49 | E1662: BSWN | F1662: 30/06/2015 | G1662: 113.2 | H1662: 110.9 | I1662: 111 | J1662: 111 | K1662: 111.2
C1663: Initial | D1663: 45 to 49 | E1663: BSWN | F1663: 30/06/2015 | G1663: 113.2 | H1663: 110.9 | I1663: 111 | J1663: 111 | K1663: 111.2
C1664: Initial | D1664: 45 to 49 | E1664: BSWN | F1664: 30/06/2015 | G1664: 113.2 | H1664: 110.9 | I1664: 111 | J1664: 111 | K1664: 111.2
C1665: Initial | D1665: 45 to 49 | E1665: BSWN | F1665: 30/06/2015 | G1665: 113.2 | H1665: 110.9 | I1665: 111 | J1665: 111 | K1665: 111.2
C1666: Initial | D1666: 45 to 49 | E1666: BSWN | F1666: 30/06/2015 | G1666: 113.2 | H1666: 110.9 | I1666: 111 | J1666: 111 | K1666: 111.2
C1667: Initial | D1667: 45 to 49 | E1667: BSWN | F1667: 30/06/2016 | G1667: 112.8 | H1667: 111.7 | I1667: 111.3 | J1667: 111.3 | K1667: 111.5
C1668: Initial | D1668: 45 to 49 | E1668: BSWN | F1668: 30/06/2016 | G1668: 112.8 | H1668: 111.7 | I1668: 111.3 | J1668: 111.3 | K1668: 111.5
C1669: Initial | D1669: 45 to 49 | E1669: BSWN | F1669: 30/06/2016 | G1669: 112.8 | H1669: 111.7 | I1669: 111.3 | J1669: 111.3 | K1669: 111.5
C1670: Initial | D1670: 45 to 49 | E1670: BSWN | F1670: 30/06/2016 | G1670: 112.8 | H1670: 111.7 | I1670: 111.3 | J1670: 111.3 | K1670: 111.5
C1671: Initial | D1671: 45 to 49 | E1671: BSWN | F1671: 30/06/2016 | G1671: 112.8 | H1671: 111.7 | I1671: 111.3 | J1671: 111.3 | K1671: 111.5
C1672: Initial | D1672: 45 to 49 | E1672: BSWN | F1672: 30/06/2016 | G1672: 112.8 | H1672: 111.7 | I1672: 111.3 | J1672: 111.3 | K1672: 111.5
C1673: Initial | D1673: 45 to 49 | E1673: BSWN | F1673: 30/06/2016 | G1673: 112.8 | H1673: 111.7 | I1673: 111.3 | J1673: 111.3 | K1673: 111.5
C1674: Initial | D1674: 45 to 49 | E1674: BSWN | F1674: 30/06/2016 | G1674: 112.8 | H1674: 111.7 | I1674: 111.3 | J1674: 111.3 | K1674: 111.5
C1675: Initial | D1675: 45 to 49 | E1675: BSWN | F1675: 30/06/2016 | G1675: 112.8 | H1675: 111.7 | I1675: 111.3 | J1675: 111.3 | K1675: 111.5
C1676: Initial | D1676: 45 to 49 | E1676: BSWN | F1676: 30/06/2016 | G1676: 112.8 | H1676: 111.7 | I1676: 111.3 | J1676: 111.3 | K1676: 111.5
C1677: Initial | D1677: 45 to 49 | E1677: BSWN | F1677: 30/06/2016 | G1677: 112.8 | H1677: 111.7 | I1677: 111.3 | J1677: 111.3 | K1677: 111.5
C1678: Initial | D1678: 45 to 49 | E1678: BSWN | F1678: 30/06/2016 | G1678: 112.8 | H1678: 111.7 | I1678: 111.3 | J1678: 111.3 | K1678: 111.5
C1679: Initial | D1679: 45 to 49 | E1679: BSWN | F1679: 30/06/2016 | G1679: 112.8 | H1679: 111.7 | I1679: 111.3 | J1679: 111.3 | K1679: 111.5
C1680: Initial | D1680: 45 to 49 | E1680: BSWN | F1680: 30/06/2016 | G1680: 112.8 | H1680: 111.7 | I1680: 111.3 | J1680: 111.3 | K1680: 111.5
C1681: Initial | D1681: 45 to 49 | E1681: BSWN | F1681: 30/06/2016 | G1681: 112.8 | H1681: 111.7 | I1681: 111.3 | J1681: 111.3 | K1681: 111.5
C1682: Initial | D1682: 45 to 49 | E1682: BSWN | F1682: 30/06/2016 | G1682: 112.8 | H1682: 111.7 | I1682: 111.3 | J1682: 111.3 | K1682: 111.5
C1683: Initial | D1683: 45 to 49 | E1683: BSWN | F1683: 30/06/2016 | G1683: 112.8 | H1683: 111.7 | I1683: 111.3 | J1683: 111.3 | K1683: 111.5
C1684: Initial | D1684: 45 to 49 | E1684: BSWN | F1684: 30/06/2016 | G1684: 112.8 | H1684: 111.7 | I1684: 111.3 | J1684: 111.3 | K1684: 111.5
C1685: Initial | D1685: 45 to 49 | E1685: BSWN | F1685: 30/06/2016 | G1685: 112.8 | H1685: 111.7 | I1685: 111.3 | J1685: 111.3 | K1685: 111.5
C1686: Initial | D1686: 45 to 49 | E1686: BSWN | F1686: 30/06/2016 | G1686: 112.8 | H1686: 111.7 | I1686: 111.3 | J1686: 111.3 | K1686: 111.5
C1687: Initial | D1687: 45 to 49 | E1687: BSWN | F1687: 30/06/2016 | G1687: 112.8 | H1687: 111.7 | I1687: 111.3 | J1687: 111.3 | K1687: 111.5
C1688: Initial | D1688: 45 to 49 | E1688: BSWN | F1688: 30/06/2016 | G1688: 112.8 | H1688: 111.7 | I1688: 111.3 | J1688: 111.3 | K1688: 111.5
C1689: Initial | D1689: 45 to 49 | E1689: BSWN | F1689: 30/06/2016 | G1689: 112.8 | H1689: 111.7 | I1689: 111.3 | J1689: 111.3 | K1689: 111.5
C1690: Initial | D1690: 45 to 49 | E1690: BSWN | F1690: 30/06/2016 | G1690: 112.8 | H1690: 111.7 | I1690: 111.3 | J1690: 111.3 | K1690: 111.5
C1691: Initial | D1691: 45 to 49 | E1691: BSWN | F1691: 30/06/2016 | G1691: 112.8 | H1691: 111.7 | I1691: 111.3 | J1691: 111.3 | K1691: 111.5
C1692: Initial | D1692: 45 to 49 | E1692: BSWN | F1692: 31/12/2011 | G1692: 115.2 | H1692: 113.4 | I1692: 111.9 | J1692: 111.8 | K1692: 112.3
C1693: Initial | D1693: 45 to 49 | E1693: BSWN | F1693: 31/12/2011 | G1693: 115.2 | H1693: 113.4 | I1693: 111.9 | J1693: 111.8 | K1693: 112.3
C1694: Initial | D1694: 45 to 49 | E1694: BSWN | F1694: 31/12/2011 | G1694: 115.2 | H1694: 113.4 | I1694: 111.9 | J1694: 111.8 | K1694: 112.3
C1695: Initial | D1695: 45 to 49 | E1695: BSWN | F1695: 31/12/2011 | G1695: 115.2 | H1695: 113.4 | I1695: 111.9 | J1695: 111.8 | K1695: 112.3
C1696: Initial | D1696: 45 to 49 | E1696: BSWN | F1696: 31/12/2011 | G1696: 115.2 | H1696: 113.4 | I1696: 111.9 | J1696: 111.8 | K1696: 112.3
C1697: Initial | D1697: 45 to 49 | E1697: BSWN | F1697: 31/12/2011 | G1697: 115.2 | H1697: 113.4 | I1697: 111.9 | J1697: 111.8 | K1697: 112.3
C1698: Initial | D1698: 45 to 49 | E1698: BSWN | F1698: 31/12/2011 | G1698: 115.2 | H1698: 113.4 | I1698: 111.9 | J1698: 111.8 | K1698: 112.3
C1699: Initial | D1699: 45 to 49 | E1699: BSWN | F1699: 31/12/2011 | G1699: 115.2 | H1699: 113.4 | I1699: 111.9 | J1699: 111.8 | K1699: 112.3
C1700: Initial | D1700: 45 to 49 | E1700: BSWN | F1700: 31/12/2011 | G1700: 115.2 | H1700: 113.4 | I1700: 111.9 | J1700: 111.8 | K1700: 112.3
C1701: Initial | D1701: 45 to 49 | E1701: BSWN | F1701: 31/12/2011 | G1701: 115.2 | H1701: 113.4 | I1701: 111.9 | J1701: 111.8 | K1701: 112.3
C1702: Initial | D1702: 45 to 49 | E1702: BSWN | F1702: 31/12/2011 | G1702: 115.2 | H1702: 113.4 | I1702: 111.9 | J1702: 111.8 | K1702: 112.3
C1703: Initial | D1703: 45 to 49 | E1703: BSWN | F1703: 31/12/2011 | G1703: 115.2 | H1703: 113.4 | I1703: 111.9 | J1703: 111.8 | K1703: 112.3
C1704: Initial | D1704: 45 to 49 | E1704: BSWN | F1704: 31/12/2011 | G1704: 115.2 | H1704: 113.4 | I1704: 111.9 | J1704: 111.8 | K1704: 112.3
C1705: Initial | D1705: 45 to 49 | E1705: BSWN | F1705: 31/12/2011 | G1705: 115.2 | H1705: 113.4 | I1705: 111.9 | J1705: 111.8 | K1705: 112.3
C1706: Initial | D1706: 45 to 49 | E1706: BSWN | F1706: 31/12/2011 | G1706: 115.2 | H1706: 113.4 | I1706: 111.9 | J1706: 111.8 | K1706: 112.3
C1707: Initial | D1707: 45 to 49 | E1707: BSWN | F1707: 31/12/2011 | G1707: 115.2 | H1707: 113.4 | I1707: 111.9 | J1707: 111.8 | K1707: 112.3
C1708: Initial | D1708: 45 to 49 | E1708: BSWN | F1708: 31/12/2011 | G1708: 115.2 | H1708: 113.4 | I1708: 111.9 | J1708: 111.8 | K1708: 112.3
C1709: Initial | D1709: 45 to 49 | E1709: BSWN | F1709: 31/12/2011 | G1709: 115.2 | H1709: 113.4 | I1709: 111.9 | J1709: 111.8 | K1709: 112.3
C1710: Initial | D1710: 45 to 49 | E1710: BSWN | F1710: 31/12/2011 | G1710: 115.2 | H1710: 113.4 | I1710: 111.9 | J1710: 111.8 | K1710: 112.3
C1711: Initial | D1711: 45 to 49 | E1711: BSWN | F1711: 31/12/2011 | G1711: 115.2 | H1711: 113.4 | I1711: 111.9 | J1711: 111.8 | K1711: 112.3
C1712: Initial | D1712: 45 to 49 | E1712: BSWN | F1712: 31/12/2011 | G1712: 115.2 | H1712: 113.4 | I1712: 111.9 | J1712: 111.8 | K1712: 112.3
C1713: Initial | D1713: 45 to 49 | E1713: BSWN | F1713: 31/12/2011 | G1713: 115.2 | H1713: 113.4 | I1713: 111.9 | J1713: 111.8 | K1713: 112.3
C1714: Initial | D1714: 45 to 49 | E1714: BSWN | F1714: 31/12/2011 | G1714: 115.2 | H1714: 113.4 | I1714: 111.9 | J1714: 111.8 | K1714: 112.3
C1715: Initial | D1715: 45 to 49 | E1715: BSWN | F1715: 31/12/2011 | G1715: 115.2 | H1715: 113.4 | I1715: 111.9 | J1715: 111.8 | K1715: 112.3
C1716: Initial | D1716: 45 to 49 | E1716: BSWN | F1716: 31/12/2011 | G1716: 115.2 | H1716: 113.4 | I1716: 111.9 | J1716: 111.8 | K1716: 112.3
C1717: Initial | D1717: 45 to 49 | E1717: BSWN | F1717: 31/12/2012 | G1717: 113.7 | H1717: 110.7 | I1717: 112.1 | J1717: 112.2 | K1717: 112.3
C1718: Initial | D1718: 45 to 49 | E1718: BSWN | F1718: 31/12/2012 | G1718: 113.7 | H1718: 110.7 | I1718: 112.1 | J1718: 112.2 | K1718: 112.3
C1719: Initial | D1719: 45 to 49 | E1719: BSWN | F1719: 31/12/2012 | G1719: 113.7 | H1719: 110.7 | I1719: 112.1 | J1719: 112.2 | K1719: 112.3
C1720: Initial | D1720: 45 to 49 | E1720: BSWN | F1720: 31/12/2012 | G1720: 113.7 | H1720: 110.7 | I1720: 112.1 | J1720: 112.2 | K1720: 112.3
C1721: Initial | D1721: 45 to 49 | E1721: BSWN | F1721: 31/12/2012 | G1721: 113.7 | H1721: 110.7 | I1721: 112.1 | J1721: 112.2 | K1721: 112.3
C1722: Initial | D1722: 45 to 49 | E1722: BSWN | F1722: 31/12/2012 | G1722: 113.7 | H1722: 110.7 | I1722: 112.1 | J1722: 112.2 | K1722: 112.3
C1723: Initial | D1723: 45 to 49 | E1723: BSWN | F1723: 31/12/2012 | G1723: 113.7 | H1723: 110.7 | I1723: 112.1 | J1723: 112.2 | K1723: 112.3
C1724: Initial | D1724: 45 to 49 | E1724: BSWN | F1724: 31/12/2012 | G1724: 113.7 | H1724: 110.7 | I1724: 112.1 | J1724: 112.2 | K1724: 112.3
C1725: Initial | D1725: 45 to 49 | E1725: BSWN | F1725: 31/12/2012 | G1725: 113.7 | H1725: 110.7 | I1725: 112.1 | J1725: 112.2 | K1725: 112.3
C1726: Initial | D1726: 45 to 49 | E1726: BSWN | F1726: 31/12/2012 | G1726: 113.7 | H1726: 110.7 | I1726: 112.1 | J1726: 112.2 | K1726: 112.3
C1727: Initial | D1727: 45 to 49 | E1727: BSWN | F1727: 31/12/2012 | G1727: 113.7 | H1727: 110.7 | I1727: 112.1 | J1727: 112.2 | K1727: 112.3
C1728: Initial | D1728: 45 to 49 | E1728: BSWN | F1728: 31/12/2012 | G1728: 113.7 | H1728: 110.7 | I1728: 112.1 | J1728: 112.2 | K1728: 112.3
C1729: Initial | D1729: 45 to 49 | E1729: BSWN | F1729: 31/12/2012 | G1729: 113.7 | H1729: 110.7 | I1729: 112.1 | J1729: 112.2 | K1729: 112.3
C1730: Initial | D1730: 45 to 49 | E1730: BSWN | F1730: 31/12/2012 | G1730: 113.7 | H1730: 110.7 | I1730: 112.1 | J1730: 112.2 | K1730: 112.3
C1731: Initial | D1731: 45 to 49 | E1731: BSWN | F1731: 31/12/2012 | G1731: 113.7 | H1731: 110.7 | I1731: 112.1 | J1731: 112.2 | K1731: 112.3
C1732: Initial | D1732: 45 to 49 | E1732: BSWN | F1732: 31/12/2012 | G1732: 113.7 | H1732: 110.7 | I1732: 112.1 | J1732: 112.2 | K1732: 112.3
C1733: Initial | D1733: 45 to 49 | E1733: BSWN | F1733: 31/12/2012 | G1733: 113.7 | H1733: 110.7 | I1733: 112.1 | J1733: 112.2 | K1733: 112.3
C1734: Initial | D1734: 45 to 49 | E1734: BSWN | F1734: 31/12/2012 | G1734: 113.7 | H1734: 110.7 | I1734: 112.1 | J1734: 112.2 | K1734: 112.3
C1735: Initial | D1735: 45 to 49 | E1735: BSWN | F1735: 31/12/2012 | G1735: 113.7 | H1735: 110.7 | I1735: 112.1 | J1735: 112.2 | K1735: 112.3
C1736: Initial | D1736: 45 to 49 | E1736: BSWN | F1736: 31/12/2012 | G1736: 113.7 | H1736: 110.7 | I1736: 112.1 | J1736: 112.2 | K1736: 112.3
C1737: Initial | D1737: 45 to 49 | E1737: BSWN | F1737: 31/12/2012 | G1737: 113.7 | H1737: 110.7 | I1737: 112.1 | J1737: 112.2 | K1737: 112.3
C1738: Initial | D1738: 45 to 49 | E1738: BSWN | F1738: 31/12/2012 | G1738: 113.7 | H1738: 110.7 | I1738: 112.1 | J1738: 112.2 | K1738: 112.3
C1739: Initial | D1739: 45 to 49 | E1739: BSWN | F1739: 31/12/2012 | G1739: 113.7 | H1739: 110.7 | I1739: 112.1 | J1739: 112.2 | K1739: 112.3
C1740: Initial | D1740: 45 to 49 | E1740: BSWN | F1740: 31/12/2012 | G1740: 113.7 | H1740: 110.7 | I1740: 112.1 | J1740: 112.2 | K1740: 112.3
C1741: Initial | D1741: 45 to 49 | E1741: BSWN | F1741: 31/12/2012 | G1741: 113.7 | H1741: 110.7 | I1741: 112.1 | J1741: 112.2 | K1741: 112.3
C1742: Initial | D1742: 45 to 49 | E1742: BSWN | F1742: 31/12/2013 | G1742: 113.5 | H1742: 110.7 | I1742: 111.1 | J1742: 111.1 | K1742: 111.3
C1743: Initial | D1743: 45 to 49 | E1743: BSWN | F1743: 31/12/2013 | G1743: 113.5 | H1743: 110.7 | I1743: 111.1 | J1743: 111.1 | K1743: 111.3
C1744: Initial | D1744: 45 to 49 | E1744: BSWN | F1744: 31/12/2013 | G1744: 113.5 | H1744: 110.7 | I1744: 111.1 | J1744: 111.1 | K1744: 111.3
C1745: Initial | D1745: 45 to 49 | E1745: BSWN | F1745: 31/12/2013 | G1745: 113.5 | H1745: 110.7 | I1745: 111.1 | J1745: 111.1 | K1745: 111.3
C1746: Initial | D1746: 45 to 49 | E1746: BSWN | F1746: 31/12/2013 | G1746: 113.5 | H1746: 110.7 | I1746: 111.1 | J1746: 111.1 | K1746: 111.3
C1747: Initial | D1747: 45 to 49 | E1747: BSWN | F1747: 31/12/2013 | G1747: 113.5 | H1747: 110.7 | I1747: 111.1 | J1747: 111.1 | K1747: 111.3
C1748: Initial | D1748: 45 to 49 | E1748: BSWN | F1748: 31/12/2013 | G1748: 113.5 | H1748: 110.7 | I1748: 111.1 | J1748: 111.1 | K1748: 111.3
C1749: Initial | D1749: 45 to 49 | E1749: BSWN | F1749: 31/12/2013 | G1749: 113.5 | H1749: 110.7 | I1749: 111.1 | J1749: 111.1 | K1749: 111.3
C1750: Initial | D1750: 45 to 49 | E1750: BSWN | F1750: 31/12/2013 | G1750: 113.5 | H1750: 110.7 | I1750: 111.1 | J1750: 111.1 | K1750: 111.3
C1751: Initial | D1751: 45 to 49 | E1751: BSWN | F1751: 31/12/2013 | G1751: 113.5 | H1751: 110.7 | I1751: 111.1 | J1751: 111.1 | K1751: 111.3
C1752: Initial | D1752: 45 to 49 | E1752: BSWN | F1752: 31/12/2013 | G1752: 113.5 | H1752: 110.7 | I1752: 111.1 | J1752: 111.1 | K1752: 111.3
C1753: Initial | D1753: 45 to 49 | E1753: BSWN | F1753: 31/12/2013 | G1753: 113.5 | H1753: 110.7 | I1753: 111.1 | J1753: 111.1 | K1753: 111.3
C1754: Initial | D1754: 45 to 49 | E1754: BSWN | F1754: 31/12/2013 | G1754: 113.5 | H1754: 110.7 | I1754: 111.1 | J1754: 111.1 | K1754: 111.3
C1755: Initial | D1755: 45 to 49 | E1755: BSWN | F1755: 31/12/2013 | G1755: 113.5 | H1755: 110.7 | I1755: 111.1 | J1755: 111.1 | K1755: 111.3
C1756: Initial | D1756: 45 to 49 | E1756: BSWN | F1756: 31/12/2013 | G1756: 113.5 | H1756: 110.7 | I1756: 111.1 | J1756: 111.1 | K1756: 111.3
C1757: Initial | D1757: 45 to 49 | E1757: BSWN | F1757: 31/12/2013 | G1757: 113.5 | H1757: 110.7 | I1757: 111.1 | J1757: 111.1 | K1757: 111.3
C1758: Initial | D1758: 45 to 49 | E1758: BSWN | F1758: 31/12/2013 | G1758: 113.5 | H1758: 110.7 | I1758: 111.1 | J1758: 111.1 | K1758: 111.3
... 2742 more rows

Sheet technical reference
A2: Technical Reference | U2: Return to Index
D6: BreastScreen Aotearoa (BSA) has offered government funded biennial mammography screening for all NZ women aged 50-64 years since 1999. In July 2004 the target age group was extended to include women aged 45-49 years and 65-69 years.
C9: Indicator Targets
D11: Targets are provided for all indicator results but it should be noted that they currently only apply to women aged 50-69 years due to a lack of trial and screening service data for women under 50 years. Work is underway on the development of indicators for the 45-49 year old age group and this is expected to completed by June 2018.
C14: BSA Lead Providers
D16: Lead Provider | G16: Abbreviation
D17: BreastScreen Auckland Limited | G17: BSAL
D18: BreastScreen Counties Manukau | G18: BSCM
D19: BreastScreen Waitemata and Northland | G19: BSWN
D20: BreastScreen Midland | G20: BSM
D21: BreastScreen Coast to Coast | G21: BSCC
D22: BreastScreen Central | G22: BSC
D23: BreastScreen South Limited | G23: BSSL
D24: BreastScreen Otago Southland* | G24: BSOS
D26: *Was BreastScreen HealthCare (BSHC) until 2014
C29: Data source and extraction date
D31: The screening and treatment data used in this report was extracted from the national BreastScreen Aotearoa database on during March 2017. This report presents data for the period January 2009 to June 2016 for all BreastScreen Aotearoa screening and assessment indicators, and data for January 2009 to June 2015 for all treatment indicators (treatment indicators are identified by a ‘t’ at the end of the indicator code).
C34: Population projections
D36: The denominators used for calculating coverage were derived from projected resident populations provided by Statistics New Zealand. The projections are based on the 2013 New Zealand Census, assuming medium fertility, medium mortality, medium inter-ethnic mobility and medium migration assumptions. The projections used for calculating coverage for the latest reporting period are provided on the population tab.
C39: Ethnicity
D41: For both women screened and in the denominator, women have been prioritised to a single ethnicity using the following priority order: Māori, Pacific, Other. This means that if a woman chooses more than one category, and one of these is Māori, she is counted as Māori.
C44: Confidence Intervals (CI)
D46: A confidence interval is a range of values that describes the uncertainty surrounding an estimate. Confidence intervals are one way to represent how 'good' an estimate is; the larger a confidence interval, the more caution is required when using the estimate. When presenting percentages this report uses 95% confidence intervals calculated using the exact binomial method. When presenting ratios this report uses 95% confidence intervals calculated using the exact biomial, Poisson , and Monte Carlo methods.

Sheet 1.a.1
A2: 1.a.1 | C2: =INDEX(reference!B2:B99, MATCH(A2, reference!$A$2:$A$99, 0)) -> Overall coverage of eligible women | AA2: Return to Index
C5: Description: | D5: =INDEX(reference!$J$2:$J$99, MATCH($A$2, reference!$A$2:$A$99, 0)) -> The number of women screened as a percentage of women eligible.
C7: Target: | D7: =INDEX(reference!$I$2:$I$99, MATCH($A$2, reference!$A$2:$A$99, 0)) -> >70% of eligible women receive a screen within the most recent 24 month period
E33: Māori | K33: Pacific | Q33: Non-Māori | U33: Non-Māori Non-Pacific | Y33: All
E34: =INDEX(reference!$C$2:$C$99, MATCH($A$2, reference!$A$2:$A$99, 0)) -> Women Screened | F34: =INDEX(reference!$D$2:$D$99, MATCH($A$2, reference!$A$2:$A$99, 0)) -> Eligible Women | G34: =INDEX(reference!$E$2:$E$99, MATCH($A$2, reference!$A$2:$A$99, 0)) -> % Screened (95% CI) | I34: Māori / Non-Māori Ratio | K34: =INDEX(reference!$C$2:$C$99, MATCH($A$2, reference!$A$2:$A$99, 0)) -> Women Screened | L34: =INDEX(reference!$D$2:$D$99, MATCH($A$2, reference!$A$2:$A$99, 0)) -> Eligible Women | M34: =INDEX(reference!$E$2:$E$99, MATCH($A$2, reference!$A$2:$A$99, 0)) -> % Screened (95% CI) | O34: Pacific / Non-Māori Non-Pacific Ratio | Q34: =INDEX(reference!$C$2:$C$99, MATCH($A$2, reference!$A$2:$A$99, 0)) -> Women Screened | R34: =INDEX(reference!$D$2:$D$99, MATCH($A$2, reference!$A$2:$A$99, 0)) -> Eligible Women | S34: =INDEX(reference!$E$2:$E$99, MATCH($A$2, reference!$A$2:$A$99, 0)) -> % Screened (95% CI) | U34: =INDEX(reference!$C$2:$C$99, MATCH($A$2, reference!$A$2:$A$99, 0)) -> Women Screened | V34: =INDEX(reference!$D$2:$D$99, MATCH($A$2, reference!$A$2:$A$99, 0)) -> Eligible Women | W34: =INDEX(reference!$E$2:$E$99, MATCH($A$2, reference!$A$2:$A$99, 0)) -> % Screened (95% CI) | Y34: =INDEX(reference!$C$2:$C$99, MATCH($A$2, reference!$A$2:$A$99, 0)) -> Women Screened | Z34: =INDEX(reference!$D$2:$D$99, MATCH($A$2, reference!$A$2:$A$99, 0)) -> Eligible Women | AA34: =INDEX(reference!$E$2:$E$99, MATCH($A$2, reference!$A$2:$A$99, 0)) -> % Screened (95% CI)
B35: 45 to 49 | C35: none | D35: BSWN | E35: 2362 | F35: 3420 | G35: 69.0643 | H35: (67.5, 70.6) | I35: 1.019 | J35: (0.99, 1.04) | K35: 999 | L35: 1410 | M35: 70.8511 | N35: (68.4, 73.2) | O35: 1.048 | P35: (1.01, 1.08) | Q35: 16597 | R35: 24480 | S35: 67.7982 | T35: (67.2, 68.4) | U35: 15598 | V35: 23070 | W35: 67.6116 | X35: (67.0, 68.2) | Y35: 18959 | Z35: 27900 | AA35: 67.9534 | AB35: (67.4, 68.5)
B36: 45 to 49 | C36: none | D36: BSCM | E36: 1669 | F36: 2580 | G36: 64.6899 | H36: (62.8, 66.5) | I36: 0.893 | J36: (0.87, 0.92) | K36: 2605 | L36: 3500 | M36: 74.4286 | N36: (72.9, 75.9) | O36: 1.035 | P36: (1.01, 1.06) | Q36: 11676 | R36: 16120 | S36: 72.4318 | T36: (71.7, 73.1) | U36: 9071 | V36: 12620 | W36: 71.878 | X36: (71.1, 72.7) | Y36: 13345 | Z36: 18700 | AA36: 71.3636 | AB36: (70.7, 72.0)
B37: 45 to 49 | C37: none | D37: BSAL | E37: 787 | F37: 1240 | G37: 63.4677 | H37: (60.7, 66.2) | I37: 0.934 | J37: (0.90, 0.98) | K37: 1345 | L37: 1810 | M37: 74.3094 | N37: (72.2, 76.3) | O37: 1.108 | P37: (1.08, 1.14) | Q37: 10636 | R37: 15660 | S37: 67.9183 | T37: (67.2, 68.6) | U37: 9291 | V37: 13850 | W37: 67.083 | X37: (66.3, 67.9) | Y37: 11423 | Z37: 16900 | AA37: 67.5917 | AB37: (66.9, 68.3)
B38: 45 to 49 | C38: none | D38: BSM | E38: 2958 | F38: 5270 | G38: 56.129 | H38: (54.8, 57.5) | I38: 0.803 | J38: (0.78, 0.82) | K38: 292 | L38: 500 | M38: 58.4 | N38: (53.9, 62.8) | O38: 0.832 | P38: (0.77, 0.90) | Q38: 13703 | R38: 19600 | S38: 69.9133 | T38: (69.3, 70.6) | U38: 13411 | V38: 19100 | W38: 70.2147 | X38: (69.6, 70.9) | Y38: 16661 | Z38: 24870 | AA38: 66.9924 | AB38: (66.4, 67.6)
B39: 45 to 49 | C39: none | D39: BSCC | E39: 2452 | F39: 4000 | G39: 61.3 | H39: (59.8, 62.8) | I39: 0.833 | J39: (0.81, 0.85) | K39: 236 | L39: 370 | M39: 63.7838 | N39: (58.7, 68.7) | O39: 0.864 | P39: (0.80, 0.93) | Q39: 10945 | R39: 14875 | S39: 73.5798 | T39: (72.9, 74.3) | U39: 10709 | V39: 14505 | W39: 73.8297 | X39: (73.1, 74.5) | Y39: 13397 | Z39: 18875 | AA39: 70.9775 | AB39: (70.3, 71.6)
B40: 45 to 49 | C40: none | D40: BSC | E40: 1222 | F40: 2060 | G40: 59.3204 | H40: (57.2, 61.5) | I40: 0.866 | J40: (0.83, 0.90) | K40: 654 | L40: 1125 | M40: 58.1333 | N40: (55.2, 61.0) | O40: 0.839 | P40: (0.80, 0.88) | Q40: 10923 | R40: 15945 | S40: 68.5042 | T40: (67.8, 69.2) | U40: 10269 | V40: 14820 | W40: 69.2915 | X40: (68.5, 70.0) | Y40: 12145 | Z40: 18005 | AA40: 67.4535 | AB40: (66.8, 68.1)
B41: 45 to 49 | C41: none | D41: BSSL | E41: 1542 | F41: 2070 | G41: 74.4928 | H41: (72.6, 76.4) | I41: 0.88 | J41: (0.86, 0.90) | K41: 263 | L41: 420 | M41: 62.619 | N41: (57.8, 67.3) | O41: 0.736 | P41: (0.68, 0.79) | Q41: 21818 | R41: 25760 | S41: 84.6972 | T41: (84.3, 85.1) | U41: 21555 | V41: 25340 | W41: 85.0631 | X41: (84.6, 85.5) | Y41: 23360 | Z41: 27830 | AA41: 83.9382 | AB41: (83.5, 84.4)
B42: 45 to 49 | C42: none | D42: BSOS | E42: 570 | F42: 910 | G42: 62.6374 | H42: (59.4, 65.8) | I42: 0.876 | J42: (0.83, 0.92) | K42: 81 | L42: 140 | M42: 57.8571 | N42: (49.2, 66.1) | O42: 0.807 | P42: (0.70, 0.93) | Q42: 7024 | R42: 9820 | S42: 71.5275 | T42: (70.6, 72.4) | U42: 6943 | V42: 9680 | W42: 71.7252 | X42: (70.8, 72.6) | Y42: 7594 | Z42: 10730 | AA42: 70.7735 | AB42: (69.9, 71.6)
B43: 45 to 49 | C43: none | D43: Total | E43: 13562 | F43: 21550 | G43: 62.9327 | H43: (62.3, 63.6) | I43: 0.866 | J43: (0.86, 0.88) | K43: 6475 | L43: 9275 | M43: 69.8113 | N43: (68.9, 70.7) | O43: 0.959 | P43: (0.94, 0.97) | Q43: 103322 | R43: 142260 | S43: 72.629 | T43: (72.4, 72.9) | U43: 96847 | V43: 132985 | W43: 72.8255 | X43: (72.6, 73.1) | Y43: 116884 | Z43: 163810 | AA43: 71.3534 | AB43: (71.1, 71.6)
B44: 50 to 69 | C44: none | D44: BSWN | E44: 6718 | F44: 10010 | G44: 67.1129 | H44: (66.2, 68.0) | I44: 0.977 | J44: (0.96, 0.99) | K44: 2722 | L44: 3560 | M44: 76.4607 | N44: (75.0, 77.8) | O44: 1.119 | P44: (1.10, 1.14) | Q44: 55925 | R44: 81440 | S44: 68.6702 | T44: (68.4, 69.0) | U44: 53203 | V44: 77880 | W44: 68.3141 | X44: (68.0, 68.6) | Y44: 62643 | Z44: 91450 | AA44: 68.4997 | AB44: (68.2, 68.8)
B45: 50 to 69 | C45: none | D45: BSCM | E45: 4182 | F45: 6270 | G45: 66.6986 | H45: (65.5, 67.9) | I45: 0.966 | J45: (0.95, 0.98) | K45: 6395 | L45: 8280 | M45: 77.2343 | N45: (76.3, 78.1) | O45: 1.146 | P45: (1.13, 1.16) | Q45: 34217 | R45: 49560 | S45: 69.0416 | T45: (68.6, 69.4) | U45: 27822 | V45: 41280 | W45: 67.3983 | X45: (66.9, 67.9) | Y45: 38399 | Z45: 55830 | AA45: 68.7784 | AB45: (68.4, 69.2)
B46: 50 to 69 | C46: none | D46: BSAL | E46: 1983 | F46: 3430 | G46: 57.8134 | H46: (56.1, 59.5) | I46: 0.874 | J46: (0.85, 0.90) | K46: 3255 | L46: 4520 | M46: 72.0133 | N46: (70.7, 73.3) | O46: 1.099 | P46: (1.08, 1.12) | Q46: 31605 | R46: 47790 | S46: 66.1331 | T46: (65.7, 66.6) | U46: 28350 | V46: 43270 | W46: 65.5188 | X46: (65.1, 66.0) | Y46: 33588 | Z46: 51220 | AA46: 65.5759 | AB46: (65.2, 66.0)
B47: 50 to 69 | C47: none | D47: BSM | E47: 9350 | F47: 15560 | G47: 60.09 | H47: (59.3, 60.9) | I47: 0.867 | J47: (0.85, 0.88) | K47: 758 | L47: 1220 | M47: 62.1311 | N47: (59.3, 64.9) | O47: 0.895 | P47: (0.86, 0.94) | Q47: 51819 | R47: 74750 | S47: 69.3231 | T47: (69.0, 69.7) | U47: 51061 | V47: 73530 | W47: 69.4424 | X47: (69.1, 69.8) | Y47: 61169 | Z47: 90310 | AA47: 67.7323 | AB47: (67.4, 68.0)
B48: 50 to 69 | C48: none | D48: BSCC | E48: 7612 | F48: 11410 | G48: 66.7134 | H48: (65.8, 67.6) | I48: 0.884 | J48: (0.87, 0.90) | K48: 654 | L48: 1020 | M48: 64.1176 | N48: (61.1, 67.1) | O48: 0.847 | P48: (0.81, 0.89) | Q48: 46162 | R48: 61145 | S48: 75.496 | T48: (75.2, 75.8) | U48: 45508 | V48: 60125 | W48: 75.689 | X48: (75.3, 76.0) | Y48: 53774 | Z48: 72555 | AA48: 74.1148 | AB48: (73.8, 74.4)
B49: 50 to 69 | C49: none | D49: BSC | E49: 3498 | F49: 5170 | G49: 67.6596 | H49: (66.4, 68.9) | I49: 0.911 | J49: (0.89, 0.93) | K49: 1939 | L49: 2840 | M49: 68.2746 | N49: (66.5, 70.0) | O49: 0.915 | P49: (0.89, 0.94) | Q49: 38928 | R49: 52420 | S49: 74.2617 | T49: (73.9, 74.6) | U49: 36989 | V49: 49580 | W49: 74.6047 | X49: (74.2, 75.0) | Y49: 42426 | Z49: 57590 | AA49: 73.669 | AB49: (73.3, 74.0)
B50: 50 to 69 | C50: none | D50: BSSL | E50: 3715 | F50: 5270 | G50: 70.4934 | H50: (69.2, 71.7) | I50: 0.904 | J50: (0.89, 0.92) | K50: 629 | L50: 1005 | M50: 62.5871 | N50: (59.5, 65.6) | O50: 0.801 | P50: (0.76, 0.84) | Q50: 73481 | R50: 94270 | S50: 77.9474 | T50: (77.7, 78.2) | U50: 72852 | V50: 93265 | W50: 78.1129 | X50: (77.8, 78.4) | Y50: 77196 | Z50: 99540 | AA50: 77.5527 | AB50: (77.3, 77.8)
B51: 50 to 69 | C51: none | D51: BSOS | E51: 1396 | F51: 2190 | G51: 63.7443 | H51: (61.7, 65.8) | I51: 0.854 | J51: (0.83, 0.88) | K51: 181 | L51: 310 | M51: 58.3871 | N51: (52.7, 63.9) | O51: 0.781 | P51: (0.71, 0.86) | Q51: 27859 | R51: 37330 | S51: 74.629 | T51: (74.2, 75.1) | U51: 27678 | V51: 37020 | W51: 74.765 | X51: (74.3, 75.2) | Y51: 29255 | Z51: 39520 | AA51: 74.0258 | AB51: (73.6, 74.5)
B52: 50 to 69 | C52: none | D52: Total | E52: 38454 | F52: 59310 | G52: 64.8356 | H52: (64.4, 65.2) | I52: 0.898 | J52: (0.89, 0.90) | K52: 16533 | L52: 22755 | M52: 72.6566 | N52: (72.1, 73.2) | O52: 1.007 | P52: (1.00, 1.01) | Q52: 359996 | R52: 498705 | S52: 72.1862 | T52: (72.1, 72.3) | U52: 343463 | V52: 475950 | W52: 72.1637 | X52: (72.0, 72.3) | Y52: 398450 | Z52: 558015 | AA52: 71.4049 | AB52: (71.3, 71.5)
C201: ="Figure " & A2 & ".1, " & C204 & ", " & D204 & IF(E204 = "None", "", ", " & E204) & ", Two Years to Time Period" -> Figure 1.a.1.1, Total, 50 to 69, Two Years to Time Period
C202: =INDEX(reference!$H$2:$H$99, MATCH($A$2, reference!$A$2:$A$99, 0)) -> % Screened
C204: =INDEX(C206:C214, C205) -> Total | D204: =INDEX(D206:D214, D205) -> 50 to 69 | E204: None
C205: 9 | D205: 2 | E205: 1
B206: 1 | C206: BSWN | D206: 45 to 49 | E206: =IFERROR(INDEX('reference - splits'!$C$2:$C$72, MATCH($A$2 & " - Split " & B206, 'reference - splits'!$B$2:$B$72, 0)), "") -> None
B207: 2 | C207: BSCM | D207: 50 to 69 | E207: =IFERROR(INDEX('reference - splits'!$C$2:$C$72, MATCH($A$2 & " - Split " & B207, 'reference - splits'!$B$2:$B$72, 0)), "") -> 
B208: 3 | C208: BSAL | E208: =IFERROR(INDEX('reference - splits'!$C$2:$C$72, MATCH($A$2 & " - Split " & B208, 'reference - splits'!$B$2:$B$72, 0)), "") -> 
B209: 4 | C209: BSM | E209: =IFERROR(INDEX('reference - splits'!$C$2:$C$72, MATCH($A$2 & " - Split " & B209, 'reference - splits'!$B$2:$B$72, 0)), "") -> 
B210: 5 | C210: BSCC | E210: =IFERROR(INDEX('reference - splits'!$C$2:$C$72, MATCH($A$2 & " - Split " & B210, 'reference - splits'!$B$2:$B$72, 0)), "") -> 
B211: 6 | C211: BSC | E211: =IFERROR(INDEX('reference - splits'!$C$2:$C$72, MATCH($A$2 & " - Split " & B211, 'reference - splits'!$B$2:$B$72, 0)), "") -> 
B212: 7 | C212: BSSL | E212: =IFERROR(INDEX('reference - splits'!$C$2:$C$72, MATCH($A$2 & " - Split " & B212, 'reference - splits'!$B$2:$B$72, 0)), "") -> 
B213: 8 | C213: BSOS | E213: =IFERROR(INDEX('reference - splits'!$C$2:$C$72, MATCH($A$2 & " - Split " & B213, 'reference - splits'!$B$2:$B$72, 0)), "") -> 
B214: 9 | C214: Total | E214: =IFERROR(INDEX('reference - splits'!$C$2:$C$72, MATCH($A$2 & " - Split " & B214, 'reference - splits'!$B$2:$B$72, 0)), "") -> 
C216: Visible | G216: TRUE | H216: TRUE | I216: FALSE | J216: FALSE | K216: TRUE | L216: TRUE | M216: =$L$216 -> TRUE | N216: =$L$216 -> TRUE | O216: TRUE | P216: TRUE | Q216: TRUE | R216: TRUE | S216: TRUE | T216: TRUE | U216: TRUE
C218: split | D218: age_group | E218: lead_provider | F218: time_period | G218: Māori | H218: Pacific | I218: Non-Māori | J218: Non-Māori Non-Pacific | K218: All | L218: lci_m | M218: lci_p | N218: lci_nm | O218: lci_nmnp | P218: lci_a | Q218: uci_m | R218: uci_p | S218: uci_nm | T218: uci_nmnp | U218: uci_a | V218: target bottom | W218: target top
C219: =$E$204 -> None | D219: =$D$204 -> 50 to 69 | E219: =$C$204 -> Total | F219: 2011-12-31 | G219: =IF(G$216, SUMIFS(G$232:G$681, $C$232:$C$681, $C219, $D$232:$D$681, $D219, $E$232:$E$681, $E219, $F$232:$F$681, $F219), #N/A) -> 62.8045 | H219: =IF(H$216, SUMIFS(H$232:H$681, $C$232:$C$681, $C219, $D$232:$D$681, $D219, $E$232:$E$681, $E219, $F$232:$F$681, $F219), #N/A) -> 69.8798 | K219: 69.9604 | L219: 0.4352 | M219: 0.6616 | N219: 0.1339 | O219: 0.1368 | P219: 0.1282 | Q219: 0.4337 | R219: 0.6554 | S219: 0.1337 | T219: 0.1365 | U219: 0.128 | V219: =IF(LEFT($D$204, 2) = "50", INDEX('reference - splits'!$E$2:$E$72, MATCH($A$2 & " - " & $E$204, 'reference - splits'!$D$2:$D$72, 0)), 0) -> 70 | W219: =IF(LEFT($D$204, 2) = "50", INDEX('reference - splits'!$F$2:$F$72, MATCH($A$2 & " - " & $E$204, 'reference - splits'!$D$2:$D$72, 0)) - V219, 0) -> 30
C220: =$E$204 -> None | D220: 50 to 69 | E220: Total | F220: 2012-06-30 | G220: =IF(G$216, SUMIFS(G$232:G$681, $C$232:$C$681, $C220, $D$232:$D$681, $D220, $E$232:$E$681, $E220, $F$232:$F$681, $F220), #N/A) -> 63.4033 | H220: 70.9271 | K220: 70.1058 | L220: 0.4281 | M220: 0.6481 | N220: 0.1329 | O220: 0.1359 | P220: 0.1272 | Q220: 0.4266 | R220: 0.6417 | S220: 0.1327 | T220: 0.1356 | U220: 0.1269 | V220: =IF(LEFT($D$204, 2) = "50", INDEX('reference - splits'!$E$2:$E$72, MATCH($A$2 & " - " & $E$204, 'reference - splits'!$D$2:$D$72, 0)), 0) -> 70 | W220: =IF(LEFT($D$204, 2) = "50", INDEX('reference - splits'!$F$2:$F$72, MATCH($A$2 & " - " & $E$204, 'reference - splits'!$D$2:$D$72, 0)) - V220, 0) -> 30
C221: None | D221: 50 to 69 | E221: Total | F221: 2012-12-31 | G221: 64.0163 | H221: 72.4547 | K221: 70.845 | L221: 0.4208 | M221: 0.6317 | N221: 0.1311 | O221: 0.134 | P221: 0.1253 | Q221: 0.4191 | R221: 0.625 | S221: 0.1308 | T221: 0.1338 | U221: 0.1252 | V221: =IF(LEFT($D$204, 2) = "50", INDEX('reference - splits'!$E$2:$E$72, MATCH($A$2 & " - " & $E$204, 'reference - splits'!$D$2:$D$72, 0)), 0) -> 70 | W221: =IF(LEFT($D$204, 2) = "50", INDEX('reference - splits'!$F$2:$F$72, MATCH($A$2 & " - " & $E$204, 'reference - splits'!$D$2:$D$72, 0)) - V221, 0) -> 30
C222: None | D222: 50 to 69 | E222: Total | F222: 2013-06-30 | G222: 64.0386 | H222: 73.6309 | K222: 70.5816 | L222: 0.415 | M222: 0.6175 | N222: 0.1307 | O222: 0.1338 | P222: 0.1248 | Q222: 0.4134 | R222: 0.6106 | S222: 0.1304 | T222: 0.1334 | U222: 0.1246 | V222: =IF(LEFT($D$204, 2) = "50", INDEX('reference - splits'!$E$2:$E$72, MATCH($A$2 & " - " & $E$204, 'reference - splits'!$D$2:$D$72, 0)), 0) -> 70 | W222: =IF(LEFT($D$204, 2) = "50", INDEX('reference - splits'!$F$2:$F$72, MATCH($A$2 & " - " & $E$204, 'reference - splits'!$D$2:$D$72, 0)) - V222, 0) -> 30
C223: None | D223: 50 to 69 | E223: Total | F223: 2013-12-31 | G223: 64.6278 | H223: 74.0386 | K223: 71.2332 | L223: 0.408 | M223: 0.606 | N223: 0.1288 | O223: 0.1319 | P223: 0.123 | Q223: 0.4064 | R223: 0.5993 | S223: 0.1286 | T223: 0.1316 | U223: 0.1228 | V223: =IF(LEFT($D$204, 2) = "50", INDEX('reference - splits'!$E$2:$E$72, MATCH($A$2 & " - " & $E$204, 'reference - splits'!$D$2:$D$72, 0)), 0) -> 70 | W223: =IF(LEFT($D$204, 2) = "50", INDEX('reference - splits'!$F$2:$F$72, MATCH($A$2 & " - " & $E$204, 'reference - splits'!$D$2:$D$72, 0)) - V223, 0) -> 30
C224: None | D224: 50 to 69 | E224: Total | F224: 2014-06-30 | G224: 64.4689 | H224: 74.1383 | K224: 71.3032 | L224: 0.4032 | M224: 0.5974 | N224: 0.1278 | O224: 0.1308 | P224: 0.122 | Q224: 0.4016 | R224: 0.5908 | S224: 0.1275 | T224: 0.1306 | U224: 0.1217 | V224: =IF(LEFT($D$204, 2) = "50", INDEX('reference - splits'!$E$2:$E$72, MATCH($A$2 & " - " & $E$204, 'reference - splits'!$D$2:$D$72, 0)), 0) -> 70 | W224: =IF(LEFT($D$204, 2) = "50", INDEX('reference - splits'!$F$2:$F$72, MATCH($A$2 & " - " & $E$204, 'reference - splits'!$D$2:$D$72, 0)) - V224, 0) -> 30
C225: None | D225: 50 to 69 | E225: Total | F225: 2014-12-31 | G225: 64.9521 | H225: 74.2936 | K225: 71.8087 | L225: 0.3976 | M225: 0.5905 | N225: 0.1263 | O225: 0.1293 | P225: 0.1206 | Q225: 0.396 | R225: 0.5839 | S225: 0.126 | T225: 0.1291 | U225: 0.1204 | V225: =IF(LEFT($D$204, 2) = "50", INDEX('reference - splits'!$E$2:$E$72, MATCH($A$2 & " - " & $E$204, 'reference - splits'!$D$2:$D$72, 0)), 0) -> 70 | W225: =IF(LEFT($D$204, 2) = "50", INDEX('reference - splits'!$F$2:$F$72, MATCH($A$2 & " - " & $E$204, 'reference - splits'!$D$2:$D$72, 0)) - V225, 0) -> 30
C226: None | D226: 50 to 69 | E226: Total | F226: 2015-06-30 | G226: 64.7043 | H226: 73.4783 | K226: 71.5296 | L226: 0.3939 | M226: 0.5908 | N226: 0.1259 | O226: 0.129 | P226: 0.1202 | Q226: 0.3925 | R226: 0.5844 | S226: 0.1257 | T226: 0.1287 | U226: 0.1199 | V226: =IF(LEFT($D$204, 2) = "50", INDEX('reference - splits'!$E$2:$E$72, MATCH($A$2 & " - " & $E$204, 'reference - splits'!$D$2:$D$72, 0)), 0) -> 70 | W226: =IF(LEFT($D$204, 2) = "50", INDEX('reference - splits'!$F$2:$F$72, MATCH($A$2 & " - " & $E$204, 'reference - splits'!$D$2:$D$72, 0)) - V226, 0) -> 30
C227: None | D227: 50 to 69 | E227: Total | F227: 2015-12-31 | G227: 65.2003 | H227: 73.961 | K227: 71.7559 | L227: 0.3887 | M227: 0.5813 | N227: 0.1248 | O227: 0.128 | P227: 0.1191 | Q227: 0.3873 | R227: 0.575 | S227: 0.1246 | T227: 0.1276 | U227: 0.1188 | V227: =IF(LEFT($D$204, 2) = "50", INDEX('reference - splits'!$E$2:$E$72, MATCH($A$2 & " - " & $E$204, 'reference - splits'!$D$2:$D$72, 0)), 0) -> 70 | W227: =IF(LEFT($D$204, 2) = "50", INDEX('reference - splits'!$F$2:$F$72, MATCH($A$2 & " - " & $E$204, 'reference - splits'!$D$2:$D$72, 0)) - V227, 0) -> 30
C228: None | D228: 50 to 69 | E228: Total | F228: 2016-06-30 | G228: 64.8356 | H228: 72.6566 | K228: 71.4049 | L228: 0.3858 | M228: 0.5842 | N228: 0.1246 | O228: 0.1276 | P228: 0.1188 | Q228: 0.3844 | R228: 0.5784 | S228: 0.1243 | T228: 0.1273 | U228: 0.1185 | V228: =IF(LEFT($D$204, 2) = "50", INDEX('reference - splits'!$E$2:$E$72, MATCH($A$2 & " - " & $E$204, 'reference - splits'!$D$2:$D$72, 0)), 0) -> 70 | W228: =IF(LEFT($D$204, 2) = "50", INDEX('reference - splits'!$F$2:$F$72, MATCH($A$2 & " - " & $E$204, 'reference - splits'!$D$2:$D$72, 0)) - V228, 0) -> 30
C231: split | D231: age_group | E231: lead_provider | F231: time_period | G231: est_m | H231: est_p | I231: est_nm | J231: est_nmnp | K231: est_a | L231: lci_m | M231: lci_p | N231: lci_nm | O231: lci_nmnp | P231: lci_a | Q231: uci_m | R231: uci_p | S231: uci_nm | T231: uci_nmnp | U231: uci_a
C232: none | D232: 45 to 49 | E232: BSAL | F232: 30/06/2012 | G232: 62.0833 | H232: 72.5731 | I232: 67.2362 | J232: 66.5721 | K232: 66.8649 | L232: 2.8137 | M232: 2.1814 | N232: 0.7465 | O232: 0.7959 | P232: 0.7209 | Q232: 2.7543 | R232: 2.1036 | S232: 0.7401 | T232: 0.7888 | U232: 0.7149
C233: none | D233: 45 to 49 | E233: BSAL | F233: 30/06/2013 | G233: 64.8305 | H233: 78.6441 | I233: 69.5455 | J233: 68.3639 | K233: 69.2099 | L233: 2.8011 | M233: 1.9842 | N233: 0.7338 | O233: 0.7883 | P233: 0.709 | Q233: 2.727 | R233: 1.8887 | S233: 0.7263 | T233: 0.7804 | U233: 0.7022
C234: none | D234: 45 to 49 | E234: BSAL | F234: 30/06/2014 | G234: 66.2393 | H234: 79.071 | I234: 72.6662 | J234: 71.7987 | K234: 72.2108 | L234: 2.7906 | M234: 1.937 | N234: 0.7127 | O234: 0.7671 | P234: 0.6902 | Q234: 2.7088 | R234: 1.8434 | S234: 0.7042 | T234: 0.7577 | U234: 0.6824
C235: none | D235: 45 to 49 | E235: BSAL | F235: 30/06/2015 | G235: 63.1405 | H235: 74.5946 | I235: 71.3598 | J235: 70.9172 | K235: 70.76 | L235: 2.7889 | M235: 2.0488 | N235: 0.722 | O235: 0.7737 | P235: 0.699 | Q235: 2.7248 | R235: 1.9705 | S235: 0.7139 | T235: 0.7646 | U235: 0.6916
C236: none | D236: 45 to 49 | E236: BSAL | F236: 30/06/2016 | G236: 63.4677 | H236: 74.3094 | I236: 67.9183 | J236: 67.083 | K236: 67.5917 | L236: 2.7498 | M236: 2.0789 | N236: 0.7376 | O236: 0.7897 | P236: 0.7116 | Q236: 2.6859 | R236: 1.9998 | S236: 0.7309 | T236: 0.7826 | U236: 0.7055
C237: none | D237: 45 to 49 | E237: BSAL | F237: 31/12/2011 | G237: 64.4351 | H237: 74.4048 | I237: 66.6363 | J237: 65.6841 | K237: 66.4777 | L237: 2.7889 | M237: 2.1581 | N237: 0.7514 | O237: 0.8018 | P237: 0.7244 | Q237: 2.7177 | R237: 2.0724 | S237: 0.7451 | T237: 0.7951 | U237: 0.7186
C238: none | D238: 45 to 49 | E238: BSAL | F238: 31/12/2012 | G238: 64.5378 | H238: 77.4138 | I238: 69.1799 | J238: 68.133 | K238: 68.8474 | L238: 2.7934 | M238: 2.0388 | N238: 0.7355 | O238: 0.7881 | P238: 0.7104 | Q238: 2.7214 | R238: 1.9459 | S238: 0.7283 | T238: 0.7804 | U238: 0.7039
C239: none | D239: 45 to 49 | E239: BSAL | F239: 31/12/2013 | G239: 66.6383 | H239: 81.3333 | I239: 72.8107 | J239: 71.6802 | K239: 72.3723 | L239: 2.7776 | M239: 1.8783 | N239: 0.711 | O239: 0.7664 | P239: 0.6883 | Q239: 2.694 | R239: 1.7756 | S239: 0.7023 | T239: 0.757 | U239: 0.6804
C240: none | D240: 45 to 49 | E240: BSAL | F240: 31/12/2014 | G240: 65.4622 | H240: 77.2826 | I240: 72.1719 | J240: 71.4761 | K240: 71.6893 | L240: 2.7792 | M240: 1.9843 | N240: 0.7162 | O240: 0.7695 | P240: 0.6932 | Q240: 2.7026 | R240: 1.897 | S240: 0.7079 | T240: 0.7603 | U240: 0.6857
C241: none | D241: 45 to 49 | E241: BSAL | F241: 31/12/2015 | G241: 62.449 | H241: 75.2459 | I241: 70.2159 | J241: 69.5433 | K241: 69.6476 | L241: 2.7799 | M241: 2.0442 | N241: 0.7265 | O241: 0.7788 | P241: 0.7029 | Q241: 2.7199 | R241: 1.963 | S241: 0.719 | T241: 0.7705 | U241: 0.696
C242: none | D242: 45 to 49 | E242: BSC | F242: 30/06/2012 | G242: 61.9271 | H242: 59.4146 | I242: 65.0061 | J242: 65.3813 | K242: 64.6817 | L242: 2.2149 | M242: 3.0784 | N242: 0.7379 | O242: 0.7606 | P242: 0.6991 | Q242: 2.1783 | R242: 3.0243 | S242: 0.7326 | T242: 0.7548 | U242: 0.6943
C243: none | D243: 45 to 49 | E243: BSC | F243: 30/06/2013 | G243: 58.9691 | H243: 57.9147 | I243: 64.3769 | J243: 64.8244 | K243: 63.8014 | L243: 2.2268 | M243: 3.0451 | N243: 0.741 | O243: 0.7643 | P243: 0.7025 | Q243: 2.1996 | R243: 3.0008 | S243: 0.7359 | T243: 0.7587 | U243: 0.6981
C244: none | D244: 45 to 49 | E244: BSC | F244: 30/06/2014 | G244: 60.7853 | H244: 59.1781 | I244: 67.2483 | J244: 67.8416 | K244: 66.5587 | L244: 2.2309 | M244: 2.9783 | N244: 0.7336 | O244: 0.7569 | P244: 0.6966 | Q244: 2.1978 | R244: 2.9288 | S244: 0.7273 | T244: 0.7499 | U244: 0.6912
C245: none | D245: 45 to 49 | E245: BSC | F245: 30/06/2015 | G245: 61.0448 | H245: 60.6364 | I245: 68.4722 | J245: 69.057 | K245: 67.6359 | L245: 2.1716 | M245: 2.9579 | N245: 0.73 | O245: 0.7534 | P245: 0.692 | Q245: 2.1393 | R245: 2.9008 | S245: 0.7233 | T245: 0.7458 | U245: 0.6862
C246: none | D246: 45 to 49 | E246: BSC | F246: 30/06/2016 | G246: 59.3204 | H246: 58.1333 | I246: 68.5042 | J246: 69.2915 | K246: 67.4535 | L246: 2.1576 | M246: 2.9454 | N246: 0.7274 | O246: 0.7498 | P246: 0.69 | Q246: 2.131 | R246: 2.9028 | S246: 0.7207 | T246: 0.7422 | U246: 0.6843
C247: none | D247: 45 to 49 | E247: BSC | F247: 31/12/2011 | G247: 60.5744 | H247: 57.6471 | I247: 63.6101 | J247: 64.0084 | K247: 63.2909 | L247: 2.2297 | M247: 3.0998 | N247: 0.7442 | O247: 0.7671 | P247: 0.705 | Q247: 2.1973 | R247: 3.0555 | S247: 0.7394 | T247: 0.7617 | U247: 0.7007
C248: none | D248: 45 to 49 | E248: BSC | F248: 31/12/2012 | G248: 61.6062 | H248: 61.4423 | I248: 67.309 | J248: 67.7089 | K248: 66.7051 | L248: 2.212 | M248: 3.0352 | N248: 0.7263 | O248: 0.7486 | P248: 0.6896 | Q248: 2.1767 | R248: 2.9703 | S248: 0.7201 | T248: 0.7419 | U248: 0.6842
C249: none | D249: 45 to 49 | E249: BSC | F249: 31/12/2013 | G249: 58.961 | H249: 59.1628 | I249: 66.2639 | J249: 66.7707 | K249: 65.4857 | L249: 2.2356 | M249: 3.0066 | N249: 0.7354 | O249: 0.7587 | P249: 0.6984 | Q249: 2.2084 | R249: 2.9563 | S249: 0.7296 | T249: 0.7522 | U249: 0.6935
C250: none | D250: 45 to 49 | E250: BSC | F250: 31/12/2014 | G250: 60.6633 | H250: 59.0164 | I250: 67.9693 | J250: 68.6327 | K250: 67.1683 | L250: 2.2028 | M250: 2.9755 | N250: 0.7312 | O250: 0.754 | P250: 0.694 | Q250: 2.1708 | R250: 2.927 | S250: 0.7247 | T250: 0.7468 | U250: 0.6883
C251: none | D251: 45 to 49 | E251: BSC | F251: 31/12/2015 | G251: 60.8354 | H251: 58.221 | I251: 68.2753 | J251: 69.0325 | K251: 67.4308 | L251: 2.1597 | M251: 2.9609 | N251: 0.73 | O251: 0.7525 | P251: 0.6915 | Q251: 2.1284 | R251: 2.9174 | S251: 0.7234 | T251: 0.745 | U251: 0.6859
C252: none | D252: 45 to 49 | E252: BSCC | F252: 30/06/2012 | G252: 58.0952 | H252: 55.6757 | I252: 69.0154 | J252: 69.3262 | K252: 66.8626 | L252: 1.5489 | M252: 5.2252 | N252: 0.7174 | O252: 0.7239 | P252: 0.6533 | Q252: 1.5371 | R252: 5.1336 | S252: 0.7106 | T252: 0.7168 | U252: 0.6485
C253: none | D253: 45 to 49 | E253: BSCC | F253: 30/06/2013 | G253: 59.8485 | H253: 52.9114 | I253: 70.482 | J253: 70.9365 | K253: 68.3363 | L253: 1.5462 | M253: 5.0551 | N253: 0.7213 | O253: 0.7274 | P253: 0.656 | Q253: 1.5317 | R253: 5.0111 | S253: 0.7136 | T253: 0.7194 | U253: 0.6506
C254: none | D254: 45 to 49 | E254: BSCC | F254: 30/06/2014 | G254: 57.7722 | H254: 50.9756 | I254: 71.0746 | J254: 71.6312 | K254: 68.3329 | L254: 1.5583 | M254: 4.9528 | N254: 0.7277 | O254: 0.7337 | P254: 0.6639 | Q254: 1.5467 | R254: 4.9386 | S254: 0.7197 | T254: 0.7252 | U254: 0.6584
C255: none | D255: 45 to 49 | E255: BSCC | F255: 30/06/2015 | G255: 59.9494 | H255: 58.3784 | I255: 71.1067 | J255: 71.4296 | K255: 68.7755 | L255: 1.5477 | M255: 5.2082 | N255: 0.7339 | O255: 0.7409 | P255: 0.6661 | Q255: 1.5329 | R255: 5.073 | S255: 0.7256 | T255: 0.7322 | U255: 0.6603
C256: none | D256: 45 to 49 | E256: BSCC | F256: 30/06/2016 | G256: 61.3 | H256: 63.7838 | I256: 73.5798 | J256: 73.8297 | K256: 70.9775 | L256: 1.5297 | M256: 5.1274 | N256: 0.7164 | O256: 0.7235 | P256: 0.6534 | Q256: 1.5132 | R256: 4.9048 | S256: 0.7073 | T256: 0.714 | U256: 0.6469
C257: none | D257: 45 to 49 | E257: BSCC | F257: 31/12/2011 | G257: 56.3795 | H257: 56.6038 | I257: 67.9326 | J257: 68.1931 | K257: 65.6771 | L257: 1.5525 | M257: 5.2138 | N257: 0.7181 | O257: 0.7249 | P257: 0.6543 | Q257: 1.5432 | R257: 5.1076 | S257: 0.7118 | T257: 0.7183 | U257: 0.6499
C258: none | D258: 45 to 49 | E258: BSCC | F258: 31/12/2012 | G258: 60.1761 | H258: 55.0914 | I258: 69.9336 | J258: 70.2986 | K258: 67.9878 | L258: 1.5414 | M258: 5.135 | N258: 0.7182 | O258: 0.7246 | P258: 0.6528 | Q258: 1.5265 | R258: 5.0557 | S258: 0.7109 | T258: 0.7169 | U258: 0.6474
C259: none | D259: 45 to 49 | E259: BSCC | F259: 31/12/2013 | G259: 58.8622 | H259: 51.3648 | I259: 70.9863 | J259: 71.5122 | K259: 68.5141 | L259: 1.5523 | M259: 4.9985 | N259: 0.7229 | O259: 0.7289 | P259: 0.6589 | Q259: 1.5392 | R259: 4.9783 | S259: 0.7151 | T259: 0.7205 | U259: 0.6534
C260: none | D260: 45 to 49 | E260: BSCC | F260: 31/12/2014 | G260: 59.4177 | H260: 53.7084 | I260: 71.4702 | J260: 71.9428 | K260: 68.9693 | L260: 1.5505 | M260: 5.0823 | N260: 0.7279 | O260: 0.7341 | P260: 0.6626 | Q260: 1.5366 | R260: 5.0258 | S260: 0.7197 | T260: 0.7254 | U260: 0.6569
C261: none | D261: 45 to 49 | E261: BSCC | F261: 31/12/2015 | G261: 61.7862 | H261: 63.6119 | I261: 73.1295 | J261: 73.3723 | K261: 70.7427 | L261: 1.5314 | M261: 5.1237 | N261: 0.7192 | O261: 0.7264 | P261: 0.6546 | Q261: 1.514 | R261: 4.9045 | S261: 0.7102 | T261: 0.717 | U261: 0.6481
C262: none | D262: 45 to 49 | E262: BSCM | F262: 30/06/2012 | G262: 73.0252 | H262: 77.5719 | I262: 71.4203 | J262: 69.88 | K262: 71.6324 | L262: 1.8317 | M262: 1.5026 | N262: 0.7154 | O262: 0.8128 | P262: 0.6646 | Q262: 1.7749 | R262: 1.4509 | S262: 0.7075 | T262: 0.8036 | U262: 0.6576
C263: none | D263: 45 to 49 | E263: BSCM | F263: 30/06/2013 | G263: 72.8992 | H263: 80.8669 | I263: 73.9192 | J263: 72.1036 | K263: 73.7841 | L263: 1.8342 | M263: 1.3997 | N263: 0.6969 | O263: 0.7999 | P263: 0.6497 | Q263: 1.7776 | R263: 1.3436 | S263: 0.6879 | T263: 0.7894 | U263: 0.6419
C264: none | D264: 45 to 49 | E264: BSCM | F264: 30/06/2014 | G264: 70.5714 | H264: 83.2931 | I264: 76.0116 | J264: 74.0377 | K264: 75.2699 | L264: 1.8487 | M264: 1.3153 | N264: 0.6799 | O264: 0.7874 | P264: 0.6377 | Q264: 1.7995 | R264: 1.2561 | S264: 0.6701 | T264: 0.7759 | U264: 0.6295
C265: none | D265: 45 to 49 | E265: BSCM | F265: 30/06/2015 | G265: 67.08 | H265: 79.0087 | I265: 74.194 | J265: 72.8675 | K265: 73.2263 | L265: 1.8813 | M265: 1.4019 | N265: 0.6881 | O265: 0.7904 | P265: 0.6465 | Q265: 1.8412 | R265: 1.3523 | S265: 0.6792 | T265: 0.7796 | U265: 0.6392
C266: none | D266: 45 to 49 | E266: BSCM | F266: 30/06/2016 | G266: 64.6899 | H266: 74.4286 | I266: 72.4318 | J266: 71.878 | K266: 71.3636 | L266: 1.8794 | M266: 1.4797 | N266: 0.697 | O266: 0.7934 | P266: 0.6538 | Q266: 1.8461 | R266: 1.4387 | S266: 0.6888 | T266: 0.7832 | U266: 0.6473
C267: none | D267: 45 to 49 | E267: BSCM | F267: 31/12/2011 | G267: 66.8776 | H267: 77.101 | I267: 68.742 | J267: 66.6906 | K267: 68.4958 | L267: 1.9359 | M267: 1.5281 | N267: 0.7346 | O267: 0.8337 | P267: 0.6853 | Q267: 1.8942 | R267: 1.4762 | S267: 0.7275 | T267: 0.826 | U267: 0.6793
C268: none | D268: 45 to 49 | E268: BSCM | F268: 31/12/2012 | G268: 71.5546 | H268: 79.9057 | I268: 73.6643 | J268: 72.0676 | K268: 73.3852 | L268: 1.8593 | M268: 1.4357 | N268: 0.6985 | O268: 0.7979 | P268: 0.6523 | Q268: 1.8061 | R268: 1.3804 | S268: 0.6897 | T268: 0.7875 | U268: 0.6448
C269: none | D269: 45 to 49 | E269: BSCM | F269: 31/12/2013 | G269: 72.3395 | H269: 83.2722 | I269: 75.3455 | J269: 73.2357 | K269: 74.9416 | L269: 1.8311 | M269: 1.3242 | N269: 0.6852 | O269: 0.7925 | P269: 0.6404 | Q269: 1.7768 | R269: 1.2643 | S269: 0.6758 | T269: 0.7813 | U269: 0.6323
C270: none | D270: 45 to 49 | E270: BSCM | F270: 31/12/2014 | G270: 70.3434 | H270: 81.6024 | I270: 76.2229 | J270: 74.7526 | K270: 75.4223 | L270: 1.8429 | M270: 1.3503 | N270: 0.6739 | O270: 0.7766 | P270: 0.6327 | Q270: 1.7947 | R270: 1.2951 | S270: 0.6642 | T270: 0.765 | U270: 0.6246
C271: none | D271: 45 to 49 | E271: BSCM | F271: 31/12/2015 | G271: 68.1496 | H271: 76.7388 | I271: 73.5625 | J271: 72.6845 | K271: 72.8209 | L271: 1.8517 | M271: 1.4434 | N271: 0.6907 | O271: 0.7892 | P271: 0.6466 | Q271: 1.8098 | R271: 1.3982 | S271: 0.6821 | T271: 0.7787 | U271: 0.6395
C272: none | D272: 45 to 49 | E272: BSM | F272: 30/06/2012 | G272: 48.7594 | H272: 46.8889 | I272: 61.7271 | J272: 62.0711 | K272: 58.9873 | L272: 1.3516 | M272: 4.6882 | N272: 0.6802 | O272: 0.6869 | P272: 0.6105 | Q272: 1.3529 | R272: 4.7293 | S272: 0.6767 | T272: 0.6833 | U272: 0.6084
C273: none | D273: 45 to 49 | E273: BSM | F273: 30/06/2013 | G273: 51.875 | H273: 44.6667 | I273: 64.2968 | J273: 64.7627 | K273: 61.6403 | L273: 1.3579 | M273: 4.6562 | N273: 0.6788 | O273: 0.6849 | P273: 0.6099 | Q273: 1.3558 | R273: 4.7267 | S273: 0.6744 | T273: 0.6803 | U273: 0.6072
C274: none | D274: 45 to 49 | E274: BSM | F274: 30/06/2014 | G274: 54.8659 | H274: 49.3617 | I274: 64.7743 | J274: 65.1596 | K274: 62.6623 | L274: 1.3619 | M274: 4.61 | N274: 0.6793 | O274: 0.6861 | P274: 0.6093 | Q274: 1.3565 | R274: 4.6181 | S274: 0.6747 | T274: 0.6813 | U274: 0.6063
C275: none | D275: 45 to 49 | E275: BSM | F275: 30/06/2015 | G275: 57.9693 | H275: 60.2041 | I275: 69.064 | J275: 69.2956 | K275: 66.6953 | L275: 1.3527 | M275: 4.4869 | N275: 0.6588 | O275: 0.666 | P275: 0.5948 | Q275: 1.3439 | R275: 4.363 | S275: 0.6529 | T275: 0.6601 | U275: 0.5908
C276: none | D276: 45 to 49 | E276: BSM | F276: 30/06/2016 | G276: 56.129 | H276: 58.4 | I276: 69.9133 | J276: 70.2147 | K276: 66.9924 | L276: 1.3523 | M276: 4.4594 | N276: 0.6476 | O276: 0.6543 | P276: 0.5884 | Q276: 1.3456 | R276: 4.3595 | S276: 0.6416 | T276: 0.648 | U276: 0.5844
C277: none | D277: 45 to 49 | E277: BSM | F277: 31/12/2011 | G277: 46.0374 | H277: 45.977 | I277: 59.8748 | J277: 60.1843 | K277: 56.951 | L277: 1.3425 | M277: 4.7571 | N277: 0.6837 | O277: 0.6905 | P277: 0.6126 | Q277: 1.3468 | R277: 4.8122 | S277: 0.6809 | T277: 0.6874 | U277: 0.6111
C278: none | D278: 45 to 49 | E278: BSM | F278: 31/12/2012 | G278: 51.7358 | H278: 47.7778 | I278: 64.6346 | J278: 65.03 | K278: 61.8929 | L278: 1.3553 | M278: 4.6985 | N278: 0.6734 | O278: 0.6797 | P278: 0.6061 | Q278: 1.3535 | R278: 4.7278 | S278: 0.6691 | T278: 0.6751 | U278: 0.6034
C279: none | D279: 45 to 49 | E279: BSM | F279: 31/12/2013 | G279: 54.0762 | H279: 48.913 | I279: 65.7911 | J279: 66.2023 | K279: 63.29 | L279: 1.3595 | M279: 4.6571 | N279: 0.6735 | O279: 0.6798 | P279: 0.6061 | Q279: 1.3549 | R279: 4.6712 | S279: 0.6688 | T279: 0.6749 | U279: 0.6028
C280: none | D280: 45 to 49 | E280: BSM | F280: 31/12/2014 | G280: 57.4138 | H280: 60.2083 | I280: 66.8364 | J280: 67.0059 | K280: 64.8263 | L280: 1.3548 | M280: 4.5348 | N280: 0.6702 | O280: 0.678 | P280: 0.6021 | Q280: 1.3465 | R280: 4.4083 | S280: 0.6651 | T280: 0.6726 | U280: 0.5986
C281: none | D281: 45 to 49 | E281: BSM | F281: 31/12/2015 | G281: 57.2355 | H281: 58.3838 | I281: 69.2763 | J281: 69.5613 | K281: 66.7153 | L281: 1.3522 | M281: 4.4826 | N281: 0.6543 | O281: 0.6613 | P281: 0.5921 | Q281: 1.3441 | R281: 4.382 | S281: 0.6486 | T281: 0.6553 | U281: 0.5882
C282: none | D282: 45 to 49 | E282: BSOS | F282: 30/06/2012 | G282: 61.0976 | H282: 48.3333 | I282: 62.4617 | J282: 62.626 | K282: 62.3623 | L282: 3.4329 | M282: 9.2161 | N282: 0.937 | O282: 0.9417 | P282: 0.9024 | Q282: 3.3528 | R282: 9.3003 | S282: 0.93 | T282: 0.9345 | U282: 0.896
C283: none | D283: 45 to 49 | E283: BSOS | F283: 30/06/2013 | G283: 60.814 | H283: 54.1667 | I283: 68.1496 | J283: 68.3167 | K283: 67.5771 | L283: 3.3533 | M283: 9.3379 | N283: 0.9159 | O283: 0.9202 | P283: 0.883 | Q283: 3.2789 | R283: 9.1273 | S283: 0.9055 | T283: 0.9096 | U283: 0.8738
C284: none | D284: 45 to 49 | E284: BSOS | F284: 30/06/2014 | G284: 68.5057 | H284: 68.3333 | I284: 77.3535 | J284: 77.4642 | K284: 76.6388 | L284: 3.2028 | M284: 9.118 | N284: 0.8375 | O284: 0.8413 | P284: 0.8109 | Q284: 3.0769 | R284: 8.1882 | S284: 0.8214 | T284: 0.8249 | U284: 0.7965
C285: none | D285: 45 to 49 | E285: BSOS | F285: 30/06/2015 | G285: 68.0682 | H285: 57.8571 | I285: 74.2331 | J285: 74.471 | K285: 73.7242 | L285: 3.1938 | M285: 8.6297 | N285: 0.879 | O285: 0.8829 | P285: 0.8466 | Q285: 3.0722 | R285: 8.2902 | S285: 0.8646 | T285: 0.868 | U285: 0.8336
C286: none | D286: 45 to 49 | E286: BSOS | F286: 30/06/2016 | G286: 62.6374 | H286: 57.8571 | I286: 71.5275 | J286: 71.7252 | K286: 70.7735 | L286: 3.235 | M286: 8.6297 | N286: 0.904 | O286: 0.9087 | P286: 0.8707 | Q286: 3.1528 | R286: 8.2902 | S286: 0.8912 | T286: 0.8956 | U286: 0.8595
C287: none | D287: 45 to 49 | E287: BSOS | F287: 31/12/2011 | G287: 61.4634 | H287: 43.3333 | I287: 65.7292 | J287: 65.9866 | K287: 65.4218 | L287: 3.4284 | M287: 9.0164 | N287: 0.9142 | O287: 0.9179 | P287: 0.8821 | Q287: 3.3457 | R287: 9.3533 | S287: 0.9055 | T287: 0.909 | U287: 0.8742
C288: none | D288: 45 to 49 | E288: BSOS | F288: 31/12/2012 | G288: 64.0476 | H288: 54.1667 | I288: 69.7282 | J288: 69.9116 | K288: 69.2998 | L288: 3.3494 | M288: 9.3379 | N288: 0.8977 | O288: 0.9015 | P288: 0.866 | Q288: 3.2505 | R288: 9.1273 | S288: 0.8864 | T288: 0.89 | U288: 0.8559
C289: none | D289: 45 to 49 | E289: BSOS | F289: 31/12/2013 | G289: 65.0867 | H289: 60.8333 | I289: 73.5194 | J289: 73.6731 | K289: 72.8499 | L289: 3.2817 | M289: 9.3289 | N289: 0.8752 | O289: 0.8791 | P289: 0.8457 | Q289: 3.1786 | R289: 8.781 | S289: 0.8616 | T289: 0.865 | U289: 0.8335
C290: none | D290: 45 to 49 | E290: BSOS | F290: 31/12/2014 | G290: 66.9714 | H290: 64.6154 | I290: 74.6951 | J290: 74.8301 | K290: 74.0644 | L290: 3.2266 | M290: 8.8646 | N290: 0.8713 | O290: 0.8758 | P290: 0.841 | Q290: 3.1118 | R290: 8.1823 | S290: 0.8567 | T290: 0.8608 | U290: 0.8279
C291: none | D291: 45 to 49 | E291: BSOS | F291: 31/12/2015 | G291: 61.0056 | H291: 56.4286 | I291: 66.1735 | J291: 66.3147 | K291: 65.741 | L291: 3.2832 | M291: 8.6324 | N291: 0.9465 | O291: 0.9525 | P291: 0.9083 | Q291: 3.2105 | R291: 8.3545 | S291: 0.9369 | T291: 0.9426 | U291: 0.8997
C292: none | D292: 45 to 49 | E292: BSSL | F292: 30/06/2012 | G292: 81.9355 | H292: 57.4359 | I292: 86.5873 | J292: 87.0232 | K292: 86.282 | L292: 1.8252 | M292: 5.0763 | N292: 0.4164 | O292: 0.4139 | P292: 0.4061 | Q292: 1.7238 | R292: 4.9625 | S292: 0.4084 | T292: 0.4056 | U292: 0.3986
C293: none | D293: 45 to 49 | E293: BSSL | F293: 30/06/2013 | G293: 83.1746 | H293: 64.3038 | I293: 88.3017 | J293: 88.6741 | K293: 87.9524 | L293: 1.7641 | M293: 4.9447 | N293: 0.398 | O293: 0.3957 | P293: 0.3888 | Q293: 1.6605 | R293: 4.7286 | S293: 0.3895 | T293: 0.3869 | U293: 0.3809
C294: none | D294: 45 to 49 | E294: BSSL | F294: 30/06/2014 | G294: 82.0619 | H294: 64.5 | I294: 87.4311 | J294: 87.7952 | K294: 87.0528 | L294: 1.7811 | M294: 4.9082 | N294: 0.4123 | O294: 0.4105 | P294: 0.4022 | Q294: 1.6836 | R294: 4.6918 | S294: 0.4038 | T294: 0.4018 | U294: 0.3945
C295: none | D295: 45 to 49 | E295: BSSL | F295: 30/06/2015 | G295: 79.45 | H295: 62.8916 | I295: 86.9562 | J295: 87.3552 | K295: 86.4092 | L295: 1.8384 | M295: 4.8472 | N295: 0.42 | O295: 0.4181 | P295: 0.4111 | Q295: 1.7517 | R295: 4.6619 | S295: 0.4115 | T295: 0.4094 | U295: 0.4034
C296: none | D296: 45 to 49 | E296: BSSL | F296: 30/06/2016 | G296: 74.4928 | H296: 62.619 | I296: 84.6972 | J296: 85.0631 | K296: 83.9382 | L296: 1.9359 | M296: 4.822 | N296: 0.4455 | O296: 0.4448 | P296: 0.4367 | Q296: 1.8662 | R296: 4.6429 | S296: 0.4377 | T296: 0.4369 | U296: 0.4296
C297: none | D297: 45 to 49 | E297: BSSL | F297: 31/12/2011 | G297: 81.0243 | H297: 59.5855 | I297: 85.0638 | J297: 85.435 | K297: 84.803 | L297: 1.8599 | M297: 5.0831 | N297: 0.4318 | O297: 0.4305 | P297: 0.4203 | Q297: 1.7611 | R297: 4.9349 | S297: 0.4242 | T297: 0.4227 | U297: 0.4133
C298: none | D298: 45 to 49 | E298: BSSL | F298: 31/12/2012 | G298: 81.5467 | H298: 62.5954 | I298: 86.3624 | J298: 86.7249 | K298: 86.0404 | L298: 1.8314 | M298: 4.9917 | N298: 0.4218 | O298: 0.4204 | P298: 0.4112 | Q298: 1.7321 | R298: 4.8004 | S298: 0.4137 | T298: 0.412 | U298: 0.4037
C299: none | D299: 45 to 49 | E299: BSSL | F299: 31/12/2013 | G299: 80.6789 | H299: 65.0754 | I299: 87.1054 | J299: 87.4516 | K299: 86.6602 | L299: 1.8409 | M299: 4.908 | N299: 0.4157 | O299: 0.4142 | P299: 0.4066 | Q299: 1.7463 | R299: 4.6818 | S299: 0.4073 | T299: 0.4057 | U299: 0.3987
C300: none | D300: 45 to 49 | E300: BSSL | F300: 31/12/2014 | G300: 80.4569 | H300: 61.7647 | I300: 85.3846 | J300: 85.7683 | K300: 85.0315 | L300: 1.8213 | M300: 4.9096 | N300: 0.4394 | O300: 0.4382 | P300: 0.4273 | Q300: 1.73 | R300: 4.7376 | S300: 0.4313 | T300: 0.43 | U300: 0.4198
C301: none | D301: 45 to 49 | E301: BSSL | F301: 31/12/2015 | G301: 75.1843 | H301: 62.201 | I301: 83.9941 | J301: 84.3558 | K301: 83.3454 | L301: 1.9367 | M301: 4.8412 | N301: 0.455 | O301: 0.4546 | P301: 0.4446 | Q301: 1.8639 | R301: 4.6671 | S301: 0.4472 | T301: 0.4466 | U301: 0.4375
C302: none | D302: 45 to 49 | E302: BSWN | F302: 30/06/2012 | G302: 71.8895 | H302: 78.9474 | I302: 71.438 | J302: 71.0039 | K302: 71.4939 | L302: 1.5349 | M302: 2.2914 | N302: 0.5721 | O302: 0.5911 | P302: 0.5349 | Q302: 1.4977 | R302: 2.1627 | S302: 0.5669 | T302: 0.5858 | U302: 0.5304
C303: none | D303: 45 to 49 | E303: BSWN | F303: 30/06/2013 | G303: 72.61 | H303: 81.2409 | I303: 70.9436 | J303: 70.3275 | K303: 71.1488 | L303: 1.5305 | M303: 2.1699 | N303: 0.5758 | O303: 0.5964 | P303: 0.5377 | Q303: 1.4915 | R303: 2.0349 | S303: 0.5707 | T303: 0.5912 | U303: 0.5333
C304: none | D304: 45 to 49 | E304: BSWN | F304: 30/06/2014 | G304: 70 | H304: 79.7842 | I304: 70.5222 | J304: 69.956 | K304: 70.458 | L304: 1.5765 | M304: 2.2092 | N304: 0.5798 | O304: 0.6006 | P304: 0.5431 | Q304: 1.5418 | R304: 2.0825 | S304: 0.5748 | T304: 0.5955 | U304: 0.5388
C305: none | D305: 45 to 49 | E305: BSWN | F305: 30/06/2015 | G305: 67.8107 | H305: 73.1915 | I305: 68.6439 | J305: 68.3632 | K305: 68.542 | L305: 1.6048 | M305: 2.3943 | N305: 0.5881 | O305: 0.6075 | P305: 0.5512 | Q305: 1.5738 | R305: 2.2973 | S305: 0.5836 | T305: 0.6029 | U305: 0.5472
C306: none | D306: 45 to 49 | E306: BSWN | F306: 30/06/2016 | G306: 69.0643 | H306: 70.8511 | I306: 67.7982 | J306: 67.6116 | K306: 67.9534 | L306: 1.5796 | M306: 2.4493 | N306: 0.5894 | O306: 0.6082 | P306: 0.5512 | Q306: 1.547 | R306: 2.362 | S306: 0.5852 | T306: 0.6038 | U306: 0.5475
C307: none | D307: 45 to 49 | E307: BSWN | F307: 31/12/2011 | G307: 71.2104 | H307: 77.9923 | I307: 69.591 | J307: 69.1185 | K307: 69.7931 | L307: 1.5384 | M307: 2.3573 | N307: 0.5825 | O307: 0.6012 | P307: 0.5436 | Q307: 1.5025 | R307: 2.2295 | S307: 0.5777 | T307: 0.5965 | U307: 0.5395
C308: none | D308: 45 to 49 | E308: BSWN | F308: 31/12/2012 | G308: 73.8686 | H308: 79.8519 | I308: 71.4585 | J308: 70.9649 | K308: 71.7562 | L308: 1.506 | M308: 2.2407 | N308: 0.5723 | O308: 0.592 | P308: 0.5339 | Q308: 1.4651 | R308: 2.1098 | S308: 0.5673 | T308: 0.5867 | U308: 0.5294
C309: none | D309: 45 to 49 | E309: BSWN | F309: 31/12/2013 | G309: 73.0781 | H309: 80.2174 | I309: 71.0992 | J309: 70.5478 | K309: 71.3426 | L309: 1.5262 | M309: 2.2014 | N309: 0.5757 | O309: 0.5962 | P309: 0.5375 | Q309: 1.4863 | R309: 2.0719 | S309: 0.5706 | T309: 0.5909 | U309: 0.5331
C310: none | D310: 45 to 49 | E310: BSWN | F310: 31/12/2014 | G310: 70.1183 | H310: 77.2143 | I310: 69.3366 | J310: 68.8528 | K310: 69.4325 | L310: 1.5748 | M310: 2.2888 | N310: 0.5853 | O310: 0.6057 | P310: 0.5476 | Q310: 1.54 | R310: 2.1739 | S310: 0.5808 | T310: 0.6009 | U310: 0.5435
C311: none | D311: 45 to 49 | E311: BSWN | F311: 31/12/2015 | G311: 70.2353 | H311: 74.1135 | I311: 69.0849 | J311: 68.7761 | K311: 69.2258 | L311: 1.5685 | M311: 2.3705 | N311: 0.5845 | O311: 0.6039 | P311: 0.5467 | Q311: 1.5336 | R311: 2.2695 | S311: 0.58 | T311: 0.5992 | U311: 0.5426
C312: none | D312: 45 to 49 | E312: Total | F312: 30/06/2012 | G312: 62.5036 | H312: 70.6979 | I312: 70.7824 | J312: 70.7877 | K312: 69.7365 | L312: 0.66 | M312: 0.9789 | N312: 0.235 | O312: 0.2423 | P312: 0.2218 | Q312: 0.6565 | R312: 0.9649 | S312: 0.2342 | T312: 0.2414 | U312: 0.2212
C313: none | D313: 45 to 49 | E313: Total | F313: 30/06/2013 | G313: 63.7512 | H313: 73.5003 | I313: 72.3595 | J313: 72.2846 | K313: 71.2594 | L313: 0.656 | M313: 0.9363 | N313: 0.2329 | O313: 0.2406 | P313: 0.2201 | Q313: 0.6522 | R313: 0.9206 | S313: 0.232 | T313: 0.2397 | U313: 0.2192
C314: none | D314: 45 to 49 | E314: Total | F314: 30/06/2014 | G314: 63.978 | H314: 74.7036 | I314: 73.8124 | J314: 73.7515 | K314: 72.5431 | L314: 0.6553 | M314: 0.9103 | N314: 0.2303 | O314: 0.2383 | P314: 0.2181 | Q314: 0.6514 | R314: 0.8943 | S314: 0.2294 | T314: 0.2372 | U314: 0.2173
C315: none | D315: 45 to 49 | E315: Total | F315: 30/06/2015 | G315: 64.0284 | H315: 72.1564 | I315: 73.5649 | J315: 73.6635 | K315: 72.3192 | L315: 0.6511 | M315: 0.928 | N315: 0.2312 | O315: 0.2389 | P315: 0.2187 | Q315: 0.6472 | R315: 0.914 | S315: 0.2303 | T315: 0.2379 | U315: 0.2178
C316: none | D316: 45 to 49 | E316: Total | F316: 30/06/2016 | G316: 62.9327 | H316: 69.8113 | I316: 72.629 | J316: 72.8255 | K316: 71.3534 | L316: 0.6489 | M316: 0.9458 | N316: 0.2325 | O316: 0.24 | P316: 0.2196 | Q316: 0.6454 | R316: 0.9333 | S316: 0.2316 | T316: 0.239 | U316: 0.2189
C317: none | D317: 45 to 49 | E317: Total | F317: 31/12/2011 | G317: 60.6006 | H317: 70.5145 | I317: 69.5745 | J317: 69.5171 | K317: 68.4436 | L317: 0.665 | M317: 0.9894 | N317: 0.2371 | O317: 0.2444 | P317: 0.2238 | Q317: 0.662 | R317: 0.9751 | S317: 0.2364 | T317: 0.2436 | U317: 0.2232
C318: none | D318: 45 to 49 | E318: Total | F318: 31/12/2012 | G318: 64.0258 | H318: 73.2671 | I318: 72.4708 | J318: 72.4197 | K318: 71.3978 | L318: 0.6547 | M318: 0.9458 | N318: 0.2318 | O318: 0.2392 | P318: 0.219 | Q318: 0.6508 | R318: 0.9301 | S318: 0.2308 | T318: 0.2383 | U318: 0.2182
C319: none | D319: 45 to 49 | E319: Total | F319: 31/12/2013 | G319: 64.2307 | H319: 75.1628 | I319: 73.5388 | J319: 73.43 | K319: 72.3433 | L319: 0.6543 | M319: 0.9111 | N319: 0.2304 | O319: 0.2384 | P319: 0.218 | Q319: 0.6503 | R319: 0.8946 | S319: 0.2295 | T319: 0.2373 | U319: 0.2173
C320: none | D320: 45 to 49 | E320: Total | F320: 31/12/2014 | G320: 64.6717 | H320: 73.884 | I320: 73.4274 | J320: 73.3958 | K320: 72.2905 | L320: 0.6505 | M320: 0.9147 | N320: 0.2315 | O320: 0.2395 | P320: 0.2187 | Q320: 0.6465 | R320: 0.8994 | S320: 0.2305 | T320: 0.2385 | U320: 0.2179
C321: none | D321: 45 to 49 | E321: Total | F321: 31/12/2015 | G321: 63.9625 | H321: 71.3374 | I321: 72.5726 | J321: 72.659 | K321: 71.4439 | L321: 0.6482 | M321: 0.934 | N321: 0.2332 | O321: 0.2411 | P321: 0.22 | Q321: 0.6444 | R321: 0.9204 | S321: 0.2324 | T321: 0.24 | U321: 0.2193
C322: none | D322: 50 to 69 | E322: BSAL | F322: 30/06/2012 | G322: 60.3597 | H322: 69.2269 | I322: 64.2306 | J322: 63.6956 | K322: 63.9873 | L322: 1.8464 | M322: 1.4546 | N322: 0.4636 | O322: 0.4894 | P322: 0.4493 | Q322: 1.8246 | R322: 1.4266 | S322: 0.4616 | T322: 0.4873 | U322: 0.4476
C323: none | D323: 50 to 69 | E323: BSAL | F323: 30/06/2013 | G323: 62.6263 | H323: 73.012 | I323: 67.0893 | J323: 66.4551 | K323: 66.8003 | L323: 1.7686 | M323: 1.3784 | N323: 0.4469 | O323: 0.4725 | P323: 0.433 | Q323: 1.7436 | R323: 1.3461 | S323: 0.4445 | T323: 0.4701 | U323: 0.431
C324: none | D324: 50 to 69 | E324: BSAL | F324: 30/06/2014 | G324: 61.3016 | H324: 73.9261 | I324: 68.2063 | J324: 67.5896 | K324: 67.7498 | L324: 1.7266 | M324: 1.3351 | N324: 0.435 | O324: 0.4602 | P324: 0.4219 | Q324: 1.7056 | R324: 1.3027 | S324: 0.4327 | T324: 0.4578 | U324: 0.4197
C325: none | D325: 50 to 69 | E325: BSAL | F325: 30/06/2015 | G325: 60.8485 | H325: 70.9707 | I325: 67.7511 | J325: 67.4063 | K325: 67.2872 | L325: 1.6895 | M325: 1.3615 | N325: 0.4303 | O325: 0.4541 | P325: 0.417 | Q325: 1.6702 | R325: 1.3337 | S325: 0.428 | T325: 0.4517 | U325: 0.4149
C326: none | D326: 50 to 69 | E326: BSAL | F326: 30/06/2016 | G326: 57.8134 | H326: 72.0133 | I326: 66.1331 | J326: 65.5188 | K326: 65.5759 | L326: 1.6734 | M326: 1.3338 | N326: 0.4263 | O326: 0.45 | P326: 0.4133 | Q326: 1.6601 | R326: 1.3052 | S326: 0.4243 | T326: 0.448 | U326: 0.4116
C327: none | D327: 50 to 69 | E327: BSAL | F327: 31/12/2011 | G327: 58.7454 | H327: 68.731 | I327: 63.2151 | J327: 62.6246 | K327: 62.9364 | L327: 1.8806 | M327: 1.4738 | N327: 0.4704 | O327: 0.4966 | P327: 0.4561 | Q327: 1.8616 | R327: 1.4459 | S327: 0.4685 | T327: 0.4947 | U327: 0.4543
C328: none | D328: 50 to 69 | E328: BSAL | F328: 31/12/2012 | G328: 61.7391 | H328: 71.6176 | I328: 65.7366 | J328: 65.1069 | K328: 65.4816 | L328: 1.8052 | M328: 1.4108 | N328: 0.4551 | O328: 0.481 | P328: 0.4411 | Q328: 1.7813 | R328: 1.3798 | S328: 0.453 | T328: 0.4788 | U328: 0.4391
C329: none | D329: 50 to 69 | E329: BSAL | F329: 31/12/2013 | G329: 62.5163 | H329: 73.7028 | I329: 67.7254 | J329: 67.0831 | K329: 67.3845 | L329: 1.7428 | M329: 1.3529 | N329: 0.4407 | O329: 0.4661 | P329: 0.427 | Q329: 1.7189 | R329: 1.3203 | S329: 0.4383 | T329: 0.4637 | U329: 0.4249
C330: none | D330: 50 to 69 | E330: BSAL | F330: 31/12/2014 | G330: 61.2403 | H330: 73.516 | I330: 68.2379 | J330: 67.6708 | K330: 67.7713 | L330: 1.7066 | M330: 1.3336 | N330: 0.4317 | O330: 0.4565 | P330: 0.4185 | Q330: 1.6862 | R330: 1.3021 | S330: 0.4294 | T330: 0.454 | U330: 0.4165
C331: none | D331: 50 to 69 | E331: BSAL | F331: 31/12/2015 | G331: 59.584 | H331: 72.4469 | I331: 67.332 | J331: 66.7911 | K331: 66.8122 | L331: 1.6807 | M331: 1.3345 | N331: 0.4271 | O331: 0.451 | P331: 0.414 | Q331: 1.6639 | R331: 1.3052 | S331: 0.4249 | T331: 0.4487 | U331: 0.4121
C332: none | D332: 50 to 69 | E332: BSC | F332: 30/06/2012 | G332: 65.058 | H332: 63.0651 | I332: 71.6481 | J332: 72.1451 | K332: 71.1019 | L332: 1.4448 | M332: 1.8845 | N332: 0.4068 | O332: 0.4164 | P332: 0.3917 | Q332: 1.4244 | R332: 1.8552 | S332: 0.4043 | T332: 0.4135 | U332: 0.3894
C333: none | D333: 50 to 69 | E333: BSC | F333: 30/06/2013 | G333: 62.1854 | H333: 60.7103 | I333: 68.7834 | J333: 69.2509 | K333: 68.2236 | L333: 1.4306 | M333: 1.8804 | N333: 0.413 | O333: 0.4231 | P333: 0.3968 | Q333: 1.415 | R333: 1.8569 | S333: 0.4107 | T333: 0.4207 | U333: 0.3949
C334: none | D334: 50 to 69 | E334: BSC | F334: 30/06/2014 | G334: 64.0249 | H334: 62.8102 | I334: 71.1602 | J334: 71.6423 | K334: 70.5352 | L334: 1.3734 | M334: 1.8408 | N334: 0.3984 | O334: 0.4079 | P334: 0.3829 | Q334: 1.3564 | R334: 1.8134 | S334: 0.3961 | T334: 0.4052 | U334: 0.3807
C335: none | D335: 50 to 69 | E335: BSC | F335: 30/06/2015 | G335: 65.3521 | H335: 65.5258 | I335: 72.5263 | J335: 72.9305 | K335: 71.8935 | L335: 1.3417 | M335: 1.7921 | N335: 0.3882 | O335: 0.3975 | P335: 0.3731 | Q335: 1.3237 | R335: 1.7598 | S335: 0.3856 | T335: 0.3948 | U335: 0.3709
C336: none | D336: 50 to 69 | E336: BSC | F336: 30/06/2016 | G336: 67.6596 | H336: 68.2746 | I336: 74.2617 | J336: 74.6047 | K336: 73.669 | L336: 1.2945 | M336: 1.7474 | N336: 0.3765 | O336: 0.3856 | P336: 0.3617 | Q336: 1.2745 | R336: 1.7098 | S336: 0.3739 | T336: 0.3827 | U336: 0.3594
C337: none | D337: 50 to 69 | E337: BSC | F337: 31/12/2011 | G337: 64.6722 | H337: 60.7966 | I337: 70.9865 | J337: 71.5731 | K337: 70.4695 | L337: 1.4682 | M337: 1.9218 | N337: 0.4125 | O337: 0.4217 | P337: 0.3971 | Q337: 1.4477 | R337: 1.897 | S337: 0.4098 | T337: 0.4188 | U337: 0.3948
C338: none | D338: 50 to 69 | E338: BSC | F338: 31/12/2012 | G338: 64.0724 | H338: 63.829 | I338: 71.1848 | J338: 71.6108 | K338: 70.5882 | L338: 1.4347 | M338: 1.8653 | N338: 0.4063 | O338: 0.4162 | P338: 0.3911 | Q338: 1.4161 | R338: 1.8346 | S338: 0.4037 | T338: 0.4133 | U338: 0.3889
C339: none | D339: 50 to 69 | E339: BSC | F339: 31/12/2013 | G339: 62.2888 | H339: 61.6322 | I339: 70.8475 | J339: 71.3804 | K339: 70.1094 | L339: 1.4074 | M339: 1.8618 | N339: 0.4025 | O339: 0.4118 | P339: 0.3874 | Q339: 1.3919 | R339: 1.8366 | S339: 0.4 | T339: 0.4091 | U339: 0.3852
C340: none | D340: 50 to 69 | E340: BSC | F340: 31/12/2014 | G340: 64.2697 | H340: 61.8103 | I340: 72.7369 | J340: 73.3679 | K340: 71.9927 | L340: 1.3609 | M340: 1.838 | N340: 0.3895 | O340: 0.3978 | P340: 0.375 | Q340: 1.3438 | R340: 1.8131 | S340: 0.387 | T340: 0.395 | U340: 0.3727
C341: none | D341: 50 to 69 | E341: BSC | F341: 31/12/2015 | G341: 66.6469 | H341: 66.8084 | I341: 73.7659 | J341: 74.1661 | K341: 73.1324 | L341: 1.3169 | M341: 1.7716 | N341: 0.3807 | O341: 0.3897 | P341: 0.366 | Q341: 1.2978 | R341: 1.7366 | S341: 0.3781 | T341: 0.3869 | U341: 0.3637
C342: none | D342: 50 to 69 | E342: BSCC | F342: 30/06/2012 | G342: 62.5336 | H342: 64.5455 | I342: 71.8236 | J342: 71.9238 | K342: 70.4695 | L342: 0.9736 | M342: 3.4945 | N342: 0.3724 | O342: 0.3745 | P342: 0.3487 | Q342: 0.966 | R342: 3.3825 | S342: 0.3701 | T342: 0.3722 | U342: 0.347
C343: none | D343: 50 to 69 | E343: BSCC | F343: 30/06/2013 | G343: 64.9211 | H343: 67.037 | I343: 73.6207 | J343: 73.7139 | K343: 72.3261 | L343: 0.938 | M343: 3.3565 | N343: 0.3607 | O343: 0.3628 | P343: 0.3376 | Q343: 0.9294 | R343: 3.232 | S343: 0.3583 | T343: 0.3605 | U343: 0.3357
C344: none | D344: 50 to 69 | E344: BSCC | F344: 30/06/2014 | G344: 64.1431 | H344: 64.8588 | I344: 73.986 | J344: 74.1244 | K344: 72.4898 | L344: 0.9206 | M344: 3.2473 | N344: 0.3553 | O344: 0.3574 | P344: 0.3328 | Q344: 0.9129 | R344: 3.1479 | S344: 0.3529 | T344: 0.355 | U344: 0.3309
C345: none | D345: 50 to 69 | E345: BSCC | F345: 30/06/2015 | G345: 65.4973 | H345: 65.7447 | I345: 74.8949 | J345: 75.0401 | K345: 73.4354 | L345: 0.8945 | M345: 3.1326 | N345: 0.3486 | O345: 0.3506 | P345: 0.3261 | Q345: 0.8863 | R345: 3.0336 | S345: 0.3461 | T345: 0.3482 | U345: 0.3241
C346: none | D346: 50 to 69 | E346: BSCC | F346: 30/06/2016 | G346: 66.7134 | H346: 64.1176 | I346: 75.496 | J346: 75.689 | K346: 74.1148 | L346: 0.8732 | M346: 3.03 | N346: 0.343 | O346: 0.345 | P346: 0.3203 | Q346: 0.8647 | R346: 2.9483 | S346: 0.3405 | T346: 0.3424 | U346: 0.3184
C347: none | D347: 50 to 69 | E347: BSCC | F347: 31/12/2011 | G347: 60.7537 | H347: 62 | I347: 71.9996 | J347: 72.1353 | K347: 70.3801 | L347: 0.9946 | M347: 3.5822 | N347: 0.374 | O347: 0.3759 | P347: 0.3516 | Q347: 0.9879 | R347: 3.4874 | S347: 0.3716 | T347: 0.3736 | U347: 0.3497
C348: none | D348: 50 to 69 | E348: BSCC | F348: 31/12/2012 | G348: 63.6345 | H348: 65.4477 | I348: 73.0407 | J348: 73.1472 | K348: 71.6552 | L348: 0.9563 | M348: 3.4255 | N348: 0.3652 | O348: 0.3674 | P348: 0.3423 | Q348: 0.9483 | R348: 3.3101 | S348: 0.3629 | T348: 0.365 | U348: 0.3405
C349: none | D349: 50 to 69 | E349: BSCC | F349: 31/12/2013 | G349: 64.7495 | H349: 66.9412 | I349: 74.1582 | J349: 74.2644 | K349: 72.7429 | L349: 0.9279 | M349: 3.2759 | N349: 0.3564 | O349: 0.3586 | P349: 0.3339 | Q349: 0.9197 | R349: 3.1579 | S349: 0.354 | T349: 0.3561 | U349: 0.332
C350: none | D350: 50 to 69 | E350: BSCC | F350: 31/12/2014 | G350: 65.0646 | H350: 65.4645 | I350: 74.7638 | J350: 74.9086 | K350: 73.2734 | L350: 0.9061 | M350: 3.1815 | N350: 0.3504 | O350: 0.3526 | P350: 0.3282 | Q350: 0.898 | R350: 3.0815 | S350: 0.3481 | T350: 0.35 | U350: 0.3263
C351: none | D351: 50 to 69 | E351: BSCC | F351: 31/12/2015 | G351: 66.5332 | H351: 66.0896 | I351: 75.5544 | J351: 75.7101 | K351: 74.1445 | L351: 0.8812 | M351: 3.0567 | N351: 0.3441 | O351: 0.3461 | P351: 0.3217 | Q351: 0.8726 | R351: 2.9598 | S351: 0.3416 | T351: 0.3437 | U351: 0.3198
C352: none | D352: 50 to 69 | E352: BSCM | F352: 30/06/2012 | G352: 70.3442 | H352: 74.8397 | I352: 67.3668 | J352: 65.9554 | K352: 67.6885 | L352: 1.2585 | M352: 1.0446 | N352: 0.4445 | O352: 0.49 | P352: 0.4187 | Q352: 1.2357 | R352: 1.0234 | S352: 0.4423 | T352: 0.4874 | U352: 0.4166
C353: none | D353: 50 to 69 | E353: BSCM | F353: 30/06/2013 | G353: 69.7464 | H353: 80.2657 | I353: 68.9567 | J353: 66.8067 | K353: 69.0434 | L353: 1.2311 | M353: 0.9417 | N353: 0.431 | O353: 0.4785 | P353: 0.4062 | Q353: 1.2101 | R353: 0.9171 | S353: 0.4285 | T353: 0.4759 | U353: 0.4039
C354: none | D354: 50 to 69 | E354: BSCM | F354: 30/06/2014 | G354: 69.8273 | H354: 81.894 | I354: 70.6226 | J354: 68.4242 | K354: 70.5341 | L354: 1.2007 | M354: 0.8874 | N354: 0.4175 | O354: 0.4657 | P354: 0.3937 | Q354: 1.1807 | R354: 0.8628 | S354: 0.4148 | T354: 0.4629 | U354: 0.3915
C355: none | D355: 50 to 69 | E355: BSCM | F355: 30/06/2015 | G355: 67.9368 | H355: 80.6076 | I355: 70.0397 | J355: 67.953 | K355: 69.8053 | L355: 1.1968 | M355: 0.8894 | N355: 0.4125 | O355: 0.4598 | P355: 0.3895 | Q355: 1.1793 | R355: 0.8668 | S355: 0.41 | T355: 0.4572 | U355: 0.3873
C356: none | D356: 50 to 69 | E356: BSCM | F356: 30/06/2016 | G356: 66.6986 | H356: 77.2343 | I356: 69.0416 | J356: 67.3983 | K356: 68.7784 | L356: 1.1821 | M356: 0.9187 | N356: 0.4092 | O356: 0.4547 | P356: 0.3862 | Q356: 1.1665 | R356: 0.8995 | S356: 0.4069 | T356: 0.4521 | U356: 0.3843
C357: none | D357: 50 to 69 | E357: BSCM | F357: 31/12/2011 | G357: 69.3463 | H357: 73.6756 | I357: 66.9783 | J357: 65.7191 | K357: 67.2334 | L357: 1.2827 | M357: 1.0705 | N357: 0.4496 | O357: 0.4948 | P357: 0.4238 | Q357: 1.2608 | R357: 1.0499 | S357: 0.4474 | T357: 0.4922 | U357: 0.4217
C358: none | D358: 50 to 69 | E358: BSCM | F358: 31/12/2012 | G358: 68.2977 | H358: 77.2305 | I358: 68.0532 | J358: 66.3141 | K358: 68.0798 | L358: 1.263 | M358: 1.0003 | N358: 0.4381 | O358: 0.4845 | P358: 0.4133 | Q358: 1.243 | R358: 0.9777 | S358: 0.4358 | T358: 0.4819 | U358: 0.4113
C359: none | D359: 50 to 69 | E359: BSCM | F359: 31/12/2013 | G359: 69.6198 | H359: 81.2245 | I359: 69.5386 | J359: 67.2877 | K359: 69.5475 | L359: 1.2174 | M359: 0.9119 | N359: 0.4252 | O359: 0.4733 | P359: 0.4008 | Q359: 1.1971 | R359: 0.8871 | S359: 0.4227 | T359: 0.4707 | U359: 0.3987
C360: none | D360: 50 to 69 | E360: BSCM | F360: 31/12/2014 | G360: 71.0847 | H360: 82.3819 | I360: 71.3348 | J360: 69.1667 | K360: 71.307 | L360: 1.1755 | M360: 0.8682 | N360: 0.4108 | O360: 0.4589 | P360: 0.3873 | Q360: 1.1547 | R360: 0.8437 | S360: 0.4082 | T360: 0.456 | U360: 0.3849
C361: none | D361: 50 to 69 | E361: BSCM | F361: 31/12/2015 | G361: 67.4593 | H361: 79.7528 | I361: 69.7445 | J361: 67.7525 | K361: 69.4888 | L361: 1.1882 | M361: 0.8925 | N361: 0.41 | O361: 0.4569 | P361: 0.3872 | Q361: 1.1715 | R361: 0.871 | S361: 0.4077 | T361: 0.4544 | U361: 0.3852
C362: none | D362: 50 to 69 | E362: BSM | F362: 30/06/2012 | G362: 53.6113 | H362: 54.2 | I362: 64.6925 | J362: 64.8473 | K362: 62.9233 | L362: 0.8595 | M362: 3.1466 | N362: 0.3584 | O362: 0.3608 | P362: 0.332 | Q362: 0.8579 | R362: 3.1218 | S362: 0.3573 | T362: 0.3595 | U362: 0.331
C363: none | D363: 50 to 69 | E363: BSM | F363: 30/06/2013 | G363: 54.7896 | H363: 54.8544 | I363: 65.2862 | J363: 65.4414 | K363: 63.5646 | L363: 0.8356 | M363: 3.0979 | N363: 0.3534 | O363: 0.3557 | P363: 0.3264 | Q363: 0.8335 | R363: 3.07 | S363: 0.3521 | T363: 0.3544 | U363: 0.3256
C364: none | D364: 50 to 69 | E364: BSM | F364: 30/06/2014 | G364: 56.662 | H364: 55.9091 | I364: 66.9214 | J364: 67.0929 | K364: 65.2019 | L364: 0.8129 | M364: 2.992 | N364: 0.3458 | O364: 0.348 | P364: 0.3191 | Q364: 0.8104 | R364: 2.9603 | S364: 0.3443 | T364: 0.3465 | U364: 0.3182
C365: none | D365: 50 to 69 | E365: BSM | F365: 30/06/2015 | G365: 59.2467 | H365: 59.292 | I365: 69.8004 | J365: 69.9653 | K365: 68.0041 | L365: 0.7914 | M365: 2.9298 | N365: 0.3343 | O365: 0.3364 | P365: 0.3091 | Q365: 0.7878 | R365: 2.8814 | S365: 0.3326 | T365: 0.3347 | U365: 0.3079
C366: none | D366: 50 to 69 | E366: BSM | F366: 30/06/2016 | G366: 60.09 | H366: 62.1311 | I366: 69.3231 | J366: 69.4424 | K366: 67.7323 | L366: 0.7745 | M366: 2.7894 | N366: 0.332 | O366: 0.3344 | P366: 0.3061 | Q366: 0.7707 | R366: 2.7309 | S366: 0.3305 | T366: 0.3329 | U366: 0.3048
C367: none | D367: 50 to 69 | E367: BSM | F367: 31/12/2011 | G367: 52.6118 | H367: 55.102 | I367: 64.5254 | J367: 64.6633 | K367: 62.6431 | L367: 0.8712 | M367: 3.1765 | N367: 0.3611 | O367: 0.3634 | P367: 0.3348 | Q367: 0.8699 | R367: 3.1458 | S367: 0.3598 | T367: 0.3621 | U367: 0.3339
C368: none | D368: 50 to 69 | E368: BSM | F368: 31/12/2012 | G368: 55.0987 | H368: 54.8768 | I368: 66.2749 | J368: 66.4438 | K368: 64.4659 | L368: 0.8461 | M368: 3.1209 | N368: 0.3528 | O368: 0.355 | P368: 0.3269 | Q368: 0.8439 | R368: 3.0927 | S368: 0.3515 | T368: 0.3536 | U368: 0.3258
C369: none | D369: 50 to 69 | E369: BSM | F369: 31/12/2013 | G369: 56.9171 | H369: 56.5258 | I369: 66.2412 | J369: 66.3892 | K369: 64.695 | L369: 0.822 | M369: 3.0388 | N369: 0.3493 | O369: 0.3516 | P369: 0.3222 | Q369: 0.8191 | R369: 3.0026 | S369: 0.3479 | T369: 0.3502 | U369: 0.3212
C370: none | D370: 50 to 69 | E370: BSM | F370: 31/12/2014 | G370: 58.3084 | H370: 61.9731 | I370: 68.642 | J370: 68.7463 | K370: 66.8966 | L370: 0.8014 | M370: 2.9229 | N370: 0.3393 | O370: 0.3417 | P370: 0.3136 | Q370: 0.7982 | R370: 2.8595 | S370: 0.3379 | T370: 0.3402 | U370: 0.3124
C371: none | D371: 50 to 69 | E371: BSM | F371: 31/12/2015 | G371: 60.0196 | H371: 62.8085 | I371: 70.1325 | J371: 70.2508 | K371: 68.4006 | L371: 0.7818 | M371: 2.8354 | N371: 0.3313 | O371: 0.3336 | P371: 0.3062 | Q371: 0.778 | R371: 2.7711 | S371: 0.3298 | T371: 0.332 | U371: 0.305
C372: none | D372: 50 to 69 | E372: BSOS | F372: 30/06/2012 | G372: 60.7558 | H372: 59.1304 | I372: 73.3206 | J372: 73.417 | K372: 72.7171 | L372: 2.3534 | M372: 6.6543 | N372: 0.4729 | O372: 0.474 | P372: 0.4645 | Q372: 2.3167 | R372: 6.4159 | S372: 0.469 | T372: 0.47 | U372: 0.4609
C373: none | D373: 50 to 69 | E373: BSOS | F373: 30/06/2013 | G373: 65.8242 | H373: 63.3333 | I373: 75.0846 | J373: 75.166 | K373: 74.6252 | L373: 2.2307 | M373: 6.44 | N373: 0.4575 | O373: 0.4585 | P373: 0.4485 | Q373: 2.1795 | R373: 6.1062 | S373: 0.4533 | T373: 0.4544 | U373: 0.4447
C374: none | D374: 50 to 69 | E374: BSOS | F374: 30/06/2014 | G374: 66.9271 | H374: 60.3846 | I374: 76.7627 | J374: 76.8826 | K374: 76.2616 | L374: 2.1551 | M374: 6.2281 | N374: 0.4413 | O374: 0.4421 | P374: 0.4329 | Q374: 2.1033 | R374: 5.9885 | S374: 0.4368 | T374: 0.4377 | U374: 0.4288
C375: none | D375: 50 to 69 | E375: BSOS | F375: 30/06/2015 | G375: 64.686 | H375: 62.5926 | I375: 73.4662 | J375: 73.5469 | K375: 72.9966 | L375: 2.1028 | M375: 6.07 | N375: 0.4553 | O375: 0.4566 | P375: 0.4452 | Q375: 2.0611 | R375: 5.7902 | S375: 0.4515 | T375: 0.4528 | U375: 0.4419
C376: none | D376: 50 to 69 | E376: BSOS | F376: 30/06/2016 | G376: 63.7443 | H376: 58.3871 | I376: 74.629 | J376: 74.765 | K376: 74.0258 | L376: 2.0536 | M376: 5.7067 | N376: 0.4447 | O376: 0.4458 | P376: 0.4353 | Q376: 2.0167 | R376: 5.5449 | S376: 0.4408 | T376: 0.4419 | U376: 0.4318
C377: none | D377: 50 to 69 | E377: BSOS | F377: 31/12/2011 | G377: 64.6988 | H377: 62.7273 | I377: 75.9857 | J377: 76.073 | K377: 75.4548 | L377: 2.3535 | M377: 6.754 | N377: 0.4602 | O377: 0.4612 | P377: 0.4525 | Q377: 2.3014 | R377: 6.4059 | S377: 0.4558 | T377: 0.4567 | U377: 0.4483
C378: none | D378: 50 to 69 | E378: BSOS | F378: 31/12/2012 | G378: 64.9718 | H378: 62.5532 | I378: 76.0586 | J378: 76.1513 | K378: 75.5172 | L378: 2.2741 | M378: 6.528 | N378: 0.4541 | O378: 0.4551 | P378: 0.446 | Q378: 2.2243 | R378: 6.2069 | S378: 0.4496 | T378: 0.4505 | U378: 0.442
C379: none | D379: 50 to 69 | E379: BSOS | F379: 31/12/2013 | G379: 66.8984 | H379: 62 | I379: 76.3845 | J379: 76.487 | K379: 75.9075 | L379: 2.1848 | M379: 6.3305 | N379: 0.4465 | O379: 0.4474 | P379: 0.438 | Q379: 2.1317 | R379: 6.0423 | S379: 0.4422 | T379: 0.4431 | U379: 0.4339
C380: none | D380: 50 to 69 | E380: BSOS | F380: 31/12/2014 | G380: 64.8622 | H380: 59.6226 | I380: 73.9097 | J380: 74.015 | K380: 73.4372 | L380: 2.1406 | M380: 6.1766 | N380: 0.4556 | O380: 0.4567 | P380: 0.446 | Q380: 2.0968 | R380: 5.9589 | S380: 0.4518 | T380: 0.4529 | U380: 0.4424
C381: none | D381: 50 to 69 | E381: BSOS | F381: 31/12/2015 | G381: 62.6291 | H381: 61.3793 | I381: 71.2694 | J381: 71.3476 | K381: 70.7989 | L381: 2.0943 | M381: 5.8692 | N381: 0.4641 | O381: 0.4657 | P381: 0.4534 | Q381: 2.0595 | R381: 5.6342 | S381: 0.4609 | T381: 0.4623 | U381: 0.4503
C382: none | D382: 50 to 69 | E382: BSSL | F382: 30/06/2012 | G382: 76.5672 | H382: 61.6049 | I382: 80.5005 | J382: 80.6812 | K382: 80.3239 | L382: 1.3409 | M382: 3.4483 | N382: 0.2671 | O382: 0.2675 | P382: 0.2619 | Q382: 1.3021 | R382: 3.3636 | S382: 0.2651 | T382: 0.2654 | U382: 0.26
... 29 more rows

Sheet 1.a.2
A2: 1.a.2 | C2: =INDEX(reference!B2:B99, MATCH(A2, reference!$A$2:$A$99, 0)) -> Coverage by initial and subsequent screens | AA2: Return to Index
C5: Description: | D5: =INDEX(reference!$J$2:$J$99, MATCH($A$2, reference!$A$2:$A$99, 0)) -> The number of women who had an initial/subsequent as a percentage of the number of women screened.
C7: Target: | D7: =INDEX(reference!$I$2:$I$99, MATCH($A$2, reference!$A$2:$A$99, 0)) -> No target
E33: Māori | K33: Pacific | Q33: Non-Māori | U33: Non-Māori Non-Pacific | Y33: All
E34: =INDEX(reference!$C$2:$C$99, MATCH($A$2, reference!$A$2:$A$99, 0)) -> Women Screened by Type | F34: =INDEX(reference!$D$2:$D$99, MATCH($A$2, reference!$A$2:$A$99, 0)) -> Women Screened | G34: =INDEX(reference!$E$2:$E$99, MATCH($A$2, reference!$A$2:$A$99, 0)) -> % Screened (95% CI) | I34: Māori / Non-Māori Ratio | K34: =INDEX(reference!$C$2:$C$99, MATCH($A$2, reference!$A$2:$A$99, 0)) -> Women Screened by Type | L34: =INDEX(reference!$D$2:$D$99, MATCH($A$2, reference!$A$2:$A$99, 0)) -> Women Screened | M34: =INDEX(reference!$E$2:$E$99, MATCH($A$2, reference!$A$2:$A$99, 0)) -> % Screened (95% CI) | O34: Pacific / Non-Māori Non-Pacific Ratio | Q34: =INDEX(reference!$C$2:$C$99, MATCH($A$2, reference!$A$2:$A$99, 0)) -> Women Screened by Type | R34: =INDEX(reference!$D$2:$D$99, MATCH($A$2, reference!$A$2:$A$99, 0)) -> Women Screened | S34: =INDEX(reference!$E$2:$E$99, MATCH($A$2, reference!$A$2:$A$99, 0)) -> % Screened (95% CI) | U34: =INDEX(reference!$C$2:$C$99, MATCH($A$2, reference!$A$2:$A$99, 0)) -> Women Screened by Type | V34: =INDEX(reference!$D$2:$D$99, MATCH($A$2, reference!$A$2:$A$99, 0)) -> Women Screened | W34: =INDEX(reference!$E$2:$E$99, MATCH($A$2, reference!$A$2:$A$99, 0)) -> % Screened (95% CI) | Y34: =INDEX(reference!$C$2:$C$99, MATCH($A$2, reference!$A$2:$A$99, 0)) -> Women Screened by Type | Z34: =INDEX(reference!$D$2:$D$99, MATCH($A$2, reference!$A$2:$A$99, 0)) -> Women Screened | AA34: =INDEX(reference!$E$2:$E$99, MATCH($A$2, reference!$A$2:$A$99, 0)) -> % Screened (95% CI)
B35: 45 to 49 | C35: Initial | D35: BSWN | E35: 1108 | F35: 2362 | G35: 46.9094 | H35: (44.9, 48.9) | I35: 1.099 | J35: (1.05, 1.15) | K35: 423 | L35: 999 | M35: 42.3423 | N35: (39.3, 45.5) | O35: 0.991 | P35: (0.92, 1.07) | Q35: 7086 | R35: 16597 | S35: 42.6945 | T35: (41.9, 43.5) | U35: 6663 | V35: 15598 | W35: 42.717 | X35: (41.9, 43.5) | Y35: 8194 | Z35: 18959 | AA35: 43.2196 | AB35: (42.5, 43.9)
B36: 45 to 49 | C36: Initial | D36: BSCM | E36: 781 | F36: 1669 | G36: 46.7945 | H36: (44.4, 49.2) | I36: 1.054 | J36: (1.00, 1.11) | K36: 1192 | L36: 2605 | M36: 45.7582 | N36: (43.8, 47.7) | O36: 1.04 | P36: (0.99, 1.09) | Q36: 5182 | R36: 11676 | S36: 44.3816 | T36: (43.5, 45.3) | U36: 3990 | V36: 9071 | W36: 43.9863 | X36: (43.0, 45.0) | Y36: 5963 | Z36: 13345 | AA36: 44.6834 | AB36: (43.8, 45.5)
B37: 45 to 49 | C37: Initial | D37: BSAL | E37: 373 | F37: 787 | G37: 47.3952 | H37: (43.9, 51.0) | I37: 1.121 | J37: (1.04, 1.21) | K37: 551 | L37: 1345 | M37: 40.9665 | N37: (38.3, 43.6) | O37: 0.965 | P37: (0.90, 1.03) | Q37: 4495 | R37: 10636 | S37: 42.2621 | T37: (41.3, 43.2) | U37: 3944 | V37: 9291 | W37: 42.4497 | X37: (41.4, 43.5) | Y37: 4868 | Z37: 11423 | AA37: 42.6158 | AB37: (41.7, 43.5)
B38: 45 to 49 | C38: Initial | D38: BSM | E38: 1570 | F38: 2958 | G38: 53.0764 | H38: (51.3, 54.9) | I38: 1.102 | J38: (1.06, 1.14) | K38: 180 | L38: 292 | M38: 61.6438 | N38: (55.8, 67.2) | O38: 1.288 | P38: (1.17, 1.41) | Q38: 6601 | R38: 13703 | S38: 48.1719 | T38: (47.3, 49.0) | U38: 6421 | V38: 13411 | W38: 47.8786 | X38: (47.0, 48.7) | Y38: 8171 | Z38: 16661 | AA38: 49.0427 | AB38: (48.3, 49.8)
B39: 45 to 49 | C39: Initial | D39: BSCC | E39: 1157 | F39: 2452 | G39: 47.186 | H39: (45.2, 49.2) | I39: 1.1 | J39: (1.05, 1.15) | K39: 114 | L39: 236 | M39: 48.3051 | N39: (41.8, 54.9) | O39: 1.129 | P39: (0.99, 1.29) | Q39: 4695 | R39: 10945 | S39: 42.8963 | T39: (42.0, 43.8) | U39: 4581 | V39: 10709 | W39: 42.7771 | X39: (41.8, 43.7) | Y39: 5852 | Z39: 13397 | AA39: 43.6814 | AB39: (42.8, 44.5)
B40: 45 to 49 | C40: Initial | D40: BSC | E40: 556 | F40: 1222 | G40: 45.4992 | H40: (42.7, 48.3) | I40: 1.052 | J40: (0.99, 1.12) | K40: 298 | L40: 654 | M40: 45.5657 | N40: (41.7, 49.5) | O40: 1.057 | P40: (0.97, 1.15) | Q40: 4724 | R40: 10923 | S40: 43.2482 | T40: (42.3, 44.2) | U40: 4426 | V40: 10269 | W40: 43.1006 | X40: (42.1, 44.1) | Y40: 5280 | Z40: 12145 | AA40: 43.4747 | AB40: (42.6, 44.4)
B41: 45 to 49 | C41: Initial | D41: BSSL | E41: 652 | F41: 1542 | G41: 42.2827 | H41: (39.8, 44.8) | I41: 1.047 | J41: (0.99, 1.11) | K41: 134 | L41: 263 | M41: 50.9506 | N41: (44.7, 57.1) | O41: 1.266 | P41: (1.12, 1.43) | Q41: 8809 | R41: 21818 | S41: 40.3749 | T41: (39.7, 41.0) | U41: 8675 | V41: 21555 | W41: 40.2459 | X41: (39.6, 40.9) | Y41: 9461 | Z41: 23360 | AA41: 40.5009 | AB41: (39.9, 41.1)
B42: 45 to 49 | C42: Initial | D42: BSOS | E42: 272 | F42: 570 | G42: 47.7193 | H42: (43.6, 51.9) | I42: 1.05 | J42: (0.96, 1.15) | K42: 42 | L42: 81 | M42: 51.8519 | N42: (40.5, 63.1) | O42: 1.143 | P42: (0.92, 1.41) | Q42: 3191 | R42: 7024 | S42: 45.43 | T42: (44.3, 46.6) | U42: 3149 | V42: 6943 | W42: 45.355 | X42: (44.2, 46.5) | Y42: 3463 | Z42: 7594 | AA42: 45.6018 | AB42: (44.5, 46.7)
B43: 45 to 49 | C43: Initial | D43: Total | E43: 6469 | F43: 13562 | G43: 47.6995 | H43: (46.9, 48.5) | I43: 1.101 | J43: (1.08, 1.12) | K43: 2934 | L43: 6475 | M43: 45.3127 | N43: (44.1, 46.5) | O43: 1.049 | P43: (1.02, 1.08) | Q43: 44783 | R43: 103322 | S43: 43.3431 | T43: (43.0, 43.6) | U43: 41849 | V43: 96847 | W43: 43.2115 | X43: (42.9, 43.5) | Y43: 51252 | Z43: 116884 | AA43: 43.8486 | AB43: (43.6, 44.1)
B44: 45 to 49 | C44: Subsequent | D44: BSWN | E44: 1254 | F44: 2362 | G44: 53.0906 | H44: (51.1, 55.1) | I44: 0.926 | J44: (0.89, 0.96) | K44: 576 | L44: 999 | M44: 57.6577 | N44: (54.5, 60.7) | O44: 1.007 | P44: (0.95, 1.06) | Q44: 9511 | R44: 16597 | S44: 57.3055 | T44: (56.5, 58.1) | U44: 8935 | V44: 15598 | W44: 57.283 | X44: (56.5, 58.1) | Y44: 10765 | Z44: 18959 | AA44: 56.7804 | AB44: (56.1, 57.5)
B45: 45 to 49 | C45: Subsequent | D45: BSCM | E45: 888 | F45: 1669 | G45: 53.2055 | H45: (50.8, 55.6) | I45: 0.957 | J45: (0.91, 1.00) | K45: 1413 | L45: 2605 | M45: 54.2418 | N45: (52.3, 56.2) | O45: 0.968 | P45: (0.93, 1.01) | Q45: 6494 | R45: 11676 | S45: 55.6184 | T45: (54.7, 56.5) | U45: 5081 | V45: 9071 | W45: 56.0137 | X45: (55.0, 57.0) | Y45: 7382 | Z45: 13345 | AA45: 55.3166 | AB45: (54.5, 56.2)
B46: 45 to 49 | C46: Subsequent | D46: BSAL | E46: 414 | F46: 787 | G46: 52.6048 | H46: (49.0, 56.1) | I46: 0.911 | J46: (0.85, 0.97) | K46: 794 | L46: 1345 | M46: 59.0335 | N46: (56.4, 61.7) | O46: 1.026 | P46: (0.98, 1.08) | Q46: 6141 | R46: 10636 | S46: 57.7379 | T46: (56.8, 58.7) | U46: 5347 | V46: 9291 | W46: 57.5503 | X46: (56.5, 58.6) | Y46: 6555 | Z46: 11423 | AA46: 57.3842 | AB46: (56.5, 58.3)
B47: 45 to 49 | C47: Subsequent | D47: BSM | E47: 1388 | F47: 2958 | G47: 46.9236 | H47: (45.1, 48.7) | I47: 0.905 | J47: (0.87, 0.94) | K47: 112 | L47: 292 | M47: 38.3562 | N47: (32.8, 44.2) | O47: 0.736 | P47: (0.64, 0.85) | Q47: 7102 | R47: 13703 | S47: 51.8281 | T47: (51.0, 52.7) | U47: 6990 | V47: 13411 | W47: 52.1214 | X47: (51.3, 53.0) | Y47: 8490 | Z47: 16661 | AA47: 50.9573 | AB47: (50.2, 51.7)
B48: 45 to 49 | C48: Subsequent | D48: BSCC | E48: 1295 | F48: 2452 | G48: 52.814 | H48: (50.8, 54.8) | I48: 0.925 | J48: (0.89, 0.96) | K48: 122 | L48: 236 | M48: 51.6949 | N48: (45.1, 58.2) | O48: 0.903 | P48: (0.80, 1.02) | Q48: 6250 | R48: 10945 | S48: 57.1037 | T48: (56.2, 58.0) | U48: 6128 | V48: 10709 | W48: 57.2229 | X48: (56.3, 58.2) | Y48: 7545 | Z48: 13397 | AA48: 56.3186 | AB48: (55.5, 57.2)
B49: 45 to 49 | C49: Subsequent | D49: BSC | E49: 666 | F49: 1222 | G49: 54.5008 | H49: (51.7, 57.3) | I49: 0.96 | J49: (0.91, 1.01) | K49: 356 | L49: 654 | M49: 54.4343 | N49: (50.5, 58.3) | O49: 0.957 | P49: (0.89, 1.03) | Q49: 6199 | R49: 10923 | S49: 56.7518 | T49: (55.8, 57.7) | U49: 5843 | V49: 10269 | W49: 56.8994 | X49: (55.9, 57.9) | Y49: 6865 | Z49: 12145 | AA49: 56.5253 | AB49: (55.6, 57.4)
B50: 45 to 49 | C50: Subsequent | D50: BSSL | E50: 890 | F50: 1542 | G50: 57.7173 | H50: (55.2, 60.2) | I50: 0.968 | J50: (0.93, 1.01) | K50: 129 | L50: 263 | M50: 49.0494 | N50: (42.9, 55.3) | O50: 0.821 | P50: (0.72, 0.93) | Q50: 13009 | R50: 21818 | S50: 59.6251 | T50: (59.0, 60.3) | U50: 12880 | V50: 21555 | W50: 59.7541 | X50: (59.1, 60.4) | Y50: 13899 | Z50: 23360 | AA50: 59.4991 | AB50: (58.9, 60.1)
B51: 45 to 49 | C51: Subsequent | D51: BSOS | E51: 298 | F51: 570 | G51: 52.2807 | H51: (48.1, 56.4) | I51: 0.958 | J51: (0.88, 1.04) | K51: 39 | L51: 81 | M51: 48.1481 | N51: (36.9, 59.5) | O51: 0.881 | P51: (0.70, 1.11) | Q51: 3833 | R51: 7024 | S51: 54.57 | T51: (53.4, 55.7) | U51: 3794 | V51: 6943 | W51: 54.645 | X51: (53.5, 55.8) | Y51: 4131 | Z51: 7594 | AA51: 54.3982 | AB51: (53.3, 55.5)
B52: 45 to 49 | C52: Subsequent | D52: Total | E52: 7093 | F52: 13562 | G52: 52.3005 | H52: (51.5, 53.1) | I52: 0.923 | J52: (0.91, 0.94) | K52: 3541 | L52: 6475 | M52: 54.6873 | N52: (53.5, 55.9) | O52: 0.963 | P52: (0.94, 0.98) | Q52: 58539 | R52: 103322 | S52: 56.6569 | T52: (56.4, 57.0) | U52: 54998 | V52: 96847 | W52: 56.7885 | X52: (56.5, 57.1) | Y52: 65632 | Z52: 116884 | AA52: 56.1514 | AB52: (55.9, 56.4)
B53: 50 to 69 | C53: Initial | D53: BSWN | E53: 250 | F53: 6718 | G53: 3.7213 | H53: (3.3, 4.2) | I53: 0.776 | J53: (0.68, 0.88) | K53: 117 | L53: 2722 | M53: 4.2983 | N53: (3.6, 5.1) | O53: 0.892 | P53: (0.74, 1.07) | Q53: 2681 | R53: 55925 | S53: 4.7939 | T53: (4.6, 5.0) | U53: 2564 | V53: 53203 | W53: 4.8193 | X53: (4.6, 5.0) | Y53: 2931 | Z53: 62643 | AA53: 4.6789 | AB53: (4.5, 4.8)
B54: 50 to 69 | C54: Initial | D54: BSCM | E54: 198 | F54: 4182 | G54: 4.7346 | H54: (4.1, 5.4) | I54: 0.743 | J54: (0.64, 0.86) | K54: 421 | L54: 6395 | M54: 6.5833 | N54: (6.0, 7.2) | O54: 1.041 | P54: (0.94, 1.15) | Q54: 2181 | R54: 34217 | S54: 6.374 | T54: (6.1, 6.6) | U54: 1760 | V54: 27822 | W54: 6.3259 | X54: (6.0, 6.6) | Y54: 2379 | Z54: 38399 | AA54: 6.1955 | AB54: (6.0, 6.4)
B55: 50 to 69 | C55: Initial | D55: BSAL | E55: 102 | F55: 1983 | G55: 5.1437 | H55: (4.2, 6.2) | I55: 0.943 | J55: (0.78, 1.14) | K55: 178 | L55: 3255 | M55: 5.4685 | N55: (4.7, 6.3) | O55: 1.003 | P55: (0.86, 1.17) | Q55: 1724 | R55: 31605 | S55: 5.4548 | T55: (5.2, 5.7) | U55: 1546 | V55: 28350 | W55: 5.4533 | X55: (5.2, 5.7) | Y55: 1826 | Z55: 33588 | AA55: 5.4365 | AB55: (5.2, 5.7)
B56: 50 to 69 | C56: Initial | D56: BSM | E56: 811 | F56: 9350 | G56: 8.6738 | H56: (8.1, 9.3) | I56: 1.675 | J56: (1.55, 1.81) | K56: 98 | L56: 758 | M56: 12.9288 | N56: (10.6, 15.5) | O56: 2.554 | P56: (2.12, 3.08) | Q56: 2683 | R56: 51819 | S56: 5.1776 | T56: (5.0, 5.4) | U56: 2585 | V56: 51061 | W56: 5.0626 | X56: (4.9, 5.3) | Y56: 3494 | Z56: 61169 | AA56: 5.712 | AB56: (5.5, 5.9)
B57: 50 to 69 | C57: Initial | D57: BSCC | E57: 551 | F57: 7612 | G57: 7.2386 | H57: (6.7, 7.8) | I57: 1.929 | J57: (1.76, 2.12) | K57: 55 | L57: 654 | M57: 8.4098 | N57: (6.4, 10.8) | O57: 2.282 | P57: (1.76, 2.95) | Q57: 1732 | R57: 46162 | S57: 3.752 | T57: (3.6, 3.9) | U57: 1677 | V57: 45508 | W57: 3.6851 | X57: (3.5, 3.9) | Y57: 2283 | Z57: 53774 | AA57: 4.2455 | AB57: (4.1, 4.4)
B58: 50 to 69 | C58: Initial | D58: BSC | E58: 168 | F58: 3498 | G58: 4.8027 | H58: (4.1, 5.6) | I58: 1.083 | J58: (0.93, 1.26) | K58: 99 | L58: 1939 | M58: 5.1057 | N58: (4.2, 6.2) | O58: 1.161 | P58: (0.95, 1.41) | Q58: 1726 | R58: 38928 | S58: 4.4338 | T58: (4.2, 4.6) | U58: 1627 | V58: 36989 | W58: 4.3986 | X58: (4.2, 4.6) | Y58: 1894 | Z58: 42426 | AA58: 4.4642 | AB58: (4.3, 4.7)
B59: 50 to 69 | C59: Initial | D59: BSSL | E59: 116 | F59: 3715 | G59: 3.1225 | H59: (2.6, 3.7) | I59: 1.367 | J59: (1.14, 1.64) | K59: 33 | L59: 629 | M59: 5.2464 | N59: (3.6, 7.3) | O59: 2.322 | P59: (1.66, 3.25) | Q59: 1679 | R59: 73481 | S59: 2.2849 | T59: (2.2, 2.4) | U59: 1646 | V59: 72852 | W59: 2.2594 | X59: (2.2, 2.4) | Y59: 1795 | Z59: 77196 | AA59: 2.3253 | AB59: (2.2, 2.4)
B60: 50 to 69 | C60: Initial | D60: BSOS | E60: 67 | F60: 1396 | G60: 4.7994 | H60: (3.7, 6.1) | I60: 1.615 | J60: (1.27, 2.06) | K60: 8 | L60: 181 | M60: 4.4199 | N60: (1.9, 8.5) | O60: 1.492 | P60: (0.76, 2.95) | Q60: 828 | R60: 27859 | S60: 2.9721 | T60: (2.8, 3.2) | U60: 820 | V60: 27678 | W60: 2.9626 | X60: (2.8, 3.2) | Y60: 895 | Z60: 29255 | AA60: 3.0593 | AB60: (2.9, 3.3)
B61: 50 to 69 | C61: Initial | D61: Total | E61: 2263 | F61: 38454 | G61: 5.885 | H61: (5.7, 6.1) | I61: 1.391 | J61: (1.33, 1.45) | K61: 1009 | L61: 16533 | M61: 6.1029 | N61: (5.7, 6.5) | O61: 1.474 | P61: (1.38, 1.57) | Q61: 15234 | R61: 359996 | S61: 4.2317 | T61: (4.2, 4.3) | U61: 14225 | V61: 343463 | W61: 4.1416 | X61: (4.1, 4.2) | Y61: 17497 | Z61: 398450 | AA61: 4.3913 | AB61: (4.3, 4.5)
B62: 50 to 69 | C62: Subsequent | D62: BSWN | E62: 6468 | F62: 6718 | G62: 96.2787 | H62: (95.8, 96.7) | I62: 1.011 | J62: (1.01, 1.02) | K62: 2605 | L62: 2722 | M62: 95.7017 | N62: (94.9, 96.4) | O62: 1.005 | P62: (1.00, 1.01) | Q62: 53244 | R62: 55925 | S62: 95.2061 | T62: (95.0, 95.4) | U62: 50639 | V62: 53203 | W62: 95.1807 | X62: (95.0, 95.4) | Y62: 59712 | Z62: 62643 | AA62: 95.3211 | AB62: (95.2, 95.5)
B63: 50 to 69 | C63: Subsequent | D63: BSCM | E63: 3984 | F63: 4182 | G63: 95.2654 | H63: (94.6, 95.9) | I63: 1.018 | J63: (1.01, 1.02) | K63: 5974 | L63: 6395 | M63: 93.4167 | N63: (92.8, 94.0) | O63: 0.997 | P63: (0.99, 1.00) | Q63: 32036 | R63: 34217 | S63: 93.626 | T63: (93.4, 93.9) | U63: 26062 | V63: 27822 | W63: 93.6741 | X63: (93.4, 94.0) | Y63: 36020 | Z63: 38399 | AA63: 93.8045 | AB63: (93.6, 94.0)
B64: 50 to 69 | C64: Subsequent | D64: BSAL | E64: 1881 | F64: 1983 | G64: 94.8563 | H64: (93.8, 95.8) | I64: 1.003 | J64: (0.99, 1.01) | K64: 3077 | L64: 3255 | M64: 94.5315 | N64: (93.7, 95.3) | O64: 1 | P64: (0.99, 1.01) | Q64: 29881 | R64: 31605 | S64: 94.5452 | T64: (94.3, 94.8) | U64: 26804 | V64: 28350 | W64: 94.5467 | X64: (94.3, 94.8) | Y64: 31762 | Z64: 33588 | AA64: 94.5635 | AB64: (94.3, 94.8)
B65: 50 to 69 | C65: Subsequent | D65: BSM | E65: 8539 | F65: 9350 | G65: 91.3262 | H65: (90.7, 91.9) | I65: 0.963 | J65: (0.96, 0.97) | K65: 660 | L65: 758 | M65: 87.0712 | N65: (84.5, 89.4) | O65: 0.917 | P65: (0.89, 0.94) | Q65: 49136 | R65: 51819 | S65: 94.8224 | T65: (94.6, 95.0) | U65: 48476 | V65: 51061 | W65: 94.9374 | X65: (94.7, 95.1) | Y65: 57675 | Z65: 61169 | AA65: 94.288 | AB65: (94.1, 94.5)
B66: 50 to 69 | C66: Subsequent | D66: BSCC | E66: 7061 | F66: 7612 | G66: 92.7614 | H66: (92.2, 93.3) | I66: 0.964 | J66: (0.96, 0.97) | K66: 599 | L66: 654 | M66: 91.5902 | N66: (89.2, 93.6) | O66: 0.951 | P66: (0.93, 0.97) | Q66: 44430 | R66: 46162 | S66: 96.248 | T66: (96.1, 96.4) | U66: 43831 | V66: 45508 | W66: 96.3149 | X66: (96.1, 96.5) | Y66: 51491 | Z66: 53774 | AA66: 95.7545 | AB66: (95.6, 95.9)
B67: 50 to 69 | C67: Subsequent | D67: BSC | E67: 3330 | F67: 3498 | G67: 95.1973 | H67: (94.4, 95.9) | I67: 0.996 | J67: (0.99, 1.00) | K67: 1840 | L67: 1939 | M67: 94.8943 | N67: (93.8, 95.8) | O67: 0.993 | P67: (0.98, 1.00) | Q67: 37202 | R67: 38928 | S67: 95.5662 | T67: (95.4, 95.8) | U67: 35362 | V67: 36989 | W67: 95.6014 | X67: (95.4, 95.8) | Y67: 40532 | Z67: 42426 | AA67: 95.5358 | AB67: (95.3, 95.7)
B68: 50 to 69 | C68: Subsequent | D68: BSSL | E68: 3599 | F68: 3715 | G68: 96.8775 | H68: (96.3, 97.4) | I68: 0.991 | J68: (0.99, 1.00) | K68: 596 | L68: 629 | M68: 94.7536 | N68: (92.7, 96.4) | O68: 0.969 | P68: (0.95, 0.99) | Q68: 71802 | R68: 73481 | S68: 97.7151 | T68: (97.6, 97.8) | U68: 71206 | V68: 72852 | W68: 97.7406 | X68: (97.6, 97.8) | Y68: 75401 | Z68: 77196 | AA68: 97.6747 | AB68: (97.6, 97.8)
B69: 50 to 69 | C69: Subsequent | D69: BSOS | E69: 1329 | F69: 1396 | G69: 95.2006 | H69: (93.9, 96.3) | I69: 0.981 | J69: (0.97, 0.99) | K69: 173 | L69: 181 | M69: 95.5801 | N69: (91.5, 98.1) | O69: 0.985 | P69: (0.95, 1.02) | Q69: 27031 | R69: 27859 | S69: 97.0279 | T69: (96.8, 97.2) | U69: 26858 | V69: 27678 | W69: 97.0374 | X69: (96.8, 97.2) | Y69: 28360 | Z69: 29255 | AA69: 96.9407 | AB69: (96.7, 97.1)
B70: 50 to 69 | C70: Subsequent | D70: Total | E70: 36191 | F70: 38454 | G70: 94.115 | H70: (93.9, 94.3) | I70: 0.983 | J70: (0.98, 0.98) | K70: 15524 | L70: 16533 | M70: 93.8971 | N70: (93.5, 94.3) | O70: 0.98 | P70: (0.98, 0.98) | Q70: 344762 | R70: 359996 | S70: 95.7683 | T70: (95.7, 95.8) | U70: 329238 | V70: 343463 | W70: 95.8584 | X70: (95.8, 95.9) | Y70: 380953 | Z70: 398450 | AA70: 95.6087 | AB70: (95.5, 95.7)
C201: ="Figure " & A2 & ".1, " & C204 & ", " & D204 & IF(E204 = "None", "", ", " & E204) & ", Two Years to Time Period" -> Figure 1.a.2.1, Total, 50 to 69, Initial, Two Years to Time Period
C202: =INDEX(reference!$H$2:$H$99, MATCH($A$2, reference!$A$2:$A$99, 0)) -> % Screened by Type
C204: =INDEX(C206:C214, C205) -> Total | D204: =INDEX(D206:D214, D205) -> 50 to 69 | E204: Initial
C205: 9 | D205: 2 | E205: 1
B206: 1 | C206: BSWN | D206: 45 to 49 | E206: =IFERROR(INDEX('reference - splits'!$C$2:$C$72, MATCH($A$2 & " - Split " & B206, 'reference - splits'!$B$2:$B$72, 0)), "") -> Initial
B207: 2 | C207: BSCM | D207: 50 to 69 | E207: =IFERROR(INDEX('reference - splits'!$C$2:$C$72, MATCH($A$2 & " - Split " & B207, 'reference - splits'!$B$2:$B$72, 0)), "") -> Subsequent
B208: 3 | C208: BSAL | E208: =IFERROR(INDEX('reference - splits'!$C$2:$C$72, MATCH($A$2 & " - Split " & B208, 'reference - splits'!$B$2:$B$72, 0)), "") -> 
B209: 4 | C209: BSM | E209: =IFERROR(INDEX('reference - splits'!$C$2:$C$72, MATCH($A$2 & " - Split " & B209, 'reference - splits'!$B$2:$B$72, 0)), "") -> 
B210: 5 | C210: BSCC | E210: =IFERROR(INDEX('reference - splits'!$C$2:$C$72, MATCH($A$2 & " - Split " & B210, 'reference - splits'!$B$2:$B$72, 0)), "") -> 
B211: 6 | C211: BSC | E211: =IFERROR(INDEX('reference - splits'!$C$2:$C$72, MATCH($A$2 & " - Split " & B211, 'reference - splits'!$B$2:$B$72, 0)), "") -> 
B212: 7 | C212: BSSL | E212: =IFERROR(INDEX('reference - splits'!$C$2:$C$72, MATCH($A$2 & " - Split " & B212, 'reference - splits'!$B$2:$B$72, 0)), "") -> 
B213: 8 | C213: BSOS | E213: =IFERROR(INDEX('reference - splits'!$C$2:$C$72, MATCH($A$2 & " - Split " & B213, 'reference - splits'!$B$2:$B$72, 0)), "") -> 
B214: 9 | C214: Total | E214: =IFERROR(INDEX('reference - splits'!$C$2:$C$72, MATCH($A$2 & " - Split " & B214, 'reference - splits'!$B$2:$B$72, 0)), "") -> 
C216: Visible | G216: TRUE | H216: TRUE | I216: FALSE | J216: FALSE | K216: TRUE | L216: TRUE | M216: =$L$216 -> TRUE | N216: =$L$216 -> TRUE | O216: TRUE | P216: TRUE | Q216: TRUE | R216: TRUE | S216: TRUE | T216: TRUE | U216: TRUE
C218: split | D218: age_group | E218: lead_provider | F218: time_period | G218: Māori | H218: Pacific | I218: Non-Māori | J218: Non-Māori Non-Pacific | K218: All | L218: lci_m | M218: lci_p | N218: lci_nm | O218: lci_nmnp | P218: lci_a | Q218: uci_m | R218: uci_p | S218: uci_nm | T218: uci_nmnp | U218: uci_a | V218: target bottom | W218: target top
C219: =$E$204 -> Initial | D219: =$D$204 -> 50 to 69 | E219: =$C$204 -> Total | F219: 2011-12-31 | G219: =IF(G$216, SUMIFS(G$232:G$681, $C$232:$C$681, $C219, $D$232:$D$681, $D219, $E$232:$E$681, $E219, $F$232:$F$681, $F219), #N/A) -> 14.0425 | H219: =IF(H$216, SUMIFS(H$232:H$681, $C$232:$C$681, $C219, $D$232:$D$681, $D219, $E$232:$E$681, $E219, $F$232:$F$681, $F219), #N/A) -> 18.415 | K219: 8.9539 | L219: 0.3913 | M219: 0.6596 | N219: 0.097 | O219: 0.0968 | P219: 0.0951 | Q219: 0.3982 | R219: 0.6737 | S219: 0.0978 | T219: 0.0976 | U219: 0.0958 | V219: =IF(LEFT($D$204, 2) = "50", INDEX('reference - splits'!$E$2:$E$72, MATCH($A$2 & " - " & $E$204, 'reference - splits'!$D$2:$D$72, 0)), 0) -> 0 | W219: =IF(LEFT($D$204, 2) = "50", INDEX('reference - splits'!$F$2:$F$72, MATCH($A$2 & " - " & $E$204, 'reference - splits'!$D$2:$D$72, 0)) - V219, 0) -> 0
C220: Initial | D220: 50 to 69 | E220: Total | F220: 2012-06-30 | G220: =IF(G$216, SUMIFS(G$232:G$681, $C$232:$C$681, $C220, $D$232:$D$681, $D220, $E$232:$E$681, $E220, $F$232:$F$681, $F220), #N/A) -> 12.2889 | H220: 15.9715 | K220: 8.1717 | L220: 0.363 | M220: 0.6116 | N220: 0.0926 | O220: 0.0926 | P220: 0.0905 | Q220: 0.3701 | R220: 0.6262 | S220: 0.0934 | T220: 0.0934 | U220: 0.0913 | V220: =IF(LEFT($D$204, 2) = "50", INDEX('reference - splits'!$E$2:$E$72, MATCH($A$2 & " - " & $E$204, 'reference - splits'!$D$2:$D$72, 0)), 0) -> 0 | W220: =IF(LEFT($D$204, 2) = "50", INDEX('reference - splits'!$F$2:$F$72, MATCH($A$2 & " - " & $E$204, 'reference - splits'!$D$2:$D$72, 0)) - V220, 0) -> 0
C221: Initial | D221: 50 to 69 | E221: Total | F221: 2012-12-31 | G221: 11.1287 | H221: 13.6995 | K221: 7.5165 | L221: 0.3412 | M221: 0.5619 | N221: 0.0881 | O221: 0.0884 | P221: 0.0861 | Q221: 0.3481 | R221: 0.5769 | S221: 0.089 | T221: 0.0892 | U221: 0.0867 | V221: =IF(LEFT($D$204, 2) = "50", INDEX('reference - splits'!$E$2:$E$72, MATCH($A$2 & " - " & $E$204, 'reference - splits'!$D$2:$D$72, 0)), 0) -> 0 | W221: =IF(LEFT($D$204, 2) = "50", INDEX('reference - splits'!$F$2:$F$72, MATCH($A$2 & " - " & $E$204, 'reference - splits'!$D$2:$D$72, 0)) - V221, 0) -> 0
C222: Initial | D222: 50 to 69 | E222: Total | F222: 2013-06-30 | G222: 10.0326 | H222: 12.2259 | K222: 6.9525 | L222: 0.3213 | M222: 0.5258 | N222: 0.0848 | O222: 0.0852 | P222: 0.0826 | Q222: 0.3283 | R222: 0.5407 | S222: 0.0856 | T222: 0.086 | U222: 0.0833 | V222: =IF(LEFT($D$204, 2) = "50", INDEX('reference - splits'!$E$2:$E$72, MATCH($A$2 & " - " & $E$204, 'reference - splits'!$D$2:$D$72, 0)), 0) -> 0 | W222: =IF(LEFT($D$204, 2) = "50", INDEX('reference - splits'!$F$2:$F$72, MATCH($A$2 & " - " & $E$204, 'reference - splits'!$D$2:$D$72, 0)) - V222, 0) -> 0
C223: Initial | D223: 50 to 69 | E223: Total | F223: 2013-12-31 | G223: 9.1938 | H223: 10.6051 | K223: 6.4309 | L223: 0.3034 | M223: 0.4857 | N223: 0.0809 | O223: 0.0814 | P223: 0.0786 | Q223: 0.3103 | R223: 0.5008 | S223: 0.0816 | T223: 0.0822 | U223: 0.0794 | V223: =IF(LEFT($D$204, 2) = "50", INDEX('reference - splits'!$E$2:$E$72, MATCH($A$2 & " - " & $E$204, 'reference - splits'!$D$2:$D$72, 0)), 0) -> 0 | W223: =IF(LEFT($D$204, 2) = "50", INDEX('reference - splits'!$F$2:$F$72, MATCH($A$2 & " - " & $E$204, 'reference - splits'!$D$2:$D$72, 0)) - V223, 0) -> 0
C224: Initial | D224: 50 to 69 | E224: Total | F224: 2014-06-30 | G224: 8.3011 | H224: 9.7082 | K224: 5.9272 | L224: 0.2862 | M224: 0.4603 | N224: 0.0773 | O224: 0.0778 | P224: 0.0751 | Q224: 0.2931 | R224: 0.4755 | S224: 0.0781 | T224: 0.0787 | U224: 0.0758 | V224: =IF(LEFT($D$204, 2) = "50", INDEX('reference - splits'!$E$2:$E$72, MATCH($A$2 & " - " & $E$204, 'reference - splits'!$D$2:$D$72, 0)), 0) -> 0 | W224: =IF(LEFT($D$204, 2) = "50", INDEX('reference - splits'!$F$2:$F$72, MATCH($A$2 & " - " & $E$204, 'reference - splits'!$D$2:$D$72, 0)) - V224, 0) -> 0
C225: Initial | D225: 50 to 69 | E225: Total | F225: 2014-12-31 | G225: 7.5552 | H225: 8.5546 | K225: 5.3565 | L225: 0.2701 | M225: 0.4299 | N225: 0.073 | O225: 0.0735 | P225: 0.0708 | Q225: 0.2769 | R225: 0.445 | S225: 0.0736 | T225: 0.0743 | U225: 0.0716 | V225: =IF(LEFT($D$204, 2) = "50", INDEX('reference - splits'!$E$2:$E$72, MATCH($A$2 & " - " & $E$204, 'reference - splits'!$D$2:$D$72, 0)), 0) -> 0 | W225: =IF(LEFT($D$204, 2) = "50", INDEX('reference - splits'!$F$2:$F$72, MATCH($A$2 & " - " & $E$204, 'reference - splits'!$D$2:$D$72, 0)) - V225, 0) -> 0
C226: Initial | D226: 50 to 69 | E226: Total | F226: 2015-06-30 | G226: 7.0427 | H226: 7.5055 | K226: 5.0277 | L226: 0.2591 | M226: 0.403 | N226: 0.0705 | O226: 0.0712 | P226: 0.0684 | Q226: 0.2659 | R226: 0.4184 | S226: 0.0713 | T226: 0.0721 | U226: 0.0692 | V226: =IF(LEFT($D$204, 2) = "50", INDEX('reference - splits'!$E$2:$E$72, MATCH($A$2 & " - " & $E$204, 'reference - splits'!$D$2:$D$72, 0)), 0) -> 0 | W226: =IF(LEFT($D$204, 2) = "50", INDEX('reference - splits'!$F$2:$F$72, MATCH($A$2 & " - " & $E$204, 'reference - splits'!$D$2:$D$72, 0)) - V226, 0) -> 0
C227: Initial | D227: 50 to 69 | E227: Total | F227: 2015-12-31 | G227: 6.3644 | H227: 6.6921 | K227: 4.6308 | L227: 0.2437 | M227: 0.3767 | N227: 0.0674 | O227: 0.0682 | P227: 0.0653 | Q227: 0.2504 | R227: 0.3921 | S227: 0.0681 | T227: 0.0689 | U227: 0.066 | V227: =IF(LEFT($D$204, 2) = "50", INDEX('reference - splits'!$E$2:$E$72, MATCH($A$2 & " - " & $E$204, 'reference - splits'!$D$2:$D$72, 0)), 0) -> 0 | W227: =IF(LEFT($D$204, 2) = "50", INDEX('reference - splits'!$F$2:$F$72, MATCH($A$2 & " - " & $E$204, 'reference - splits'!$D$2:$D$72, 0)) - V227, 0) -> 0
C228: Initial | D228: 50 to 69 | E228: Total | F228: 2016-06-30 | G228: 5.885 | H228: 6.1029 | K228: 4.3913 | L228: 0.2332 | M228: 0.3601 | N228: 0.0655 | O228: 0.0664 | P228: 0.0634 | Q228: 0.2398 | R228: 0.3758 | S228: 0.0663 | T228: 0.0672 | U228: 0.064 | V228: =IF(LEFT($D$204, 2) = "50", INDEX('reference - splits'!$E$2:$E$72, MATCH($A$2 & " - " & $E$204, 'reference - splits'!$D$2:$D$72, 0)), 0) -> 0 | W228: =IF(LEFT($D$204, 2) = "50", INDEX('reference - splits'!$F$2:$F$72, MATCH($A$2 & " - " & $E$204, 'reference - splits'!$D$2:$D$72, 0)) - V228, 0) -> 0
C231: split | D231: age_group | E231: lead_provider | F231: time_period | G231: est_m | H231: est_p | I231: est_nm | J231: est_nmnp | K231: est_a | L231: lci_m | M231: lci_p | N231: lci_nm | O231: lci_nmnp | P231: lci_a | Q231: uci_m | R231: uci_p | S231: uci_nm | T231: uci_nmnp | U231: uci_a
C232: Initial | D232: 45 to 49 | E232: BSAL | F232: 30/06/2012 | G232: 50.604 | H232: 51.9742 | I232: 49.2588 | J232: 48.8903 | K232: 49.3488 | L232: 3.6535 | M232: 2.8218 | N232: 0.9659 | O232: 1.0293 | P232: 0.9329 | Q232: 3.6488 | R232: 2.8125 | S232: 0.9663 | T232: 1.0301 | U232: 0.9332
C233: Initial | D233: 45 to 49 | E233: BSAL | F233: 30/06/2013 | G233: 47.1895 | H233: 51.4368 | I233: 45.5556 | J233: 44.677 | K233: 45.6645 | L233: 3.5861 | M233: 2.6622 | N233: 0.9466 | O233: 1.013 | P233: 0.9146 | Q233: 3.608 | R233: 2.6561 | S233: 0.9489 | T233: 1.0163 | U233: 0.9167
C234: Initial | D234: 45 to 49 | E234: BSAL | F234: 30/06/2014 | G234: 47.6129 | H234: 52.5916 | I234: 46.6673 | J234: 45.7835 | K234: 46.7287 | L234: 3.5659 | M234: 2.6104 | N234: 0.9297 | O234: 0.9952 | P234: 0.8989 | Q234: 3.5841 | R234: 2.5998 | S234: 0.9314 | T234: 0.9978 | U234: 0.9005
C235: Initial | D235: 45 to 49 | E235: BSAL | F235: 30/06/2015 | G235: 48.0366 | H235: 46.087 | I235: 44.5113 | J235: 44.2845 | K235: 44.7409 | L235: 3.5947 | M235: 2.6555 | N235: 0.9331 | O235: 0.9976 | P235: 0.9026 | Q235: 3.61 | R235: 2.6721 | S235: 0.936 | T235: 1.0011 | U235: 0.9052
C236: Initial | D236: 45 to 49 | E236: BSAL | F236: 30/06/2016 | G236: 47.3952 | H236: 40.9665 | I236: 42.2621 | J236: 42.4497 | K236: 42.6158 | L236: 3.5367 | M236: 2.6431 | N236: 0.9412 | O236: 1.0079 | P236: 0.9093 | Q236: 3.5562 | R236: 2.6827 | S236: 0.9455 | T236: 1.0126 | U236: 0.913
C237: Initial | D237: 45 to 49 | E237: BSAL | F237: 31/12/2011 | G237: 53.1169 | H237: 57.76 | I237: 54.2528 | J237: 53.7658 | K237: 54.1735 | L237: 3.5959 | M237: 2.7938 | N237: 0.9703 | O237: 1.0365 | P237: 0.9358 | Q237: 3.5719 | R237: 2.7572 | S237: 0.9679 | T237: 1.0342 | U237: 0.9335
C238: Initial | D238: 45 to 49 | E238: BSAL | F238: 31/12/2012 | G238: 51.8229 | H238: 51.7446 | I238: 47.3995 | J238: 46.7718 | K238: 47.6965 | L238: 3.6002 | M238: 2.707 | N238: 0.9513 | O238: 1.017 | P238: 0.919 | Q238: 3.5861 | R238: 2.6994 | S238: 0.9527 | T238: 1.019 | U238: 0.9201
C239: Initial | D239: 45 to 49 | E239: BSAL | F239: 31/12/2013 | G239: 47.5096 | H239: 50 | I239: 45.9387 | J239: 45.3274 | K239: 46.0414 | L239: 3.5467 | M239: 2.5932 | N239: 0.9266 | O239: 0.9929 | P239: 0.8959 | Q239: 3.5654 | R239: 2.5932 | S239: 0.9287 | T239: 0.9957 | U239: 0.8978
C240: Initial | D240: 45 to 49 | E240: BSAL | F240: 31/12/2014 | G240: 47.3684 | H240: 48.5935 | I240: 44.9829 | J240: 44.4513 | K240: 45.1395 | L240: 3.5548 | M240: 2.6277 | N240: 0.9294 | O240: 0.9943 | P240: 0.8985 | Q240: 3.5748 | R240: 2.6336 | S240: 0.9319 | T240: 0.9977 | U240: 0.9009
C241: Initial | D241: 45 to 49 | E241: BSAL | F241: 31/12/2015 | G241: 46.0131 | H241: 42.5563 | I241: 41.8487 | J241: 41.7463 | K241: 42.122 | L241: 3.576 | M241: 2.6295 | N241: 0.9286 | O241: 0.9933 | P241: 0.8985 | Q241: 3.6068 | R241: 2.6613 | S241: 0.933 | T241: 0.9985 | U241: 0.9024
C242: Initial | D242: 45 to 49 | E242: BSC | F242: 30/06/2012 | G242: 49.7056 | H242: 54.5156 | I242: 47.7916 | J242: 47.3816 | K242: 47.9847 | L242: 2.8803 | M242: 4.0507 | N242: 0.9551 | O242: 0.9834 | P242: 0.9056 | Q242: 2.8818 | R242: 4.0068 | S242: 0.9563 | T242: 0.9849 | U242: 0.9067
C243: Initial | D243: 45 to 49 | E243: BSC | F243: 30/06/2013 | G243: 50.6993 | H243: 52.5368 | I243: 48.727 | J243: 48.4913 | K243: 48.921 | L243: 2.9394 | M243: 4.0454 | N243: 0.961 | O243: 0.9902 | P243: 0.9124 | Q243: 2.9358 | R243: 4.0208 | S243: 0.9617 | T243: 0.991 | U243: 0.9129
C244: Initial | D244: 45 to 49 | E244: BSC | F244: 30/06/2014 | G244: 49.0956 | H244: 52.3148 | I244: 47.5681 | J244: 47.2637 | K244: 47.717 | L244: 2.9133 | M244: 3.9258 | N244: 0.9478 | O244: 0.9774 | P244: 0.9005 | Q244: 2.9179 | R244: 3.9047 | S244: 0.9492 | T244: 0.9791 | U244: 0.9015
C245: Initial | D245: 45 to 49 | E245: BSC | F245: 30/06/2015 | G245: 47.3513 | H245: 48.8756 | I245: 44.7815 | J245: 44.5132 | K245: 45.0427 | L245: 2.8253 | M245: 3.8564 | N245: 0.939 | O245: 0.9687 | P245: 0.8904 | Q245: 2.838 | R245: 3.8663 | S245: 0.9417 | T245: 0.9718 | U245: 0.8927
C246: Initial | D246: 45 to 49 | E246: BSC | F246: 30/06/2016 | G246: 45.4992 | H246: 45.5657 | I246: 43.2482 | J246: 43.1006 | K246: 43.4747 | L246: 2.8192 | M246: 3.8659 | N246: 0.9318 | O246: 0.9606 | P246: 0.8841 | Q246: 2.8409 | R246: 3.9062 | S246: 0.9353 | T246: 0.9645 | U246: 0.8872
C247: Initial | D247: 45 to 49 | E247: BSC | F247: 31/12/2011 | G247: 51.4655 | H247: 57.1429 | I247: 50.4631 | J247: 50.0614 | K247: 50.564 | L247: 2.9198 | M247: 4.1125 | N247: 0.9674 | O247: 0.9962 | P247: 0.9172 | Q247: 2.9124 | R247: 4.0403 | S247: 0.9672 | T247: 0.9961 | U247: 0.917
C248: Initial | D248: 45 to 49 | E248: BSC | F248: 31/12/2012 | G248: 49.1169 | H248: 53.8341 | I248: 47.6204 | J248: 47.2359 | K248: 47.7667 | L248: 2.8784 | M248: 3.9537 | N248: 0.9386 | O248: 0.9667 | P248: 0.8914 | Q248: 2.8828 | R248: 3.9182 | S248: 0.9397 | T248: 0.9683 | U248: 0.8925
C249: Initial | D249: 45 to 49 | E249: BSC | F249: 31/12/2013 | G249: 50.0441 | H249: 51.5723 | I249: 47.1248 | J249: 46.8436 | K249: 47.4049 | L249: 2.9498 | M249: 3.9621 | N249: 0.9498 | O249: 0.9791 | P249: 0.9033 | Q249: 2.9495 | R249: 3.9475 | S249: 0.9514 | T249: 0.9809 | U249: 0.9046
C250: Initial | D250: 45 to 49 | E250: BSC | F250: 31/12/2014 | G250: 48.7805 | H250: 49.8457 | I250: 46.0436 | J250: 45.8014 | K250: 46.3146 | L250: 2.8772 | M250: 3.9187 | N250: 0.9427 | O250: 0.9719 | P250: 0.895 | Q250: 2.8832 | R250: 3.92 | S250: 0.9449 | T250: 0.9743 | U250: 0.8969
C251: Initial | D251: 45 to 49 | E251: BSC | F251: 31/12/2015 | G251: 47.3344 | H251: 48.3025 | I251: 44.3277 | J251: 44.0753 | K251: 44.6356 | L251: 2.8125 | M251: 3.9094 | N251: 0.9377 | O251: 0.9665 | P251: 0.8889 | Q251: 2.8252 | R251: 3.9249 | S251: 0.9407 | T251: 0.9698 | U251: 0.8915
C252: Initial | D252: 45 to 49 | E252: BSCC | F252: 30/06/2012 | G252: 50.1294 | H252: 55.3398 | I252: 43.852 | J252: 43.637 | K252: 44.9272 | L252: 2.0561 | M252: 7.0666 | N252: 0.9211 | O252: 0.9291 | P252: 0.8406 | Q252: 2.0558 | R252: 6.9107 | S252: 0.9243 | T252: 0.9325 | U252: 0.8428
C253: Initial | D253: 45 to 49 | E253: BSCC | F253: 30/06/2013 | G253: 50.5063 | H253: 57.8947 | I253: 41.7716 | J253: 41.4605 | K253: 43.3152 | L253: 2.0335 | M253: 7.0051 | N253: 0.9222 | O253: 0.93 | P253: 0.8408 | Q253: 2.0323 | R253: 6.7779 | S253: 0.9265 | T253: 0.9346 | U253: 0.8437
C254: Initial | D254: 45 to 49 | E254: BSCC | F254: 30/06/2014 | G254: 47.7651 | H254: 53.11 | I254: 41.2521 | J254: 41.0184 | K254: 42.387 | L254: 2.0673 | M254: 7.0072 | N254: 0.93 | O254: 0.9383 | P254: 0.8484 | Q254: 2.0731 | R254: 6.9179 | S254: 0.9347 | T254: 0.9432 | U254: 0.8518
C255: Initial | D255: 45 to 49 | E255: BSCC | F255: 30/06/2015 | G255: 46.0726 | H255: 48.1481 | I255: 41.2169 | J255: 41.0731 | K255: 42.1012 | L255: 2.0228 | M255: 6.8288 | N255: 0.9378 | O255: 0.9468 | P255: 0.8506 | Q255: 2.0326 | R255: 6.8804 | S255: 0.9425 | T255: 0.9519 | U255: 0.8542
C256: Initial | D256: 45 to 49 | E256: BSCC | F256: 30/06/2016 | G256: 47.186 | H256: 48.3051 | I256: 42.8963 | J256: 42.7771 | K256: 43.6814 | L256: 1.992 | M256: 6.5307 | N256: 0.9298 | O256: 0.9396 | P256: 0.8421 | Q256: 1.9986 | R256: 6.5737 | S256: 0.9336 | T256: 0.9436 | U256: 0.8449
C257: Initial | D257: 45 to 49 | E257: BSCC | F257: 31/12/2011 | G257: 51.9043 | H257: 55.2381 | I257: 44.9844 | J257: 44.7887 | K257: 46.1441 | L257: 2.0843 | M257: 6.9968 | N257: 0.9238 | O257: 0.9321 | P257: 0.8445 | Q257: 2.0794 | R257: 6.8468 | S257: 0.9264 | T257: 0.9349 | U257: 0.8463
C258: Initial | D258: 45 to 49 | E258: BSCC | F258: 31/12/2012 | G258: 51.2124 | H258: 56.872 | I258: 42.267 | J258: 41.9856 | K258: 43.8459 | L258: 2.0245 | M258: 6.9763 | N258: 0.9188 | O258: 0.9268 | P258: 0.8377 | Q258: 2.0215 | R258: 6.7805 | S258: 0.9229 | T258: 0.931 | U258: 0.8404
C259: Initial | D259: 45 to 49 | E259: BSCC | F259: 31/12/2013 | G259: 49.3127 | H259: 55.5556 | I259: 42.4688 | J259: 42.2168 | K259: 43.6677 | L259: 2.0504 | M259: 7.0489 | N259: 0.9279 | O259: 0.9359 | P259: 0.8456 | Q259: 2.0522 | R259: 6.8874 | S259: 0.9318 | T259: 0.9402 | U259: 0.8483
C260: Initial | D260: 45 to 49 | E260: BSCC | F260: 31/12/2014 | G260: 47.1666 | H260: 50 | I260: 41.0128 | J260: 40.8343 | K260: 42.1129 | L260: 2.0363 | M260: 6.9585 | N260: 0.9305 | O260: 0.9391 | P260: 0.8466 | Q260: 2.0434 | R260: 6.9585 | S260: 0.9354 | T260: 0.9441 | U260: 0.85
C261: Initial | D261: 45 to 49 | E261: BSCC | F261: 31/12/2015 | G261: 47.7199 | H261: 51.2712 | I261: 42.1617 | J261: 41.9603 | K261: 43.1832 | L261: 1.9921 | M261: 6.57 | N261: 0.9291 | O261: 0.9387 | P261: 0.842 | Q261: 1.9974 | R261: 6.5376 | S261: 0.9333 | T261: 0.943 | U261: 0.8449
C262: Initial | D262: 45 to 49 | E262: BSCM | F262: 30/06/2012 | G262: 60.8746 | H262: 60.3789 | I262: 53.8386 | J262: 52.0206 | K262: 54.7865 | L262: 2.34 | M262: 1.9776 | N262: 0.9302 | O262: 1.0539 | P262: 0.8638 | Q262: 2.3031 | R262: 1.9526 | S262: 0.9281 | T262: 1.0526 | U262: 0.8615
C263: Initial | D263: 45 to 49 | E263: BSCM | F263: 30/06/2013 | G263: 52.3919 | H263: 53.5988 | I263: 48.3686 | J263: 46.8357 | K263: 48.8951 | L263: 2.3812 | M263: 1.9348 | N263: 0.9162 | O263: 1.0404 | P263: 0.8543 | Q263: 2.3731 | R263: 1.9267 | S263: 0.9171 | T263: 1.0425 | U263: 0.8548
C264: Initial | D264: 45 to 49 | E264: BSCM | F264: 30/06/2014 | G264: 50.8386 | H264: 51.9768 | I264: 46.8 | J264: 45.2212 | K264: 47.3163 | L264: 2.3851 | M264: 1.8843 | N264: 0.9037 | O264: 1.0298 | P264: 0.8445 | Q264: 2.3823 | R264: 1.8801 | S264: 0.9054 | T264: 1.033 | U264: 0.8456
C265: Initial | D265: 45 to 49 | E265: BSCM | F265: 30/06/2015 | G265: 50.2683 | H265: 48.9299 | I265: 45.3998 | J265: 44.3452 | K265: 46.0064 | L265: 2.4215 | M265: 1.8985 | N265: 0.9021 | O265: 1.0258 | P265: 0.8448 | Q265: 2.4206 | R265: 1.9008 | S265: 0.9043 | T265: 1.0295 | U265: 0.8465
C266: Initial | D266: 45 to 49 | E266: BSCM | F266: 30/06/2016 | G266: 46.7945 | H266: 45.7582 | I266: 44.3816 | J266: 43.9863 | K266: 44.6834 | L266: 2.4164 | M266: 1.9267 | N266: 0.9039 | O266: 1.0249 | P266: 0.846 | Q266: 2.4277 | R266: 1.9362 | S266: 0.9068 | T266: 1.0288 | U266: 0.8483
C267: Initial | D267: 45 to 49 | E267: BSCM | F267: 31/12/2011 | G267: 65.0473 | H267: 64.6388 | I267: 57.5724 | J267: 55.5675 | K267: 58.536 | L267: 2.4051 | M267: 1.9643 | N267: 0.9427 | O267: 1.074 | P267: 0.8768 | Q267: 2.3493 | R267: 1.928 | S267: 0.9385 | T267: 1.0702 | U267: 0.8728
C268: Initial | D268: 45 to 49 | E268: BSCM | F268: 31/12/2012 | G268: 56.3711 | H268: 56.1983 | I268: 50.1261 | J268: 48.4037 | K268: 50.9317 | L268: 2.394 | M268: 1.9549 | N268: 0.9182 | O268: 1.0398 | P268: 0.8567 | Q268: 2.372 | R268: 1.9407 | S268: 0.9181 | T268: 1.0408 | U268: 0.8562
C269: Initial | D269: 45 to 49 | E269: BSCM | F269: 31/12/2013 | G269: 52.6617 | H269: 52.5156 | I269: 47.3294 | J269: 45.7597 | K269: 48.0211 | L269: 2.3727 | M269: 1.8958 | N269: 0.9075 | O269: 1.0335 | P269: 0.847 | Q269: 2.3638 | R269: 1.8904 | S269: 0.9087 | T269: 1.0362 | U269: 0.8479
C270: Initial | D270: 45 to 49 | E270: BSCM | F270: 31/12/2014 | G270: 50.3733 | H270: 49.4545 | I270: 45.6171 | J270: 44.4722 | K270: 46.2212 | L270: 2.3762 | M270: 1.8854 | N270: 0.8954 | O270: 1.0181 | P270: 0.8374 | Q270: 2.375 | R270: 1.8866 | S270: 0.8975 | T270: 1.0215 | U270: 0.839
C271: Initial | D271: 45 to 49 | E271: BSCM | F271: 31/12/2015 | G271: 47.8336 | H271: 47.9504 | I271: 45.2421 | J271: 44.4518 | K271: 45.5744 | L271: 2.3767 | M271: 1.9146 | N271: 0.9021 | O271: 1.024 | P271: 0.8428 | Q271: 2.3841 | R271: 1.919 | S271: 0.9046 | T271: 1.0274 | U271: 0.8447
C272: Initial | D272: 45 to 49 | E272: BSM | F272: 30/06/2012 | G272: 58.4426 | H272: 60.6635 | I272: 51.399 | J272: 51.2367 | K272: 52.6291 | L272: 1.9245 | M272: 6.9403 | N272: 0.8891 | O272: 0.8969 | P272: 0.8068 | Q272: 1.9053 | R272: 6.6362 | S272: 0.8884 | T272: 0.8963 | U272: 0.8058
C273: Initial | D273: 45 to 49 | E273: BSM | F273: 30/06/2013 | G273: 58.379 | H273: 58.209 | I273: 51.3622 | J273: 51.2501 | K273: 52.625 | L273: 1.8724 | M273: 7.1463 | N273: 0.8812 | O273: 0.8884 | P273: 0.797 | Q273: 1.8545 | R273: 6.9004 | S273: 0.8805 | T273: 0.8878 | U273: 0.796
C274: Initial | D274: 45 to 49 | E274: BSM | F274: 30/06/2014 | G274: 57.6466 | H274: 55.6034 | I274: 50.2724 | J274: 50.1714 | K274: 51.6486 | L274: 1.8341 | M274: 6.6457 | N274: 0.8811 | O274: 0.8894 | P274: 0.7941 | Q274: 1.8186 | R274: 6.5007 | S274: 0.881 | T274: 0.8894 | U274: 0.7936
C275: Initial | D275: 45 to 49 | E275: BSM | F275: 30/06/2015 | G275: 56.0476 | H275: 59.322 | I275: 47.519 | J275: 47.2509 | K275: 49.1016 | L275: 1.7901 | M275: 5.8455 | N275: 0.8524 | O275: 0.8618 | P275: 0.7701 | Q275: 1.7784 | R275: 5.6564 | S275: 0.8536 | T275: 0.863 | U275: 0.7705
C276: Initial | D276: 45 to 49 | E276: BSM | F276: 30/06/2016 | G276: 53.0764 | H276: 61.6438 | I276: 48.1719 | J276: 47.8786 | K276: 49.0427 | L276: 1.8176 | M276: 5.8438 | N276: 0.8398 | O276: 0.8486 | P276: 0.7619 | Q276: 1.8115 | R276: 5.605 | S276: 0.8406 | T276: 0.8496 | U276: 0.7622
C277: Initial | D277: 45 to 49 | E277: BSM | F277: 31/12/2011 | G277: 61.5104 | H277: 67.5 | I277: 53.9684 | J277: 53.7382 | K277: 55.2566 | L277: 1.9547 | M277: 6.9654 | N277: 0.8984 | O277: 0.9064 | P277: 0.816 | Q277: 1.9272 | R277: 6.4374 | S277: 0.8965 | T277: 0.9045 | U277: 0.8139
C278: Initial | D278: 45 to 49 | E278: BSM | F278: 31/12/2012 | G278: 58.5704 | H278: 58.6047 | I278: 50.3506 | J278: 50.2084 | K278: 51.8111 | L278: 1.8704 | M278: 6.8972 | N278: 0.8738 | O278: 0.8813 | P278: 0.7919 | Q278: 1.852 | R278: 6.6564 | S278: 0.8737 | T278: 0.8812 | U278: 0.7911
C279: Initial | D279: 45 to 49 | E279: BSM | F279: 31/12/2013 | G279: 57.6964 | H279: 54.2222 | I279: 51.6819 | J279: 51.6361 | K279: 52.779 | L279: 1.8421 | M279: 6.7508 | N279: 0.8726 | O279: 0.8804 | P279: 0.788 | Q279: 1.8262 | R279: 6.6382 | S279: 0.8717 | T279: 0.8797 | U279: 0.787
C280: Initial | D280: 45 to 49 | E280: BSM | F280: 31/12/2014 | G280: 56.2896 | H280: 58.4775 | I280: 48.772 | J280: 48.5489 | K280: 50.1923 | L280: 1.7979 | M280: 5.9169 | N280: 0.8673 | O280: 0.877 | P280: 0.7812 | Q280: 1.7857 | R280: 5.7413 | S280: 0.8677 | T280: 0.8777 | U280: 0.7811
C281: Initial | D281: 45 to 49 | E281: BSM | F281: 31/12/2015 | G281: 54.5969 | H281: 61.5917 | I281: 46.4907 | J281: 46.1591 | K281: 47.9699 | L281: 1.8014 | M281: 5.8763 | N281: 0.8458 | O281: 0.8546 | P281: 0.7661 | Q281: 1.7925 | R281: 5.636 | S281: 0.8473 | T281: 0.8563 | U281: 0.7667
C282: Initial | D282: 45 to 49 | E282: BSOS | F282: 30/06/2012 | G282: 50.499 | H282: 56.8966 | I282: 42.4321 | J282: 42.3023 | K282: 43.0077 | L282: 4.4696 | M282: 13.6696 | N282: 1.2036 | O282: 1.2085 | P282: 1.162 | Q282: 4.4637 | R282: 12.9409 | S282: 1.2105 | T282: 1.2155 | U282: 1.1678
C283: Initial | D283: 45 to 49 | E283: BSOS | F283: 30/06/2013 | G283: 51.8164 | H283: 61.5385 | I283: 48.3969 | J283: 48.2723 | K283: 48.637 | L283: 4.3778 | M283: 12.8955 | N283: 1.1835 | O283: 1.1889 | P283: 1.1411 | Q283: 4.3572 | R283: 11.8079 | S283: 1.1848 | T283: 1.1904 | U283: 1.1423
C284: Initial | D284: 45 to 49 | E284: BSOS | F284: 30/06/2014 | G284: 55.8725 | H284: 58.5366 | I284: 52.6769 | J284: 52.6135 | K284: 52.9077 | L284: 4.0911 | M284: 11.416 | N284: 1.1256 | O284: 1.1318 | P284: 1.0838 | Q284: 4.0326 | R284: 10.7808 | S284: 1.1236 | T284: 1.1298 | U284: 1.0817
C285: Initial | D285: 45 to 49 | E285: BSOS | F285: 30/06/2015 | G285: 55.9265 | H285: 58.0247 | I285: 51.0744 | J285: 50.996 | K285: 51.4442 | L285: 4.0803 | M285: 11.4886 | N285: 1.157 | O285: 1.1636 | P285: 1.1117 | Q285: 4.0217 | R285: 10.8841 | S285: 1.1561 | T285: 1.1627 | U285: 1.1106
C286: Initial | D286: 45 to 49 | E286: BSOS | F286: 30/06/2016 | G286: 47.7193 | H286: 51.8519 | I286: 45.43 | J286: 45.355 | K286: 45.6018 | L286: 4.1671 | M286: 11.3857 | N286: 1.1695 | O286: 1.176 | P286: 1.1249 | Q286: 4.1909 | R286: 11.2462 | S286: 1.1732 | T286: 1.18 | U286: 1.1283
C287: Initial | D287: 45 to 49 | E287: BSOS | F287: 31/12/2011 | G287: 49.4048 | H287: 48.0769 | I287: 43.0918 | J287: 43.0541 | K287: 43.5191 | L287: 4.4496 | M287: 14.065 | N287: 1.1691 | O287: 1.1733 | P287: 1.1301 | Q287: 4.4565 | R287: 14.2918 | S287: 1.1749 | T287: 1.1793 | U287: 1.1353
C288: Initial | D288: 45 to 49 | E288: BSOS | F288: 31/12/2012 | G288: 54.6468 | H288: 66.1538 | I288: 48.8026 | J288: 48.6441 | K288: 49.2098 | L288: 4.3154 | M288: 12.8032 | N288: 1.1624 | O288: 1.1675 | P288: 1.1212 | Q288: 4.2641 | R288: 11.2777 | S288: 1.1632 | T288: 1.1686 | U288: 1.1218
C289: Initial | D289: 45 to 49 | E289: BSOS | F289: 31/12/2013 | G289: 53.8188 | H289: 58.9041 | I289: 50.1085 | J289: 50.0205 | K289: 50.3717 | L289: 4.2177 | M289: 12.1356 | N289: 1.1479 | O289: 1.1535 | P289: 1.1063 | Q289: 4.1775 | R289: 11.3901 | S289: 1.1477 | T289: 1.1536 | U289: 1.1059
C290: Initial | D290: 45 to 49 | E290: BSOS | F290: 31/12/2014 | G290: 53.2423 | H290: 53.5714 | I290: 47.5238 | J290: 47.4539 | K290: 47.9461 | L290: 4.1327 | M290: 11.218 | N290: 1.1473 | O290: 1.1538 | P290: 1.1045 | Q290: 4.0999 | R290: 10.9589 | S290: 1.1493 | T290: 1.1559 | U290: 1.106
C291: Initial | D291: 45 to 49 | E291: BSOS | F291: 31/12/2015 | G291: 52.5641 | H291: 59.4937 | I291: 49.2213 | J291: 49.0946 | K291: 49.4809 | L291: 4.2842 | M291: 11.6412 | N291: 1.2239 | O291: 1.2314 | P291: 1.1754 | Q291: 4.2563 | R291: 10.9074 | S291: 1.2246 | T291: 1.2322 | U291: 1.1757
C292: Initial | D292: 45 to 49 | E292: BSSL | F292: 30/06/2012 | G292: 42.4541 | H292: 51.3393 | I292: 38.1914 | J292: 38.0617 | K292: 38.4571 | L292: 2.4978 | M292: 6.7485 | N292: 0.6296 | O292: 0.6323 | P292: 0.6104 | Q292: 2.5269 | R292: 6.7126 | S292: 0.6326 | T292: 0.6353 | U292: 0.6132
C293: Initial | D293: 45 to 49 | E293: BSSL | F293: 30/06/2013 | G293: 44.3384 | H293: 54.3307 | I293: 40.4013 | J293: 40.2446 | K293: 40.655 | L293: 2.475 | M293: 6.3426 | N293: 0.6375 | O293: 0.6407 | P293: 0.6173 | Q293: 2.4963 | R293: 6.2404 | S293: 0.64 | T293: 0.6431 | U293: 0.6194
C294: Initial | D294: 45 to 49 | E294: BSSL | F294: 30/06/2014 | G294: 45.2261 | H294: 51.1628 | I294: 39.7042 | J294: 39.5705 | K294: 40.0709 | L294: 2.4655 | M294: 6.2761 | N294: 0.6419 | O294: 0.6452 | P294: 0.6212 | Q294: 2.4832 | R294: 6.2491 | S294: 0.6446 | T294: 0.648 | U294: 0.6236
C295: Initial | D295: 45 to 49 | E295: BSSL | F295: 30/06/2015 | G295: 44.871 | H295: 42.9119 | I295: 39.4468 | J295: 39.4054 | K295: 39.8102 | L295: 2.4655 | M295: 6.0853 | N295: 0.6448 | O295: 0.6485 | P295: 0.6238 | Q295: 2.4845 | R295: 6.2481 | S295: 0.6476 | T295: 0.6514 | U295: 0.6264
C296: Initial | D296: 45 to 49 | E296: BSSL | F296: 30/06/2016 | G296: 42.2827 | H296: 50.9506 | I296: 40.3749 | J296: 40.2459 | K296: 40.5009 | L296: 2.4814 | M296: 6.2129 | N296: 0.652 | O296: 0.6556 | P296: 0.6305 | Q296: 2.5109 | R296: 6.1912 | S296: 0.6546 | T296: 0.6582 | U296: 0.6328
C297: Initial | D297: 45 to 49 | E297: BSSL | F297: 31/12/2011 | G297: 41.65 | H297: 50 | I297: 36.9676 | J297: 36.8351 | K297: 37.2564 | L297: 2.5071 | M297: 6.6426 | N297: 0.6262 | O297: 0.6288 | P297: 0.6076 | Q297: 2.5399 | R297: 6.6426 | S297: 0.6294 | T297: 0.6323 | U297: 0.6105
C298: Initial | D298: 45 to 49 | E298: BSSL | F298: 31/12/2012 | G298: 43.1001 | H298: 50.813 | I298: 38.6988 | J298: 38.5655 | K298: 38.9778 | L298: 2.4997 | M298: 6.4275 | N298: 0.6358 | O298: 0.6389 | P298: 0.6162 | Q298: 2.5262 | R298: 6.4076 | S298: 0.6387 | T298: 0.6418 | U298: 0.6188
C299: Initial | D299: 45 to 49 | E299: BSSL | F299: 31/12/2013 | G299: 45.178 | H299: 52.1236 | I299: 39.4966 | J299: 39.3489 | K299: 39.8631 | L299: 2.5028 | M299: 6.271 | N299: 0.6409 | O299: 0.6442 | P299: 0.6209 | Q299: 2.5211 | R299: 6.2218 | S299: 0.6436 | T299: 0.647 | U299: 0.6233
C300: Initial | D300: 45 to 49 | E300: BSSL | F300: 31/12/2014 | G300: 43.1546 | H300: 43.254 | I300: 38.571 | J300: 38.5162 | K300: 38.8818 | L300: 2.4553 | M300: 6.2038 | N300: 0.6471 | O300: 0.6506 | P300: 0.6257 | Q300: 2.4807 | R300: 6.3643 | S300: 0.65 | T300: 0.6537 | U300: 0.6284
C301: Initial | D301: 45 to 49 | E301: BSSL | F301: 31/12/2015 | G301: 44.2484 | H301: 45 | I301: 39.2188 | J301: 39.148 | K301: 39.5529 | L301: 2.5084 | M301: 6.1517 | N301: 0.6534 | O301: 0.6571 | P301: 0.6323 | Q301: 2.5304 | R301: 6.267 | S301: 0.6563 | T301: 0.6602 | U301: 0.6348
C302: Initial | D302: 45 to 49 | E302: BSWN | F302: 30/06/2012 | G302: 49.3732 | H302: 50.2857 | I302: 49.0051 | J302: 48.9228 | K302: 49.0509 | L302: 1.9889 | M302: 3.069 | N302: 0.7457 | O302: 0.7694 | P302: 0.6976 | Q302: 1.9905 | R302: 3.0675 | S302: 0.746 | T302: 0.7697 | U302: 0.6979
C303: Initial | D303: 45 to 49 | E303: BSWN | F303: 30/06/2013 | G303: 45.3958 | H303: 48.248 | I303: 48.0369 | J303: 48.0224 | K303: 47.7049 | L303: 1.9748 | M303: 2.9726 | N303: 0.7487 | O303: 0.7743 | P303: 0.6998 | Q303: 1.9857 | R303: 2.9819 | S303: 0.7495 | T303: 0.775 | U303: 0.7004
C304: Initial | D304: 45 to 49 | E304: BSWN | F304: 30/06/2014 | G304: 46.4074 | H304: 48.6925 | I304: 44.9022 | J304: 44.6379 | K304: 45.0859 | L304: 2.0251 | M304: 2.98 | N304: 0.7494 | O304: 0.7746 | P304: 0.7023 | Q304: 2.0341 | R304: 2.987 | S304: 0.751 | T304: 0.7766 | U304: 0.7038
C305: Initial | D305: 45 to 49 | E305: BSWN | F305: 30/06/2015 | G305: 45.5934 | H305: 45.8333 | I305: 43.2355 | J305: 43.0638 | K305: 43.5207 | L305: 2.0541 | M305: 3.0728 | N305: 0.7542 | O305: 0.7783 | P305: 0.7076 | Q305: 2.0653 | R305: 3.0967 | S305: 0.7565 | T305: 0.781 | U305: 0.7096
C306: Initial | D306: 45 to 49 | E306: BSWN | F306: 30/06/2016 | G306: 46.9094 | H306: 42.3423 | I306: 42.6945 | J306: 42.717 | K306: 43.2196 | L306: 2.0288 | M306: 3.0875 | N306: 0.7542 | O306: 0.7781 | P306: 0.7067 | Q306: 2.0365 | R306: 3.1329 | S306: 0.7567 | T306: 0.7808 | U306: 0.7088
C307: Initial | D307: 45 to 49 | E307: BSWN | F307: 31/12/2011 | G307: 54.1886 | H307: 50.5941 | I307: 49.4388 | J307: 49.3655 | K307: 50.0438 | L307: 1.9887 | M307: 3.1308 | N307: 0.756 | O307: 0.7796 | P307: 0.7061 | Q307: 1.9788 | R307: 3.1273 | S307: 0.7562 | T307: 0.7799 | U307: 0.7061
C308: Initial | D308: 45 to 49 | E308: BSWN | F308: 31/12/2012 | G308: 46.8379 | H308: 46.7532 | I308: 47.5818 | J308: 47.6366 | K308: 47.4872 | L308: 1.9595 | M308: 3.0124 | N308: 0.7452 | O308: 0.7696 | P308: 0.696 | Q308: 1.9669 | R308: 3.0303 | S308: 0.7459 | T308: 0.7704 | U308: 0.6967
C309: Initial | D309: 45 to 49 | E309: BSWN | F309: 31/12/2013 | G309: 45.9895 | H309: 50.4065 | I309: 47.0708 | J309: 46.8414 | K309: 46.9345 | L309: 1.9755 | M309: 2.9882 | N309: 0.7482 | O309: 0.7733 | P309: 0.6991 | Q309: 1.9851 | R309: 2.9861 | S309: 0.7492 | T309: 0.7745 | U309: 0.7001
C310: Initial | D310: 45 to 49 | E310: BSWN | F310: 31/12/2014 | G310: 45.6962 | H310: 47.5486 | I310: 44.0451 | J310: 43.8038 | K310: 44.2495 | L310: 2.0203 | M310: 3.0132 | N310: 0.7532 | O310: 0.7782 | P310: 0.7053 | Q310: 2.0309 | R310: 3.0265 | S310: 0.7552 | T310: 0.7804 | U310: 0.7069
C311: Initial | D311: 45 to 49 | E311: BSWN | F311: 31/12/2015 | G311: 45.8961 | H311: 45.2632 | I311: 42.8368 | J311: 42.6762 | K311: 43.2168 | L311: 2.0134 | M311: 3.0488 | N311: 0.7492 | O311: 0.7732 | P311: 0.7018 | Q311: 2.0236 | R311: 3.0755 | S311: 0.7516 | T311: 0.7759 | U311: 0.7039
C312: Initial | D312: 45 to 49 | E312: Total | F312: 30/06/2012 | G312: 52.1709 | H312: 55.7657 | I312: 46.3164 | J312: 45.7258 | K312: 46.9793 | L312: 0.8602 | M312: 1.2647 | N312: 0.3057 | O312: 0.3148 | P312: 0.2881 | Q312: 0.8593 | R312: 1.2592 | S312: 0.3059 | T312: 0.3151 | U312: 0.2883
C313: Initial | D313: 45 to 49 | E313: Total | F313: 30/06/2013 | G313: 50.5704 | H313: 52.5012 | I313: 45.9539 | J313: 45.5169 | K313: 46.4817 | L313: 0.8527 | M313: 1.2267 | N313: 0.3044 | O313: 0.3141 | P313: 0.2867 | Q313: 0.8525 | R313: 1.2244 | S313: 0.3046 | T313: 0.3145 | U313: 0.2869
C314: Initial | D314: 45 to 49 | E314: Total | F314: 30/06/2014 | G314: 50.2058 | H314: 51.8096 | I314: 45.3011 | J314: 44.8502 | K314: 45.8594 | L314: 0.8514 | M314: 1.2008 | N314: 0.3028 | O314: 0.3129 | P314: 0.2853 | Q314: 0.8513 | R314: 1.1991 | S314: 0.3031 | T314: 0.3131 | U314: 0.2856
C315: Initial | D315: 45 to 49 | E315: Total | F315: 30/06/2015 | G315: 49.2616 | H315: 48.1632 | I315: 43.8609 | J315: 43.5661 | K315: 44.4855 | L315: 0.8455 | M315: 1.2081 | N315: 0.3025 | O315: 0.3125 | P315: 0.2849 | Q315: 0.8458 | R315: 1.2098 | S315: 0.3029 | T315: 0.3129 | U315: 0.2852
C316: Initial | D316: 45 to 49 | E316: Total | F316: 30/06/2016 | G316: 47.6995 | H316: 45.3127 | I316: 43.3431 | J316: 43.2115 | K316: 43.8486 | L316: 0.8438 | M316: 1.2178 | N316: 0.3024 | O316: 0.3123 | P316: 0.2847 | Q316: 0.8447 | R316: 1.2221 | S316: 0.3029 | T316: 0.3127 | U316: 0.285
C317: Initial | D317: 45 to 49 | E317: Total | F317: 31/12/2011 | G317: 54.5698 | H317: 59.0824 | I317: 47.6811 | J317: 46.9746 | K317: 48.4497 | L317: 0.8704 | M317: 1.2665 | N317: 0.3081 | O317: 0.3173 | P317: 0.2906 | Q317: 0.8682 | R317: 1.2576 | S317: 0.3082 | T317: 0.3174 | U317: 0.2907
C318: Initial | D318: 45 to 49 | E318: Total | F318: 31/12/2012 | G318: 51.6093 | H318: 53.4059 | I318: 45.7728 | J318: 45.2777 | K318: 46.4378 | L318: 0.8504 | M318: 1.237 | N318: 0.303 | O318: 0.3123 | P318: 0.2855 | Q318: 0.8497 | R318: 1.2338 | S318: 0.3031 | T318: 0.3127 | U318: 0.2856
C319: Initial | D319: 45 to 49 | E319: Total | F319: 31/12/2013 | G319: 50.5775 | H319: 51.7329 | I319: 45.6501 | J319: 45.2328 | K319: 46.2119 | L319: 0.8497 | M319: 1.2051 | N319: 0.3027 | O319: 0.3126 | P319: 0.2851 | Q319: 0.8493 | R319: 1.2035 | S319: 0.3029 | T319: 0.313 | U319: 0.2854
C320: Initial | D320: 45 to 49 | E320: Total | F320: 31/12/2014 | G320: 49.2791 | H320: 49.228 | I320: 43.9023 | J320: 43.5313 | K320: 44.5269 | L320: 0.8439 | M320: 1.2007 | N320: 0.3028 | O320: 0.3128 | P320: 0.2851 | Q320: 0.8442 | R320: 1.2015 | S320: 0.3031 | T320: 0.3132 | U320: 0.2853
C321: Initial | D321: 45 to 49 | E321: Total | F321: 31/12/2015 | G321: 48.6013 | H321: 47.1712 | I321: 43.2176 | J321: 42.9463 | K321: 43.8494 | L321: 0.8415 | M321: 1.211 | N321: 0.3033 | O321: 0.3132 | P321: 0.2854 | Q321: 0.8422 | R321: 1.2136 | S321: 0.3036 | T321: 0.3137 | U321: 0.2857
C322: Initial | D322: 50 to 69 | E322: BSAL | F322: 30/06/2012 | G322: 13.7068 | H322: 15.4539 | I322: 13.789 | J322: 13.5952 | K322: 13.7841 | L322: 1.6108 | M322: 1.3257 | N322: 0.4121 | O322: 0.4326 | P322: 0.3996 | Q322: 1.7388 | R322: 1.399 | S322: 0.4199 | T322: 0.4415 | U322: 0.4071
C323: Initial | D323: 50 to 69 | E323: BSAL | F323: 30/06/2013 | G323: 10.6989 | H323: 11.7162 | I323: 10.7684 | J323: 10.6569 | K323: 10.7642 | L323: 1.3688 | M323: 1.1243 | N323: 0.3559 | O323: 0.3743 | P323: 0.3449 | Q323: 1.4941 | R323: 1.1987 | S323: 0.3638 | T323: 0.3832 | U323: 0.3523
C324: Initial | D324: 50 to 69 | E324: BSAL | F324: 30/06/2014 | G324: 8.1305 | H324: 9.9656 | I324: 9.2832 | J324: 9.2028 | K324: 9.2143 | L324: 1.1806 | M324: 1.0163 | N324: 0.3242 | O324: 0.3414 | P324: 0.3134 | Q324: 1.3095 | R324: 1.0902 | S324: 0.3321 | T324: 0.3501 | U324: 0.3207
C325: Initial | D325: 50 to 69 | E325: BSAL | F325: 30/06/2015 | G325: 5.8267 | H325: 6.6158 | I325: 6.8837 | J325: 6.9139 | K325: 6.8194 | L325: 0.9844 | M325: 0.8441 | N325: 0.2793 | O325: 0.2951 | P325: 0.2695 | Q325: 1.1156 | R325: 0.9258 | S325: 0.2873 | T325: 0.304 | U325: 0.2772
C326: Initial | D326: 50 to 69 | E326: BSAL | F326: 30/06/2016 | G326: 5.1437 | H326: 5.4685 | I326: 5.4548 | J326: 5.4533 | K326: 5.4365 | L326: 0.9304 | M326: 0.7561 | N326: 0.2478 | O326: 0.2615 | P326: 0.2401 | Q326: 1.0658 | R326: 0.8373 | S326: 0.2561 | T326: 0.2706 | U326: 0.2478
C327: Initial | D327: 50 to 69 | E327: BSAL | F327: 31/12/2011 | G327: 15.3266 | H327: 17.5037 | I327: 15.39 | J327: 15.1417 | K327: 15.3863 | L327: 1.7358 | M327: 1.414 | N327: 0.4387 | O327: 0.4606 | P327: 0.4258 | Q327: 1.8647 | R327: 1.4846 | S327: 0.4465 | T327: 0.4693 | U327: 0.4331
C328: Initial | D328: 50 to 69 | E328: BSAL | F328: 31/12/2012 | G328: 11.831 | H328: 12.9363 | I328: 12.0371 | J328: 11.9312 | K328: 12.0247 | L328: 1.4667 | M328: 1.1963 | N328: 0.3808 | O328: 0.4009 | P328: 0.3691 | Q328: 1.5941 | R328: 1.2712 | S328: 0.3887 | T328: 0.4098 | U328: 0.3765
C329: Initial | D329: 50 to 69 | E329: BSAL | F329: 31/12/2013 | G329: 8.9388 | H329: 10.624 | I329: 10.2311 | J329: 10.1847 | K329: 10.1527 | L329: 1.2409 | M329: 1.0592 | N329: 0.343 | O329: 0.3618 | P329: 0.3314 | Q329: 1.3685 | R329: 1.1335 | S329: 0.3509 | T329: 0.3706 | U329: 0.3387
C330: Initial | D330: 50 to 69 | E330: BSAL | F330: 31/12/2014 | G330: 6.481 | H330: 7.9193 | I330: 7.9498 | J330: 7.9533 | K330: 7.8613 | L330: 1.0458 | M330: 0.9097 | N330: 0.2998 | O330: 0.3166 | P330: 0.2892 | Q330: 1.1772 | R330: 0.9869 | S330: 0.3076 | T330: 0.3256 | U330: 0.2966
C331: Initial | D331: 50 to 69 | E331: BSAL | F331: 31/12/2015 | G331: 5.6359 | H331: 5.768 | I331: 5.8842 | J331: 5.8975 | K331: 5.8694 | L331: 0.9689 | M331: 0.7777 | N331: 0.2573 | O331: 0.2718 | P331: 0.2493 | Q331: 1.101 | R331: 0.8587 | S331: 0.2655 | T331: 0.281 | U331: 0.257
C332: Initial | D332: 50 to 69 | E332: BSC | F332: 30/06/2012 | G332: 10.2354 | H332: 15.0061 | I332: 7.7029 | J332: 7.3333 | K332: 7.895 | L332: 1.0978 | M332: 1.6921 | N332: 0.2806 | O332: 0.2811 | P332: 0.273 | Q332: 1.1816 | R332: 1.8179 | S332: 0.2878 | T332: 0.2886 | U332: 0.2795
C333: Initial | D333: 50 to 69 | E333: BSC | F333: 30/06/2013 | G333: 8.5197 | H333: 12.6232 | I333: 6.8727 | J333: 6.5808 | K333: 7.0001 | L333: 1.0052 | M333: 1.5774 | N333: 0.2682 | O333: 0.2693 | P333: 0.2599 | Q333: 1.0923 | R333: 1.7138 | S333: 0.2757 | T333: 0.2772 | U333: 0.2668
C334: Initial | D334: 50 to 69 | E334: BSC | F334: 30/06/2014 | G334: 7.2262 | H334: 9.2969 | I334: 5.948 | J334: 5.7786 | K334: 6.0497 | L334: 0.8889 | M334: 1.3307 | N334: 0.243 | O334: 0.2457 | P334: 0.2352 | Q334: 0.9709 | R334: 1.4713 | S334: 0.2503 | T334: 0.2532 | U334: 0.2418
C335: Initial | D335: 50 to 69 | E335: BSC | F335: 30/06/2015 | G335: 5.6342 | H335: 6.5288 | I335: 5.1202 | J335: 5.0471 | K335: 5.1614 | L335: 0.7681 | M335: 1.0864 | N335: 0.2216 | O335: 0.2256 | P335: 0.2134 | Q335: 0.8492 | R335: 1.2276 | S335: 0.2287 | T335: 0.2331 | U335: 0.2199
C336: Initial | D336: 50 to 69 | E336: BSC | F336: 30/06/2016 | G336: 4.8027 | H336: 5.1057 | I336: 4.4338 | J336: 4.3986 | K336: 4.4642 | L336: 0.6848 | M336: 0.9369 | N336: 0.2023 | O336: 0.2067 | P336: 0.1945 | Q336: 0.7616 | R336: 1.0755 | S336: 0.2092 | T336: 0.2139 | U336: 0.2009
C337: Initial | D337: 50 to 69 | E337: BSC | F337: 31/12/2011 | G337: 12.0118 | H337: 15.9281 | I337: 8.366 | J337: 7.9962 | K337: 8.64 | L337: 1.2001 | M337: 1.7842 | N337: 0.2948 | O337: 0.2956 | P337: 0.2878 | Q337: 1.2826 | R337: 1.9137 | S337: 0.3021 | T337: 0.3034 | U337: 0.2945
C338: Initial | D338: 50 to 69 | E338: BSC | F338: 31/12/2012 | G338: 9.6045 | H338: 14.2264 | I338: 7.3179 | J338: 6.9612 | K338: 7.4919 | L338: 1.0607 | M338: 1.6332 | N338: 0.2732 | O338: 0.2736 | P338: 0.2655 | Q338: 1.145 | R338: 1.7588 | S338: 0.2804 | T338: 0.2813 | U338: 0.2722
C339: Initial | D339: 50 to 69 | E339: BSC | F339: 31/12/2013 | G339: 7.6236 | H339: 11.0845 | I339: 6.2174 | J339: 5.9744 | K339: 6.3252 | L339: 0.938 | M339: 1.4667 | N339: 0.2504 | O339: 0.2518 | P339: 0.2427 | Q339: 1.0243 | R339: 1.605 | S339: 0.2577 | T339: 0.2594 | U339: 0.2493
C340: Initial | D340: 50 to 69 | E340: BSC | F340: 31/12/2014 | G340: 6.0712 | H340: 7.7596 | I340: 5.4052 | J340: 5.2906 | K340: 5.4574 | L340: 0.8092 | M340: 1.2225 | N340: 0.2284 | O340: 0.2314 | P340: 0.2203 | Q340: 0.892 | R340: 1.3694 | S340: 0.2354 | T340: 0.2389 | U340: 0.2269
C341: Initial | D341: 50 to 69 | E341: BSC | F341: 31/12/2015 | G341: 5.2974 | H341: 5.5673 | I341: 4.7328 | J341: 4.6896 | K341: 4.7786 | L341: 0.731 | M341: 0.9915 | N341: 0.2106 | O341: 0.215 | P341: 0.2029 | Q341: 0.8096 | R341: 1.1324 | S341: 0.2175 | T341: 0.2222 | U341: 0.2092
C342: Initial | D342: 50 to 69 | E342: BSCC | F342: 30/06/2012 | G342: 13.3124 | H342: 15.8954 | I342: 6.3848 | J342: 6.2673 | K342: 7.2808 | L342: 0.8467 | M342: 3.1043 | N342: 0.2356 | O342: 0.235 | P342: 0.2339 | Q342: 0.8822 | R342: 3.5164 | S342: 0.2419 | T342: 0.2413 | U342: 0.2393
C343: Initial | D343: 50 to 69 | E343: BSCC | F343: 30/06/2013 | G343: 10.4512 | H343: 11.6022 | I343: 4.9251 | J343: 4.8391 | K343: 5.6632 | L343: 0.729 | M343: 2.5706 | N343: 0.2034 | O343: 0.203 | P343: 0.2025 | Q343: 0.7642 | R343: 2.997 | S343: 0.2095 | T343: 0.2091 | U343: 0.2077
C344: Initial | D344: 50 to 69 | E344: BSCC | F344: 30/06/2014 | G344: 8.0446 | H344: 9.9303 | I344: 4.2913 | J344: 4.2165 | K344: 4.7961 | L344: 0.6351 | M344: 2.3222 | N344: 0.1878 | O344: 0.1875 | P344: 0.1845 | Q344: 0.6714 | R344: 2.7439 | S344: 0.1939 | T344: 0.1936 | U344: 0.1897
C345: Initial | D345: 50 to 69 | E345: BSCC | F345: 30/06/2015 | G345: 7.6753 | H345: 8.7379 | I345: 3.9309 | J345: 3.8641 | K345: 4.4496 | L345: 0.6028 | M345: 2.1057 | N345: 0.1776 | O345: 0.1773 | P345: 0.1752 | Q345: 0.6371 | R345: 2.5094 | S345: 0.1836 | T345: 0.1833 | U345: 0.1802
C346: Initial | D346: 50 to 69 | E346: BSCC | F346: 30/06/2016 | G346: 7.2386 | H346: 8.4098 | I346: 3.752 | J346: 3.6851 | K346: 4.2455 | L346: 0.5723 | M346: 2.0117 | N346: 0.1715 | O346: 0.1713 | P346: 0.1688 | Q346: 0.6052 | R346: 2.3961 | S346: 0.1774 | T346: 0.1771 | U346: 0.1739
C347: Initial | D347: 50 to 69 | E347: BSCC | F347: 31/12/2011 | G347: 15.6736 | H347: 20.8602 | I347: 7.4589 | J347: 7.3026 | K347: 8.4801 | L347: 0.933 | M347: 3.6052 | N347: 0.2546 | O347: 0.2536 | P347: 0.2529 | Q347: 0.9681 | R347: 3.9806 | S347: 0.2608 | T347: 0.2598 | U347: 0.2582
C348: Initial | D348: 50 to 69 | E348: BSCC | F348: 31/12/2012 | G348: 12.4227 | H348: 11.5607 | I348: 5.6037 | J348: 5.529 | K348: 6.4957 | L348: 0.8047 | M348: 2.6218 | N348: 0.2184 | O348: 0.2184 | P348: 0.2185 | Q348: 0.8396 | R348: 3.0687 | S348: 0.2246 | T348: 0.2246 | U348: 0.2237
C349: Initial | D349: 50 to 69 | E349: BSCC | F349: 31/12/2013 | G349: 9.8348 | H349: 11.4236 | I349: 4.7658 | J349: 4.6776 | K349: 5.4445 | L349: 0.7018 | M349: 2.4957 | N349: 0.1983 | O349: 0.1979 | P349: 0.1969 | Q349: 0.7369 | R349: 2.9041 | S349: 0.2045 | T349: 0.204 | U349: 0.2021
C350: Initial | D350: 50 to 69 | E350: BSCC | F350: 31/12/2014 | G350: 7.7981 | H350: 10.1836 | I350: 4.1535 | J350: 4.0715 | K350: 4.6508 | L350: 0.6153 | M350: 2.3041 | N350: 0.1832 | O350: 0.1827 | P350: 0.18 | Q350: 0.6505 | R350: 2.7052 | S350: 0.1892 | T350: 0.1888 | U350: 0.1851
C351: Initial | D351: 50 to 69 | E351: BSCC | F351: 31/12/2015 | G351: 7.5853 | H351: 8.1664 | I351: 3.8668 | J351: 3.805 | K351: 4.3883 | L351: 0.5903 | M351: 1.9896 | N351: 0.1747 | O351: 0.1745 | P351: 0.1724 | Q351: 0.6236 | R351: 2.3795 | S351: 0.1806 | T351: 0.1806 | U351: 0.1773
C352: Initial | D352: 50 to 69 | E352: BSCM | F352: 30/06/2012 | G352: 15.6021 | H352: 18.621 | I352: 13.8231 | J352: 12.7948 | K352: 14.0228 | L352: 1.1585 | M352: 1.0565 | N352: 0.3947 | O352: 0.4205 | P352: 0.3743 | Q352: 1.2134 | R352: 1.0922 | S352: 0.402 | T352: 0.4296 | U352: 0.3807
C353: Initial | D353: 50 to 69 | E353: BSCM | F353: 30/06/2013 | G353: 9.7403 | H353: 13.417 | I353: 10.4779 | J353: 9.8066 | K353: 10.3961 | L353: 0.9188 | M353: 0.8718 | N353: 0.3396 | O353: 0.3651 | P353: 0.3192 | Q353: 0.9803 | R353: 0.9091 | S353: 0.347 | T353: 0.3744 | U353: 0.3258
C354: Initial | D354: 50 to 69 | E354: BSCM | F354: 30/06/2014 | G354: 7.9644 | H354: 10.2701 | I354: 8.5981 | J354: 8.2078 | K354: 8.5283 | L354: 0.8163 | M354: 0.7459 | N354: 0.3018 | O354: 0.3278 | P354: 0.2838 | Q354: 0.8776 | R354: 0.7836 | S354: 0.3092 | T354: 0.3371 | U354: 0.2904
C355: Initial | D355: 50 to 69 | E355: BSCM | F355: 30/06/2015 | G355: 6.5638 | H355: 8.1187 | I355: 7.4085 | J355: 7.2422 | K355: 7.3169 | L355: 0.7406 | M355: 0.6594 | N355: 0.278 | O355: 0.3054 | P355: 0.2611 | Q355: 0.8034 | R355: 0.698 | S355: 0.2854 | T355: 0.3145 | U355: 0.2677
C356: Initial | D356: 50 to 69 | E356: BSCM | F356: 30/06/2016 | G356: 4.7346 | H356: 6.5833 | I356: 6.374 | J356: 6.3259 | K356: 6.1955 | L356: 0.6238 | M356: 0.5957 | N356: 0.2566 | O356: 0.2832 | P356: 0.2391 | Q356: 0.6879 | R356: 0.6356 | S356: 0.2641 | T356: 0.2925 | U356: 0.2457
C357: Initial | D357: 50 to 69 | E357: BSCM | F357: 31/12/2011 | G357: 18.0079 | H357: 22.1571 | I357: 15.5491 | J357: 14.1562 | K357: 15.8222 | L357: 1.2507 | M357: 1.1502 | N357: 0.4194 | O357: 0.4435 | P357: 0.3983 | Q357: 1.3035 | R357: 1.1832 | S357: 0.4264 | T357: 0.4523 | U357: 0.4046
C358: Initial | D358: 50 to 69 | E358: BSCM | F358: 31/12/2012 | G358: 12.2582 | H358: 15.3789 | I358: 11.9674 | J358: 11.2145 | K358: 11.9992 | L358: 1.0441 | M358: 0.9516 | N358: 0.3657 | O358: 0.3925 | P358: 0.3457 | Q358: 1.1047 | R358: 0.9892 | S358: 0.3731 | T358: 0.4016 | U358: 0.3522
C359: Initial | D359: 50 to 69 | E359: BSCM | F359: 31/12/2013 | G359: 8.4582 | H359: 11.3233 | I359: 9.4195 | J359: 8.9769 | K359: 9.3132 | L359: 0.8508 | M359: 0.7932 | N359: 0.3196 | O359: 0.3469 | P359: 0.3001 | Q359: 0.9131 | R359: 0.8311 | S359: 0.3272 | T359: 0.3562 | U359: 0.3067
C360: Initial | D360: 50 to 69 | E360: BSCM | F360: 31/12/2014 | G360: 7.2961 | H360: 9.1766 | I360: 8.0207 | J360: 7.7505 | K360: 7.9403 | L360: 0.769 | M360: 0.6983 | N360: 0.2883 | O360: 0.3149 | P360: 0.2707 | Q360: 0.8292 | R360: 0.736 | S360: 0.2956 | T360: 0.324 | U360: 0.2772
C361: Initial | D361: 50 to 69 | E361: BSCM | F361: 31/12/2015 | G361: 5.6736 | H361: 7.4241 | I361: 6.8873 | J361: 6.7616 | K361: 6.7555 | L361: 0.6851 | M361: 0.6281 | N361: 0.267 | O361: 0.2938 | P361: 0.2499 | Q361: 0.7484 | R361: 0.6668 | S361: 0.2744 | T361: 0.3029 | U361: 0.2565
C362: Initial | D362: 50 to 69 | E362: BSM | F362: 30/06/2012 | G362: 16.6833 | H362: 16.0517 | I362: 8.3322 | J362: 8.237 | K362: 9.4682 | L362: 0.8661 | M362: 2.9906 | N362: 0.2552 | O362: 0.2553 | P362: 0.2515 | Q362: 0.8939 | R362: 3.3662 | S362: 0.2606 | T362: 0.2609 | U362: 0.2561
C363: Initial | D363: 50 to 69 | E363: BSM | F363: 30/06/2013 | G363: 15.7351 | H363: 12.5664 | I363: 8.1296 | J363: 8.0743 | K363: 9.2048 | L363: 0.8146 | M363: 2.6201 | N363: 0.2485 | O363: 0.2493 | P363: 0.2439 | Q363: 0.8412 | R363: 3.0187 | S363: 0.2539 | T363: 0.2547 | U363: 0.2483
C364: Initial | D364: 50 to 69 | E364: BSM | F364: 30/06/2014 | G364: 13.2242 | H364: 13.1707 | I364: 7.0943 | J364: 7.0155 | K364: 7.9871 | L364: 0.727 | M364: 2.5719 | N364: 0.2281 | O364: 0.2284 | P364: 0.2229 | Q364: 0.7532 | R364: 2.9315 | S364: 0.2334 | T364: 0.2336 | U364: 0.2273
... 227 more rows

Sheet 1.a.3
A2: 1.a.3 | C2: =INDEX(reference!B2:B99, MATCH(A2, reference!$A$2:$A$99, 0)) -> Coverage by screening unit type | AA2: Return to Index
C5: Description: | D5: =INDEX(reference!$J$2:$J$99, MATCH($A$2, reference!$A$2:$A$99, 0)) -> The number of women who had a screen at a fixed/mobile site as a percentage of the number of women screened.
C7: Target: | D7: =INDEX(reference!$I$2:$I$99, MATCH($A$2, reference!$A$2:$A$99, 0)) -> No target
E33: Māori | K33: Pacific | Q33: Non-Māori | U33: Non-Māori Non-Pacific | Y33: All
E34: =INDEX(reference!$C$2:$C$99, MATCH($A$2, reference!$A$2:$A$99, 0)) -> Women Screened at Unit | F34: =INDEX(reference!$D$2:$D$99, MATCH($A$2, reference!$A$2:$A$99, 0)) -> Women Screened | G34: =INDEX(reference!$E$2:$E$99, MATCH($A$2, reference!$A$2:$A$99, 0)) -> % Screened (95% CI) | I34: Māori / Non-Māori Ratio | K34: =INDEX(reference!$C$2:$C$99, MATCH($A$2, reference!$A$2:$A$99, 0)) -> Women Screened at Unit | L34: =INDEX(reference!$D$2:$D$99, MATCH($A$2, reference!$A$2:$A$99, 0)) -> Women Screened | M34: =INDEX(reference!$E$2:$E$99, MATCH($A$2, reference!$A$2:$A$99, 0)) -> % Screened (95% CI) | O34: Pacific / Non-Māori Non-Pacific Ratio | Q34: =INDEX(reference!$C$2:$C$99, MATCH($A$2, reference!$A$2:$A$99, 0)) -> Women Screened at Unit | R34: =INDEX(reference!$D$2:$D$99, MATCH($A$2, reference!$A$2:$A$99, 0)) -> Women Screened | S34: =INDEX(reference!$E$2:$E$99, MATCH($A$2, reference!$A$2:$A$99, 0)) -> % Screened (95% CI) | U34: =INDEX(reference!$C$2:$C$99, MATCH($A$2, reference!$A$2:$A$99, 0)) -> Women Screened at Unit | V34: =INDEX(reference!$D$2:$D$99, MATCH($A$2, reference!$A$2:$A$99, 0)) -> Women Screened | W34: =INDEX(reference!$E$2:$E$99, MATCH($A$2, reference!$A$2:$A$99, 0)) -> % Screened (95% CI) | Y34: =INDEX(reference!$C$2:$C$99, MATCH($A$2, reference!$A$2:$A$99, 0)) -> Women Screened at Unit | Z34: =INDEX(reference!$D$2:$D$99, MATCH($A$2, reference!$A$2:$A$99, 0)) -> Women Screened | AA34: =INDEX(reference!$E$2:$E$99, MATCH($A$2, reference!$A$2:$A$99, 0)) -> % Screened (95% CI)
B35: 45 to 49 | C35: Fixed | D35: BSWN | E35: 1479 | F35: 2362 | G35: 62.6164 | H35: (60.6, 64.6) | I35: 0.794 | J35: (0.77, 0.82) | K35: 903 | L35: 999 | M35: 90.3904 | N35: (88.4, 92.1) | O35: 1.157 | P35: (1.13, 1.18) | Q35: 13085 | R35: 16597 | S35: 78.8395 | T35: (78.2, 79.5) | U35: 12182 | V35: 15598 | W35: 78.0998 | X35: (77.4, 78.7) | Y35: 14564 | Z35: 18959 | AA35: 76.8184 | AB35: (76.2, 77.4)
B36: 45 to 49 | C36: Fixed | D36: BSCM | E36: 1328 | F36: 1669 | G36: 79.5686 | H36: (77.6, 81.5) | I36: 0.979 | J36: (0.95, 1.00) | K36: 2196 | L36: 2605 | M36: 84.2994 | N36: (82.8, 85.7) | O36: 1.049 | P36: (1.03, 1.07) | Q36: 9487 | R36: 11676 | S36: 81.2521 | T36: (80.5, 82.0) | U36: 7291 | V36: 9071 | W36: 80.377 | X36: (79.5, 81.2) | Y36: 10815 | Z36: 13345 | AA36: 81.0416 | AB36: (80.4, 81.7)
B37: 45 to 49 | C37: Fixed | D37: BSAL | E37: 547 | F37: 787 | G37: 69.5044 | H37: (66.2, 72.7) | I37: 0.881 | J37: (0.84, 0.92) | K37: 769 | L37: 1345 | M37: 57.1747 | N37: (54.5, 59.8) | O37: 0.697 | P37: (0.66, 0.73) | Q37: 8393 | R37: 10636 | S37: 78.9112 | T37: (78.1, 79.7) | U37: 7624 | V37: 9291 | W37: 82.0579 | X37: (81.3, 82.8) | Y37: 8940 | Z37: 11423 | AA37: 78.2632 | AB37: (77.5, 79.0)
B38: 45 to 49 | C38: Fixed | D38: BSM | E38: 2171 | F38: 2958 | G38: 73.3942 | H38: (71.8, 75.0) | I38: 0.939 | J38: (0.92, 0.96) | K38: 214 | L38: 292 | M38: 73.2877 | N38: (67.8, 78.3) | O38: 0.937 | P38: (0.87, 1.00) | Q38: 10705 | R38: 13703 | S38: 78.1216 | T38: (77.4, 78.8) | U38: 10491 | V38: 13411 | W38: 78.2268 | X38: (77.5, 78.9) | Y38: 12876 | Z38: 16661 | AA38: 77.2823 | AB38: (76.6, 77.9)
B39: 45 to 49 | C39: Fixed | D39: BSCC | E39: 1890 | F39: 2452 | G39: 77.0799 | H39: (75.4, 78.7) | I39: 0.897 | J39: (0.88, 0.92) | K39: 198 | L39: 236 | M39: 83.8983 | N39: (78.6, 88.3) | O39: 0.976 | P39: (0.92, 1.03) | Q39: 9408 | R39: 10945 | S39: 85.9571 | T39: (85.3, 86.6) | U39: 9210 | V39: 10709 | W39: 86.0024 | X39: (85.3, 86.7) | Y39: 11298 | Z39: 13397 | AA39: 84.3323 | AB39: (83.7, 84.9)
B40: 45 to 49 | C40: Fixed | D40: BSC | E40: 657 | F40: 1222 | G40: 53.7643 | H40: (50.9, 56.6) | I40: 1.069 | J40: (1.01, 1.13) | K40: 307 | L40: 654 | M40: 46.9419 | N40: (43.1, 50.8) | O40: 0.929 | P40: (0.85, 1.01) | Q40: 5495 | R40: 10923 | S40: 50.3067 | T40: (49.4, 51.2) | U40: 5188 | V40: 10269 | W40: 50.521 | X40: (49.5, 51.5) | Y40: 6152 | Z40: 12145 | AA40: 50.6546 | AB40: (49.8, 51.5)
B41: 45 to 49 | C41: Fixed | D41: BSSL | E41: 1386 | F41: 1542 | G41: 89.8833 | H41: (88.3, 91.3) | I41: 0.95 | J41: (0.93, 0.97) | K41: 234 | L41: 263 | M41: 88.9734 | N41: (84.5, 92.5) | O41: 0.94 | P41: (0.90, 0.98) | Q41: 20639 | R41: 21818 | S41: 94.5962 | T41: (94.3, 94.9) | U41: 20405 | V41: 21555 | W41: 94.6648 | X41: (94.4, 95.0) | Y41: 22025 | Z41: 23360 | AA41: 94.2851 | AB41: (94.0, 94.6)
B42: 45 to 49 | C42: Fixed | D42: BSOS | E42: 409 | F42: 570 | G42: 71.7544 | H42: (67.9, 75.4) | I42: 1.054 | J42: (1.00, 1.11) | K42: 66 | L42: 81 | M42: 81.4815 | N42: (71.3, 89.2) | O42: 1.2 | P42: (1.08, 1.33) | Q42: 4781 | R42: 7024 | S42: 68.0666 | T42: (67.0, 69.2) | U42: 4715 | V42: 6943 | W42: 67.9101 | X42: (66.8, 69.0) | Y42: 5190 | Z42: 7594 | AA42: 68.3434 | AB42: (67.3, 69.4)
B43: 45 to 49 | C43: Fixed | D43: Total | E43: 9867 | F43: 13562 | G43: 72.7548 | H43: (72.0, 73.5) | I43: 0.917 | J43: (0.91, 0.93) | K43: 4887 | L43: 6475 | M43: 75.4749 | N43: (74.4, 76.5) | O43: 0.948 | P43: (0.94, 0.96) | Q43: 81993 | R43: 103322 | S43: 79.3568 | T43: (79.1, 79.6) | U43: 77106 | V43: 96847 | W43: 79.6163 | X43: (79.4, 79.9) | Y43: 91860 | Z43: 116884 | AA43: 78.5907 | AB43: (78.4, 78.8)
B44: 45 to 49 | C44: Mobile | D44: BSWN | E44: 883 | F44: 2362 | G44: 37.3836 | H44: (35.4, 39.4) | I44: 1.767 | J44: (1.66, 1.88) | K44: 96 | L44: 999 | M44: 9.6096 | N44: (7.9, 11.6) | O44: 0.439 | P44: (0.36, 0.53) | Q44: 3512 | R44: 16597 | S44: 21.1605 | T44: (20.5, 21.8) | U44: 3416 | V44: 15598 | W44: 21.9002 | X44: (21.3, 22.6) | Y44: 4395 | Z44: 18959 | AA44: 23.1816 | AB44: (22.6, 23.8)
B45: 45 to 49 | C45: Mobile | D45: BSCM | E45: 341 | F45: 1669 | G45: 20.4314 | H45: (18.5, 22.4) | I45: 1.09 | J45: (0.98, 1.21) | K45: 409 | L45: 2605 | M45: 15.7006 | N45: (14.3, 17.2) | O45: 0.8 | P45: (0.72, 0.88) | Q45: 2189 | R45: 11676 | S45: 18.7479 | T45: (18.0, 19.5) | U45: 1780 | V45: 9071 | W45: 19.623 | X45: (18.8, 20.5) | Y45: 2530 | Z45: 13345 | AA45: 18.9584 | AB45: (18.3, 19.6)
B46: 45 to 49 | C46: Mobile | D46: BSAL | E46: 240 | F46: 787 | G46: 30.4956 | H46: (27.3, 33.8) | I46: 1.446 | J46: (1.29, 1.62) | K46: 576 | L46: 1345 | M46: 42.8253 | N46: (40.2, 45.5) | O46: 2.387 | P46: (2.21, 2.57) | Q46: 2243 | R46: 10636 | S46: 21.0888 | T46: (20.3, 21.9) | U46: 1667 | V46: 9291 | W46: 17.9421 | X46: (17.2, 18.7) | Y46: 2483 | Z46: 11423 | AA46: 21.7368 | AB46: (21.0, 22.5)
B47: 45 to 49 | C47: Mobile | D47: BSM | E47: 787 | F47: 2958 | G47: 26.6058 | H47: (25.0, 28.2) | I47: 1.216 | J47: (1.14, 1.30) | K47: 78 | L47: 292 | M47: 26.7123 | N47: (21.7, 32.2) | O47: 1.227 | P47: (1.01, 1.49) | Q47: 2998 | R47: 13703 | S47: 21.8784 | T47: (21.2, 22.6) | U47: 2920 | V47: 13411 | W47: 21.7732 | X47: (21.1, 22.5) | Y47: 3785 | Z47: 16661 | AA47: 22.7177 | AB47: (22.1, 23.4)
B48: 45 to 49 | C48: Mobile | D48: BSCC | E48: 562 | F48: 2452 | G48: 22.9201 | H48: (21.3, 24.6) | I48: 1.632 | J48: (1.50, 1.78) | K48: 38 | L48: 236 | M48: 16.1017 | N48: (11.7, 21.4) | O48: 1.15 | P48: (0.86, 1.54) | Q48: 1537 | R48: 10945 | S48: 14.0429 | T48: (13.4, 14.7) | U48: 1499 | V48: 10709 | W48: 13.9976 | X48: (13.3, 14.7) | Y48: 2099 | Z48: 13397 | AA48: 15.6677 | AB48: (15.1, 16.3)
B49: 45 to 49 | C49: Mobile | D49: BSC | E49: 565 | F49: 1222 | G49: 46.2357 | H49: (43.4, 49.1) | I49: 0.93 | J49: (0.87, 0.99) | K49: 347 | L49: 654 | M49: 53.0581 | N49: (49.2, 56.9) | O49: 1.072 | P49: (0.99, 1.16) | Q49: 5428 | R49: 10923 | S49: 49.6933 | T49: (48.8, 50.6) | U49: 5081 | V49: 10269 | W49: 49.479 | X49: (48.5, 50.5) | Y49: 5993 | Z49: 12145 | AA49: 49.3454 | AB49: (48.5, 50.2)
B50: 45 to 49 | C50: Mobile | D50: BSSL | E50: 156 | F50: 1542 | G50: 10.1167 | H50: (8.7, 11.7) | I50: 1.872 | J50: (1.60, 2.19) | K50: 29 | L50: 263 | M50: 11.0266 | N50: (7.5, 15.5) | O50: 2.067 | P50: (1.46, 2.93) | Q50: 1179 | R50: 21818 | S50: 5.4038 | T50: (5.1, 5.7) | U50: 1150 | V50: 21555 | W50: 5.3352 | X50: (5.0, 5.6) | Y50: 1335 | Z50: 23360 | AA50: 5.7149 | AB50: (5.4, 6.0)
B51: 45 to 49 | C51: Mobile | D51: BSOS | E51: 161 | F51: 570 | G51: 28.2456 | H51: (24.6, 32.1) | I51: 0.885 | J51: (0.77, 1.01) | K51: 15 | L51: 81 | M51: 18.5185 | N51: (10.8, 28.7) | O51: 0.577 | P51: (0.36, 0.91) | Q51: 2243 | R51: 7024 | S51: 31.9334 | T51: (30.8, 33.0) | U51: 2228 | V51: 6943 | W51: 32.0899 | X51: (31.0, 33.2) | Y51: 2404 | Z51: 7594 | AA51: 31.6566 | AB51: (30.6, 32.7)
B52: 45 to 49 | C52: Mobile | D52: Total | E52: 3695 | F52: 13562 | G52: 27.2452 | H52: (26.5, 28.0) | I52: 1.32 | J52: (1.28, 1.36) | K52: 1588 | L52: 6475 | M52: 24.5251 | N52: (23.5, 25.6) | O52: 1.203 | P52: (1.15, 1.26) | Q52: 21329 | R52: 103322 | S52: 20.6432 | T52: (20.4, 20.9) | U52: 19741 | V52: 96847 | W52: 20.3837 | X52: (20.1, 20.6) | Y52: 25024 | Z52: 116884 | AA52: 21.4093 | AB52: (21.2, 21.6)
B53: 50 to 69 | C53: Fixed | D53: BSWN | E53: 3874 | F53: 6718 | G53: 57.666 | H53: (56.5, 58.9) | I53: 0.765 | J53: (0.75, 0.78) | K53: 2493 | L53: 2722 | M53: 91.5871 | N53: (90.5, 92.6) | O53: 1.228 | P53: (1.21, 1.24) | Q53: 42164 | R53: 55925 | S53: 75.3938 | T53: (75.0, 75.8) | U53: 39671 | V53: 53203 | W53: 74.5653 | X53: (74.2, 74.9) | Y53: 46038 | Z53: 62643 | AA53: 73.4926 | AB53: (73.1, 73.8)
B54: 50 to 69 | C54: Fixed | D54: BSCM | E54: 3094 | F54: 4182 | G54: 73.9837 | H54: (72.6, 75.3) | I54: 0.958 | J54: (0.94, 0.98) | K54: 5070 | L54: 6395 | M54: 79.2807 | N54: (78.3, 80.3) | O54: 1.032 | P54: (1.02, 1.05) | Q54: 26438 | R54: 34217 | S54: 77.2657 | T54: (76.8, 77.7) | U54: 21368 | V54: 27822 | W54: 76.8025 | X54: (76.3, 77.3) | Y54: 29532 | Z54: 38399 | AA54: 76.9083 | AB54: (76.5, 77.3)
B55: 50 to 69 | C55: Fixed | D55: BSAL | E55: 1311 | F55: 1983 | G55: 66.112 | H55: (64.0, 68.2) | I55: 0.827 | J55: (0.80, 0.85) | K55: 1793 | L55: 3255 | M55: 55.0845 | N55: (53.4, 56.8) | O55: 0.665 | P55: (0.64, 0.69) | Q55: 25274 | R55: 31605 | S55: 79.9684 | T55: (79.5, 80.4) | U55: 23481 | V55: 28350 | W55: 82.8254 | X55: (82.4, 83.3) | Y55: 26585 | Z55: 33588 | AA55: 79.1503 | AB55: (78.7, 79.6)
B56: 50 to 69 | C56: Fixed | D56: BSM | E56: 6431 | F56: 9350 | G56: 68.7807 | H56: (67.8, 69.7) | I56: 0.947 | J56: (0.93, 0.96) | K56: 525 | L56: 758 | M56: 69.2612 | N56: (65.8, 72.5) | O56: 0.953 | P56: (0.91, 1.00) | Q56: 37625 | R56: 51819 | S56: 72.6085 | T56: (72.2, 73.0) | U56: 37100 | V56: 51061 | W56: 72.6582 | X56: (72.3, 73.0) | Y56: 44056 | Z56: 61169 | AA56: 72.0234 | AB56: (71.7, 72.4)
B57: 50 to 69 | C57: Fixed | D57: BSCC | E57: 5529 | F57: 7612 | G57: 72.6353 | H57: (71.6, 73.6) | I57: 0.87 | J57: (0.86, 0.88) | K57: 544 | L57: 654 | M57: 83.1804 | N57: (80.1, 86.0) | O57: 0.997 | P57: (0.96, 1.03) | Q57: 38520 | R57: 46162 | S57: 83.4453 | T57: (83.1, 83.8) | U57: 37976 | V57: 45508 | W57: 83.4491 | X57: (83.1, 83.8) | Y57: 44049 | Z57: 53774 | AA57: 81.9151 | AB57: (81.6, 82.2)
B58: 50 to 69 | C58: Fixed | D58: BSC | E58: 1971 | F58: 3498 | G58: 56.3465 | H58: (54.7, 58.0) | I58: 1.051 | J58: (1.02, 1.08) | K58: 992 | L58: 1939 | M58: 51.1604 | N58: (48.9, 53.4) | O58: 0.952 | P58: (0.91, 0.99) | Q58: 20878 | R58: 38928 | S58: 53.6323 | T58: (53.1, 54.1) | U58: 19886 | V58: 36989 | W58: 53.7619 | X58: (53.3, 54.3) | Y58: 22849 | Z58: 42426 | AA58: 53.8561 | AB58: (53.4, 54.3)
B59: 50 to 69 | C59: Fixed | D59: BSSL | E59: 3197 | F59: 3715 | G59: 86.0565 | H59: (84.9, 87.2) | I59: 0.929 | J59: (0.92, 0.94) | K59: 547 | L59: 629 | M59: 86.9634 | N59: (84.1, 89.5) | O59: 0.939 | P59: (0.91, 0.97) | Q59: 68051 | R59: 73481 | S59: 92.6103 | T59: (92.4, 92.8) | U59: 67504 | V59: 72852 | W59: 92.6591 | X59: (92.5, 92.8) | Y59: 71248 | Z59: 77196 | AA59: 92.2949 | AB59: (92.1, 92.5)
B60: 50 to 69 | C60: Fixed | D60: BSOS | E60: 997 | F60: 1396 | G60: 71.4183 | H60: (69.0, 73.8) | I60: 1.115 | J60: (1.08, 1.15) | K60: 150 | L60: 181 | M60: 82.8729 | N60: (76.6, 88.1) | O60: 1.296 | P60: (1.21, 1.38) | Q60: 17851 | R60: 27859 | S60: 64.0762 | T60: (63.5, 64.6) | U60: 17701 | V60: 27678 | W60: 63.9533 | X60: (63.4, 64.5) | Y60: 18848 | Z60: 29255 | AA60: 64.4266 | AB60: (63.9, 65.0)
B61: 50 to 69 | C61: Fixed | D61: Total | E61: 26404 | F61: 38454 | G61: 68.6639 | H61: (68.2, 69.1) | I61: 0.893 | J61: (0.89, 0.90) | K61: 12114 | L61: 16533 | M61: 73.2716 | N61: (72.6, 73.9) | O61: 0.951 | P61: (0.94, 0.96) | Q61: 276801 | R61: 359996 | S61: 76.89 | T61: (76.8, 77.0) | U61: 264687 | V61: 343463 | W61: 77.0642 | X61: (76.9, 77.2) | Y61: 303205 | Z61: 398450 | AA61: 76.0961 | AB61: (76.0, 76.2)
B62: 50 to 69 | C62: Mobile | D62: BSWN | E62: 2844 | F62: 6718 | G62: 42.334 | H62: (41.1, 43.5) | I62: 1.72 | J62: (1.67, 1.77) | K62: 229 | L62: 2722 | M62: 8.4129 | N62: (7.4, 9.5) | O62: 0.331 | P62: (0.29, 0.38) | Q62: 13761 | R62: 55925 | S62: 24.6062 | T62: (24.2, 25.0) | U62: 13532 | V62: 53203 | W62: 25.4347 | X62: (25.1, 25.8) | Y62: 16605 | Z62: 62643 | AA62: 26.5074 | AB62: (26.2, 26.9)
B63: 50 to 69 | C63: Mobile | D63: BSCM | E63: 1088 | F63: 4182 | G63: 26.0163 | H63: (24.7, 27.4) | I63: 1.144 | J63: (1.08, 1.21) | K63: 1325 | L63: 6395 | M63: 20.7193 | N63: (19.7, 21.7) | O63: 0.893 | P63: (0.85, 0.94) | Q63: 7779 | R63: 34217 | S63: 22.7343 | T63: (22.3, 23.2) | U63: 6454 | V63: 27822 | W63: 23.1975 | X63: (22.7, 23.7) | Y63: 8867 | Z63: 38399 | AA63: 23.0917 | AB63: (22.7, 23.5)
B64: 50 to 69 | C64: Mobile | D64: BSAL | E64: 672 | F64: 1983 | G64: 33.888 | H64: (31.8, 36.0) | I64: 1.692 | J64: (1.58, 1.81) | K64: 1462 | L64: 3255 | M64: 44.9155 | N64: (43.2, 46.6) | O64: 2.615 | P64: (2.50, 2.74) | Q64: 6331 | R64: 31605 | S64: 20.0316 | T64: (19.6, 20.5) | U64: 4869 | V64: 28350 | W64: 17.1746 | X64: (16.7, 17.6) | Y64: 7003 | Z64: 33588 | AA64: 20.8497 | AB64: (20.4, 21.3)
B65: 50 to 69 | C65: Mobile | D65: BSM | E65: 2919 | F65: 9350 | G65: 31.2193 | H65: (30.3, 32.2) | I65: 1.14 | J65: (1.10, 1.18) | K65: 233 | L65: 758 | M65: 30.7388 | N65: (27.5, 34.2) | O65: 1.124 | P65: (1.01, 1.25) | Q65: 14194 | R65: 51819 | S65: 27.3915 | T65: (27.0, 27.8) | U65: 13961 | V65: 51061 | W65: 27.3418 | X65: (27.0, 27.7) | Y65: 17113 | Z65: 61169 | AA65: 27.9766 | AB65: (27.6, 28.3)
B66: 50 to 69 | C66: Mobile | D66: BSCC | E66: 2083 | F66: 7612 | G66: 27.3647 | H66: (26.4, 28.4) | I66: 1.653 | J66: (1.58, 1.72) | K66: 110 | L66: 654 | M66: 16.8196 | N66: (14.0, 19.9) | O66: 1.016 | P66: (0.86, 1.21) | Q66: 7642 | R66: 46162 | S66: 16.5547 | T66: (16.2, 16.9) | U66: 7532 | V66: 45508 | W66: 16.5509 | X66: (16.2, 16.9) | Y66: 9725 | Z66: 53774 | AA66: 18.0849 | AB66: (17.8, 18.4)
B67: 50 to 69 | C67: Mobile | D67: BSC | E67: 1527 | F67: 3498 | G67: 43.6535 | H67: (42.0, 45.3) | I67: 0.941 | J67: (0.90, 0.98) | K67: 947 | L67: 1939 | M67: 48.8396 | N67: (46.6, 51.1) | O67: 1.056 | P67: (1.01, 1.11) | Q67: 18050 | R67: 38928 | S67: 46.3677 | T67: (45.9, 46.9) | U67: 17103 | V67: 36989 | W67: 46.2381 | X67: (45.7, 46.7) | Y67: 19577 | Z67: 42426 | AA67: 46.1439 | AB67: (45.7, 46.6)
B68: 50 to 69 | C68: Mobile | D68: BSSL | E68: 518 | F68: 3715 | G68: 13.9435 | H68: (12.8, 15.1) | I68: 1.887 | J68: (1.74, 2.05) | K68: 82 | L68: 629 | M68: 13.0366 | N68: (10.5, 15.9) | O68: 1.776 | P68: (1.45, 2.18) | Q68: 5430 | R68: 73481 | S68: 7.3897 | T68: (7.2, 7.6) | U68: 5348 | V68: 72852 | W68: 7.3409 | X68: (7.2, 7.5) | Y68: 5948 | Z68: 77196 | AA68: 7.7051 | AB68: (7.5, 7.9)
B69: 50 to 69 | C69: Mobile | D69: BSOS | E69: 399 | F69: 1396 | G69: 28.5817 | H69: (26.2, 31.0) | I69: 0.796 | J69: (0.73, 0.87) | K69: 31 | L69: 181 | M69: 17.1271 | N69: (11.9, 23.4) | O69: 0.475 | P69: (0.34, 0.66) | Q69: 10008 | R69: 27859 | S69: 35.9238 | T69: (35.4, 36.5) | U69: 9977 | V69: 27678 | W69: 36.0467 | X69: (35.5, 36.6) | Y69: 10407 | Z69: 29255 | AA69: 35.5734 | AB69: (35.0, 36.1)
B70: 50 to 69 | C70: Mobile | D70: Total | E70: 12050 | F70: 38454 | G70: 31.3361 | H70: (30.9, 31.8) | I70: 1.356 | J70: (1.33, 1.38) | K70: 4419 | L70: 16533 | M70: 26.7284 | N70: (26.1, 27.4) | O70: 1.165 | P70: (1.14, 1.20) | Q70: 83195 | R70: 359996 | S70: 23.11 | T70: (23.0, 23.2) | U70: 78776 | V70: 343463 | W70: 22.9358 | X70: (22.8, 23.1) | Y70: 95245 | Z70: 398450 | AA70: 23.9039 | AB70: (23.8, 24.0)
C201: ="Figure " & A2 & ".1, " & C204 & ", " & D204 & IF(E204 = "None", "", ", " & E204) & ", Two Years to Time Period" -> Figure 1.a.3.1, Total, 50 to 69, Fixed, Two Years to Time Period
C202: =INDEX(reference!$H$2:$H$99, MATCH($A$2, reference!$A$2:$A$99, 0)) -> % Screened at Unit
C204: =INDEX(C206:C214, C205) -> Total | D204: =INDEX(D206:D214, D205) -> 50 to 69 | E204: Fixed
C205: 9 | D205: 2 | E205: 1
B206: 1 | C206: BSWN | D206: 45 to 49 | E206: =IFERROR(INDEX('reference - splits'!$C$2:$C$72, MATCH($A$2 & " - Split " & B206, 'reference - splits'!$B$2:$B$72, 0)), "") -> Fixed
B207: 2 | C207: BSCM | D207: 50 to 69 | E207: =IFERROR(INDEX('reference - splits'!$C$2:$C$72, MATCH($A$2 & " - Split " & B207, 'reference - splits'!$B$2:$B$72, 0)), "") -> Mobile
B208: 3 | C208: BSAL | E208: =IFERROR(INDEX('reference - splits'!$C$2:$C$72, MATCH($A$2 & " - Split " & B208, 'reference - splits'!$B$2:$B$72, 0)), "") -> 
B209: 4 | C209: BSM | E209: =IFERROR(INDEX('reference - splits'!$C$2:$C$72, MATCH($A$2 & " - Split " & B209, 'reference - splits'!$B$2:$B$72, 0)), "") -> 
B210: 5 | C210: BSCC | E210: =IFERROR(INDEX('reference - splits'!$C$2:$C$72, MATCH($A$2 & " - Split " & B210, 'reference - splits'!$B$2:$B$72, 0)), "") -> 
B211: 6 | C211: BSC | E211: =IFERROR(INDEX('reference - splits'!$C$2:$C$72, MATCH($A$2 & " - Split " & B211, 'reference - splits'!$B$2:$B$72, 0)), "") -> 
B212: 7 | C212: BSSL | E212: =IFERROR(INDEX('reference - splits'!$C$2:$C$72, MATCH($A$2 & " - Split " & B212, 'reference - splits'!$B$2:$B$72, 0)), "") -> 
B213: 8 | C213: BSOS | E213: =IFERROR(INDEX('reference - splits'!$C$2:$C$72, MATCH($A$2 & " - Split " & B213, 'reference - splits'!$B$2:$B$72, 0)), "") -> 
B214: 9 | C214: Total | E214: =IFERROR(INDEX('reference - splits'!$C$2:$C$72, MATCH($A$2 & " - Split " & B214, 'reference - splits'!$B$2:$B$72, 0)), "") -> 
C216: Visible | G216: TRUE | H216: TRUE | I216: FALSE | J216: FALSE | K216: TRUE | L216: TRUE | M216: =$L$216 -> TRUE | N216: =$L$216 -> TRUE | O216: TRUE | P216: TRUE | Q216: TRUE | R216: TRUE | S216: TRUE | T216: TRUE | U216: TRUE
C218: split | D218: age_group | E218: lead_provider | F218: time_period | G218: Māori | H218: Pacific | I218: Non-Māori | J218: Non-Māori Non-Pacific | K218: All | L218: lci_m | M218: lci_p | N218: lci_nm | O218: lci_nmnp | P218: lci_a | Q218: uci_m | R218: uci_p | S218: uci_nm | T218: uci_nmnp | U218: uci_a | V218: target bottom | W218: target top
C219: =$E$204 -> Fixed | D219: =$D$204 -> 50 to 69 | E219: =$C$204 -> Total | F219: 2011-12-31 | G219: =IF(G$216, SUMIFS(G$232:G$681, $C$232:$C$681, $C219, $D$232:$D$681, $D219, $E$232:$E$681, $E219, $F$232:$F$681, $F219), #N/A) -> 66.4567 | H219: =IF(H$216, SUMIFS(H$232:H$681, $C$232:$C$681, $C219, $D$232:$D$681, $D219, $E$232:$E$681, $E219, $F$232:$F$681, $F219), #N/A) -> 70.7902 | K219: 77.8819 | L219: 0.5374 | M219: 0.786 | N219: 0.1428 | O219: 0.145 | P219: 0.1389 | Q219: 0.5343 | R219: 0.7767 | S219: 0.1423 | T219: 0.1444 | U219: 0.1385 | V219: =IF(LEFT($D$204, 2) = "50", INDEX('reference - splits'!$E$2:$E$72, MATCH($A$2 & " - " & $E$204, 'reference - splits'!$D$2:$D$72, 0)), 0) -> 0 | W219: =IF(LEFT($D$204, 2) = "50", INDEX('reference - splits'!$F$2:$F$72, MATCH($A$2 & " - " & $E$204, 'reference - splits'!$D$2:$D$72, 0)) - V219, 0) -> 0
C220: Fixed | D220: 50 to 69 | E220: Total | F220: 2012-06-30 | G220: =IF(G$216, SUMIFS(G$232:G$681, $C$232:$C$681, $C220, $D$232:$D$681, $D220, $E$232:$E$681, $E220, $F$232:$F$681, $F220), #N/A) -> 65.7061 | H220: 69.812 | K220: 76.9255 | L220: 0.5307 | M220: 0.7789 | N220: 0.1441 | O220: 0.1464 | P220: 0.1399 | Q220: 0.5278 | R220: 0.7704 | S220: 0.1436 | T220: 0.1458 | U220: 0.1395 | V220: =IF(LEFT($D$204, 2) = "50", INDEX('reference - splits'!$E$2:$E$72, MATCH($A$2 & " - " & $E$204, 'reference - splits'!$D$2:$D$72, 0)), 0) -> 0 | W220: =IF(LEFT($D$204, 2) = "50", INDEX('reference - splits'!$F$2:$F$72, MATCH($A$2 & " - " & $E$204, 'reference - splits'!$D$2:$D$72, 0)) - V220, 0) -> 0
C221: Fixed | D221: 50 to 69 | E221: Total | F221: 2012-12-31 | G221: 65.951 | H221: 70.655 | K221: 76.4021 | L221: 0.5199 | M221: 0.7571 | N221: 0.1438 | O221: 0.1463 | P221: 0.1392 | Q221: 0.5171 | R221: 0.7486 | S221: 0.1432 | T221: 0.1458 | U221: 0.1389 | V221: =IF(LEFT($D$204, 2) = "50", INDEX('reference - splits'!$E$2:$E$72, MATCH($A$2 & " - " & $E$204, 'reference - splits'!$D$2:$D$72, 0)), 0) -> 0 | W221: =IF(LEFT($D$204, 2) = "50", INDEX('reference - splits'!$F$2:$F$72, MATCH($A$2 & " - " & $E$204, 'reference - splits'!$D$2:$D$72, 0)) - V221, 0) -> 0
C222: Fixed | D222: 50 to 69 | E222: Total | F222: 2013-06-30 | G222: 66.7159 | H222: 71.809 | K222: 76.0654 | L222: 0.5101 | M222: 0.7354 | N222: 0.1441 | O222: 0.1469 | P222: 0.1393 | Q222: 0.5071 | R222: 0.7268 | S222: 0.1436 | T222: 0.1464 | U222: 0.1388 | V222: =IF(LEFT($D$204, 2) = "50", INDEX('reference - splits'!$E$2:$E$72, MATCH($A$2 & " - " & $E$204, 'reference - splits'!$D$2:$D$72, 0)), 0) -> 0 | W222: =IF(LEFT($D$204, 2) = "50", INDEX('reference - splits'!$F$2:$F$72, MATCH($A$2 & " - " & $E$204, 'reference - splits'!$D$2:$D$72, 0)) - V222, 0) -> 0
C223: Fixed | D223: 50 to 69 | E223: Total | F223: 2013-12-31 | G223: 67.7331 | H223: 72.5349 | K223: 76.1192 | L223: 0.4971 | M223: 0.7178 | N223: 0.1425 | O223: 0.1453 | P223: 0.1374 | Q223: 0.4941 | R223: 0.7092 | S223: 0.1419 | T223: 0.1449 | U223: 0.137 | V223: =IF(LEFT($D$204, 2) = "50", INDEX('reference - splits'!$E$2:$E$72, MATCH($A$2 & " - " & $E$204, 'reference - splits'!$D$2:$D$72, 0)), 0) -> 0 | W223: =IF(LEFT($D$204, 2) = "50", INDEX('reference - splits'!$F$2:$F$72, MATCH($A$2 & " - " & $E$204, 'reference - splits'!$D$2:$D$72, 0)) - V223, 0) -> 0
C224: Fixed | D224: 50 to 69 | E224: Total | F224: 2014-06-30 | G224: 68.7472 | H224: 73.9147 | K224: 76.4512 | L224: 0.4872 | M224: 0.6968 | N224: 0.1408 | O224: 0.1437 | P224: 0.1356 | Q224: 0.484 | R224: 0.6879 | S224: 0.1403 | T224: 0.1433 | U224: 0.1353 | V224: =IF(LEFT($D$204, 2) = "50", INDEX('reference - splits'!$E$2:$E$72, MATCH($A$2 & " - " & $E$204, 'reference - splits'!$D$2:$D$72, 0)), 0) -> 0 | W224: =IF(LEFT($D$204, 2) = "50", INDEX('reference - splits'!$F$2:$F$72, MATCH($A$2 & " - " & $E$204, 'reference - splits'!$D$2:$D$72, 0)) - V224, 0) -> 0
C225: Fixed | D225: 50 to 69 | E225: Total | F225: 2014-12-31 | G225: 68.5127 | H225: 73.6145 | K225: 76.2654 | L225: 0.4811 | M225: 0.6917 | N225: 0.1398 | O225: 0.1427 | P225: 0.1347 | Q225: 0.4781 | R225: 0.6831 | S225: 0.1394 | T225: 0.1423 | U225: 0.1342 | V225: =IF(LEFT($D$204, 2) = "50", INDEX('reference - splits'!$E$2:$E$72, MATCH($A$2 & " - " & $E$204, 'reference - splits'!$D$2:$D$72, 0)), 0) -> 0 | W225: =IF(LEFT($D$204, 2) = "50", INDEX('reference - splits'!$F$2:$F$72, MATCH($A$2 & " - " & $E$204, 'reference - splits'!$D$2:$D$72, 0)) - V225, 0) -> 0
C226: Fixed | D226: 50 to 69 | E226: Total | F226: 2015-06-30 | G226: 68.6319 | H226: 74.114 | K226: 76.2551 | L226: 0.4764 | M226: 0.685 | N226: 0.1393 | O226: 0.1422 | P226: 0.134 | Q226: 0.4734 | R226: 0.6762 | S226: 0.1388 | T226: 0.1418 | U226: 0.1337 | V226: =IF(LEFT($D$204, 2) = "50", INDEX('reference - splits'!$E$2:$E$72, MATCH($A$2 & " - " & $E$204, 'reference - splits'!$D$2:$D$72, 0)), 0) -> 0 | W226: =IF(LEFT($D$204, 2) = "50", INDEX('reference - splits'!$F$2:$F$72, MATCH($A$2 & " - " & $E$204, 'reference - splits'!$D$2:$D$72, 0)) - V226, 0) -> 0
C227: Fixed | D227: 50 to 69 | E227: Total | F227: 2015-12-31 | G227: 68.6079 | H227: 74.4802 | K227: 76.1485 | L227: 0.4699 | M227: 0.6726 | N227: 0.1384 | O227: 0.1415 | P227: 0.1332 | Q227: 0.467 | R227: 0.664 | S227: 0.1381 | T227: 0.1411 | U227: 0.1328 | V227: =IF(LEFT($D$204, 2) = "50", INDEX('reference - splits'!$E$2:$E$72, MATCH($A$2 & " - " & $E$204, 'reference - splits'!$D$2:$D$72, 0)), 0) -> 0 | W227: =IF(LEFT($D$204, 2) = "50", INDEX('reference - splits'!$F$2:$F$72, MATCH($A$2 & " - " & $E$204, 'reference - splits'!$D$2:$D$72, 0)) - V227, 0) -> 0
C228: Fixed | D228: 50 to 69 | E228: Total | F228: 2016-06-30 | G228: 68.6639 | H228: 73.2716 | K228: 76.0961 | L228: 0.4664 | M228: 0.6816 | N228: 0.138 | O228: 0.141 | P228: 0.1327 | Q228: 0.4635 | R228: 0.6735 | S228: 0.1376 | T228: 0.1405 | U228: 0.1324 | V228: =IF(LEFT($D$204, 2) = "50", INDEX('reference - splits'!$E$2:$E$72, MATCH($A$2 & " - " & $E$204, 'reference - splits'!$D$2:$D$72, 0)), 0) -> 0 | W228: =IF(LEFT($D$204, 2) = "50", INDEX('reference - splits'!$F$2:$F$72, MATCH($A$2 & " - " & $E$204, 'reference - splits'!$D$2:$D$72, 0)) - V228, 0) -> 0
C231: split | D231: age_group | E231: lead_provider | F231: time_period | G231: est_m | H231: est_p | I231: est_nm | J231: est_nmnp | K231: est_a | L231: lci_m | M231: lci_p | N231: lci_nm | O231: lci_nmnp | P231: lci_a | Q231: uci_m | R231: uci_p | S231: uci_nm | T231: uci_nmnp | U231: uci_a
C232: Fixed | D232: 45 to 49 | E232: BSAL | F232: 30/06/2012 | G232: 57.3154 | H232: 43.6745 | I232: 72.1698 | J232: 76.0359 | K232: 71.1758 | L232: 3.6419 | M232: 2.782 | N232: 0.8728 | O232: 0.8885 | P232: 0.8513 | Q232: 3.5839 | R232: 2.812 | S232: 0.8603 | T232: 0.8718 | U232: 0.8402
C233: Fixed | D233: 45 to 49 | E233: BSAL | F233: 30/06/2013 | G233: 56.2092 | H233: 42.8161 | I233: 70.3735 | J233: 74.4902 | K233: 69.4292 | L233: 3.5994 | M233: 2.6178 | N233: 0.8749 | O233: 0.898 | P233: 0.8522 | Q233: 3.5512 | R233: 2.6482 | S233: 0.8638 | T233: 0.8827 | U233: 0.8423
C234: Fixed | D234: 45 to 49 | E234: BSAL | F234: 30/06/2014 | G234: 60.6452 | H234: 51.3476 | I234: 75.4104 | J234: 79 | K234: 74.4506 | L234: 3.5392 | M234: 2.6103 | N234: 0.8104 | O234: 0.8244 | P234: 0.793 | Q234: 3.4578 | R234: 2.6049 | S234: 0.7972 | T234: 0.8069 | U234: 0.781
C235: Fixed | D235: 45 to 49 | E235: BSAL | F235: 30/06/2015 | G235: 68.9791 | H235: 60.2899 | I235: 79.8596 | J235: 82.6763 | K235: 79.151 | L235: 3.4143 | M235: 2.6375 | N235: 0.763 | O235: 0.7727 | P235: 0.7465 | Q235: 3.2669 | R235: 2.5935 | S235: 0.7471 | T235: 0.7527 | U235: 0.7321
C236: Fixed | D236: 45 to 49 | E236: BSAL | F236: 30/06/2016 | G236: 69.5044 | H236: 57.1747 | I236: 78.9112 | J236: 82.0579 | K236: 78.2632 | L236: 3.3488 | M236: 2.6949 | N236: 0.7878 | O236: 0.7956 | P236: 0.7679 | Q236: 3.2019 | R236: 2.6635 | S236: 0.772 | T236: 0.7755 | U236: 0.7534
C237: Fixed | D237: 45 to 49 | E237: BSAL | F237: 31/12/2011 | G237: 60.7792 | H237: 48.72 | I237: 75.2731 | J237: 78.9602 | K237: 74.2606 | L237: 3.5494 | M237: 2.8051 | N237: 0.8471 | O237: 0.8568 | P237: 0.8271 | Q237: 3.4666 | R237: 2.8111 | S237: 0.8327 | T237: 0.8381 | U237: 0.8142
C238: Fixed | D238: 45 to 49 | E238: BSAL | F238: 31/12/2012 | G238: 55.4688 | H238: 42.3905 | I238: 71.0899 | J238: 75.236 | K238: 70.0411 | L238: 3.5955 | M238: 2.6571 | N238: 0.8705 | O238: 0.8893 | P238: 0.8489 | Q238: 3.5532 | R238: 2.6904 | S238: 0.859 | T238: 0.8735 | U238: 0.8386
C239: Fixed | D239: 45 to 49 | E239: BSAL | F239: 31/12/2013 | G239: 57.2158 | H239: 45.0137 | I239: 71.352 | J239: 75.3161 | K239: 70.4276 | L239: 3.5511 | M239: 2.5705 | N239: 0.8476 | O239: 0.8695 | P239: 0.8265 | Q239: 3.4966 | R239: 2.5904 | S239: 0.8365 | T239: 0.8543 | U239: 0.8165
C240: Fixed | D240: 45 to 49 | E240: BSAL | F240: 31/12/2014 | G240: 64.0565 | H240: 56.1181 | I240: 77.9733 | J240: 81.1905 | K240: 77.0593 | L240: 3.482 | M240: 2.6248 | N240: 0.7834 | O240: 0.7939 | P240: 0.7675 | Q240: 3.3751 | R240: 2.5995 | S240: 0.7687 | T240: 0.775 | U240: 0.7541
C241: Fixed | D241: 45 to 49 | E241: BSAL | F241: 31/12/2015 | G241: 69.8039 | H241: 60.2033 | I241: 80.503 | J241: 83.4402 | K241: 79.801 | L241: 3.3906 | M241: 2.6411 | N241: 0.7566 | O241: 0.7623 | P241: 0.7404 | Q241: 3.2371 | R241: 2.5976 | S241: 0.7403 | T241: 0.7417 | U241: 0.7256
C242: Fixed | D242: 45 to 49 | E242: BSC | F242: 30/06/2012 | G242: 60.6392 | H242: 55.1724 | I242: 67.8464 | J242: 68.6192 | K242: 67.1192 | L242: 2.8425 | M242: 4.0489 | N242: 0.8989 | O242: 0.9204 | P242: 0.8565 | Q242: 2.7897 | R242: 3.9985 | S242: 0.889 | T242: 0.9096 | U242: 0.8481
C243: Fixed | D243: 45 to 49 | E243: BSC | F243: 30/06/2013 | G243: 60.1399 | H243: 50.7365 | I243: 64.785 | J243: 65.6541 | K243: 64.3281 | L243: 2.904 | M243: 4.0413 | N243: 0.923 | O243: 0.9461 | P243: 0.8784 | Q243: 2.8517 | R243: 4.0342 | S243: 0.9147 | T243: 0.9369 | U243: 0.8712
C244: Fixed | D244: 45 to 49 | E244: BSC | F244: 30/06/2014 | G244: 56.9337 | H244: 50 | I244: 59.5555 | J244: 60.1682 | K244: 59.3 | L244: 2.906 | M244: 3.9194 | N244: 0.9348 | O244: 0.9622 | P244: 0.8886 | Q244: 2.8707 | R244: 3.9194 | S244: 0.9296 | T244: 0.9564 | U244: 0.884
C245: Fixed | D245: 45 to 49 | E245: BSC | F245: 30/06/2015 | G245: 54.6047 | H245: 47.5262 | I245: 55.4859 | J245: 56.0075 | K245: 55.3963 | L245: 2.8347 | M245: 3.8466 | N245: 0.9413 | O245: 0.9708 | P245: 0.892 | Q245: 2.8127 | R245: 3.8687 | S245: 0.9383 | T245: 0.9673 | U245: 0.8895
C246: Fixed | D246: 45 to 49 | E246: BSC | F246: 30/06/2016 | G246: 53.7643 | H246: 46.9419 | I246: 50.3067 | J246: 50.521 | K246: 50.6546 | L246: 2.8425 | M246: 3.8801 | N246: 0.9422 | O246: 0.9719 | P246: 0.8934 | Q246: 2.8244 | R246: 3.9078 | S246: 0.942 | T246: 0.9716 | U246: 0.893
C247: Fixed | D247: 45 to 49 | E247: BSC | F247: 31/12/2011 | G247: 65 | H247: 62.9252 | I247: 71.4203 | J247: 71.9313 | K247: 70.774 | L247: 2.8232 | M247: 4.0462 | N247: 0.8806 | O247: 0.9023 | P247: 0.8398 | Q247: 2.7469 | R247: 3.9156 | S247: 0.8685 | T247: 0.8891 | U247: 0.8294
C248: Fixed | D248: 45 to 49 | E248: BSC | F248: 31/12/2012 | G248: 61.0597 | H248: 54.7731 | I248: 67.4143 | J248: 68.1963 | K248: 66.7928 | L248: 2.8382 | M248: 3.9518 | N248: 0.8862 | O248: 0.908 | P248: 0.8452 | Q248: 2.7834 | R248: 3.9075 | S248: 0.877 | T248: 0.8978 | U248: 0.8372
C249: Fixed | D249: 45 to 49 | E249: BSC | F249: 31/12/2013 | G249: 58.5022 | H249: 50.1572 | I249: 60.7948 | J249: 61.4673 | K249: 60.5748 | L249: 2.9295 | M249: 3.9574 | N249: 0.9328 | O249: 0.9592 | P249: 0.8874 | Q249: 2.8853 | R249: 3.956 | S249: 0.9269 | T249: 0.9526 | U249: 0.8822
C250: Fixed | D250: 45 to 49 | E250: BSC | F250: 31/12/2014 | G250: 54.836 | H250: 49.2284 | I250: 55.99 | J250: 56.4208 | K250: 55.8757 | L250: 2.8798 | M250: 3.9154 | N250: 0.9415 | O250: 0.9703 | P250: 0.8936 | Q250: 2.8558 | R250: 3.9224 | S250: 0.9383 | T250: 0.9667 | U250: 0.8908
C251: Fixed | D251: 45 to 49 | E251: BSC | F251: 31/12/2015 | G251: 53.1502 | H251: 46.142 | I251: 52.9352 | J251: 53.3667 | K251: 52.9572 | L251: 2.8247 | M251: 3.8903 | N251: 0.9444 | O251: 0.9738 | P251: 0.8945 | Q251: 2.8098 | R251: 3.9256 | S251: 0.9429 | T251: 0.9718 | U251: 0.8931
C252: Fixed | D252: 45 to 49 | E252: BSCC | F252: 30/06/2012 | G252: 74.7627 | H252: 81.5534 | I252: 85.1092 | J252: 85.1758 | K252: 83.337 | L252: 1.8204 | M252: 5.982 | N252: 0.6724 | O252: 0.6776 | P252: 0.6387 | Q252: 1.7577 | R252: 5.0496 | S252: 0.6542 | T252: 0.6589 | U252: 0.6243
C253: Fixed | D253: 45 to 49 | E253: BSCC | F253: 30/06/2013 | G253: 74.2616 | H253: 79.9043 | I253: 85.6806 | J253: 85.7921 | K253: 83.6627 | L253: 1.8105 | M253: 6.0811 | N253: 0.6672 | O253: 0.6717 | P253: 0.6368 | Q253: 1.7504 | R253: 5.2119 | S253: 0.6485 | T253: 0.6524 | U253: 0.6221
C254: Fixed | D254: 45 to 49 | E254: BSCC | F254: 30/06/2014 | G254: 76.6871 | H254: 81.8182 | I254: 86.5175 | J254: 86.6101 | K254: 84.8045 | L254: 1.7903 | M254: 5.9091 | N254: 0.6582 | O254: 0.6629 | P254: 0.6263 | Q254: 1.7216 | R254: 4.9823 | S254: 0.6384 | T254: 0.6427 | U254: 0.6109
C255: Fixed | D255: 45 to 49 | E255: BSCC | F255: 30/06/2015 | G255: 76.9003 | H255: 84.2593 | I255: 86.214 | J255: 86.2546 | K255: 84.5178 | L255: 1.7513 | M255: 5.5547 | N255: 0.6698 | O255: 0.6762 | P255: 0.6334 | Q255: 1.6846 | R255: 4.5868 | S255: 0.65 | T255: 0.6557 | U255: 0.6178
C256: Fixed | D256: 45 to 49 | E256: BSCC | F256: 30/06/2016 | G256: 77.0799 | H256: 83.8983 | I256: 85.9571 | J256: 86.0024 | K256: 84.3323 | L256: 1.7158 | M256: 5.3226 | N256: 0.6651 | O256: 0.6716 | P256: 0.6267 | Q256: 1.651 | R256: 4.4482 | S256: 0.6458 | T256: 0.652 | U256: 0.6118
C257: Fixed | D257: 45 to 49 | E257: BSCC | F257: 31/12/2011 | G257: 74.6236 | H257: 78.5714 | I257: 84.8952 | J257: 85.0159 | K257: 83.1738 | L257: 1.8483 | M257: 6.1735 | N257: 0.6762 | O257: 0.6806 | P257: 0.6426 | Q257: 1.7841 | R257: 5.3482 | S257: 0.6581 | T257: 0.6621 | U257: 0.6281
C258: Fixed | D258: 45 to 49 | E258: BSCC | F258: 31/12/2012 | G258: 74.5401 | H258: 81.0427 | I258: 85.5735 | J258: 85.6608 | K258: 83.626 | L258: 1.796 | M258: 5.9497 | N258: 0.6657 | O258: 0.6705 | P258: 0.6339 | Q258: 1.7358 | R258: 5.055 | S258: 0.647 | T258: 0.6515 | U258: 0.6195
C259: Fixed | D259: 45 to 49 | E259: BSCC | F259: 31/12/2013 | G259: 75.043 | H259: 81.6425 | I259: 86.2056 | J259: 86.2935 | K259: 84.2501 | L259: 1.8103 | M259: 5.9575 | N259: 0.6597 | O259: 0.6645 | P259: 0.6306 | Q259: 1.747 | R259: 5.027 | S259: 0.6405 | T259: 0.6447 | U259: 0.6156
C260: Fixed | D260: 45 to 49 | E260: BSCC | F260: 31/12/2014 | G260: 76.438 | H260: 81.4286 | I260: 85.9488 | J260: 86.0386 | K260: 84.2486 | L260: 1.7706 | M260: 5.93 | N260: 0.6703 | O260: 0.6753 | P260: 0.6345 | Q260: 1.7044 | R260: 5.0194 | S260: 0.6508 | T260: 0.6554 | U260: 0.6193
C261: Fixed | D261: 45 to 49 | E261: BSCC | F261: 31/12/2015 | G261: 76.3029 | H261: 84.7458 | I261: 85.7994 | J261: 85.8227 | K261: 84.0542 | L261: 1.7328 | M261: 5.2334 | N261: 0.6692 | O261: 0.6762 | P261: 0.6319 | Q261: 1.6699 | R261: 4.3359 | S261: 0.65 | T261: 0.6567 | U261: 0.617
C262: Fixed | D262: 45 to 49 | E262: BSCM | F262: 30/06/2012 | G262: 72.7848 | H262: 75.2471 | I262: 78.3212 | J262: 79.1757 | K262: 77.5754 | L262: 2.1585 | M262: 1.7671 | N262: 0.7762 | O262: 0.8669 | P262: 0.7298 | Q262: 2.0813 | R262: 1.706 | S262: 0.7614 | T262: 0.8474 | U262: 0.7173
C263: Fixed | D263: 45 to 49 | E263: BSCM | F263: 30/06/2013 | G263: 77.9251 | H263: 82.657 | I263: 82.428 | J263: 82.3609 | K263: 81.8388 | L263: 2.0268 | M263: 1.5075 | N263: 0.7074 | O263: 0.8075 | P263: 0.667 | Q263: 1.9318 | R263: 1.4339 | S263: 0.6909 | T263: 0.7862 | U263: 0.6529
C264: Fixed | D264: 45 to 49 | E264: BSCM | F264: 30/06/2014 | G264: 80.509 | H264: 84.1857 | I264: 82.1819 | J264: 81.5708 | K264: 81.9681 | L264: 1.9473 | M264: 1.4163 | N264: 0.7027 | O264: 0.8149 | P264: 0.6585 | Q264: 1.8431 | R264: 1.3433 | S264: 0.6868 | T264: 0.7945 | U264: 0.6446
C265: Fixed | D265: 45 to 49 | E265: BSCM | F265: 30/06/2015 | G265: 78.9505 | H265: 83.5055 | I265: 81.5821 | J265: 81.0075 | K265: 81.2542 | L265: 2.0308 | M265: 1.4517 | N265: 0.712 | O265: 0.8226 | P265: 0.6698 | Q265: 1.9289 | R265: 1.379 | S265: 0.6963 | T265: 0.8026 | U265: 0.6562
C266: Fixed | D266: 45 to 49 | E266: BSCM | F266: 30/06/2016 | G266: 79.5686 | H266: 84.2994 | I266: 81.2521 | J266: 80.377 | K266: 81.0416 | L266: 2.0156 | M266: 1.4546 | N266: 0.7199 | O266: 0.8325 | P266: 0.6755 | Q266: 1.911 | R266: 1.3771 | S266: 0.7044 | T266: 0.813 | U266: 0.6619
C267: Fixed | D267: 45 to 49 | E267: BSCM | F267: 31/12/2011 | G267: 71.4826 | H267: 71.7364 | I267: 75.1074 | J267: 76.0638 | K267: 74.6401 | L267: 2.2926 | M267: 1.8613 | N267: 0.8303 | O267: 0.9306 | P267: 0.7789 | Q267: 2.2129 | R267: 1.8073 | S267: 0.8166 | T267: 0.9123 | U267: 0.7672
C268: Fixed | D268: 45 to 49 | E268: BSCM | F268: 31/12/2012 | G268: 76.3359 | H268: 79.4176 | I268: 81.2418 | J268: 81.7593 | K268: 80.609 | L268: 2.0924 | M268: 1.6252 | N268: 0.7257 | O268: 0.8156 | P268: 0.6849 | Q268: 2.0012 | R268: 1.557 | S268: 0.7099 | T268: 0.7949 | U268: 0.6714
C269: Fixed | D269: 45 to 49 | E269: BSCM | F269: 31/12/2013 | G269: 79.3932 | H269: 83.7312 | I269: 82.7048 | J269: 82.3941 | K269: 82.2752 | L269: 1.9739 | M269: 1.4407 | N269: 0.6971 | O269: 0.803 | P269: 0.6556 | Q269: 1.8748 | R269: 1.3678 | S269: 0.6808 | T269: 0.782 | U269: 0.6416
C270: Fixed | D270: 45 to 49 | E270: BSCM | F270: 31/12/2014 | G270: 78.8627 | H270: 83.0182 | I270: 81.2067 | J270: 80.6662 | K270: 80.909 | L270: 1.9944 | M270: 1.4565 | N270: 0.7117 | O270: 0.8213 | P270: 0.6681 | Q270: 1.8967 | R270: 1.3858 | S270: 0.6964 | T270: 0.8018 | U270: 0.6549
C271: Fixed | D271: 45 to 49 | E271: BSCM | F271: 31/12/2015 | G271: 80.0116 | H271: 85.5961 | I271: 81.6398 | J271: 80.4851 | K271: 81.431 | L271: 1.963 | M271: 1.3926 | N271: 0.7115 | O271: 0.8289 | P271: 0.6664 | Q271: 1.8607 | R271: 1.3137 | S271: 0.6958 | T271: 0.8094 | U271: 0.6528
C272: Fixed | D272: 45 to 49 | E272: BSM | F272: 30/06/2012 | G272: 58.9437 | H272: 68.2464 | I272: 70.6501 | J272: 70.6922 | K272: 68.6057 | L272: 1.9216 | M272: 6.7427 | N272: 0.815 | O272: 0.8218 | P272: 0.7533 | Q272: 1.9014 | R272: 6.2213 | S272: 0.8052 | T272: 0.8119 | U272: 0.746
C273: Fixed | D273: 45 to 49 | E273: BSM | F273: 30/06/2013 | G273: 65.6079 | H273: 74.6269 | I273: 72.7003 | J273: 72.6688 | K273: 71.4239 | L273: 1.8131 | M273: 6.6018 | N273: 0.7908 | O273: 0.7977 | P273: 0.7251 | Q273: 1.7797 | R273: 5.86 | S273: 0.7803 | T273: 0.7869 | U273: 0.7169
C274: Fixed | D274: 45 to 49 | E274: BSM | F274: 30/06/2014 | G274: 71.8226 | H274: 77.1552 | I274: 74.9239 | J274: 74.8816 | K274: 74.3451 | L274: 1.6867 | M274: 5.9474 | N274: 0.7702 | O274: 0.7779 | P274: 0.6988 | Q274: 1.6421 | R274: 5.2393 | S274: 0.7585 | T274: 0.7661 | U274: 0.6896
C275: Fixed | D275: 45 to 49 | E275: BSM | F275: 30/06/2015 | G275: 72.3397 | H275: 74.2373 | I275: 76.7939 | J275: 76.852 | K275: 75.9674 | L275: 1.6314 | M275: 5.3883 | N275: 0.7275 | O275: 0.7353 | P275: 0.6635 | Q275: 1.5881 | R275: 4.8942 | S275: 0.7158 | T275: 0.7232 | U275: 0.6542
C276: Fixed | D276: 45 to 49 | E276: BSM | F276: 30/06/2016 | G276: 73.3942 | H276: 73.2877 | I276: 78.1216 | J276: 78.2268 | K276: 77.2823 | L276: 1.632 | M276: 5.4664 | N276: 0.7018 | O276: 0.7083 | P276: 0.644 | Q276: 1.5856 | R276: 4.9868 | S276: 0.6898 | T276: 0.6961 | U276: 0.6344
C277: Fixed | D277: 45 to 49 | E277: BSM | F277: 31/12/2011 | G277: 58.4247 | H277: 64.5 | I277: 70.1263 | J277: 70.222 | K277: 68.1276 | L277: 1.9758 | M277: 7.0586 | N277: 0.8294 | O277: 0.8358 | P277: 0.7676 | Q277: 1.9557 | R277: 6.6216 | S277: 0.8196 | T277: 0.8257 | U277: 0.7603
C278: Fixed | D278: 45 to 49 | E278: BSM | F278: 31/12/2012 | G278: 62.108 | H278: 69.7674 | I278: 70.9794 | J278: 71.0003 | K278: 69.4032 | L278: 1.8462 | M278: 6.6146 | N278: 0.7983 | O278: 0.805 | P278: 0.7338 | Q278: 1.8202 | R278: 6.0601 | S278: 0.7887 | T278: 0.7953 | U278: 0.7266
C279: Fixed | D279: 45 to 49 | E279: BSM | F279: 31/12/2013 | G279: 69.2145 | H279: 75.1111 | I279: 73.3181 | J279: 73.2859 | K279: 72.5696 | L279: 1.7348 | M279: 6.1813 | N279: 0.7777 | O279: 0.7851 | P279: 0.7084 | Q279: 1.6951 | R279: 5.5068 | S279: 0.7671 | T279: 0.7742 | U279: 0.6999
C280: Fixed | D280: 45 to 49 | E280: BSM | F280: 31/12/2014 | G280: 71.9052 | H280: 73.7024 | I280: 76.1231 | J280: 76.1787 | K280: 75.3262 | L280: 1.6466 | M280: 5.4757 | N280: 0.7464 | O280: 0.7544 | P280: 0.6786 | Q280: 1.6039 | R280: 4.9825 | S280: 0.7346 | T280: 0.7424 | U280: 0.6694
C281: Fixed | D281: 45 to 49 | E281: BSM | F281: 31/12/2015 | G281: 71.952 | H281: 75.0865 | I281: 77.1078 | J281: 77.1522 | K281: 76.167 | L281: 1.6445 | M281: 5.402 | N281: 0.7196 | O281: 0.7271 | P281: 0.6586 | Q281: 1.6017 | R281: 4.8795 | S281: 0.7078 | T281: 0.715 | U281: 0.6494
C282: Fixed | D282: 45 to 49 | E282: BSOS | F282: 30/06/2012 | G282: 74.2515 | H282: 93.1034 | I282: 66.3855 | J282: 66.1458 | K282: 66.9467 | L282: 4.0647 | M282: 9.8302 | N282: 1.1613 | O282: 1.1686 | P282: 1.1142 | Q282: 3.7758 | R282: 4.9857 | S282: 1.1467 | T282: 1.1539 | U282: 1.1002
C283: Fixed | D283: 45 to 49 | E283: BSOS | F283: 30/06/2013 | G283: 69.5985 | H283: 89.2308 | I283: 64.7891 | J283: 64.5575 | K283: 65.1269 | L283: 4.1407 | M283: 10.169 | N283: 1.1382 | O283: 1.1453 | P283: 1.0949 | Q283: 3.9175 | R283: 6.3283 | S283: 1.1259 | T283: 1.1329 | U283: 1.083
C284: Fixed | D284: 45 to 49 | E284: BSOS | F284: 30/06/2014 | G284: 70.6376 | H284: 82.9268 | I284: 66.5056 | J284: 66.3279 | K284: 66.804 | L284: 3.8362 | M284: 9.9104 | N284: 1.0697 | O284: 1.0769 | P284: 1.0278 | Q284: 3.6302 | R284: 7.4127 | S284: 1.0572 | T284: 1.0643 | U284: 1.0159
C285: Fixed | D285: 45 to 49 | E285: BSOS | F285: 30/06/2015 | G285: 71.6194 | H285: 80.2469 | I285: 68.719 | J285: 68.5889 | K285: 68.9401 | L285: 3.7945 | M285: 10.3332 | N285: 1.0807 | O285: 1.088 | P285: 1.0363 | Q285: 3.5797 | R285: 8.02 | S285: 1.0657 | T285: 1.073 | U285: 1.0222
C286: Fixed | D286: 45 to 49 | E286: BSOS | F286: 30/06/2016 | G286: 71.7544 | H286: 81.4815 | I286: 68.0666 | J286: 67.9101 | K286: 68.3434 | L286: 3.8899 | M286: 10.1791 | N286: 1.1047 | O286: 1.1126 | P286: 1.0596 | Q286: 3.6626 | R286: 7.7668 | S286: 1.0898 | T286: 1.0976 | U286: 1.0456
C287: Fixed | D287: 45 to 49 | E287: BSOS | F287: 31/12/2011 | G287: 72.619 | H287: 94.2308 | I287: 64.5728 | J287: 64.349 | K287: 65.1175 | L287: 4.1174 | M287: 10.1781 | N287: 1.1383 | O287: 1.1442 | P287: 1.095 | Q287: 3.8498 | R287: 4.5633 | S287: 1.1261 | T287: 1.132 | U287: 1.0833
C288: Fixed | D288: 45 to 49 | E288: BSOS | F288: 31/12/2012 | G288: 71.3755 | H288: 93.8462 | I288: 66.1236 | J288: 65.8705 | K288: 66.4896 | L288: 4.0227 | M288: 8.8595 | N288: 1.1079 | O288: 1.115 | P288: 1.0655 | Q288: 3.786 | R288: 4.4518 | S288: 1.0949 | T288: 1.1019 | U288: 1.0531
C289: Fixed | D289: 45 to 49 | E289: BSOS | F289: 31/12/2013 | G289: 70.1599 | H289: 83.5616 | I289: 65.5682 | J289: 65.3883 | K289: 65.8939 | L289: 3.9672 | M289: 10.516 | N289: 1.0972 | O289: 1.1041 | P289: 1.0549 | Q289: 3.754 | R289: 7.6454 | S289: 1.0849 | T289: 1.0918 | U289: 1.0433
C290: Fixed | D290: 45 to 49 | E290: BSOS | F290: 31/12/2014 | G290: 72.0137 | H290: 82.1429 | I290: 67.483 | J290: 67.3135 | K290: 67.8175 | L290: 3.825 | M290: 9.8796 | N290: 1.0845 | O290: 1.0922 | P290: 1.0405 | Q290: 3.6013 | R290: 7.5038 | S290: 1.0706 | T290: 1.0783 | U290: 1.0275
C291: Fixed | D291: 45 to 49 | E291: BSOS | F291: 31/12/2015 | G291: 71.0623 | H291: 81.0127 | I291: 64.3177 | J291: 64.1118 | K291: 64.8414 | L291: 4.0022 | M291: 10.3885 | N291: 1.18 | O291: 1.1887 | P291: 1.1291 | Q291: 3.7724 | R291: 7.9525 | S291: 1.167 | T291: 1.1758 | U291: 1.1168
C292: Fixed | D292: 45 to 49 | E292: BSSL | F292: 30/06/2012 | G292: 90.4856 | H292: 88.3929 | I292: 93.7402 | J292: 93.793 | K292: 93.5373 | L292: 1.585 | M292: 4.9361 | N292: 0.3214 | O292: 0.3218 | P292: 0.3154 | Q292: 1.4268 | R292: 3.8832 | S292: 0.3102 | T292: 0.3104 | U292: 0.3051
C293: Fixed | D293: 45 to 49 | E293: BSSL | F293: 30/06/2013 | G293: 91.7939 | H293: 90.1575 | I293: 93.963 | J293: 94.0058 | K293: 93.8233 | L293: 1.468 | M293: 4.3437 | N293: 0.3168 | O293: 0.3176 | P293: 0.3094 | Q293: 1.3095 | R293: 3.3712 | S293: 0.3056 | T293: 0.3063 | U293: 0.2988
C294: Fixed | D294: 45 to 49 | E294: BSSL | F294: 30/06/2014 | G294: 93.0905 | H294: 91.0853 | I294: 94.1952 | J294: 94.2315 | K294: 94.1218 | L294: 1.3586 | M294: 4.1614 | N294: 0.3144 | O294: 0.3154 | P294: 0.3052 | Q294: 1.1968 | R294: 3.1795 | S294: 0.3028 | T294: 0.3036 | U294: 0.2945
C295: Fixed | D295: 45 to 49 | E295: BSSL | F295: 30/06/2015 | G295: 92.2593 | H295: 93.1034 | I295: 94.1833 | J295: 94.1962 | K295: 94.0544 | L295: 1.425 | M295: 3.7841 | N295: 0.3165 | O295: 0.3181 | P295: 0.3085 | Q295: 1.2664 | R295: 2.7583 | S295: 0.3049 | T295: 0.3063 | U295: 0.2977
C296: Fixed | D296: 45 to 49 | E296: BSSL | F296: 30/06/2016 | G296: 89.8833 | H296: 88.9734 | I296: 94.5962 | J296: 94.6648 | K296: 94.2851 | L296: 1.6143 | M296: 4.4245 | N296: 0.3083 | O296: 0.3084 | P296: 0.3054 | Q296: 1.4605 | R296: 3.5164 | S296: 0.2963 | T296: 0.2963 | U296: 0.2943
C297: Fixed | D297: 45 to 49 | E297: BSSL | F297: 31/12/2011 | G297: 88.4232 | H297: 88.2609 | I297: 93.4313 | J297: 93.4838 | K297: 93.1224 | L297: 1.7264 | M297: 4.8796 | N297: 0.3288 | O297: 0.3293 | P297: 0.325 | Q297: 1.5745 | R297: 3.8587 | S297: 0.3177 | T297: 0.3182 | U297: 0.3146
C298: Fixed | D298: 45 to 49 | E298: BSSL | F298: 31/12/2012 | G298: 90.9091 | H298: 90.6504 | I298: 93.9633 | J298: 93.9997 | K298: 93.7697 | L298: 1.5534 | M298: 4.3488 | N298: 0.3185 | O298: 0.3193 | P298: 0.3124 | Q298: 1.394 | R298: 3.3301 | S298: 0.3071 | T298: 0.3079 | U298: 0.3018
C299: Fixed | D299: 45 to 49 | E299: BSSL | F299: 31/12/2013 | G299: 91.9094 | H299: 91.1197 | I299: 94.0197 | J299: 94.0536 | K299: 93.8836 | L299: 1.4732 | M299: 4.1465 | N299: 0.3184 | O299: 0.3195 | P299: 0.3109 | Q299: 1.3114 | R299: 3.1675 | S299: 0.307 | T299: 0.308 | U299: 0.3002
C300: Fixed | D300: 45 to 49 | E300: BSSL | F300: 31/12/2014 | G300: 92.6814 | H300: 91.2698 | I300: 94.0939 | J300: 94.1269 | K300: 93.9981 | L300: 1.3945 | M300: 4.189 | N300: 0.3212 | O300: 0.3223 | P300: 0.3121 | Q300: 1.2337 | R300: 3.1781 | S300: 0.3094 | T300: 0.3104 | U300: 0.3012
C301: Fixed | D301: 45 to 49 | E301: BSSL | F301: 31/12/2015 | G301: 91.8301 | H301: 92.3077 | I301: 94.1827 | J301: 94.2057 | K301: 94.0265 | L301: 1.4869 | M301: 3.938 | N301: 0.3211 | O301: 0.3226 | P301: 0.3138 | Q301: 1.3238 | R301: 2.9305 | S301: 0.3092 | T301: 0.3104 | U301: 0.3026
C302: Fixed | D302: 45 to 49 | E302: BSWN | F302: 30/06/2012 | G302: 63.4856 | H302: 92.381 | I302: 81.8438 | J302: 81.1666 | K302: 79.5579 | L302: 1.9329 | M302: 1.7741 | N302: 0.5812 | O302: 0.6081 | P302: 0.5677 | Q302: 1.901 | R302: 1.5316 | S302: 0.5705 | T302: 0.597 | U302: 0.559
C303: Fixed | D303: 45 to 49 | E303: BSWN | F303: 30/06/2013 | G303: 61.2278 | H303: 91.8239 | I303: 77.1925 | J303: 76.1813 | K303: 75.1853 | L303: 1.9517 | M303: 1.7675 | N303: 0.6342 | O303: 0.6657 | P303: 0.6095 | Q303: 1.9251 | R303: 1.5424 | S303: 0.625 | T303: 0.6562 | U303: 0.6021
C304: Fixed | D304: 45 to 49 | E304: BSWN | F304: 30/06/2014 | G304: 61.1581 | H304: 91.8846 | I304: 77.0994 | J304: 76.0686 | K304: 75.1535 | L304: 1.9979 | M304: 1.7658 | N304: 0.6389 | O304: 0.6708 | P304: 0.6147 | Q304: 1.9702 | R304: 1.5394 | S304: 0.6296 | T304: 0.6614 | U304: 0.6071
C305: Fixed | D305: 45 to 49 | E305: BSWN | F305: 30/06/2015 | G305: 60.3403 | H305: 90.6977 | I305: 77.4995 | J305: 76.6276 | K305: 75.4236 | L305: 2.0367 | M305: 1.9386 | N305: 0.642 | O305: 0.6718 | P305: 0.6196 | Q305: 2.0102 | R305: 1.7025 | S305: 0.6324 | T305: 0.6619 | U305: 0.6118
C306: Fixed | D306: 45 to 49 | E306: BSWN | F306: 30/06/2016 | G306: 62.6164 | H306: 90.3904 | I306: 78.8395 | J306: 78.0998 | K306: 76.8184 | L306: 1.987 | M306: 1.9985 | N306: 0.6294 | O306: 0.6575 | P306: 0.6074 | Q306: 1.9557 | R306: 1.7565 | S306: 0.6194 | T306: 0.6469 | U306: 0.5992
C307: Fixed | D307: 45 to 49 | E307: BSWN | F307: 31/12/2011 | G307: 63.0919 | H307: 93.5644 | I307: 85.1607 | J307: 84.6275 | K307: 82.3496 | L307: 1.9375 | M307: 1.694 | N307: 0.5445 | O307: 0.5698 | P307: 0.5439 | Q307: 1.9064 | R307: 1.4339 | S307: 0.5324 | T307: 0.5571 | U307: 0.5342
C308: Fixed | D308: 45 to 49 | E308: BSWN | F308: 31/12/2012 | G308: 62.1739 | H308: 92.5788 | I308: 79.4968 | J308: 78.6311 | K308: 77.2942 | L308: 1.9226 | M308: 1.7302 | N308: 0.6082 | O308: 0.6377 | P308: 0.5886 | Q308: 1.8944 | R308: 1.4932 | S308: 0.5983 | T308: 0.6273 | U308: 0.5806
C309: Fixed | D309: 45 to 49 | E309: BSWN | F309: 31/12/2013 | G309: 61.709 | H309: 91.9603 | I309: 77.5195 | J309: 76.5265 | K309: 75.527 | L309: 1.9458 | M309: 1.7609 | N309: 0.6313 | O309: 0.6626 | P309: 0.6068 | Q309: 1.9181 | R309: 1.5336 | S309: 0.6219 | T309: 0.653 | U309: 0.5993
C310: Fixed | D310: 45 to 49 | E310: BSWN | F310: 31/12/2014 | G310: 61.6878 | H310: 90.9343 | I310: 77.2711 | J310: 76.33 | K310: 75.3421 | L310: 1.9918 | M310: 1.8712 | N310: 0.6418 | O310: 0.673 | P310: 0.617 | Q310: 1.9628 | R310: 1.6446 | S310: 0.6324 | T310: 0.6633 | U310: 0.6093
C311: Fixed | D311: 45 to 49 | E311: BSWN | F311: 31/12/2015 | G311: 61.3065 | H311: 90.9091 | I311: 77.7916 | J311: 76.9236 | K311: 75.7439 | L311: 1.9873 | M311: 1.9081 | N311: 0.6356 | O311: 0.6653 | P311: 0.6124 | Q311: 1.9595 | R311: 1.6737 | S311: 0.626 | T311: 0.6553 | U311: 0.6045
C312: Fixed | D312: 45 to 49 | E312: Total | F312: 30/06/2012 | G312: 68.7662 | H312: 70.3335 | I312: 79.7275 | J312: 80.3146 | K312: 78.4864 | L312: 0.8021 | M312: 1.1712 | N312: 0.2475 | O312: 0.2524 | P312: 0.2381 | Q312: 0.7938 | R312: 1.1514 | S312: 0.2458 | T312: 0.2506 | U312: 0.2366
C313: Fixed | D313: 45 to 49 | E313: Total | F313: 30/06/2013 | G313: 70.1741 | H313: 72.6498 | I313: 79.0505 | J313: 79.4776 | K313: 78.0356 | L313: 0.7849 | M313: 1.105 | N313: 0.2496 | O313: 0.2558 | P313: 0.2388 | Q313: 0.7761 | R313: 1.0846 | S313: 0.2479 | T313: 0.2541 | U313: 0.2374
C314: Fixed | D314: 45 to 49 | E314: Total | F314: 30/06/2014 | G314: 72.428 | H314: 75.0519 | I314: 79.2967 | J314: 79.5908 | K314: 78.5148 | L314: 0.7662 | M314: 1.051 | N314: 0.2475 | O314: 0.2547 | P314: 0.2361 | Q314: 0.7564 | R314: 1.0293 | S314: 0.2458 | T314: 0.2528 | U314: 0.2346
C315: Fixed | D315: 45 to 49 | E315: Total | F315: 30/06/2015 | G315: 72.4339 | H315: 76.1367 | I315: 79.662 | J315: 79.9036 | K315: 78.8261 | L315: 0.7611 | M315: 1.044 | N315: 0.2465 | O315: 0.2537 | P315: 0.2352 | Q315: 0.7514 | R315: 1.021 | S315: 0.2448 | T315: 0.2519 | U315: 0.2337
C316: Fixed | D316: 45 to 49 | E316: Total | F316: 30/06/2016 | G316: 72.7548 | H316: 75.4749 | I316: 79.3568 | J316: 79.6163 | K316: 78.5907 | L316: 0.7579 | M316: 1.067 | N316: 0.2481 | O316: 0.2551 | P316: 0.2363 | Q316: 0.748 | R316: 1.044 | S316: 0.2464 | T316: 0.2533 | U316: 0.2349
C317: Fixed | D317: 45 to 49 | E317: Total | F317: 31/12/2011 | G317: 68.6881 | H317: 70.5604 | I317: 80.3404 | J317: 80.9464 | K317: 79.0403 | L317: 0.8143 | M317: 1.1807 | N317: 0.2462 | O317: 0.2507 | P317: 0.2375 | Q317: 0.8057 | R317: 1.1603 | S317: 0.2444 | T317: 0.2489 | U317: 0.236
C318: Fixed | D318: 45 to 49 | E318: Total | F318: 31/12/2012 | G318: 69.3376 | H318: 71.6178 | I318: 79.3852 | J318: 79.8889 | K318: 78.2404 | L318: 0.7888 | M318: 1.1273 | N318: 0.247 | O318: 0.2526 | P318: 0.237 | Q318: 0.7804 | R318: 1.1073 | S318: 0.2454 | T318: 0.2509 | U318: 0.2356
C319: Fixed | D319: 45 to 49 | E319: Total | F319: 31/12/2013 | G319: 71.2093 | H319: 73.3642 | I319: 78.8258 | J319: 79.2005 | K319: 77.9573 | L319: 0.7743 | M319: 1.0765 | N319: 0.2492 | O319: 0.256 | P319: 0.2379 | Q319: 0.7651 | R319: 1.0561 | S319: 0.2477 | T319: 0.2543 | U319: 0.2366
C320: Fixed | D320: 45 to 49 | E320: Total | F320: 31/12/2014 | G320: 72.2819 | H320: 75.2078 | I320: 79.1863 | J320: 79.4635 | K320: 78.3843 | L320: 0.7608 | M320: 1.0493 | N320: 0.2487 | O320: 0.256 | P320: 0.237 | Q320: 0.7513 | R320: 1.0276 | S320: 0.2471 | T320: 0.2542 | U320: 0.2355
C321: Fixed | D321: 45 to 49 | E321: Total | F321: 31/12/2015 | G321: 72.2613 | H321: 76.9756 | I321: 79.2364 | J321: 79.3915 | K321: 78.4178 | L321: 0.7593 | M321: 1.0356 | N321: 0.2494 | O321: 0.2571 | P321: 0.2375 | Q321: 0.7497 | R321: 1.0117 | S321: 0.2477 | T321: 0.2554 | U321: 0.2361
C322: Fixed | D322: 50 to 69 | E322: BSAL | F322: 30/06/2012 | G322: 59.2372 | H322: 48.5951 | I322: 72.9778 | J322: 75.8154 | K322: 72.1633 | L322: 2.3954 | M322: 1.8749 | N322: 0.5377 | O322: 0.5486 | P322: 0.5261 | Q322: 2.363 | R322: 1.8779 | S322: 0.5327 | T322: 0.5423 | U322: 0.5216
C323: Fixed | D323: 50 to 69 | E323: BSAL | F323: 30/06/2013 | G323: 56.3978 | H323: 46.2046 | I323: 72.2072 | J323: 75.2659 | K323: 71.2477 | L323: 2.289 | M323: 1.7873 | N323: 0.5215 | O323: 0.5316 | P323: 0.5103 | Q323: 2.2689 | R323: 1.7946 | S323: 0.5169 | T323: 0.526 | U323: 0.5063
C324: Fixed | D324: 50 to 69 | E324: BSAL | F324: 30/06/2014 | G324: 61.6779 | H324: 51.4527 | I324: 76.754 | J324: 79.7377 | K324: 75.852 | L324: 2.2108 | M324: 1.7477 | N324: 0.4795 | O324: 0.4832 | P324: 0.4707 | Q324: 2.1752 | R324: 1.745 | S324: 0.4743 | T324: 0.4768 | U324: 0.4661
C325: Fixed | D325: 50 to 69 | E325: BSAL | F325: 30/06/2015 | G325: 65.7371 | H325: 56.0751 | I325: 80.0548 | J325: 82.7584 | K325: 79.1846 | L325: 2.1226 | M325: 1.7557 | N325: 0.449 | O325: 0.4486 | P325: 0.4419 | Q325: 2.0764 | R325: 1.7443 | S325: 0.4434 | T325: 0.4417 | U325: 0.4367
C326: Fixed | D326: 50 to 69 | E326: BSAL | F326: 30/06/2016 | G326: 66.112 | H326: 55.0845 | I326: 79.9684 | J326: 82.8254 | K326: 79.1503 | L326: 2.1312 | M326: 1.7281 | N326: 0.4456 | O326: 0.4442 | P326: 0.4385 | Q326: 2.0834 | R326: 1.7189 | S326: 0.44 | T326: 0.4374 | U326: 0.4334
C327: Fixed | D327: 50 to 69 | E327: BSAL | F327: 31/12/2011 | G327: 62.6884 | H327: 53.2496 | I327: 75.5756 | J327: 78.1986 | K327: 74.8254 | L327: 2.4287 | M327: 1.9003 | N327: 0.5295 | O327: 0.5387 | P327: 0.5188 | Q327: 2.3819 | R327: 1.8933 | S327: 0.5237 | T327: 0.5317 | U327: 0.5136
C328: Fixed | D328: 50 to 69 | E328: BSAL | F328: 31/12/2012 | G328: 57.0704 | H328: 46.6804 | I328: 72.6119 | J328: 75.6661 | K328: 71.6769 | L328: 2.3409 | M328: 1.822 | N328: 0.529 | O328: 0.539 | P328: 0.5179 | Q328: 2.3176 | R328: 1.8285 | S328: 0.5243 | T328: 0.5329 | U328: 0.5137
C329: Fixed | D329: 50 to 69 | E329: BSAL | F329: 31/12/2013 | G329: 57.1354 | H329: 46.784 | I329: 73.1754 | J329: 76.291 | K329: 72.2016 | L329: 2.2533 | M329: 1.7617 | N329: 0.5087 | O329: 0.5171 | P329: 0.4983 | Q329: 2.2314 | R329: 1.7677 | S329: 0.5042 | T329: 0.5114 | U329: 0.4942
C330: Fixed | D330: 50 to 69 | E330: BSAL | F330: 31/12/2014 | G330: 62.8354 | H330: 53.1988 | I330: 78.225 | J330: 81.1462 | K330: 77.2978 | L330: 2.1743 | M330: 1.7413 | N330: 0.4651 | O330: 0.4666 | P330: 0.4574 | Q330: 2.1362 | R330: 1.7354 | S330: 0.4598 | T330: 0.4601 | U330: 0.4526
C331: Fixed | D331: 50 to 69 | E331: BSAL | F331: 31/12/2015 | G331: 66.1845 | H331: 56.8476 | I331: 80.9001 | J331: 83.6588 | K331: 80.0197 | L331: 2.1182 | M331: 1.7258 | N331: 0.4385 | O331: 0.4362 | P331: 0.4322 | Q331: 2.0708 | R331: 1.7135 | S331: 0.4328 | T331: 0.4293 | U331: 0.427
C332: Fixed | D332: 50 to 69 | E332: BSC | F332: 30/06/2012 | G332: 61.3766 | H332: 57.8372 | I332: 65.7614 | J332: 66.1624 | K332: 65.4288 | L332: 1.8311 | M332: 2.4282 | N332: 0.5059 | O332: 0.5172 | P332: 0.4873 | Q332: 1.8073 | R332: 2.4002 | S332: 0.5032 | T332: 0.5143 | U332: 0.4849
C333: Fixed | D333: 50 to 69 | E333: BSC | F333: 30/06/2013 | G333: 59.6379 | H333: 55.9729 | I333: 62.789 | J333: 63.135 | K333: 62.5453 | L333: 1.8388 | M333: 2.4541 | N333: 0.5194 | O333: 0.5314 | P333: 0.4994 | Q333: 1.8187 | R333: 2.4325 | S333: 0.5171 | T333: 0.5291 | U333: 0.4974
C334: Fixed | D334: 50 to 69 | E334: BSC | F334: 30/06/2014 | G334: 58.6844 | H334: 51.9465 | I334: 59.0522 | J334: 59.4119 | K334: 59.023 | L334: 1.7611 | M334: 2.3911 | N334: 0.512 | O334: 0.5242 | P334: 0.4912 | Q334: 1.7445 | R334: 2.3845 | S334: 0.5106 | T334: 0.5225 | U334: 0.4898
C335: Fixed | D335: 50 to 69 | E335: BSC | F335: 30/06/2015 | G335: 56.3424 | H335: 48.8575 | I335: 54.9699 | J335: 55.2871 | K335: 55.08 | L335: 1.7261 | M335: 2.3091 | N335: 0.5068 | O335: 0.5196 | P335: 0.486 | Q335: 1.7146 | R335: 2.3127 | S335: 0.5061 | T335: 0.5187 | U335: 0.4852
C336: Fixed | D336: 50 to 69 | E336: BSC | F336: 30/06/2016 | G336: 56.3465 | H336: 51.1604 | I336: 53.6323 | J336: 53.7619 | K336: 53.8561 | L336: 1.6626 | M336: 2.251 | N336: 0.4969 | O336: 0.5097 | P336: 0.4758 | Q336: 1.6519 | R336: 2.2475 | S336: 0.4964 | T336: 0.5092 | U336: 0.4753
C337: Fixed | D337: 50 to 69 | E337: BSC | F337: 31/12/2011 | G337: 64.7015 | H337: 62.5562 | I337: 68.2277 | J337: 68.505 | K337: 67.9627 | L337: 1.8314 | M337: 2.458 | N337: 0.5024 | O337: 0.5134 | P337: 0.4841 | Q337: 1.7998 | R337: 2.4105 | S337: 0.4992 | T337: 0.5101 | U337: 0.4812
C338: Fixed | D338: 50 to 69 | E338: BSC | F338: 31/12/2012 | G338: 60.9816 | H338: 57.1429 | I338: 64.8976 | J338: 65.2979 | K338: 64.5995 | L338: 1.8247 | M338: 2.4019 | N338: 0.5073 | O338: 0.519 | P338: 0.4885 | Q338: 1.8021 | R338: 2.3769 | S338: 0.5048 | T338: 0.5162 | U338: 0.4861
C339: Fixed | D339: 50 to 69 | E339: BSC | F339: 31/12/2013 | G339: 58.8599 | H339: 53.3853 | I339: 60.1653 | J339: 60.5038 | K339: 60.0653 | L339: 1.8126 | M339: 2.4275 | N339: 0.5145 | O339: 0.5264 | P339: 0.4945 | Q339: 1.7948 | R339: 2.4154 | S339: 0.5127 | T339: 0.5246 | U339: 0.4929
C340: Fixed | D340: 50 to 69 | E340: BSC | F340: 31/12/2014 | G340: 57.6923 | H340: 51.6919 | I340: 56.7558 | J340: 57.0022 | K340: 56.8293 | L340: 1.7488 | M340: 2.396 | N340: 0.507 | O340: 0.519 | P340: 0.4866 | Q340: 1.7345 | R340: 2.3903 | S340: 0.506 | T340: 0.5177 | U340: 0.4856
C341: Fixed | D341: 50 to 69 | E341: BSC | F341: 31/12/2015 | G341: 56.8215 | H341: 50.3712 | I341: 53.8552 | J341: 54.0357 | K341: 54.0958 | L341: 1.6902 | M341: 2.2821 | N341: 0.5009 | O341: 0.5136 | P341: 0.48 | Q341: 1.6784 | R341: 2.2809 | S341: 0.5003 | T341: 0.513 | U341: 0.4794
C342: Fixed | D342: 50 to 69 | E342: BSCC | F342: 30/06/2012 | G342: 71.6554 | H342: 79.8793 | I342: 83.5823 | J342: 83.628 | K342: 82.0397 | L342: 1.1545 | M342: 3.7986 | N342: 0.3635 | O342: 0.3653 | P342: 0.351 | Q342: 1.1335 | R342: 3.4386 | S342: 0.3587 | T342: 0.3605 | U342: 0.347
C343: Fixed | D343: 50 to 69 | E343: BSCC | F343: 30/06/2013 | G343: 71.6239 | H343: 80.1105 | I343: 83.6698 | J343: 83.7156 | K343: 82.0608 | L343: 1.1061 | M343: 3.6096 | N343: 0.3541 | O343: 0.3559 | P343: 0.3417 | Q343: 1.0868 | R343: 3.278 | S343: 0.3495 | T343: 0.3513 | U343: 0.3378
C344: Fixed | D344: 50 to 69 | E344: BSCC | F344: 30/06/2014 | G344: 72.4457 | H344: 81.8815 | I344: 83.9208 | J344: 83.9478 | K344: 82.3773 | L344: 1.0778 | M344: 3.3996 | N344: 0.3473 | O344: 0.3493 | P344: 0.3346 | Q344: 1.0585 | R344: 3.0673 | S344: 0.3428 | T344: 0.3448 | U344: 0.331
C345: Fixed | D345: 50 to 69 | E345: BSCC | F345: 30/06/2015 | G345: 72.8603 | H345: 83.1715 | I345: 83.7281 | J345: 83.7358 | K345: 82.2227 | L345: 1.04 | M345: 3.1873 | N345: 0.3442 | O345: 0.3465 | P345: 0.3304 | Q345: 1.0216 | R345: 2.8663 | S345: 0.3397 | T345: 0.342 | U345: 0.3268
C346: Fixed | D346: 50 to 69 | E346: BSCC | F346: 30/06/2016 | G346: 72.6353 | H346: 83.1804 | I346: 83.4453 | J346: 83.4491 | K346: 81.9151 | L346: 1.0166 | M346: 3.0913 | N346: 0.3423 | O346: 0.3447 | P346: 0.328 | Q346: 0.9993 | R346: 2.7881 | S346: 0.338 | T346: 0.3404 | U346: 0.3245
C347: Fixed | D347: 50 to 69 | E347: BSCC | F347: 31/12/2011 | G347: 71.798 | H347: 81.2903 | I347: 83.4425 | J347: 83.4676 | K347: 81.9949 | L347: 1.1855 | M347: 3.8473 | N347: 0.3665 | O347: 0.3684 | P347: 0.3541 | Q347: 1.1632 | R347: 3.4437 | S347: 0.3616 | T347: 0.3635 | U347: 0.3501
C348: Fixed | D348: 50 to 69 | E348: BSCC | F348: 31/12/2012 | G348: 71.7277 | H348: 79.7688 | I348: 83.4491 | J348: 83.4953 | K348: 81.9159 | L348: 1.1295 | M348: 3.7178 | N348: 0.3594 | O348: 0.3613 | P348: 0.3466 | Q348: 1.1094 | R348: 3.3747 | S348: 0.3548 | T348: 0.3566 | U348: 0.3428
C349: Fixed | D349: 50 to 69 | E349: BSCC | F349: 31/12/2013 | G349: 71.8197 | H349: 80.8436 | I349: 83.775 | J349: 83.8138 | K349: 82.1742 | L349: 1.0923 | M349: 3.4784 | N349: 0.35 | O349: 0.3519 | P349: 0.3376 | Q349: 1.0733 | R349: 3.1542 | S349: 0.3454 | T349: 0.3474 | U349: 0.334
C350: Fixed | D350: 50 to 69 | E350: BSCC | F350: 31/12/2014 | G350: 72.6358 | H350: 82.8047 | I350: 83.7019 | J350: 83.7141 | K350: 82.1919 | L350: 1.0568 | M350: 3.2651 | N350: 0.346 | O350: 0.3482 | P350: 0.3326 | Q350: 1.038 | R350: 2.9374 | S350: 0.3415 | T350: 0.3437 | U350: 0.329
C351: Fixed | D351: 50 to 69 | E351: BSCC | F351: 31/12/2015 | G351: 72.388 | H351: 82.4345 | I351: 83.3588 | J351: 83.3721 | K351: 81.8202 | L351: 1.0288 | M351: 3.1502 | N351: 0.3442 | O351: 0.3466 | P351: 0.3301 | Q351: 1.0113 | R351: 2.8517 | S351: 0.34 | T351: 0.3423 | U351: 0.3266
C352: Fixed | D352: 50 to 69 | E352: BSCM | F352: 30/06/2012 | G352: 69.9647 | H352: 72.2049 | I352: 76.8332 | J352: 77.8251 | K352: 76.062 | L352: 1.5104 | M352: 1.2475 | N352: 0.4893 | O352: 0.5315 | P352: 0.4658 | Q352: 1.4785 | R352: 1.2223 | S352: 0.4838 | T352: 0.5247 | U352: 0.4612
C353: Fixed | D353: 50 to 69 | E353: BSCM | F353: 30/06/2013 | G353: 75.1688 | H353: 78.9685 | I353: 80.1588 | J353: 80.4306 | K353: 79.6054 | L353: 1.3964 | M353: 1.0777 | N353: 0.4494 | O353: 0.496 | P353: 0.4278 | Q353: 1.3582 | R353: 1.0481 | S353: 0.4436 | T353: 0.489 | U353: 0.4228
C354: Fixed | D354: 50 to 69 | E354: BSCM | F354: 30/06/2014 | G354: 76.7252 | H354: 81.9182 | I354: 79.9418 | J354: 79.4805 | K354: 79.5876 | L354: 1.334 | M354: 0.9824 | N354: 0.4384 | O354: 0.4915 | P354: 0.416 | Q354: 1.2953 | R354: 0.9521 | S354: 0.4331 | T354: 0.485 | U354: 0.4113
C355: Fixed | D355: 50 to 69 | E355: BSCM | F355: 30/06/2015 | G355: 74.1856 | H355: 80.559 | I355: 78.2543 | J355: 77.7144 | K355: 77.8129 | L355: 1.3715 | M355: 0.9937 | N355: 0.4453 | O355: 0.4994 | P355: 0.4232 | Q355: 1.3369 | R355: 0.9657 | S355: 0.4404 | T355: 0.4936 | U355: 0.4189
C356: Fixed | D356: 50 to 69 | E356: BSCM | F356: 30/06/2016 | G356: 73.9837 | H356: 79.2807 | I356: 77.2657 | J356: 76.8025 | K356: 76.9083 | L356: 1.3581 | M356: 1.0144 | N356: 0.4479 | O356: 0.5005 | P356: 0.4249 | Q356: 1.3246 | R356: 0.9876 | S356: 0.4432 | T356: 0.495 | U356: 0.4207
C357: Fixed | D357: 50 to 69 | E357: BSCM | F357: 31/12/2011 | G357: 69.4147 | H357: 70.5312 | I357: 75.2488 | J357: 76.2432 | K357: 74.6007 | L357: 1.5444 | M357: 1.2918 | N357: 0.5059 | O357: 0.5496 | P357: 0.4808 | Q357: 1.5125 | R357: 1.2676 | S357: 0.5007 | T357: 0.5431 | U357: 0.4763
C358: Fixed | D358: 50 to 69 | E358: BSCM | F358: 31/12/2012 | G358: 73.7946 | H358: 75.8965 | I358: 79.0362 | J358: 79.7291 | K358: 78.4634 | L358: 1.4547 | M358: 1.1628 | N358: 0.4657 | O358: 0.5088 | P358: 0.4435 | Q358: 1.4168 | R358: 1.1347 | S358: 0.46 | T358: 0.5018 | U358: 0.4386
C359: Fixed | D359: 50 to 69 | E359: BSCM | F359: 31/12/2013 | G359: 76.0478 | H359: 80.7873 | I359: 80.0455 | J359: 79.873 | K359: 79.6032 | L359: 1.365 | M359: 1.0227 | N359: 0.4446 | O359: 0.4957 | P359: 0.4225 | Q359: 1.3261 | R359: 0.9925 | S359: 0.4391 | T359: 0.489 | U359: 0.4176
C360: Fixed | D360: 50 to 69 | E360: BSCM | F360: 31/12/2014 | G360: 73.9151 | H360: 80.4211 | I360: 78.403 | J360: 77.9312 | K360: 77.9048 | L360: 1.3572 | M360: 0.9966 | N360: 0.444 | O360: 0.4974 | P360: 0.4218 | Q360: 1.3238 | R360: 0.9687 | S360: 0.4391 | T360: 0.4915 | U360: 0.4175
C361: Fixed | D361: 50 to 69 | E361: BSCM | F361: 31/12/2015 | G361: 74.4326 | H361: 81.0911 | I361: 78.0524 | J361: 77.3404 | K361: 77.6592 | L361: 1.3575 | M361: 0.9772 | N361: 0.4439 | O361: 0.4991 | P361: 0.4215 | Q361: 1.323 | R361: 0.949 | S361: 0.439 | T361: 0.4934 | U361: 0.4172
C362: Fixed | D362: 50 to 69 | E362: BSM | F362: 30/06/2012 | G362: 56.6576 | H362: 53.5055 | I362: 67.0666 | J362: 67.2338 | K362: 65.6507 | L362: 1.17 | M362: 4.3006 | N362: 0.4388 | O362: 0.441 | P362: 0.412 | Q362: 1.1645 | R362: 4.2623 | S362: 0.4367 | T362: 0.4388 | U362: 0.4101
C363: Fixed | D363: 50 to 69 | E363: BSM | F363: 30/06/2013 | G363: 61.7748 | H363: 58.9381 | I363: 68.574 | J363: 68.6943 | K363: 67.6129 | L363: 1.1071 | M363: 4.1829 | N363: 0.4271 | O363: 0.4294 | P363: 0.3988 | Q363: 1.098 | R363: 4.0889 | S363: 0.4248 | T363: 0.4269 | U363: 0.3968
C364: Fixed | D364: 50 to 69 | E364: BSM | F364: 30/06/2014 | G364: 67.4652 | H364: 67.1545 | I364: 71.6351 | J364: 71.6933 | K364: 71.0278 | L364: 1.0274 | M364: 3.8688 | N364: 0.4056 | O364: 0.408 | P364: 0.3771 | Q364: 1.0149 | R364: 3.7031 | S364: 0.403 | T364: 0.4053 | U364: 0.3749
... 227 more rows

Sheet 1.a.4
A2: 1.a.4 | C2: =INDEX(reference!B2:B99, MATCH(A2, reference!$A$2:$A$99, 0)) -> Age specific coverage | AA2: Return to Index
C5: Description: | D5: =INDEX(reference!$J$2:$J$99, MATCH($A$2, reference!$A$2:$A$99, 0)) -> The number of women screened as a percentage of women eligible by 5 year age group.
C7: Target: | D7: =INDEX(reference!$I$2:$I$99, MATCH($A$2, reference!$A$2:$A$99, 0)) -> No target
E33: Māori | K33: Pacific | Q33: Non-Māori | U33: Non-Māori Non-Pacific | Y33: All
E34: =INDEX(reference!$C$2:$C$99, MATCH($A$2, reference!$A$2:$A$99, 0)) -> Women Screened | F34: =INDEX(reference!$D$2:$D$99, MATCH($A$2, reference!$A$2:$A$99, 0)) -> Eligible Women | G34: =INDEX(reference!$E$2:$E$99, MATCH($A$2, reference!$A$2:$A$99, 0)) -> % Screened (95% CI) | I34: Māori / Non-Māori Ratio | K34: =INDEX(reference!$C$2:$C$99, MATCH($A$2, reference!$A$2:$A$99, 0)) -> Women Screened | L34: =INDEX(reference!$D$2:$D$99, MATCH($A$2, reference!$A$2:$A$99, 0)) -> Eligible Women | M34: =INDEX(reference!$E$2:$E$99, MATCH($A$2, reference!$A$2:$A$99, 0)) -> % Screened (95% CI) | O34: Pacific / Non-Māori Non-Pacific Ratio | Q34: =INDEX(reference!$C$2:$C$99, MATCH($A$2, reference!$A$2:$A$99, 0)) -> Women Screened | R34: =INDEX(reference!$D$2:$D$99, MATCH($A$2, reference!$A$2:$A$99, 0)) -> Eligible Women | S34: =INDEX(reference!$E$2:$E$99, MATCH($A$2, reference!$A$2:$A$99, 0)) -> % Screened (95% CI) | U34: =INDEX(reference!$C$2:$C$99, MATCH($A$2, reference!$A$2:$A$99, 0)) -> Women Screened | V34: =INDEX(reference!$D$2:$D$99, MATCH($A$2, reference!$A$2:$A$99, 0)) -> Eligible Women | W34: =INDEX(reference!$E$2:$E$99, MATCH($A$2, reference!$A$2:$A$99, 0)) -> % Screened (95% CI) | Y34: =INDEX(reference!$C$2:$C$99, MATCH($A$2, reference!$A$2:$A$99, 0)) -> Women Screened | Z34: =INDEX(reference!$D$2:$D$99, MATCH($A$2, reference!$A$2:$A$99, 0)) -> Eligible Women | AA34: =INDEX(reference!$E$2:$E$99, MATCH($A$2, reference!$A$2:$A$99, 0)) -> % Screened (95% CI)
B35: 45 to 49 | C35: none | D35: BSWN | E35: 2369 | F35: 3420 | G35: 69.269 | H35: (67.7, 70.8) | I35: 1.02 | J35: (0.99, 1.04) | K35: 1001 | L35: 1410 | M35: 70.9929 | N35: (68.5, 73.4) | O35: 1.048 | P35: (1.01, 1.08) | Q35: 16632 | R35: 24480 | S35: 67.9412 | T35: (67.4, 68.5) | U35: 15631 | V35: 23070 | W35: 67.7547 | X35: (67.1, 68.4) | Y35: 19001 | Z35: 27900 | AA35: 68.1039 | AB35: (67.6, 68.7)
B36: 45 to 49 | C36: none | D36: BSCM | E36: 1674 | F36: 2580 | G36: 64.8837 | H36: (63.0, 66.7) | I36: 0.895 | J36: (0.87, 0.92) | K36: 2610 | L36: 3500 | M36: 74.5714 | N36: (73.1, 76.0) | O36: 1.037 | P36: (1.01, 1.06) | Q36: 11689 | R36: 16120 | S36: 72.5124 | T36: (71.8, 73.2) | U36: 9079 | V36: 12620 | W36: 71.9414 | X36: (71.1, 72.7) | Y36: 13363 | Z36: 18700 | AA36: 71.4599 | AB36: (70.8, 72.1)
B37: 45 to 49 | C37: none | D37: BSAL | E37: 787 | F37: 1240 | G37: 63.4677 | H37: (60.7, 66.2) | I37: 0.934 | J37: (0.89, 0.98) | K37: 1349 | L37: 1810 | M37: 74.5304 | N37: (72.5, 76.5) | O37: 1.111 | P37: (1.08, 1.14) | Q37: 10642 | R37: 15660 | S37: 67.9566 | T37: (67.2, 68.7) | U37: 9293 | V37: 13850 | W37: 67.0975 | X37: (66.3, 67.9) | Y37: 11429 | Z37: 16900 | AA37: 67.6272 | AB37: (66.9, 68.3)
B38: 45 to 49 | C38: none | D38: BSM | E38: 2959 | F38: 5270 | G38: 56.148 | H38: (54.8, 57.5) | I38: 0.802 | J38: (0.78, 0.82) | K38: 294 | L38: 500 | M38: 58.8 | N38: (54.3, 63.2) | O38: 0.836 | P38: (0.78, 0.90) | Q38: 13723 | R38: 19600 | S38: 70.0153 | T38: (69.4, 70.7) | U38: 13429 | V38: 19100 | W38: 70.3089 | X38: (69.7, 71.0) | Y38: 16682 | Z38: 24870 | AA38: 67.0768 | AB38: (66.5, 67.7)
B39: 45 to 49 | C39: none | D39: BSCC | E39: 2453 | F39: 4000 | G39: 61.325 | H39: (59.8, 62.8) | I39: 0.833 | J39: (0.81, 0.85) | K39: 237 | L39: 370 | M39: 64.0541 | N39: (58.9, 68.9) | O39: 0.867 | P39: (0.80, 0.94) | Q39: 10954 | R39: 14875 | S39: 73.6403 | T39: (72.9, 74.3) | U39: 10717 | V39: 14505 | W39: 73.8849 | X39: (73.2, 74.6) | Y39: 13407 | Z39: 18875 | AA39: 71.0305 | AB39: (70.4, 71.7)
B40: 45 to 49 | C40: none | D40: BSC | E40: 1223 | F40: 2060 | G40: 59.3689 | H40: (57.2, 61.5) | I40: 0.865 | J40: (0.83, 0.90) | K40: 654 | L40: 1125 | M40: 58.1333 | N40: (55.2, 61.0) | O40: 0.838 | P40: (0.80, 0.88) | Q40: 10938 | R40: 15945 | S40: 68.5983 | T40: (67.9, 69.3) | U40: 10284 | V40: 14820 | W40: 69.3927 | X40: (68.6, 70.1) | Y40: 12161 | Z40: 18005 | AA40: 67.5423 | AB40: (66.9, 68.2)
B41: 45 to 49 | C41: none | D41: BSSL | E41: 1545 | F41: 2070 | G41: 74.6377 | H41: (72.7, 76.5) | I41: 0.88 | J41: (0.86, 0.90) | K41: 263 | L41: 420 | M41: 62.619 | N41: (57.8, 67.3) | O41: 0.735 | P41: (0.68, 0.79) | Q41: 21841 | R41: 25760 | S41: 84.7865 | T41: (84.3, 85.2) | U41: 21578 | V41: 25340 | W41: 85.1539 | X41: (84.7, 85.6) | Y41: 23386 | Z41: 27830 | AA41: 84.0316 | AB41: (83.6, 84.5)
B42: 45 to 49 | C42: none | D42: BSOS | E42: 570 | F42: 910 | G42: 62.6374 | H42: (59.4, 65.8) | I42: 0.875 | J42: (0.83, 0.92) | K42: 82 | L42: 140 | M42: 58.5714 | N42: (49.9, 66.8) | O42: 0.816 | P42: (0.71, 0.94) | Q42: 7027 | R42: 9820 | S42: 71.558 | T42: (70.7, 72.4) | U42: 6945 | V42: 9680 | W42: 71.7459 | X42: (70.8, 72.6) | Y42: 7597 | Z42: 10730 | AA42: 70.8015 | AB42: (69.9, 71.7)
B43: 45 to 49 | C43: none | D43: Total | E43: 13580 | F43: 21550 | G43: 63.0162 | H43: (62.4, 63.7) | I43: 0.867 | J43: (0.86, 0.88) | K43: 6490 | L43: 9275 | M43: 69.973 | N43: (69.0, 70.9) | O43: 0.96 | P43: (0.95, 0.97) | Q43: 103446 | R43: 142260 | S43: 72.7162 | T43: (72.5, 72.9) | U43: 96956 | V43: 132985 | W43: 72.9075 | X43: (72.7, 73.1) | Y43: 117026 | Z43: 163810 | AA43: 71.4401 | AB43: (71.2, 71.7)
B44: 50 to 54 | C44: none | D44: BSWN | E44: 2223 | F44: 3480 | G44: 63.8793 | H44: (62.3, 65.5) | I44: 0.941 | J44: (0.92, 0.97) | K44: 936 | L44: 1270 | M44: 73.7008 | N44: (71.2, 76.1) | O44: 1.091 | P44: (1.05, 1.13) | Q44: 16248 | R44: 23940 | S44: 67.8697 | T44: (67.3, 68.5) | U44: 15312 | V44: 22670 | W44: 67.543 | X44: (66.9, 68.2) | Y44: 18471 | Z44: 27420 | AA44: 67.3632 | AB44: (66.8, 67.9)
B45: 50 to 54 | C45: none | D45: BSCM | E45: 1438 | F45: 2230 | G45: 64.4843 | H45: (62.5, 66.5) | I45: 0.936 | J45: (0.91, 0.97) | K45: 2233 | L45: 2950 | M45: 75.6949 | N45: (74.1, 77.2) | O45: 1.124 | P45: (1.10, 1.15) | Q45: 10655 | R45: 15460 | S45: 68.9198 | T45: (68.2, 69.6) | U45: 8422 | V45: 12510 | W45: 67.3221 | X45: (66.5, 68.1) | Y45: 12093 | Z45: 17690 | AA45: 68.3607 | AB45: (67.7, 69.0)
B46: 50 to 54 | C46: none | D46: BSAL | E46: 730 | F46: 1210 | G46: 60.3306 | H46: (57.5, 63.1) | I46: 0.896 | J46: (0.85, 0.94) | K46: 1097 | L46: 1540 | M46: 71.2338 | N46: (68.9, 73.5) | O46: 1.065 | P46: (1.03, 1.10) | Q46: 10080 | R46: 14970 | S46: 67.3347 | T46: (66.6, 68.1) | U46: 8983 | V46: 13430 | W46: 66.8876 | X46: (66.1, 67.7) | Y46: 10810 | Z46: 16180 | AA46: 66.8109 | AB46: (66.1, 67.5)
B47: 50 to 54 | C47: none | D47: BSM | E47: 3072 | F47: 5270 | G47: 58.2922 | H47: (56.9, 59.6) | I47: 0.871 | J47: (0.85, 0.89) | K47: 252 | L47: 420 | M47: 60 | N47: (55.1, 64.7) | O47: 0.895 | P47: (0.83, 0.97) | Q47: 13504 | R47: 20180 | S47: 66.9177 | T47: (66.3, 67.6) | U47: 13252 | V47: 19760 | W47: 67.0648 | X47: (66.4, 67.7) | Y47: 16576 | Z47: 25450 | AA47: 65.1316 | AB47: (64.5, 65.7)
B48: 50 to 54 | C48: none | D48: BSCC | E48: 2561 | F48: 3890 | G48: 65.8355 | H48: (64.3, 67.3) | I48: 0.89 | J48: (0.87, 0.91) | K48: 229 | L48: 385 | M48: 59.4805 | N48: (54.4, 64.4) | O48: 0.801 | P48: (0.74, 0.87) | Q48: 12186 | R48: 16480 | S48: 73.9442 | T48: (73.3, 74.6) | U48: 11957 | V48: 16095 | W48: 74.2902 | X48: (73.6, 75.0) | Y48: 14747 | Z48: 20370 | AA48: 72.3957 | AB48: (71.8, 73.0)
B49: 50 to 54 | C49: none | D49: BSC | E49: 1284 | F49: 1840 | G49: 69.7826 | H49: (67.6, 71.9) | I49: 0.972 | J49: (0.94, 1.00) | K49: 665 | L49: 930 | M49: 71.5054 | N49: (68.5, 74.4) | O49: 0.995 | P49: (0.95, 1.04) | Q49: 11349 | R49: 15800 | S49: 71.8291 | T49: (71.1, 72.5) | U49: 10684 | V49: 14870 | W49: 71.8494 | X49: (71.1, 72.6) | Y49: 12633 | Z49: 17640 | AA49: 71.6156 | AB49: (70.9, 72.3)
B50: 50 to 54 | C50: none | D50: BSSL | E50: 1309 | F50: 1940 | G50: 67.4742 | H50: (65.3, 69.6) | I50: 0.909 | J50: (0.88, 0.94) | K50: 215 | L50: 375 | M50: 57.3333 | N50: (52.2, 62.4) | O50: 0.77 | P50: (0.70, 0.84) | Q50: 19905 | R50: 26815 | S50: 74.2308 | T50: (73.7, 74.8) | U50: 19690 | V50: 26440 | W50: 74.4705 | X50: (73.9, 75.0) | Y50: 21214 | Z50: 28755 | AA50: 73.775 | AB50: (73.3, 74.3)
B51: 50 to 54 | C51: none | D51: BSOS | E51: 525 | F51: 820 | G51: 64.0244 | H51: (60.6, 67.3) | I51: 0.856 | J51: (0.81, 0.90) | K51: 66 | L51: 120 | M51: 55 | N51: (45.7, 64.1) | O51: 0.733 | P51: (0.62, 0.86) | Q51: 7975 | R51: 10660 | S51: 74.8124 | T51: (74.0, 75.6) | U51: 7909 | V51: 10540 | W51: 75.038 | X51: (74.2, 75.9) | Y51: 8500 | Z51: 11480 | AA51: 74.0418 | AB51: (73.2, 74.8)
B52: 50 to 54 | C52: none | D52: Total | E52: 13142 | F52: 20680 | G52: 63.5493 | H52: (62.9, 64.2) | I52: 0.9 | J52: (0.89, 0.91) | K52: 5693 | L52: 7990 | M52: 71.2516 | N52: (70.2, 72.2) | O52: 1.01 | P52: (0.99, 1.02) | Q52: 101902 | R52: 144305 | S52: 70.6157 | T52: (70.4, 70.9) | U52: 96209 | V52: 136315 | W52: 70.5784 | X52: (70.3, 70.8) | Y52: 115044 | Z52: 164985 | AA52: 69.73 | AB52: (69.5, 70.0)
B53: 55 to 59 | C53: none | D53: BSWN | E53: 1985 | F53: 2920 | G53: 67.9795 | H53: (66.3, 69.7) | I53: 0.996 | J53: (0.97, 1.02) | K53: 757 | L53: 970 | M53: 78.0412 | N53: (75.3, 80.6) | O53: 1.151 | P53: (1.11, 1.19) | Q53: 14548 | R53: 21310 | S53: 68.2684 | T53: (67.6, 68.9) | U53: 13791 | V53: 20340 | W53: 67.8024 | X53: (67.2, 68.4) | Y53: 16533 | Z53: 24230 | AA53: 68.2336 | AB53: (67.6, 68.8)
B54: 55 to 59 | C54: none | D54: BSCM | E54: 1195 | F54: 1740 | G54: 68.6782 | H54: (66.4, 70.9) | I54: 0.997 | J54: (0.96, 1.03) | K54: 1771 | L54: 2230 | M54: 79.417 | N54: (77.7, 81.1) | O54: 1.19 | P54: (1.16, 1.22) | Q54: 9093 | R54: 13200 | S54: 68.8864 | T54: (68.1, 69.7) | U54: 7322 | V54: 10970 | W54: 66.7457 | X54: (65.9, 67.6) | Y54: 10288 | Z54: 14940 | AA54: 68.8621 | AB54: (68.1, 69.6)
B55: 55 to 59 | C55: none | D55: BSAL | E55: 542 | F55: 970 | G55: 55.8763 | H55: (52.7, 59.0) | I55: 0.839 | J55: (0.79, 0.89) | K55: 945 | L55: 1250 | M55: 75.6 | N55: (73.1, 78.0) | O55: 1.152 | P55: (1.11, 1.19) | Q55: 8548 | R55: 12840 | S55: 66.5732 | T55: (65.7, 67.4) | U55: 7603 | V55: 11590 | W55: 65.5997 | X55: (64.7, 66.5) | Y55: 9090 | Z55: 13810 | AA55: 65.8219 | AB55: (65.0, 66.6)
B56: 55 to 59 | C56: none | D56: BSM | E56: 2696 | F56: 4450 | G56: 60.5843 | H56: (59.1, 62.0) | I56: 0.884 | J56: (0.86, 0.91) | K56: 222 | L56: 350 | M56: 63.4286 | N56: (58.1, 68.5) | O56: 0.925 | P56: (0.85, 1.00) | Q56: 13208 | R56: 19280 | S56: 68.5062 | T56: (67.8, 69.2) | U56: 12986 | V56: 18930 | W56: 68.6001 | X56: (67.9, 69.3) | Y56: 15904 | Z56: 23730 | AA56: 67.0206 | AB56: (66.4, 67.6)
B57: 55 to 59 | C57: none | D57: BSCC | E57: 2127 | F57: 3200 | G57: 66.4688 | H57: (64.8, 68.1) | I57: 0.881 | J57: (0.86, 0.90) | K57: 190 | L57: 265 | M57: 71.6981 | N57: (65.9, 77.0) | O57: 0.949 | P57: (0.88, 1.02) | Q57: 12081 | R57: 16005 | S57: 75.4827 | T57: (74.8, 76.1) | U57: 11891 | V57: 15740 | W57: 75.5464 | X57: (74.9, 76.2) | Y57: 14208 | Z57: 19205 | AA57: 73.9807 | AB57: (73.4, 74.6)
B58: 55 to 59 | C58: none | D58: BSC | E58: 1034 | F58: 1530 | G58: 67.5817 | H58: (65.2, 69.9) | I58: 0.921 | J58: (0.89, 0.95) | K58: 501 | L58: 765 | M58: 65.4902 | N58: (62.0, 68.9) | O58: 0.887 | P58: (0.84, 0.94) | Q58: 10219 | R58: 13925 | S58: 73.386 | T58: (72.6, 74.1) | U58: 9718 | V58: 13160 | W58: 73.845 | X58: (73.1, 74.6) | Y58: 11253 | Z58: 15455 | AA58: 72.8114 | AB58: (72.1, 73.5)
B59: 55 to 59 | C59: none | D59: BSSL | E59: 1081 | F59: 1450 | G59: 74.5517 | H59: (72.2, 76.8) | I59: 0.913 | J59: (0.89, 0.94) | K59: 185 | L59: 280 | M59: 66.0714 | N59: (60.2, 71.6) | O59: 0.807 | P59: (0.74, 0.88) | Q59: 20196 | R59: 24735 | S59: 81.6495 | T59: (81.2, 82.1) | U59: 20011 | V59: 24455 | W59: 81.8278 | X59: (81.3, 82.3) | Y59: 21277 | Z59: 26185 | AA59: 81.2564 | AB59: (80.8, 81.7)
B60: 55 to 59 | C60: none | D60: BSOS | E60: 386 | F60: 600 | G60: 64.3333 | H60: (60.4, 68.2) | I60: 0.853 | J60: (0.80, 0.91) | K60: 60 | L60: 80 | M60: 75 | N60: (64.1, 84.0) | O60: 0.994 | P60: (0.88, 1.13) | Q60: 7564 | R60: 10030 | S60: 75.4138 | T60: (74.6, 76.3) | U60: 7504 | V60: 9950 | W60: 75.4171 | X60: (74.6, 76.3) | Y60: 7950 | Z60: 10630 | AA60: 74.7883 | AB60: (74.0, 75.6)
B61: 55 to 59 | C61: none | D61: Total | E61: 11046 | F61: 16860 | G61: 65.516 | H61: (64.8, 66.2) | I61: 0.901 | J61: (0.89, 0.91) | K61: 4631 | L61: 6190 | M61: 74.8142 | N61: (73.7, 75.9) | O61: 1.031 | P61: (1.02, 1.05) | Q61: 95457 | R61: 131325 | S61: 72.6876 | T61: (72.4, 72.9) | U61: 90826 | V61: 125135 | W61: 72.5824 | X61: (72.3, 72.8) | Y61: 106503 | Z61: 148185 | AA61: 71.8716 | AB61: (71.6, 72.1)
B62: 60 to 64 | C62: none | D62: BSWN | E62: 1448 | F62: 2070 | G62: 69.9517 | H62: (67.9, 71.9) | I62: 1.008 | J62: (0.98, 1.04) | K62: 588 | L62: 770 | M62: 76.3636 | N62: (73.2, 79.3) | O62: 1.106 | P62: (1.06, 1.15) | Q62: 13055 | R62: 18820 | S62: 69.3677 | T62: (68.7, 70.0) | U62: 12467 | V62: 18050 | W62: 69.0693 | X62: (68.4, 69.7) | Y62: 14503 | Z62: 20890 | AA62: 69.4256 | AB62: (68.8, 70.0)
B63: 60 to 64 | C63: none | D63: BSCM | E63: 926 | F63: 1380 | G63: 67.1014 | H63: (64.6, 69.6) | I63: 0.966 | J63: (0.93, 1.00) | K63: 1378 | L63: 1720 | M63: 80.1163 | N63: (78.2, 82.0) | O63: 1.186 | P63: (1.15, 1.22) | Q63: 7800 | R63: 11230 | S63: 69.4568 | T63: (68.6, 70.3) | U63: 6422 | V63: 9510 | W63: 67.5289 | X63: (66.6, 68.5) | Y63: 8726 | Z63: 12610 | AA63: 69.199 | AB63: (68.4, 70.0)
B64: 60 to 64 | C64: none | D64: BSAL | E64: 405 | F64: 740 | G64: 54.7297 | H64: (51.1, 58.4) | I64: 0.849 | J64: (0.79, 0.91) | K64: 719 | L64: 1030 | M64: 69.8058 | N64: (66.9, 72.6) | O64: 1.092 | P64: (1.05, 1.14) | Q64: 7086 | R64: 10990 | S64: 64.4768 | T64: (63.6, 65.4) | U64: 6367 | V64: 9960 | W64: 63.9257 | X64: (63.0, 64.9) | Y64: 7491 | Z64: 11730 | AA64: 63.8619 | AB64: (63.0, 64.7)
B65: 60 to 64 | C65: none | D65: BSM | E65: 2085 | F65: 3420 | G65: 60.9649 | H65: (59.3, 62.6) | I65: 0.871 | J65: (0.85, 0.90) | K65: 160 | L65: 250 | M65: 64 | N65: (57.7, 70.0) | O65: 0.913 | P65: (0.83, 1.00) | Q65: 12626 | R65: 18030 | S65: 70.0277 | T65: (69.4, 70.7) | U65: 12466 | V65: 17780 | W65: 70.1125 | X65: (69.4, 70.8) | Y65: 14711 | Z65: 21450 | AA65: 68.5828 | AB65: (68.0, 69.2)
B66: 60 to 64 | C66: none | D66: BSCC | E66: 1651 | F66: 2470 | G66: 66.8421 | H66: (64.9, 68.7) | I66: 0.898 | J66: (0.87, 0.92) | K66: 136 | L66: 210 | M66: 64.7619 | N66: (57.9, 71.2) | O66: 0.868 | P66: (0.78, 0.96) | Q66: 10961 | R66: 14720 | S66: 74.4633 | T66: (73.8, 75.2) | U66: 10825 | V66: 14510 | W66: 74.6037 | X66: (73.9, 75.3) | Y66: 12612 | Z66: 17190 | AA66: 73.3682 | AB66: (72.7, 74.0)
B67: 60 to 64 | C67: none | D67: BSC | E67: 707 | F67: 1040 | G67: 67.9808 | H67: (65.0, 70.8) | I67: 0.896 | J67: (0.86, 0.94) | K67: 438 | L67: 625 | M67: 70.08 | N67: (66.3, 73.6) | O67: 0.92 | P67: (0.87, 0.97) | Q67: 8978 | R67: 11835 | S67: 75.8597 | T67: (75.1, 76.6) | U67: 8540 | V67: 11210 | W67: 76.182 | X67: (75.4, 77.0) | Y67: 9685 | Z67: 12875 | AA67: 75.2233 | AB67: (74.5, 76.0)
B68: 60 to 64 | C68: none | D68: BSSL | E68: 731 | F68: 1080 | G68: 67.6852 | H68: (64.8, 70.5) | I68: 0.883 | J68: (0.85, 0.92) | K68: 137 | L68: 200 | M68: 68.5 | N68: (61.6, 74.9) | O68: 0.892 | P68: (0.81, 0.98) | Q68: 16937 | R68: 22085 | S68: 76.6901 | T68: (76.1, 77.2) | U68: 16800 | V68: 21885 | W68: 76.7649 | X68: (76.2, 77.3) | Y68: 17668 | Z68: 23165 | AA68: 76.2702 | AB68: (75.7, 76.8)
B69: 60 to 64 | C69: none | D69: BSOS | E69: 262 | F69: 450 | G69: 58.2222 | H69: (53.5, 62.8) | I69: 0.775 | J69: (0.72, 0.84) | K69: 26 | L69: 60 | M69: 43.3333 | N69: (30.6, 56.8) | O69: 0.575 | P69: (0.43, 0.77) | Q69: 6449 | R69: 8580 | S69: 75.1632 | T69: (74.2, 76.1) | U69: 6423 | V69: 8520 | W69: 75.3873 | X69: (74.5, 76.3) | Y69: 6711 | Z69: 9030 | AA69: 74.3189 | AB69: (73.4, 75.2)
B70: 60 to 64 | C70: none | D70: Total | E70: 8215 | F70: 12650 | G70: 64.9407 | H70: (64.1, 65.8) | I70: 0.9 | J70: (0.89, 0.91) | K70: 3582 | L70: 4865 | M70: 73.628 | N70: (72.4, 74.9) | O70: 1.022 | P70: (1.00, 1.04) | Q70: 83892 | R70: 116290 | S70: 72.1403 | T70: (71.9, 72.4) | U70: 80310 | V70: 111425 | W70: 72.0754 | X70: (71.8, 72.3) | Y70: 92107 | Z70: 128940 | AA70: 71.434 | AB70: (71.2, 71.7)
B71: 65 to 69 | C71: none | D71: BSWN | E71: 1068 | F71: 1540 | G71: 69.3506 | H71: (67.0, 71.6) | I71: 0.994 | J71: (0.96, 1.03) | K71: 445 | L71: 550 | M71: 80.9091 | N71: (77.4, 84.1) | O71: 1.165 | P71: (1.12, 1.22) | Q71: 12124 | R71: 17370 | S71: 69.7985 | T71: (69.1, 70.5) | U71: 11679 | V71: 16820 | W71: 69.4352 | X71: (68.7, 70.1) | Y71: 13192 | Z71: 18910 | AA71: 69.762 | AB71: (69.1, 70.4)
B72: 65 to 69 | C72: none | D72: BSCM | E72: 632 | F72: 920 | G72: 68.6957 | H72: (65.6, 71.7) | I72: 0.989 | J72: (0.94, 1.03) | K72: 1034 | L72: 1380 | M72: 74.9275 | N72: (72.6, 77.2) | O72: 1.093 | P72: (1.06, 1.13) | Q72: 6716 | R72: 9670 | S72: 69.4519 | T72: (68.5, 70.4) | U72: 5682 | V72: 8290 | W72: 68.5404 | X72: (67.5, 69.5) | Y72: 7348 | Z72: 10590 | AA72: 69.3862 | AB72: (68.5, 70.3)
B73: 65 to 69 | C73: none | D73: BSAL | E73: 306 | F73: 510 | G73: 60 | H73: (55.6, 64.3) | I73: 0.912 | J73: (0.85, 0.98) | K73: 498 | L73: 700 | M73: 71.1429 | N73: (67.6, 74.5) | O73: 1.089 | P73: (1.04, 1.14) | Q73: 5915 | R73: 8990 | S73: 65.7953 | T73: (64.8, 66.8) | U73: 5417 | V73: 8290 | W73: 65.3438 | X73: (64.3, 66.4) | Y73: 6221 | Z73: 9500 | AA73: 65.4842 | AB73: (64.5, 66.4)
B74: 65 to 69 | C74: none | D74: BSM | E74: 1502 | F74: 2420 | G74: 62.0661 | H74: (60.1, 64.0) | I74: 0.853 | J74: (0.82, 0.88) | K74: 125 | L74: 200 | M74: 62.5 | N74: (55.4, 69.2) | O74: 0.857 | P74: (0.77, 0.95) | Q74: 12565 | R74: 17260 | S74: 72.7984 | T74: (72.1, 73.5) | U74: 12440 | V74: 17060 | W74: 72.9191 | X74: (72.2, 73.6) | Y74: 14067 | Z74: 19680 | AA74: 71.4787 | AB74: (70.8, 72.1)
B75: 65 to 69 | C75: none | D75: BSCC | E75: 1278 | F75: 1850 | G75: 69.0811 | H75: (66.9, 71.2) | I75: 0.878 | J75: (0.85, 0.91) | K75: 99 | L75: 160 | M75: 61.875 | N75: (53.9, 69.4) | O75: 0.785 | P75: (0.69, 0.89) | Q75: 10966 | R75: 13940 | S75: 78.6657 | T75: (78.0, 79.3) | U75: 10867 | V75: 13780 | W75: 78.8607 | X75: (78.2, 79.5) | Y75: 12244 | Z75: 15790 | AA75: 77.5427 | AB75: (76.9, 78.2)
B76: 65 to 69 | C76: none | D76: BSC | E76: 475 | F76: 760 | G76: 62.5 | H76: (58.9, 66.0) | I76: 0.805 | J76: (0.76, 0.85) | K76: 336 | L76: 520 | M76: 64.6154 | N76: (60.3, 68.7) | O76: 0.826 | P76: (0.77, 0.88) | Q76: 8428 | R76: 10860 | S76: 77.6059 | T76: (76.8, 78.4) | U76: 8092 | V76: 10340 | W76: 78.2592 | X76: (77.5, 79.1) | Y76: 8903 | Z76: 11620 | AA76: 76.6179 | AB76: (75.8, 77.4)
B77: 65 to 69 | C77: none | D77: BSSL | E77: 599 | F77: 800 | G77: 74.875 | H77: (71.7, 77.8) | I77: 0.934 | J77: (0.90, 0.97) | K77: 93 | L77: 150 | M77: 62 | N77: (53.7, 69.8) | O77: 0.772 | P77: (0.68, 0.88) | Q77: 16541 | R77: 20635 | S77: 80.1599 | T77: (79.6, 80.7) | U77: 16448 | V77: 20485 | W77: 80.2929 | X77: (79.7, 80.8) | Y77: 17140 | Z77: 21435 | AA77: 79.9627 | AB77: (79.4, 80.5)
B78: 65 to 69 | C78: none | D78: BSOS | E78: 225 | F78: 320 | G78: 70.3125 | H78: (65.0, 75.3) | I78: 0.963 | J78: (0.90, 1.04) | K78: 29 | L78: 50 | M78: 58 | N78: (43.2, 71.8) | O78: 0.794 | P78: (0.63, 1.00) | Q78: 5882 | R78: 8060 | S78: 72.9777 | T78: (72.0, 73.9) | U78: 5853 | V78: 8010 | W78: 73.0712 | X78: (72.1, 74.0) | Y78: 6107 | Z78: 8380 | AA78: 72.8759 | AB78: (71.9, 73.8)
B79: 65 to 69 | C79: none | D79: Total | E79: 6085 | F79: 9120 | G79: 66.7215 | H79: (65.7, 67.7) | I79: 0.9 | J79: (0.89, 0.91) | K79: 2659 | L79: 3710 | M79: 71.6712 | N79: (70.2, 73.1) | O79: 0.966 | P79: (0.95, 0.99) | Q79: 79137 | R79: 106785 | S79: 74.1087 | T79: (73.8, 74.4) | U79: 76478 | V79: 103075 | W79: 74.1965 | X79: (73.9, 74.5) | Y79: 85222 | Z79: 115905 | AA79: 73.5275 | AB79: (73.3, 73.8)
C201: ="Figure " & A2 & ".1, " & C204 & ", " & D204 & IF(E204 = "None", "", ", " & E204) & ", Two Years to Time Period" -> Figure 1.a.4.1, Total, 50 to 54, Two Years to Time Period
C202: =INDEX(reference!$H$2:$H$99, MATCH($A$2, reference!$A$2:$A$99, 0)) -> % Screened
C204: =INDEX(C206:C214, C205) -> Total | D204: =INDEX(D206:D214, D205) -> 50 to 54 | E204: None
C205: 9 | D205: 2 | E205: 1
B206: 1 | C206: BSWN | D206: 45 to 49 | E206: =IFERROR(INDEX('reference - splits'!$C$2:$C$72, MATCH($A$2 & " - Split " & B206, 'reference - splits'!$B$2:$B$72, 0)), "") -> None
B207: 2 | C207: BSCM | D207: 50 to 54 | E207: =IFERROR(INDEX('reference - splits'!$C$2:$C$72, MATCH($A$2 & " - Split " & B207, 'reference - splits'!$B$2:$B$72, 0)), "") -> 
B208: 3 | C208: BSAL | D208: 55 to 59 | E208: =IFERROR(INDEX('reference - splits'!$C$2:$C$72, MATCH($A$2 & " - Split " & B208, 'reference - splits'!$B$2:$B$72, 0)), "") -> 
B209: 4 | C209: BSM | D209: 60 to 64 | E209: =IFERROR(INDEX('reference - splits'!$C$2:$C$72, MATCH($A$2 & " - Split " & B209, 'reference - splits'!$B$2:$B$72, 0)), "") -> 
B210: 5 | C210: BSCC | D210: 65 to 69 | E210: =IFERROR(INDEX('reference - splits'!$C$2:$C$72, MATCH($A$2 & " - Split " & B210, 'reference - splits'!$B$2:$B$72, 0)), "") -> 
B211: 6 | C211: BSC | E211: =IFERROR(INDEX('reference - splits'!$C$2:$C$72, MATCH($A$2 & " - Split " & B211, 'reference - splits'!$B$2:$B$72, 0)), "") -> 
B212: 7 | C212: BSSL | E212: =IFERROR(INDEX('reference - splits'!$C$2:$C$72, MATCH($A$2 & " - Split " & B212, 'reference - splits'!$B$2:$B$72, 0)), "") -> 
B213: 8 | C213: BSOS | E213: =IFERROR(INDEX('reference - splits'!$C$2:$C$72, MATCH($A$2 & " - Split " & B213, 'reference - splits'!$B$2:$B$72, 0)), "") -> 
B214: 9 | C214: Total | E214: =IFERROR(INDEX('reference - splits'!$C$2:$C$72, MATCH($A$2 & " - Split " & B214, 'reference - splits'!$B$2:$B$72, 0)), "") -> 
C216: Visible | G216: TRUE | H216: TRUE | I216: FALSE | J216: FALSE | K216: TRUE | L216: TRUE | M216: =$L$216 -> TRUE | N216: =$L$216 -> TRUE | O216: TRUE | P216: TRUE | Q216: TRUE | R216: TRUE | S216: TRUE | T216: TRUE | U216: TRUE
C218: split | D218: age_group | E218: lead_provider | F218: time_period | G218: Māori | H218: Pacific | I218: Non-Māori | J218: Non-Māori Non-Pacific | K218: All | L218: lci_m | M218: lci_p | N218: lci_nm | O218: lci_nmnp | P218: lci_a | Q218: uci_m | R218: uci_p | S218: uci_nm | T218: uci_nmnp | U218: uci_a | V218: target bottom | W218: target top
C219: =$E$204 -> None | D219: =$D$204 -> 50 to 54 | E219: =$C$204 -> Total | F219: 2011-12-31 | G219: =IF(G$216, SUMIFS(G$232:G$681, $C$232:$C$681, $C219, $D$232:$D$681, $D219, $E$232:$E$681, $E219, $F$232:$F$681, $F219), #N/A) -> 60.8246 | H219: =IF(H$216, SUMIFS(H$232:H$681, $C$232:$C$681, $C219, $D$232:$D$681, $D219, $E$232:$E$681, $E219, $F$232:$F$681, $F219), #N/A) -> 69.7079 | K219: 66.5001 | L219: 0.7236 | M219: 1.1211 | N219: 0.2521 | O219: 0.2589 | P219: 0.2382 | Q219: 0.7201 | R219: 1.1038 | S219: 0.2513 | T219: 0.258 | U219: 0.2375 | V219: =IF(LEFT($D$204, 2) = "50", INDEX('reference - splits'!$E$2:$E$72, MATCH($A$2 & " - " & $E$204, 'reference - splits'!$D$2:$D$72, 0)), 0) -> 0 | W219: =IF(LEFT($D$204, 2) = "50", INDEX('reference - splits'!$F$2:$F$72, MATCH($A$2 & " - " & $E$204, 'reference - splits'!$D$2:$D$72, 0)) - V219, 0) -> 0
C220: None | D220: =$D$204 -> 50 to 54 | E220: Total | F220: 2012-06-30 | G220: =IF(G$216, SUMIFS(G$232:G$681, $C$232:$C$681, $C220, $D$232:$D$681, $D220, $E$232:$E$681, $E220, $F$232:$F$681, $F220), #N/A) -> 61.2885 | H220: 71.2749 | K220: 67.1164 | L220: 0.7129 | M220: 1.093 | N220: 0.2492 | O220: 0.2561 | P220: 0.2353 | Q220: 0.7094 | R220: 1.0747 | S220: 0.2484 | T220: 0.2552 | U220: 0.2348 | V220: =IF(LEFT($D$204, 2) = "50", INDEX('reference - splits'!$E$2:$E$72, MATCH($A$2 & " - " & $E$204, 'reference - splits'!$D$2:$D$72, 0)), 0) -> 0 | W220: =IF(LEFT($D$204, 2) = "50", INDEX('reference - splits'!$F$2:$F$72, MATCH($A$2 & " - " & $E$204, 'reference - splits'!$D$2:$D$72, 0)) - V220, 0) -> 0
C221: None | D221: 50 to 54 | E221: Total | F221: 2012-12-31 | G221: 62.131 | H221: 72.0913 | K221: 68.7289 | L221: 0.7011 | M221: 1.0733 | N221: 0.244 | O221: 0.2507 | P221: 0.2308 | Q221: 0.6972 | R221: 1.0547 | S221: 0.2432 | T221: 0.2498 | U221: 0.23 | V221: =IF(LEFT($D$204, 2) = "50", INDEX('reference - splits'!$E$2:$E$72, MATCH($A$2 & " - " & $E$204, 'reference - splits'!$D$2:$D$72, 0)), 0) -> 0 | W221: =IF(LEFT($D$204, 2) = "50", INDEX('reference - splits'!$F$2:$F$72, MATCH($A$2 & " - " & $E$204, 'reference - splits'!$D$2:$D$72, 0)) - V221, 0) -> 0
C222: None | D222: 50 to 54 | E222: Total | F222: 2013-06-30 | G222: 62.6178 | H222: 73.844 | K222: 68.6107 | L222: 0.6906 | M222: 1.0427 | N222: 0.243 | O222: 0.25 | P222: 0.2294 | Q222: 0.6868 | R222: 1.0229 | S222: 0.2422 | T222: 0.249 | U222: 0.2288 | V222: =IF(LEFT($D$204, 2) = "50", INDEX('reference - splits'!$E$2:$E$72, MATCH($A$2 & " - " & $E$204, 'reference - splits'!$D$2:$D$72, 0)), 0) -> 0 | W222: =IF(LEFT($D$204, 2) = "50", INDEX('reference - splits'!$F$2:$F$72, MATCH($A$2 & " - " & $E$204, 'reference - splits'!$D$2:$D$72, 0)) - V222, 0) -> 0
C223: None | D223: 50 to 54 | E223: Total | F223: 2013-12-31 | G223: 63.1283 | H223: 73.6581 | K223: 69.5089 | L223: 0.6799 | M223: 1.029 | N223: 0.2395 | O223: 0.2465 | P223: 0.2262 | Q223: 0.6761 | R223: 1.0101 | S223: 0.2387 | T223: 0.2455 | U223: 0.2255 | V223: =IF(LEFT($D$204, 2) = "50", INDEX('reference - splits'!$E$2:$E$72, MATCH($A$2 & " - " & $E$204, 'reference - splits'!$D$2:$D$72, 0)), 0) -> 0 | W223: =IF(LEFT($D$204, 2) = "50", INDEX('reference - splits'!$F$2:$F$72, MATCH($A$2 & " - " & $E$204, 'reference - splits'!$D$2:$D$72, 0)) - V223, 0) -> 0
C224: None | D224: 50 to 54 | E224: Total | F224: 2014-06-30 | G224: 62.9318 | H224: 73.1818 | K224: 69.5527 | L224: 0.6722 | M224: 1.0195 | N224: 0.2381 | O224: 0.245 | P224: 0.2248 | Q224: 0.6685 | R224: 1.0015 | S224: 0.2372 | T224: 0.2442 | U224: 0.224 | V224: =IF(LEFT($D$204, 2) = "50", INDEX('reference - splits'!$E$2:$E$72, MATCH($A$2 & " - " & $E$204, 'reference - splits'!$D$2:$D$72, 0)), 0) -> 0 | W224: =IF(LEFT($D$204, 2) = "50", INDEX('reference - splits'!$F$2:$F$72, MATCH($A$2 & " - " & $E$204, 'reference - splits'!$D$2:$D$72, 0)) - V224, 0) -> 0
C225: None | D225: 50 to 54 | E225: Total | F225: 2014-12-31 | G225: 63.6584 | H225: 72.5896 | K225: 70.5084 | L225: 0.6668 | M225: 1.0185 | N225: 0.235 | O225: 0.2417 | P225: 0.222 | Q225: 0.6628 | R225: 1.0011 | S225: 0.2342 | T225: 0.2409 | U225: 0.2214 | V225: =IF(LEFT($D$204, 2) = "50", INDEX('reference - splits'!$E$2:$E$72, MATCH($A$2 & " - " & $E$204, 'reference - splits'!$D$2:$D$72, 0)), 0) -> 0 | W225: =IF(LEFT($D$204, 2) = "50", INDEX('reference - splits'!$F$2:$F$72, MATCH($A$2 & " - " & $E$204, 'reference - splits'!$D$2:$D$72, 0)) - V225, 0) -> 0
C226: None | D226: 50 to 54 | E226: Total | F226: 2015-06-30 | G226: 63.5798 | H226: 71.8571 | K226: 70.4427 | L226: 0.6643 | M226: 1.019 | N226: 0.2345 | O226: 0.2412 | P226: 0.2216 | Q226: 0.6605 | R226: 1.0025 | S226: 0.2337 | T226: 0.2403 | U226: 0.2208 | V226: =IF(LEFT($D$204, 2) = "50", INDEX('reference - splits'!$E$2:$E$72, MATCH($A$2 & " - " & $E$204, 'reference - splits'!$D$2:$D$72, 0)), 0) -> 0 | W226: =IF(LEFT($D$204, 2) = "50", INDEX('reference - splits'!$F$2:$F$72, MATCH($A$2 & " - " & $E$204, 'reference - splits'!$D$2:$D$72, 0)) - V226, 0) -> 0
